Workbook

Sheet Notes
A1: The 2020 Razzball *Excel* War Room
A2: Features
A3: 1) | B3: Color Coded Dashboard that crosses off" selected players | Q3: HOW TO USE (2020 screenshots):
A4: 2) | B4: Team by Team analysis of players taken, players left.
A5: 3) | B5: Real time projected totals, along with real time projected league standings
A6: 4) | B6: Goal Tracking Dashboard | Q6: Click any of the drop-down arrow boxes to sort by that ranking
A7: 5) | B7: Auto updating Draftee List for your team.
A8: 6) | B8: User customizable for Team Names,League Type, and Goals
A10: User Steps
A11: 1) | B11: Complete User Input Tab based upon league parameters
B12: (Enter "Your Team" in the first slot. This populates the War Room page with your selected players.)
A13: 2) | B13: Populate Players Tab during Draft
A14: 3) | B14: Dashboard and War Room Tabs will automatically update
B15: NOTE: On the War Room tab, the box top left indicates "# of Players Taken". In order to get a "true" evaluation of my team, I add/drop players from specific teams until each has 13 hitters and 9 pitchers.
A16: Notes
A17: 1) | B17: All statistics based upon Grey Albright, RAZZBALL.COM, and Razzball's Steamer projections
A19: ANY QUESTIONS? Post a comment at the official website: | G19: http://razzball.com/2020-fantasy-baseball-war-room/
A22: Created by Lou Poulas
A23: 2011 updates: Fred Barker
A24: 2012 updates: John Hassett
A25: 2013 updates: Trevor Gallo & John Hassett
A26: 2014-2016 updates: Nick Kern
A27: 2016 tweaks: Hot Rod
A28: 2017 update: Hot Rod
A29: 2018 update: Hot Rod
A30: 2019 update: Hot Rod (thanks Knucks for first pass on tiers!)
A31: 2020 update: Hot Rod (thanks Knucks for first pass on tiers!)

Sheet User Input
A1: Team 1 Name | C1: a | D1: ← ← ← | E1: YOUR TEAM | G1: Hitting Categories | H1: Points | J1: Pitching Categories | K1: Points
A2: Team 2 Name | C2: b | G2: 1B | H2: 1 | J2: Win | K2: 7
A3: Team 3 Name | C3: c | G3: 2B | H3: 2 | J3: Loss | K3: -5
A4: Team 4 Name | C4: d | G4: 3B | H4: 3 | J4: Save | K4: 7
A5: Team 5 Name | C5: e | G5: HR | H5: 4 | J5: Blown Save | K5: 0 | M5: not supported 2019 due to using Steamer projections
A6: Team 6 Name | C6: f | G6: RBI | H6: 1 | J6: Inning Pitched | K6: 3
A7: Team 7 Name | C7: g | G7: Run | H7: 1 | J7: Strikeout | K7: 0.5
A8: Team 8 Name | C8: h | G8: Walk | H8: 1 | J8: Walk | K8: -1
A9: Team 9 Name | C9: i | G9: Strikeout | H9: -0.5 | J9: ER | K9: -1
A10: Team 10 Name | C10: j | G10: Stolen Base | H10: 2 | J10: Hit | K10: -1
A11: Team 11 Name | C11: k | G11: Caught Stealing | H11: -1 | J11: Hold | K11: 0
A12: Team 12 Name | C12: l | D12: 12 team | G12: Hit By Pitch | H12: 0 | J12: Quality Start | K12: 3
A13: Team 13 Name | G13: Sacrifice Fly | H13: 0 | J13: Complete Game | K13: 0 | M13: not supported 2019 due to using Steamer projections
A14: Team 14 Name | G14: Total Bases | H14: 0 | J14: Shutout | K14: 0 | M14: not supported 2019 due to using Steamer projections
A15: Team 15 Name | D15: 15 team | G15: Hit | H15: 0 | J15: Hit Batsman | K15: 0 | M15: not supported 2019 due to using Steamer projections
A16: Team 16 Name | G16: Plate Appearances | H16: 0 | J16: Wild Pitch | K16: 0 | M16: not supported 2019 due to using Steamer projections
A17: Team 17 Name | G17: At Bat | H17: 0 | J17: HR Allowed | K17: 0 | M17: not supported 2019 due to using Steamer projections
A18: Team 18 Name
A19: Team 19 Name | G19: POINTS LEAGUES - ENTER YOUR SCORING SYSTEM ABOVE IN YELLOW BOXES
A20: Team 20 Name
A21: Team 21 Name
A22: Team 22 Name
A23: Team 23 Name | J23: Preferred standings ranking style: | K23: 0 | N23: (# teams changes automatically based on # of team names)
A24: Team 24 Name | K24: where: | L24: 0 | M24: = | N24: ="descending 1-"&COUNTA(C1:C30)&" (1 is best, "&COUNTA(C1:C30)&" worst)" -> descending 1-12 (1 is best, 12 worst)
A25: Team 25 Name | D25: 25 team -- click expand (+) at left to get 30 team | L25: 1 | M25: = | N25: ="descending "&COUNTA(C1:C30)&"-1 ("&COUNTA(C1:C30)&" is best, 1 worst)" -> descending 12-1 (12 is best, 1 worst)
A26: Team 26 Name
A27: Team 27 Name
A28: Team 28 Name
A29: Team 29 Name
A30: Team 30 Name | D30: 30 team
D31: Examples / default
A32: Team Budget | C32: 280 | D32: ($280, $260, etc)
A34: # of Batters Per Team | C34: 17 | D34: 17, 15, 14, 9
A35: # of Pitchers Per Team | C35: 15 | D35: 15, 10, 7
A36: # of BENCH Per Team | C36: 0 | D36: 0, 5
A37: Total players | C37: =SUM(C34:C36) -> 32
A39: Personal Team Goals (Optional)
A40: R | C40: 1021 | D40: 1021
A41: HR | C41: 255 | D41: 255
A42: RBI | C42: 973 | D42: 973
A43: SB | C43: 177 | D43: 177
A44: AVG | C44: 0.271 | D44: 0.271
A46: ERA | C46: 3.56 | D46: 3.56
A47: WHIP | C47: 1.23 | D47: 1.23
A48: W | C48: 86 | D48: 86
A49: S | C49: 122 | D49: 122
A50: K | C50: 1272 | D50: 1272

Sheet Dashboard
B1: C | F1: 1B | J1: 2B | N1: 3B | R1: SS | V1: OF | Z1: DH | AA1: hitter | AB1: pitcher | AE1: SP | AF1: pitcher | AG1: hitter | AJ1: CLOSERS & RP | AO1: Prospects - ALL | AU1: Prospects - HITTERS | BA1: Prospects - PITCHERS | BG1: by ETA - HITTER prospects (ranked in each year) | BL1: by ETA - PITCHER prospects (ranked in each year)
A2: 1 | B2: J.T. Realmuto | C2: =VLOOKUP($B2,Players!$N$3:$O$1273,2,FALSE) -> 0 | D2: =IF(C2>0,1,0) -> 0 | F2: Cody Bellinger | G2: =VLOOKUP($F2,Players!$N$3:$O$1273,2,FALSE) -> 0 | H2: =IF(G2>0,1,0) -> 0 | J2: Gleyber Torres | K2: =VLOOKUP($J2,Players!$N$3:$O$1273,2,FALSE) -> 0 | L2: =IF(K2>0,1,0) -> 0 | N2: Jose Ramirez | O2: =VLOOKUP($N2,Players!$N$3:$O$1273,2,FALSE) -> 0 | P2: =IF(O2>0,1,0) -> 0 | R2: Trevor Story | S2: =VLOOKUP($R2,Players!$N$3:$O$1273,2,FALSE) -> 0 | T2: =IF(S2>0,1,0) -> 0 | V2: Ronald Acuna Jr. | W2: =VLOOKUP($V2,Players!$N$3:$O$1273,2,FALSE) -> 0 | X2: =IF(W2>0,1,0) -> 0 | Z2: Nelson Cruz | AA2: =VLOOKUP($Z2,Players!$N$3:$O$1273,2,FALSE) -> 0 | AC2: =IF(AA2>0,1,0) -> 0 | AE2: Gerrit Cole | AF2: =VLOOKUP($AE2,Players!$AV$3:$AW$1447,2,FALSE) -> 0 | AH2: =IF(AF2>0,1,0) -> 0 | AJ2: Josh Hader | AK2: =VLOOKUP($AJ2,Players!$AV$3:$AW$1447,2,FALSE) -> 0 | AL2: =IF(AK2>0,1,0) -> 0 | AO2: 2021 | AP2: SS | AQ2: Wander Franco | AR2: =IF(ISERROR(VLOOKUP($AQ2,Players!$N$3:$O$1456,2,FALSE)),(VLOOKUP($AQ2,Players!$AV$3:$AW$1447,2,FALSE)),(VLOOKUP($AQ2,Players!$N$3:$O$1456,2,FALSE))) -> 0 | AS2: =IF(AR2>0,1,0) -> 0 | AU2: 2021 | AV2: SS | AW2: Wander Franco | AX2: =VLOOKUP($AW2,Players!$N$3:$O$1456,2,FALSE) -> 0 | AY2: =IF(AX2>0,1,0) -> 0 | BA2: 2020 | BB2: LHP | BC2: MacKenzie Gore | BD2: =VLOOKUP($BC2,Players!$AV$3:$AW$1447,2,FALSE) -> 0 | BE2: =IF(BD2>0,1,0) -> 0 | BH2: 2018/2019 | BI2: =VLOOKUP($BH2,Players!$N$3:$O$1456,2,FALSE) ->  | BJ2: =IF(BI2>0,1,0) ->  | BM2: 2018/2019
A3: 2 | B3: Gary Sanchez | C3: =VLOOKUP($B3,Players!$N$3:$O$1273,2,FALSE) -> 0 | D3: =IF(C3>0,1,0) -> 0 | F3: Freddie Freeman | G3: =VLOOKUP($F3,Players!$N$3:$O$1273,2,FALSE) -> 0 | H3: =IF(G3>0,1,0) -> 0 | J3: Jose Altuve | K3: =VLOOKUP($J3,Players!$N$3:$O$1273,2,FALSE) -> 0 | L3: =IF(K3>0,1,0) -> 0 | N3: Nolan Arenado | O3: =VLOOKUP($N3,Players!$N$3:$O$1273,2,FALSE) -> 0 | P3: =IF(O3>0,1,0) -> 0 | R3: Francisco Lindor | S3: =VLOOKUP($R3,Players!$N$3:$O$1273,2,FALSE) -> 0 | T3: =IF(S3>0,1,0) -> 0 | V3: Christian Yelich | W3: =VLOOKUP($V3,Players!$N$3:$O$1273,2,FALSE) -> 0 | X3: =IF(W3>0,1,0) -> 0 | Z3: Shohei Ohtani | AA3: =VLOOKUP($Z3,Players!$N$3:$O$1273,2,FALSE) -> 0 | AC3: =IF(AA3>0,1,0) -> 0 | AE3: Jacob deGrom | AF3: =VLOOKUP($AE3,Players!$AV$3:$AW$1447,2,FALSE) -> 0 | AH3: =IF(AF3>0,1,0) -> 0 | AJ3: Kirby Yates | AK3: =VLOOKUP($AJ3,Players!$AV$3:$AW$1447,2,FALSE) -> 0 | AL3: 0 | AO3: 2020 | AP3: OF | AQ3: Luis Robert | AR3: =IF(ISERROR(VLOOKUP($AQ3,Players!$N$3:$O$1456,2,FALSE)),(VLOOKUP($AQ3,Players!$AV$3:$AW$1447,2,FALSE)),(VLOOKUP($AQ3,Players!$N$3:$O$1456,2,FALSE))) -> 0 | AS3: =IF(AR3>0,1,0) -> 0 | AU3: 2020 | AV3: OF | AW3: Luis Robert | AX3: =VLOOKUP($AW3,Players!$N$3:$O$1456,2,FALSE) -> 0 | AY3: =IF(AX3>0,1,0) -> 0 | BA3: 2019 | BB3: LHP | BC3: Jesus Luzardo | BD3: =VLOOKUP($BC3,Players!$AV$3:$AW$1447,2,FALSE) -> 0 | BE3: 0 | BG3: 2B | BH3: Gavin Lux | BI3: =VLOOKUP($BH3,Players!$N$3:$O$1456,2,FALSE) -> 0 | BJ3: =IF(BI3>0,1,0) -> 0 | BL3: LHP | BM3: Jesus Luzardo | BN3: =VLOOKUP($BM3,Players!$AV$3:$AW$1447,2,FALSE) -> 0 | BO3: =IF(BN3>0,1,0) -> 0 | BR3: Grey's Pitcher Pairings
A4: 3 | B4: Yasmani Grandal | C4: =VLOOKUP($B4,Players!$N$3:$O$1273,2,FALSE) -> 0 | D4: 0 | F4: Pete Alonso | G4: =VLOOKUP($F4,Players!$N$3:$O$1273,2,FALSE) -> 0 | H4: 0 | J4: Jonathan Villar | K4: =VLOOKUP($J4,Players!$N$3:$O$1273,2,FALSE) -> 0 | L4: 0 | N4: Anthony Rendon | O4: =VLOOKUP($N4,Players!$N$3:$O$1273,2,FALSE) -> 0 | P4: 0 | R4: Trea Turner | S4: =VLOOKUP($R4,Players!$N$3:$O$1273,2,FALSE) -> 0 | T4: 0 | V4: Mike Trout | W4: =VLOOKUP($V4,Players!$N$3:$O$1273,2,FALSE) -> 0 | X4: 0 | Z4: Khris Davis | AA4: =VLOOKUP($Z4,Players!$N$3:$O$1273,2,FALSE) -> 0 | AC4: 0 | AE4: Justin Verlander | AF4: =VLOOKUP($AE4,Players!$AV$3:$AW$1447,2,FALSE) -> 0 | AH4: 0 | AJ4: Aroldis Chapman | AK4: =VLOOKUP($AJ4,Players!$AV$3:$AW$1447,2,FALSE) -> 0 | AL4: 0 | AO4: 2020 | AP4: OF | AQ4: Jo Adell | AR4: =IF(ISERROR(VLOOKUP($AQ4,Players!$N$3:$O$1456,2,FALSE)),(VLOOKUP($AQ4,Players!$AV$3:$AW$1447,2,FALSE)),(VLOOKUP($AQ4,Players!$N$3:$O$1456,2,FALSE))) -> 0 | AS4: 0 | AU4: 2020 | AV4: OF | AW4: Jo Adell | AX4: =VLOOKUP($AW4,Players!$N$3:$O$1456,2,FALSE) -> 0 | AY4: 0 | BA4: 2020 | BB4: RHP | BC4: Nate Pearson | BD4: =VLOOKUP($BC4,Players!$AV$3:$AW$1447,2,FALSE) -> 0 | BE4: 0 | BG4: 3B | BH4: Carter Kieboom | BI4: =VLOOKUP($BH4,Players!$N$3:$O$1456,2,FALSE) -> 0 | BJ4: =IF(BI4>0,1,0) -> 0 | BL4: LHP | BM4: Brendan McKay | BN4: =VLOOKUP($BM4,Players!$AV$3:$AW$1447,2,FALSE) -> 0 | BO4: =IF(BN4>0,1,0) -> 0
A5: 4 | B5: Willson Contreras | C5: =VLOOKUP($B5,Players!$N$3:$O$1273,2,FALSE) -> 0 | D5: 0 | F5: Matt Olson | G5: =VLOOKUP($F5,Players!$N$3:$O$1273,2,FALSE) -> 0 | H5: 0 | J5: Ketel Marte | K5: =VLOOKUP($J5,Players!$N$3:$O$1273,2,FALSE) -> 0 | L5: 0 | N5: Alex Bregman | O5: =VLOOKUP($N5,Players!$N$3:$O$1273,2,FALSE) -> 0 | P5: 0 | R5: Fernando Tatis Jr. | S5: =VLOOKUP($R5,Players!$N$3:$O$1273,2,FALSE) -> 0 | T5: 0 | V5: Cody Bellinger | W5: =VLOOKUP($V5,Players!$N$3:$O$1273,2,FALSE) -> 0 | X5: 0 | Z5: Miguel Andujar | AA5: =VLOOKUP($Z5,Players!$N$3:$O$1273,2,FALSE) -> 0 | AC5: =IF(AA5>0,1,0) -> 0 | AE5: Jack Flaherty | AF5: =VLOOKUP($AE5,Players!$AV$3:$AW$1447,2,FALSE) -> 0 | AH5: 0 | AJ5: Roberto Osuna | AK5: =VLOOKUP($AJ5,Players!$AV$3:$AW$1447,2,FALSE) -> 0 | AL5: 0 | AO5: 2019 | AP5: 2B | AQ5: Gavin Lux | AR5: =IF(ISERROR(VLOOKUP($AQ5,Players!$N$3:$O$1456,2,FALSE)),(VLOOKUP($AQ5,Players!$AV$3:$AW$1447,2,FALSE)),(VLOOKUP($AQ5,Players!$N$3:$O$1456,2,FALSE))) -> 0 | AS5: 0 | AU5: 2019 | AV5: 2B | AW5: Gavin Lux | AX5: =VLOOKUP($AW5,Players!$N$3:$O$1456,2,FALSE) -> 0 | AY5: 0 | BA5: 2020 | BB5: RHP | BC5: Spencer Howard | BD5: =VLOOKUP($BC5,Players!$AV$3:$AW$1447,2,FALSE) -> 0 | BE5: 0 | BG5: U | BH5: Nick Solak | BI5: =VLOOKUP($BH5,Players!$N$3:$O$1456,2,FALSE) -> 0 | BJ5: 0 | BL5: LHP | BM5: A.J. Puk | BN5: =VLOOKUP($BM5,Players!$AV$3:$AW$1447,2,FALSE) -> 0 | BO5: 0
A6: 5 | B6: Will Smith | C6: =VLOOKUP($B6,Players!$N$3:$O$1273,2,FALSE) -> 0 | D6: 0 | F6: Anthony Rizzo | G6: =VLOOKUP($F6,Players!$N$3:$O$1273,2,FALSE) -> 0 | H6: 0 | J6: Ozzie Albies | K6: =VLOOKUP($J6,Players!$N$3:$O$1273,2,FALSE) -> 0 | L6: 0 | N6: Rafael Devers | O6: =VLOOKUP($N6,Players!$N$3:$O$1273,2,FALSE) -> 0 | P6: 0 | R6: Alex Bregman | S6: =VLOOKUP($R6,Players!$N$3:$O$1273,2,FALSE) -> 0 | T6: 0 | V6: Mookie Betts | W6: =VLOOKUP($V6,Players!$N$3:$O$1273,2,FALSE) -> 0 | X6: 0 | Z6: Yordan Alvarez | AA6: =VLOOKUP($Z6,Players!$N$3:$O$1273,2,FALSE) -> 0 | AC6: =IF(AA6>0,1,0) -> 0 | AE6: Shane Bieber | AF6: =VLOOKUP($AE6,Players!$AV$3:$AW$1447,2,FALSE) -> 0 | AH6: 0 | AJ6: Kenley Jansen | AK6: =VLOOKUP($AJ6,Players!$AV$3:$AW$1447,2,FALSE) -> 0 | AL6: 0 | AO6: 2023 | AP6: SS | AQ6: CJ Abrams | AR6: =IF(ISERROR(VLOOKUP($AQ6,Players!$N$3:$O$1456,2,FALSE)),(VLOOKUP($AQ6,Players!$AV$3:$AW$1447,2,FALSE)),(VLOOKUP($AQ6,Players!$N$3:$O$1456,2,FALSE))) -> 0 | AS6: 0 | AU6: 2023 | AV6: SS | AW6: CJ Abrams | AX6: =VLOOKUP($AW6,Players!$N$3:$O$1456,2,FALSE) -> 0 | AY6: 0 | BA6: 2019 | BB6: LHP | BC6: Brendan McKay | BD6: =VLOOKUP($BC6,Players!$AV$3:$AW$1447,2,FALSE) -> 0 | BE6: 0 | BG6: C | BH6: Sean Murphy | BI6: =VLOOKUP($BH6,Players!$N$3:$O$1456,2,FALSE) -> 0 | BJ6: 0 | BL6: RHP | BM6: Dustin May | BN6: =VLOOKUP($BM6,Players!$AV$3:$AW$1447,2,FALSE) -> 0 | BO6: 0
A7: 6 | B7: Christian Vazquez | C7: =VLOOKUP($B7,Players!$N$3:$O$1273,2,FALSE) -> 0 | D7: 0 | F7: Jose Abreu | G7: =VLOOKUP($F7,Players!$N$3:$O$1273,2,FALSE) -> 0 | H7: 0 | J7: Keston Hiura | K7: =VLOOKUP($J7,Players!$N$3:$O$1273,2,FALSE) -> 0 | L7: 0 | N7: Manny Machado | O7: =VLOOKUP($N7,Players!$N$3:$O$1273,2,FALSE) -> 0 | P7: 0 | R7: Adalberto Mondesi | S7: =VLOOKUP($R7,Players!$N$3:$O$1273,2,FALSE) -> 0 | T7: 0 | V7: Juan Soto | W7: =VLOOKUP($V7,Players!$N$3:$O$1273,2,FALSE) -> 0 | X7: 0 | AE7: Max Scherzer | AF7: =VLOOKUP($AE7,Players!$AV$3:$AW$1447,2,FALSE) -> 0 | AH7: 0 | AJ7: Taylor Rogers | AK7: =VLOOKUP($AJ7,Players!$AV$3:$AW$1447,2,FALSE) -> 0 | AL7: 0 | AO7: 2021 | AP7: OF | AQ7: Julio Rodriguez | AR7: =IF(ISERROR(VLOOKUP($AQ7,Players!$N$3:$O$1456,2,FALSE)),(VLOOKUP($AQ7,Players!$AV$3:$AW$1447,2,FALSE)),(VLOOKUP($AQ7,Players!$N$3:$O$1456,2,FALSE))) -> 0 | AS7: 0 | AU7: 2021 | AV7: OF | AW7: Julio Rodriguez | AX7: =VLOOKUP($AW7,Players!$N$3:$O$1456,2,FALSE) -> 0 | AY7: 0 | BA7: 2020 | BB7: RHP | BC7: Forrest Whitley | BD7: =VLOOKUP($BC7,Players!$AV$3:$AW$1447,2,FALSE) -> 0 | BE7: 0 | BG7: OF | BH7: Sam Hilliard | BI7: =VLOOKUP($BH7,Players!$N$3:$O$1456,2,FALSE) -> 0 | BJ7: 0 | BL7: RHP | BM7: Michael Kopech | BN7: =VLOOKUP($BM7,Players!$AV$3:$AW$1447,2,FALSE) -> 0 | BO7: 0
A8: 7 | B8: Mitch Garver | C8: =VLOOKUP($B8,Players!$N$3:$O$1273,2,FALSE) -> 0 | D8: 0 | F8: Max Muncy | G8: =VLOOKUP($F8,Players!$N$3:$O$1273,2,FALSE) -> 0 | H8: 0 | J8: Max Muncy | K8: =VLOOKUP($J8,Players!$N$3:$O$1273,2,FALSE) -> 0 | L8: 0 | N8: Eugenio Suarez | O8: =VLOOKUP($N8,Players!$N$3:$O$1273,2,FALSE) -> 0 | P8: 0 | R8: Javier Baez | S8: =VLOOKUP($R8,Players!$N$3:$O$1273,2,FALSE) -> 0 | T8: 0 | V8: Bryce Harper | W8: =VLOOKUP($V8,Players!$N$3:$O$1273,2,FALSE) -> 0 | X8: 0 | AE8: Walker Buehler | AF8: =VLOOKUP($AE8,Players!$AV$3:$AW$1447,2,FALSE) -> 0 | AH8: 0 | AJ8: Liam Hendriks | AK8: =VLOOKUP($AJ8,Players!$AV$3:$AW$1447,2,FALSE) -> 0 | AL8: 0 | AO8: 2022 | AP8: SS | AQ8: Marco Luciano | AR8: =IF(ISERROR(VLOOKUP($AQ8,Players!$N$3:$O$1456,2,FALSE)),(VLOOKUP($AQ8,Players!$AV$3:$AW$1447,2,FALSE)),(VLOOKUP($AQ8,Players!$N$3:$O$1456,2,FALSE))) -> 0 | AS8: 0 | AU8: 2022 | AV8: SS | AW8: Marco Luciano | AX8: =VLOOKUP($AW8,Players!$N$3:$O$1456,2,FALSE) -> 0 | AY8: 0 | BA8: 2020 | BB8: LHP | BC8: Tarik Skubal | BD8: =VLOOKUP($BC8,Players!$AV$3:$AW$1447,2,FALSE) -> 0 | BE8: 0 | BG8: OF | BH8: Kyle Lewis | BI8: =VLOOKUP($BH8,Players!$N$3:$O$1456,2,FALSE) -> 0 | BJ8: 0 | BL8: RHP | BM8: Jose Urquidy | BN8: =VLOOKUP($BM8,Players!$AV$3:$AW$1447,2,FALSE) -> 0 | BO8: 0
A9: 8 | B9: Jorge Alfaro | C9: =VLOOKUP($B9,Players!$N$3:$O$1273,2,FALSE) -> 0 | D9: 0 | F9: Paul Goldschmidt | G9: =VLOOKUP($F9,Players!$N$3:$O$1273,2,FALSE) -> 0 | H9: 0 | J9: Mike Moustakas | K9: =VLOOKUP($J9,Players!$N$3:$O$1273,2,FALSE) -> 0 | L9: 0 | N9: Yoan Moncada | O9: =VLOOKUP($N9,Players!$N$3:$O$1273,2,FALSE) -> 0 | P9: 0 | R9: Xander Bogaerts | S9: =VLOOKUP($R9,Players!$N$3:$O$1273,2,FALSE) -> 0 | T9: 0 | V9: J.D. Martinez | W9: =VLOOKUP($V9,Players!$N$3:$O$1273,2,FALSE) -> 0 | X9: 0 | AE9: Stephen Strasburg | AF9: =VLOOKUP($AE9,Players!$AV$3:$AW$1447,2,FALSE) -> 0 | AH9: 0 | AJ9: Brad Hand | AK9: =VLOOKUP($AJ9,Players!$AV$3:$AW$1447,2,FALSE) -> 0 | AL9: 0 | AO9: 2024 | AP9: OF | AQ9: Jasson Dominguez | AR9: =IF(ISERROR(VLOOKUP($AQ9,Players!$N$3:$O$1456,2,FALSE)),(VLOOKUP($AQ9,Players!$AV$3:$AW$1447,2,FALSE)),(VLOOKUP($AQ9,Players!$N$3:$O$1456,2,FALSE))) -> 0 | AS9: 0 | AU9: 2024 | AV9: OF | AW9: Jasson Dominguez | AX9: =VLOOKUP($AW9,Players!$N$3:$O$1456,2,FALSE) -> 0 | AY9: 0 | BA9: 2019 | BB9: LHP | BC9: A.J. Puk | BD9: =VLOOKUP($BC9,Players!$AV$3:$AW$1447,2,FALSE) -> 0 | BE9: 0 | BG9: SS | BH9: Nico Hoerner | BI9: =VLOOKUP($BH9,Players!$N$3:$O$1456,2,FALSE) -> 0 | BJ9: 0 | BL9: RHP | BM9: Mitch Keller | BN9: =VLOOKUP($BM9,Players!$AV$3:$AW$1447,2,FALSE) -> 0 | BO9: 0
A10: 9 | B10: Wilson Ramos | C10: =VLOOKUP($B10,Players!$N$3:$O$1273,2,FALSE) -> 0 | D10: 0 | F10: DJ LeMahieu | G10: =VLOOKUP($F10,Players!$N$3:$O$1273,2,FALSE) -> 0 | H10: 0 | J10: DJ LeMahieu | K10: =VLOOKUP($J10,Players!$N$3:$O$1273,2,FALSE) -> 0 | L10: 0 | N10: Vladimir Guerrero Jr. | O10: =VLOOKUP($N10,Players!$N$3:$O$1273,2,FALSE) -> 0 | P10: 0 | R10: Gleyber Torres | S10: =VLOOKUP($R10,Players!$N$3:$O$1273,2,FALSE) -> 0 | T10: 0 | V10: George Springer | W10: =VLOOKUP($V10,Players!$N$3:$O$1273,2,FALSE) -> 0 | X10: 0 | AE10: Blake Snell | AF10: =VLOOKUP($AE10,Players!$AV$3:$AW$1447,2,FALSE) -> 0 | AH10: 0 | AJ10: Craig Kimbrel | AK10: =VLOOKUP($AJ10,Players!$AV$3:$AW$1447,2,FALSE) -> 0 | AL10: 0 | AO10: 2020 | AP10: LHP | AQ10: MacKenzie Gore | AR10: =IF(ISERROR(VLOOKUP($AQ10,Players!$N$3:$O$1456,2,FALSE)),(VLOOKUP($AQ10,Players!$AV$3:$AW$1447,2,FALSE)),(VLOOKUP($AQ10,Players!$N$3:$O$1456,2,FALSE))) -> 0 | AS10: 0 | AU10: 2021 | AV10: 2B | AW10: Vidal Brujan | AX10: =VLOOKUP($AW10,Players!$N$3:$O$1456,2,FALSE) -> 0 | AY10: 0 | BA10: 2019 | BB10: RHP | BC10: Dustin May | BD10: =VLOOKUP($BC10,Players!$AV$3:$AW$1447,2,FALSE) -> 0 | BE10: 0 | BG10: 2B | BH10: Brendan Rodgers | BI10: =VLOOKUP($BH10,Players!$N$3:$O$1456,2,FALSE) -> 0 | BJ10: 0 | BL10: RHP | BM10: James Karinchak | BN10: =VLOOKUP($BM10,Players!$AV$3:$AW$1447,2,FALSE) -> 0 | BO10: 0
A11: 10 | B11: Salvador Perez | C11: =VLOOKUP($B11,Players!$N$3:$O$1273,2,FALSE) -> 0 | D11: 0 | F11: Josh Bell | G11: =VLOOKUP($F11,Players!$N$3:$O$1273,2,FALSE) -> 0 | H11: 0 | J11: Whit Merrifield | K11: =VLOOKUP($J11,Players!$N$3:$O$1273,2,FALSE) -> 0 | L11: 0 | N11: Max Muncy | O11: =VLOOKUP($N11,Players!$N$3:$O$1273,2,FALSE) -> 0 | P11: 0 | R11: Jonathan Villar | S11: =VLOOKUP($R11,Players!$N$3:$O$1273,2,FALSE) -> 0 | T11: 0 | V11: Aaron Judge | W11: =VLOOKUP($V11,Players!$N$3:$O$1273,2,FALSE) -> 0 | X11: 0 | AE11: Lucas Giolito | AF11: =VLOOKUP($AE11,Players!$AV$3:$AW$1447,2,FALSE) -> 0 | AH11: 0 | AJ11: Brandon Workman | AK11: =VLOOKUP($AJ11,Players!$AV$3:$AW$1447,2,FALSE) -> 0 | AL11: 0 | AO11: 2021 | AP11: 2B | AQ11: Vidal Brujan | AR11: =IF(ISERROR(VLOOKUP($AQ11,Players!$N$3:$O$1456,2,FALSE)),(VLOOKUP($AQ11,Players!$AV$3:$AW$1447,2,FALSE)),(VLOOKUP($AQ11,Players!$N$3:$O$1456,2,FALSE))) -> 0 | AS11: 0 | AU11: 2020 | AV11: OF | AW11: Dylan Carlson | AX11: =VLOOKUP($AW11,Players!$N$3:$O$1456,2,FALSE) -> 0 | AY11: 0 | BA11: 2020 | BB11: RHP | BC11: Casey Mize | BD11: =VLOOKUP($BC11,Players!$AV$3:$AW$1447,2,FALSE) -> 0 | BE11: 0 | BG11: OF | BH11: Austin Hays | BI11: =VLOOKUP($BH11,Players!$N$3:$O$1456,2,FALSE) -> 0 | BJ11: 0 | BL11: RHP | BM11: Brusdar Graterol | BN11: =VLOOKUP($BM11,Players!$AV$3:$AW$1447,2,FALSE) -> 0 | BO11: 0
A12: 11 | B12: Robinson Chirinos | C12: =VLOOKUP($B12,Players!$N$3:$O$1273,2,FALSE) -> 0 | D12: 0 | F12: Yuli Gurriel | G12: =VLOOKUP($F12,Players!$N$3:$O$1273,2,FALSE) -> 0 | H12: 0 | J12: Eduardo Escobar | K12: =VLOOKUP($J12,Players!$N$3:$O$1273,2,FALSE) -> 0 | L12: 0 | N12: Matt Chapman | O12: =VLOOKUP($N12,Players!$N$3:$O$1273,2,FALSE) -> 0 | P12: 0 | R12: Ketel Marte | S12: =VLOOKUP($R12,Players!$N$3:$O$1273,2,FALSE) -> 0 | T12: 0 | V12: Starling Marte | W12: =VLOOKUP($V12,Players!$N$3:$O$1273,2,FALSE) -> 0 | X12: 0 | AE12: Patrick Corbin | AF12: =VLOOKUP($AE12,Players!$AV$3:$AW$1447,2,FALSE) -> 0 | AH12: 0 | AJ12: Nick Anderson | AK12: =VLOOKUP($AJ12,Players!$AV$3:$AW$1447,2,FALSE) -> 0 | AL12: 0 | AO12: 2020 | AP12: OF | AQ12: Dylan Carlson | AR12: =IF(ISERROR(VLOOKUP($AQ12,Players!$N$3:$O$1456,2,FALSE)),(VLOOKUP($AQ12,Players!$AV$3:$AW$1447,2,FALSE)),(VLOOKUP($AQ12,Players!$N$3:$O$1456,2,FALSE))) -> 0 | AS12: 0 | AU12: 2021 | AV12: OF | AW12: Jarred Kelenic | AX12: =VLOOKUP($AW12,Players!$N$3:$O$1456,2,FALSE) -> 0 | AY12: 0 | BA12: 2020 | BB12: RHP | BC12: Matt Manning | BD12: =VLOOKUP($BC12,Players!$AV$3:$AW$1447,2,FALSE) -> 0 | BE12: 0 | BG12: 1B | BH12: Kevin Cron | BI12: =VLOOKUP($BH12,Players!$N$3:$O$1456,2,FALSE) -> 0 | BJ12: 0 | BL12: RHP | BM12: Andres Munoz | BN12: =VLOOKUP($BM12,Players!$AV$3:$AW$1447,2,FALSE) -> 0 | BO12: 0
A13: 12 | B13: Carson Kelly | C13: =VLOOKUP($B13,Players!$N$3:$O$1273,2,FALSE) -> 0 | D13: 0 | F13: Yasmani Grandal | G13: =VLOOKUP($F13,Players!$N$3:$O$1273,2,FALSE) -> 0 | H13: 0 | J13: Jeff McNeil | K13: =VLOOKUP($J13,Players!$N$3:$O$1273,2,FALSE) -> 0 | L13: 0 | N13: Josh Donaldson | O13: =VLOOKUP($N13,Players!$N$3:$O$1273,2,FALSE) -> 0 | P13: 0 | R13: Manny Machado | S13: =VLOOKUP($R13,Players!$N$3:$O$1273,2,FALSE) -> 0 | T13: 0 | V13: Ketel Marte | W13: =VLOOKUP($V13,Players!$N$3:$O$1273,2,FALSE) -> 0 | X13: 0 | AE13: Luis Castillo | AF13: =VLOOKUP($AE13,Players!$AV$3:$AW$1447,2,FALSE) -> 0 | AH13: 0 | AJ13: Ken Giles | AK13: =VLOOKUP($AJ13,Players!$AV$3:$AW$1447,2,FALSE) -> 0 | AL13: 0 | AO13: 2021 | AP13: OF | AQ13: Jarred Kelenic | AR13: =IF(ISERROR(VLOOKUP($AQ13,Players!$N$3:$O$1456,2,FALSE)),(VLOOKUP($AQ13,Players!$AV$3:$AW$1447,2,FALSE)),(VLOOKUP($AQ13,Players!$N$3:$O$1456,2,FALSE))) -> 0 | AS13: 0 | AU13: 2021 | AV13: 1B | AW13: Andrew Vaughn | AX13: =VLOOKUP($AW13,Players!$N$3:$O$1456,2,FALSE) -> 0 | AY13: 0 | BA13: 2020 | BB13: RHP | BC13: Luis Patiño | BD13: =VLOOKUP($BC13,Players!$AV$3:$AW$1447,2,FALSE) -> 0 | BE13: 0 | BG13: OF | BH13: Randy Arozarena | BI13: =VLOOKUP($BH13,Players!$N$3:$O$1456,2,FALSE) -> 0 | BJ13: 0 | BL13: RHP | BM13: Kyle Wright | BN13: =VLOOKUP($BM13,Players!$AV$3:$AW$1447,2,FALSE) -> 0 | BO13: 0
A14: 13 | B14: Francisco Mejia | C14: =VLOOKUP($B14,Players!$N$3:$O$1273,2,FALSE) -> 0 | D14: 0 | F14: Miguel Sano | G14: =VLOOKUP($F14,Players!$N$3:$O$1273,2,FALSE) -> 0 | H14: 0 | J14: Cavan Biggio | K14: =VLOOKUP($J14,Players!$N$3:$O$1273,2,FALSE) -> 0 | L14: 0 | N14: Mike Moustakas | O14: =VLOOKUP($N14,Players!$N$3:$O$1273,2,FALSE) -> 0 | P14: 0 | R14: Marcus Semien | S14: =VLOOKUP($R14,Players!$N$3:$O$1273,2,FALSE) -> 0 | T14: 0 | V14: Yordan Alvarez | W14: =VLOOKUP($V14,Players!$N$3:$O$1273,2,FALSE) -> 0 | X14: 0 | AE14: Chris Paddack | AF14: =VLOOKUP($AE14,Players!$AV$3:$AW$1447,2,FALSE) -> 0 | AH14: 0 | AJ14: Raisel Iglesias | AK14: =VLOOKUP($AJ14,Players!$AV$3:$AW$1447,2,FALSE) -> 0 | AL14: 0 | AO14: 2021 | AP14: 1B | AQ14: Andrew Vaughn | AR14: =IF(ISERROR(VLOOKUP($AQ14,Players!$N$3:$O$1456,2,FALSE)),(VLOOKUP($AQ14,Players!$AV$3:$AW$1447,2,FALSE)),(VLOOKUP($AQ14,Players!$N$3:$O$1456,2,FALSE))) -> 0 | AS14: 0 | AU14: 2022 | AV14: OF | AW14: Kristian Robinson | AX14: =VLOOKUP($AW14,Players!$N$3:$O$1456,2,FALSE) -> 0 | AY14: 0 | BA14: 2021 | BB14: LHP | BC14: Brailyn Marquez | BD14: =VLOOKUP($BC14,Players!$AV$3:$AW$1447,2,FALSE) -> 0 | BE14: 0 | BG14: OF | BH14: Jaylin Davis | BI14: =VLOOKUP($BH14,Players!$N$3:$O$1456,2,FALSE) -> 0 | BJ14: 0 | BL14: RHP | BM14: Emmanuel Clase | BN14: =VLOOKUP($BM14,Players!$AV$3:$AW$1447,2,FALSE) -> 0 | BO14: 0
A15: 14 | B15: Omar Narvaez | C15: =VLOOKUP($B15,Players!$N$3:$O$1273,2,FALSE) -> 0 | D15: 0 | F15: Hunter Dozier | G15: =VLOOKUP($F15,Players!$N$3:$O$1273,2,FALSE) -> 0 | H15: 0 | J15: Scott Kingery | K15: =VLOOKUP($J15,Players!$N$3:$O$1273,2,FALSE) -> 0 | L15: 0 | N15: Kris Bryant | O15: =VLOOKUP($N15,Players!$N$3:$O$1273,2,FALSE) -> 0 | P15: 0 | R15: Tim Anderson | S15: =VLOOKUP($R15,Players!$N$3:$O$1273,2,FALSE) -> 0 | T15: 0 | V15: Eloy Jimenez | W15: =VLOOKUP($V15,Players!$N$3:$O$1273,2,FALSE) -> 0 | X15: 0 | AE15: Yu Darvish | AF15: =VLOOKUP($AE15,Players!$AV$3:$AW$1447,2,FALSE) -> 0 | AH15: 0 | AJ15: Edwin Diaz | AK15: =VLOOKUP($AJ15,Players!$AV$3:$AW$1447,2,FALSE) -> 0 | AL15: 0 | AO15: 2022 | AP15: OF | AQ15: Kristian Robinson | AR15: =IF(ISERROR(VLOOKUP($AQ15,Players!$N$3:$O$1456,2,FALSE)),(VLOOKUP($AQ15,Players!$AV$3:$AW$1447,2,FALSE)),(VLOOKUP($AQ15,Players!$N$3:$O$1456,2,FALSE))) -> 0 | AS15: 0 | AU15: 2021 | AV15: SS | AW15: Oneil Cruz | AX15: =VLOOKUP($AW15,Players!$N$3:$O$1456,2,FALSE) -> 0 | AY15: 0 | BA15: 2018 | BB15: RHP | BC15: Michael Kopech | BD15: =VLOOKUP($BC15,Players!$AV$3:$AW$1447,2,FALSE) -> 0 | BE15: 0 | BG15: 3B | BH15: Abraham Toro | BI15: =VLOOKUP($BH15,Players!$N$3:$O$1456,2,FALSE) -> 0 | BJ15: =IF(BI15>0,1,0) -> 0 | BL15: RHP | BM15: Bryan Abreu | BN15: =VLOOKUP($BM15,Players!$AV$3:$AW$1447,2,FALSE) -> 0 | BO15: 0
A16: 15 | B16: Sean Murphy | C16: =VLOOKUP($B16,Players!$N$3:$O$1273,2,FALSE) -> 0 | D16: 0 | F16: Christian Walker | G16: =VLOOKUP($F16,Players!$N$3:$O$1273,2,FALSE) -> 0 | H16: 0 | J16: Danny Santana | K16: =VLOOKUP($J16,Players!$N$3:$O$1273,2,FALSE) -> 0 | L16: 0 | N16: DJ LeMahieu | O16: =VLOOKUP($N16,Players!$N$3:$O$1273,2,FALSE) -> 0 | P16: 0 | R16: Bo Bichette | S16: =VLOOKUP($R16,Players!$N$3:$O$1273,2,FALSE) -> 0 | T16: 0 | V16: Austin Meadows | W16: =VLOOKUP($V16,Players!$N$3:$O$1273,2,FALSE) -> 0 | X16: 0 | AE16: Charlie Morton | AF16: =VLOOKUP($AE16,Players!$AV$3:$AW$1447,2,FALSE) -> 0 | AH16: 0 | AJ16: Hector Neris | AK16: =VLOOKUP($AJ16,Players!$AV$3:$AW$1447,2,FALSE) -> 0 | AL16: 0 | AO16: 2019 | AP16: LHP | AQ16: Jesus Luzardo | AR16: =IF(ISERROR(VLOOKUP($AQ16,Players!$N$3:$O$1456,2,FALSE)),(VLOOKUP($AQ16,Players!$AV$3:$AW$1447,2,FALSE)),(VLOOKUP($AQ16,Players!$N$3:$O$1456,2,FALSE))) -> 0 | AS16: 0 | AU16: 2021 | AV16: SS | AW16: Royce Lewis | AX16: =VLOOKUP($AW16,Players!$N$3:$O$1456,2,FALSE) -> 0 | AY16: 0 | BA16: 2019 | BB16: RHP | BC16: Jose Urquidy | BD16: =VLOOKUP($BC16,Players!$AV$3:$AW$1447,2,FALSE) -> 0 | BE16: 0 | BG16: 1B | BH16: Edwin Rios | BI16: =VLOOKUP($BH16,Players!$N$3:$O$1456,2,FALSE) -> 0 | BJ16: 0 | BL16: RHP | BM16: Kevin Ginkel | BN16: =VLOOKUP($BM16,Players!$AV$3:$AW$1447,2,FALSE) -> 0 | BO16: 0
A17: 16 | B17: Tom Murphy | C17: =VLOOKUP($B17,Players!$N$3:$O$1273,2,FALSE) -> 0 | D17: 0 | F17: Trey Mancini | G17: =VLOOKUP($F17,Players!$N$3:$O$1273,2,FALSE) -> 0 | H17: 0 | J17: Lourdes Gurriel Jr. | K17: =VLOOKUP($J17,Players!$N$3:$O$1273,2,FALSE) -> 0 | L17: 0 | N17: Yuli Gurriel | O17: =VLOOKUP($N17,Players!$N$3:$O$1273,2,FALSE) -> 0 | P17: 0 | R17: Scott Kingery | S17: =VLOOKUP($R17,Players!$N$3:$O$1273,2,FALSE) -> 0 | T17: 0 | V17: Jorge Soler | W17: =VLOOKUP($V17,Players!$N$3:$O$1273,2,FALSE) -> 0 | X17: 0 | AE17: Sonny Gray | AF17: =VLOOKUP($AE17,Players!$AV$3:$AW$1447,2,FALSE) -> 0 | AH17: 0 | AJ17: Alex Colome | AK17: =VLOOKUP($AJ17,Players!$AV$3:$AW$1447,2,FALSE) -> 0 | AL17: 0 | AO17: 2021 | AP17: SS | AQ17: Oneil Cruz | AR17: =IF(ISERROR(VLOOKUP($AQ17,Players!$N$3:$O$1456,2,FALSE)),(VLOOKUP($AQ17,Players!$AV$3:$AW$1447,2,FALSE)),(VLOOKUP($AQ17,Players!$N$3:$O$1456,2,FALSE))) -> 0 | AS17: 0 | AU17: 2022 | AV17: OF | AW17: Corbin Carroll | AX17: =VLOOKUP($AW17,Players!$N$3:$O$1456,2,FALSE) -> 0 | AY17: 0 | BA17: 2021 | BB17: RHP | BC17: George Kirby | BD17: =VLOOKUP($BC17,Players!$AV$3:$AW$1447,2,FALSE) -> 0 | BE17: 0 | BG17: 2B | BH17: Mauricio Dubon | BI17: =VLOOKUP($BH17,Players!$N$3:$O$1456,2,FALSE) -> 0 | BJ17: 0 | BL17: RHP | BM17: Art Warren | BN17: =VLOOKUP($BM17,Players!$AV$3:$AW$1447,2,FALSE) -> 0 | BO17: 0
A18: 17 | B18: Danny Jansen | C18: =VLOOKUP($B18,Players!$N$3:$O$1273,2,FALSE) -> 0 | D18: 0 | F18: Danny Santana | G18: =VLOOKUP($F18,Players!$N$3:$O$1273,2,FALSE) -> 0 | H18: 0 | J18: Tommy Edman | K18: =VLOOKUP($J18,Players!$N$3:$O$1273,2,FALSE) -> 0 | L18: 0 | N18: Eduardo Escobar | O18: =VLOOKUP($N18,Players!$N$3:$O$1273,2,FALSE) -> 0 | P18: 0 | R18: Amed Rosario | S18: =VLOOKUP($R18,Players!$N$3:$O$1273,2,FALSE) -> 0 | T18: 0 | V18: Ramon Laureano | W18: =VLOOKUP($V18,Players!$N$3:$O$1273,2,FALSE) -> 0 | X18: 0 | AE18: Aaron Nola | AF18: =VLOOKUP($AE18,Players!$AV$3:$AW$1447,2,FALSE) -> 0 | AH18: 0 | AJ18: Jose Leclerc | AK18: =VLOOKUP($AJ18,Players!$AV$3:$AW$1447,2,FALSE) -> 0 | AL18: 0 | AO18: 2021 | AP18: SS | AQ18: Royce Lewis | AR18: =IF(ISERROR(VLOOKUP($AQ18,Players!$N$3:$O$1456,2,FALSE)),(VLOOKUP($AQ18,Players!$AV$3:$AW$1447,2,FALSE)),(VLOOKUP($AQ18,Players!$N$3:$O$1456,2,FALSE))) -> 0 | AS18: 0 | AU18: 2022 | AV18: C | AW18: Adley Rutschman | AX18: =VLOOKUP($AW18,Players!$N$3:$O$1456,2,FALSE) -> 0 | AY18: 0 | BA18: 2021 | BB18: RHP | BC18: Simeon Woods-Richardson | BD18: =VLOOKUP($BC18,Players!$AV$3:$AW$1447,2,FALSE) -> 0 | BE18: 0 | BG18: OF | BH18: Seth Brown | BI18: =VLOOKUP($BH18,Players!$N$3:$O$1456,2,FALSE) -> 0 | BJ18: 0 | BM18: 2020 | BN18: =VLOOKUP($BM18,Players!$AV$3:$AW$1447,2,FALSE) -> 
A19: 18 | B19: Travis D’Arnaud | C19: =VLOOKUP($B19,Players!$N$3:$O$1273,2,FALSE) -> 0 | D19: 0 | F19: Rhys Hoskins | G19: =VLOOKUP($F19,Players!$N$3:$O$1273,2,FALSE) -> 0 | H19: 0 | J19: Gavin Lux | K19: =VLOOKUP($J19,Players!$N$3:$O$1273,2,FALSE) -> 0 | L19: 0 | N19: Jeff McNeil | O19: =VLOOKUP($N19,Players!$N$3:$O$1273,2,FALSE) -> 0 | P19: 0 | R19: Didi Gregorius | S19: =VLOOKUP($R19,Players!$N$3:$O$1273,2,FALSE) -> 0 | T19: 0 | V19: Eddie Rosario | W19: =VLOOKUP($V19,Players!$N$3:$O$1273,2,FALSE) -> 0 | X19: 0 | AE19: Chris Sale | AF19: =VLOOKUP($AE19,Players!$AV$3:$AW$1447,2,FALSE) -> 0 | AH19: 0 | AJ19: Hansel Robles | AK19: =VLOOKUP($AJ19,Players!$AV$3:$AW$1447,2,FALSE) -> 0 | AL19: 0 | AO19: 2022 | AP19: OF | AQ19: Corbin Carroll | AR19: =IF(ISERROR(VLOOKUP($AQ19,Players!$N$3:$O$1456,2,FALSE)),(VLOOKUP($AQ19,Players!$AV$3:$AW$1447,2,FALSE)),(VLOOKUP($AQ19,Players!$N$3:$O$1456,2,FALSE))) -> 0 | AS19: 0 | AU19: 2022 | AV19: OF | AW19: Brennen Davis | AX19: =VLOOKUP($AW19,Players!$N$3:$O$1456,2,FALSE) -> 0 | AY19: 0 | BA19: 2020 | BB19: RHP | BC19: Edward Cabrera | BD19: =VLOOKUP($BC19,Players!$AV$3:$AW$1447,2,FALSE) -> 0 | BE19: 0 | BH19: 2020 | BI19: =VLOOKUP($BH19,Players!$N$3:$O$1456,2,FALSE) ->  | BL19: LHP | BM19: MacKenzie Gore | BN19: =VLOOKUP($BM19,Players!$AV$3:$AW$1447,2,FALSE) -> 0 | BO19: 0
A20: 19 | B20: Yadier Molina | C20: =VLOOKUP($B20,Players!$N$3:$O$1273,2,FALSE) -> 0 | D20: 0 | F20: Edwin Encarnacion | G20: =VLOOKUP($F20,Players!$N$3:$O$1273,2,FALSE) -> 0 | H20: 0 | J20: Brandon Lowe | K20: =VLOOKUP($J20,Players!$N$3:$O$1273,2,FALSE) -> 0 | L20: 0 | N20: Miguel Sano | O20: =VLOOKUP($N20,Players!$N$3:$O$1273,2,FALSE) -> 0 | P20: 0 | R20: Danny Santana | S20: =VLOOKUP($R20,Players!$N$3:$O$1273,2,FALSE) -> 0 | T20: 0 | V20: Charlie Blackmon | W20: =VLOOKUP($V20,Players!$N$3:$O$1273,2,FALSE) -> 0 | X20: 0 | AE20: Zack Greinke | AF20: =VLOOKUP($AE20,Players!$AV$3:$AW$1447,2,FALSE) -> 0 | AH20: 0 | AJ20: Archie Bradley | AK20: =VLOOKUP($AJ20,Players!$AV$3:$AW$1447,2,FALSE) -> 0 | AL20: 0 | AO20: 2022 | AP20: C | AQ20: Adley Rutschman | AR20: =IF(ISERROR(VLOOKUP($AQ20,Players!$N$3:$O$1456,2,FALSE)),(VLOOKUP($AQ20,Players!$AV$3:$AW$1447,2,FALSE)),(VLOOKUP($AQ20,Players!$N$3:$O$1456,2,FALSE))) -> 0 | AS20: 0 | AU20: 2023 | AV20: SS | AW20: Bobby Witt Jr. | AX20: =VLOOKUP($AW20,Players!$N$3:$O$1456,2,FALSE) -> 0 | AY20: 0 | BA20: 2020 | BB20: RHP | BC20: Josiah Gray | BD20: =VLOOKUP($BC20,Players!$AV$3:$AW$1447,2,FALSE) -> 0 | BE20: 0 | BG20: OF | BH20: Luis Robert | BI20: =VLOOKUP($BH20,Players!$N$3:$O$1456,2,FALSE) -> 0 | BJ20: 0 | BL20: RHP | BM20: Nate Pearson | BN20: =VLOOKUP($BM20,Players!$AV$3:$AW$1447,2,FALSE) -> 0 | BO20: 0
A21: 20 | B21: Kurt Suzuki | C21: =VLOOKUP($B21,Players!$N$3:$O$1273,2,FALSE) -> 0 | D21: 0 | F21: Carlos Santana | G21: =VLOOKUP($F21,Players!$N$3:$O$1273,2,FALSE) -> 0 | H21: 0 | J21: Michael Chavis | K21: =VLOOKUP($J21,Players!$N$3:$O$1273,2,FALSE) -> 0 | L21: 0 | N21: Hunter Dozier | O21: =VLOOKUP($N21,Players!$N$3:$O$1273,2,FALSE) -> 0 | P21: 0 | R21: Carlos Correa | S21: =VLOOKUP($R21,Players!$N$3:$O$1273,2,FALSE) -> 0 | T21: 0 | V21: Giancarlo Stanton | W21: =VLOOKUP($V21,Players!$N$3:$O$1273,2,FALSE) -> 0 | X21: 0 | AE21: Clayton Kershaw | AF21: =VLOOKUP($AE21,Players!$AV$3:$AW$1447,2,FALSE) -> 0 | AH21: 0 | AJ21: Sean Doolittle | AK21: =VLOOKUP($AJ21,Players!$AV$3:$AW$1447,2,FALSE) -> 0 | AL21: 0 | AO21: 2022 | AP21: OF | AQ21: Brennen Davis | AR21: =IF(ISERROR(VLOOKUP($AQ21,Players!$N$3:$O$1456,2,FALSE)),(VLOOKUP($AQ21,Players!$AV$3:$AW$1447,2,FALSE)),(VLOOKUP($AQ21,Players!$N$3:$O$1456,2,FALSE))) -> 0 | AS21: 0 | AU21: 2020 | AV21: 1B | AW21: Evan White | AX21: =VLOOKUP($AW21,Players!$N$3:$O$1456,2,FALSE) -> 0 | AY21: 0 | BA21: 2020 | BB21: RHP | BC21: Sixto Sanchez | BD21: =VLOOKUP($BC21,Players!$AV$3:$AW$1447,2,FALSE) -> 0 | BE21: 0 | BG21: OF | BH21: Jo Adell | BI21: =VLOOKUP($BH21,Players!$N$3:$O$1456,2,FALSE) -> 0 | BJ21: 0 | BL21: RHP | BM21: Spencer Howard | BN21: =VLOOKUP($BM21,Players!$AV$3:$AW$1447,2,FALSE) -> 0 | BO21: 0
A22: 21 | B22: Roberto Perez | C22: =VLOOKUP($B22,Players!$N$3:$O$1273,2,FALSE) -> 0 | D22: 0 | F22: Brandon Lowe | G22: =VLOOKUP($F22,Players!$N$3:$O$1273,2,FALSE) -> 0 | H22: 0 | J22: Ryan McMahon | K22: =VLOOKUP($J22,Players!$N$3:$O$1273,2,FALSE) -> 0 | L22: 0 | N22: Scott Kingery | O22: =VLOOKUP($N22,Players!$N$3:$O$1273,2,FALSE) -> 0 | P22: 0 | R22: Dansby Swanson | S22: =VLOOKUP($R22,Players!$N$3:$O$1273,2,FALSE) -> 0 | T22: 0 | V22: Kris Bryant | W22: =VLOOKUP($V22,Players!$N$3:$O$1273,2,FALSE) -> 0 | X22: 0 | AE22: Jose Berrios | AF22: =VLOOKUP($AE22,Players!$AV$3:$AW$1447,2,FALSE) -> 0 | AH22: =IF(AF22>0,1,0) -> 0 | AJ22: Giovanny Gallegos | AK22: =VLOOKUP($AJ22,Players!$AV$3:$AW$1447,2,FALSE) -> 0 | AL22: 0 | AO22: 2023 | AP22: SS | AQ22: Bobby Witt Jr. | AR22: =IF(ISERROR(VLOOKUP($AQ22,Players!$N$3:$O$1456,2,FALSE)),(VLOOKUP($AQ22,Players!$AV$3:$AW$1447,2,FALSE)),(VLOOKUP($AQ22,Players!$N$3:$O$1456,2,FALSE))) -> 0 | AS22: 0 | AU22: 2020 | AV22: 1B | AW22: Alex Kirilloff | AX22: =VLOOKUP($AW22,Players!$N$3:$O$1456,2,FALSE) -> 0 | AY22: 0 | BA22: 2023 | BB22: RHP | BC22: Hunter Greene | BD22: =VLOOKUP($BC22,Players!$AV$3:$AW$1447,2,FALSE) -> 0 | BE22: 0 | BG22: OF | BH22: Dylan Carlson | BI22: =VLOOKUP($BH22,Players!$N$3:$O$1456,2,FALSE) -> 0 | BJ22: 0 | BL22: RHP | BM22: Forrest Whitley | BN22: =VLOOKUP($BM22,Players!$AV$3:$AW$1447,2,FALSE) -> 0 | BO22: 0
A23: 22 | B23: Buster Posey | C23: =VLOOKUP($B23,Players!$N$3:$O$1273,2,FALSE) -> 0 | D23: 0 | F23: Michael Chavis | G23: =VLOOKUP($F23,Players!$N$3:$O$1273,2,FALSE) -> 0 | H23: 0 | J23: Ian Happ | K23: =VLOOKUP($J23,Players!$N$3:$O$1273,2,FALSE) -> 0 | L23: 0 | N23: Danny Santana | O23: =VLOOKUP($N23,Players!$N$3:$O$1273,2,FALSE) -> 0 | P23: 0 | R23: Elvis Andrus | S23: =VLOOKUP($R23,Players!$N$3:$O$1273,2,FALSE) -> 0 | T23: 0 | V23: Joey Gallo | W23: =VLOOKUP($V23,Players!$N$3:$O$1273,2,FALSE) -> 0 | X23: 0 | AE23: Trevor Bauer | AF23: =VLOOKUP($AE23,Players!$AV$3:$AW$1447,2,FALSE) -> 0 | AH23: 0 | AJ23: Mark Melancon | AK23: =VLOOKUP($AJ23,Players!$AV$3:$AW$1447,2,FALSE) -> 0 | AL23: 0 | AO23: 2020 | AP23: 1B | AQ23: Evan White | AR23: =IF(ISERROR(VLOOKUP($AQ23,Players!$N$3:$O$1456,2,FALSE)),(VLOOKUP($AQ23,Players!$AV$3:$AW$1447,2,FALSE)),(VLOOKUP($AQ23,Players!$N$3:$O$1456,2,FALSE))) -> 0 | AS23: 0 | AU23: 2020 | AV23: 3B | AW23: Alec Bohm | AX23: =VLOOKUP($AW23,Players!$N$3:$O$1456,2,FALSE) -> 0 | AY23: 0 | BA23: 2021 | BB23: LHP | BC23: Nick Lodolo | BD23: =VLOOKUP($BC23,Players!$AV$3:$AW$1447,2,FALSE) -> 0 | BE23: 0 | BG23: 1B | BH23: Evan White | BI23: =VLOOKUP($BH23,Players!$N$3:$O$1456,2,FALSE) -> 0 | BJ23: 0 | BL23: LHP | BM23: Tarik Skubal | BN23: =VLOOKUP($BM23,Players!$AV$3:$AW$1447,2,FALSE) -> 0 | BO23: 0
A24: 23 | B24: Chance Sisco | C24: =VLOOKUP($B24,Players!$N$3:$O$1273,2,FALSE) -> 0 | D24: 0 | F24: Joc Pederson | G24: =VLOOKUP($F24,Players!$N$3:$O$1273,2,FALSE) -> 0 | H24: 0 | J24: Kolten Wong | K24: =VLOOKUP($J24,Players!$N$3:$O$1273,2,FALSE) -> 0 | L24: 0 | N24: J.D. Davis | O24: =VLOOKUP($N24,Players!$N$3:$O$1273,2,FALSE) -> 0 | P24: 0 | R24: Willy Adames | S24: =VLOOKUP($R24,Players!$N$3:$O$1273,2,FALSE) -> 0 | T24: 0 | V24: Tommy Pham | W24: =VLOOKUP($V24,Players!$N$3:$O$1273,2,FALSE) -> 0 | X24: 0 | AE24: Lance Lynn | AF24: =VLOOKUP($AE24,Players!$AV$3:$AW$1447,2,FALSE) -> 0 | AH24: 0 | AJ24: Joe Jimenez | AK24: =VLOOKUP($AJ24,Players!$AV$3:$AW$1447,2,FALSE) -> 0 | AL24: 0 | AO24: 2020 | AP24: 1B | AQ24: Alex Kirilloff | AR24: =IF(ISERROR(VLOOKUP($AQ24,Players!$N$3:$O$1456,2,FALSE)),(VLOOKUP($AQ24,Players!$AV$3:$AW$1447,2,FALSE)),(VLOOKUP($AQ24,Players!$N$3:$O$1456,2,FALSE))) -> 0 | AS24: 0 | AU24: 2019 | AV24: 3B | AW24: Carter Kieboom | AX24: =VLOOKUP($AW24,Players!$N$3:$O$1456,2,FALSE) -> 0 | AY24: 0 | BA24: 2022 | BB24: RHP | BC24: Grayson Rodriguez | BD24: =VLOOKUP($BC24,Players!$AV$3:$AW$1447,2,FALSE) -> 0 | BE24: 0 | BG24: 1B | BH24: Alex Kirilloff | BI24: =VLOOKUP($BH24,Players!$N$3:$O$1456,2,FALSE) -> 0 | BJ24: 0 | BL24: RHP | BM24: Casey Mize | BN24: =VLOOKUP($BM24,Players!$AV$3:$AW$1447,2,FALSE) -> 0 | BO24: 0
A25: 24 | B25: Tucker Barnhart | C25: =VLOOKUP($B25,Players!$N$3:$O$1273,2,FALSE) -> 0 | D25: 0 | F25: Ryan McMahon | G25: =VLOOKUP($F25,Players!$N$3:$O$1273,2,FALSE) -> 0 | H25: 0 | J25: Kevin Newman | K25: =VLOOKUP($J25,Players!$N$3:$O$1273,2,FALSE) -> 0 | L25: 0 | N25: Tommy Edman | O25: =VLOOKUP($N25,Players!$N$3:$O$1273,2,FALSE) -> 0 | P25: 0 | R25: Paul DeJong | S25: =VLOOKUP($R25,Players!$N$3:$O$1273,2,FALSE) -> 0 | T25: 0 | V25: Oscar Mercado | W25: =VLOOKUP($V25,Players!$N$3:$O$1273,2,FALSE) -> 0 | X25: 0 | AE25: Eduardo Rodriguez | AF25: =VLOOKUP($AE25,Players!$AV$3:$AW$1447,2,FALSE) -> 0 | AH25: 0 | AJ25: Ian Kennedy | AK25: =VLOOKUP($AJ25,Players!$AV$3:$AW$1447,2,FALSE) -> 0 | AL25: 0 | AO25: 2020 | AP25: 3B | AQ25: Alec Bohm | AR25: =IF(ISERROR(VLOOKUP($AQ25,Players!$N$3:$O$1456,2,FALSE)),(VLOOKUP($AQ25,Players!$AV$3:$AW$1447,2,FALSE)),(VLOOKUP($AQ25,Players!$N$3:$O$1456,2,FALSE))) -> 0 | AS25: 0 | AU25: 2020 | AV25: 2B | AW25: Nick Madrigal | AX25: =VLOOKUP($AW25,Players!$N$3:$O$1456,2,FALSE) -> 0 | AY25: 0 | BA25: 2020 | BB25: RHP | BC25: Ian Anderson | BD25: =VLOOKUP($BC25,Players!$AV$3:$AW$1447,2,FALSE) -> 0 | BE25: 0 | BG25: 3B | BH25: Alec Bohm | BI25: =VLOOKUP($BH25,Players!$N$3:$O$1456,2,FALSE) -> 0 | BJ25: 0 | BL25: RHP | BM25: Matt Manning | BN25: =VLOOKUP($BM25,Players!$AV$3:$AW$1447,2,FALSE) -> 0 | BO25: 0
A26: 25 | B26: Martin Maldonado | C26: =VLOOKUP($B26,Players!$N$3:$O$1273,2,FALSE) -> 0 | D26: 0 | F26: Renato Nunez | G26: =VLOOKUP($F26,Players!$N$3:$O$1273,2,FALSE) -> 0 | H26: 0 | J26: Rougned Odor | K26: =VLOOKUP($J26,Players!$N$3:$O$1273,2,FALSE) -> 0 | L26: 0 | N26: Ryan McMahon | O26: =VLOOKUP($N26,Players!$N$3:$O$1273,2,FALSE) -> 0 | P26: 0 | R26: Jorge Polanco | S26: =VLOOKUP($R26,Players!$N$3:$O$1273,2,FALSE) -> 0 | T26: 0 | V26: Luis Robert | W26: =VLOOKUP($V26,Players!$N$3:$O$1273,2,FALSE) -> 0 | X26: 0 | AE26: Brandon Woodruff | AF26: =VLOOKUP($AE26,Players!$AV$3:$AW$1447,2,FALSE) -> 0 | AH26: 0 | AJ26: Will Smith | AK26: =VLOOKUP($AJ26,Players!$AV$3:$AW$1447,2,FALSE) -> 0 | AL26: 0 | AO26: 2020 | AP26: RHP | AQ26: Nate Pearson | AR26: =IF(ISERROR(VLOOKUP($AQ26,Players!$N$3:$O$1456,2,FALSE)),(VLOOKUP($AQ26,Players!$AV$3:$AW$1447,2,FALSE)),(VLOOKUP($AQ26,Players!$N$3:$O$1456,2,FALSE))) -> 0 | AS26: 0 | AU26: 2019 | AV26: U | AW26: Nick Solak | AX26: =VLOOKUP($AW26,Players!$N$3:$O$1456,2,FALSE) -> 0 | AY26: 0 | BA26: 2021 | BB26: LHP | BC26: Joey Cantillo | BD26: =VLOOKUP($BC26,Players!$AV$3:$AW$1447,2,FALSE) -> 0 | BE26: 0 | BG26: 2B | BH26: Nick Madrigal | BI26: =VLOOKUP($BH26,Players!$N$3:$O$1456,2,FALSE) -> 0 | BJ26: 0 | BL26: RHP | BM26: Luis Patiño | BN26: =VLOOKUP($BM26,Players!$AV$3:$AW$1447,2,FALSE) -> 0 | BO26: 0
A27: 26 | B27: Austin Romine | C27: =VLOOKUP($B27,Players!$N$3:$O$1273,2,FALSE) -> 0 | D27: 0 | F27: Christian Vazquez | G27: =VLOOKUP($F27,Players!$N$3:$O$1273,2,FALSE) -> 0 | H27: 0 | J27: Jonathan Schoop | K27: =VLOOKUP($J27,Players!$N$3:$O$1273,2,FALSE) -> 0 | L27: 0 | N27: Ian Happ | O27: =VLOOKUP($N27,Players!$N$3:$O$1273,2,FALSE) -> 0 | P27: 0 | R27: Corey Seager | S27: =VLOOKUP($R27,Players!$N$3:$O$1273,2,FALSE) -> 0 | T27: 0 | V27: Victor Robles | W27: =VLOOKUP($V27,Players!$N$3:$O$1273,2,FALSE) -> 0 | X27: 0 | AE27: Dinelson Lamet | AF27: =VLOOKUP($AE27,Players!$AV$3:$AW$1447,2,FALSE) -> 0 | AH27: 0 | AJ27: Mychal Givens | AK27: =VLOOKUP($AJ27,Players!$AV$3:$AW$1447,2,FALSE) -> 0 | AL27: 0 | AO27: 2020 | AP27: RHP | AQ27: Spencer Howard | AR27: =IF(ISERROR(VLOOKUP($AQ27,Players!$N$3:$O$1456,2,FALSE)),(VLOOKUP($AQ27,Players!$AV$3:$AW$1447,2,FALSE)),(VLOOKUP($AQ27,Players!$N$3:$O$1456,2,FALSE))) -> 0 | AS27: 0 | AU27: 2022 | AV27: OF | AW27: Luis Matos | AX27: =VLOOKUP($AW27,Players!$N$3:$O$1456,2,FALSE) -> 0 | AY27: 0 | BA27: 2020 | BB27: RHP | BC27: Joe Ryan | BD27: =VLOOKUP($BC27,Players!$AV$3:$AW$1447,2,FALSE) -> 0 | BE27: 0 | BG27: SS | BH27: Jazz Chisholm | BI27: =VLOOKUP($BH27,Players!$N$3:$O$1456,2,FALSE) -> 0 | BJ27: 0 | BL27: RHP | BM27: Edward Cabrera | BN27: =VLOOKUP($BM27,Players!$AV$3:$AW$1447,2,FALSE) -> 0 | BO27: 0
A28: 27 | B28: Yan Gomes | C28: =VLOOKUP($B28,Players!$N$3:$O$1273,2,FALSE) -> 0 | D28: 0 | F28: Mark Canha | G28: =VLOOKUP($F28,Players!$N$3:$O$1273,2,FALSE) -> 0 | H28: 0 | J28: Garrett Hampson | K28: =VLOOKUP($J28,Players!$N$3:$O$1273,2,FALSE) -> 0 | L28: 0 | N28: Renato Nunez | O28: =VLOOKUP($N28,Players!$N$3:$O$1273,2,FALSE) -> 0 | P28: 0 | R28: Kevin Newman | S28: =VLOOKUP($R28,Players!$N$3:$O$1273,2,FALSE) -> 0 | T28: 0 | V28: Marcell Ozuna | W28: =VLOOKUP($V28,Players!$N$3:$O$1273,2,FALSE) -> 0 | X28: 0 | AE28: Hyun-Jin Ryu | AF28: =VLOOKUP($AE28,Players!$AV$3:$AW$1447,2,FALSE) -> 0 | AH28: 0 | AJ28: Seth Lugo | AK28: =VLOOKUP($AJ28,Players!$AV$3:$AW$1447,2,FALSE) -> 0 | AL28: 0 | AO28: 2019 | AP28: LHP | AQ28: Brendan McKay | AR28: =IF(ISERROR(VLOOKUP($AQ28,Players!$N$3:$O$1456,2,FALSE)),(VLOOKUP($AQ28,Players!$AV$3:$AW$1447,2,FALSE)),(VLOOKUP($AQ28,Players!$N$3:$O$1456,2,FALSE))) -> 0 | AS28: 0 | AU28: 2022 | AV28: SS | AW28: Noelvi Marte | AX28: =VLOOKUP($AW28,Players!$N$3:$O$1456,2,FALSE) -> 0 | AY28: 0 | BA28: 2021 | BB28: RHP | BC28: Logan Gilbert | BD28: =VLOOKUP($BC28,Players!$AV$3:$AW$1447,2,FALSE) -> 0 | BE28: 0 | BG28: OF | BH28: Drew Waters | BI28: =VLOOKUP($BH28,Players!$N$3:$O$1456,2,FALSE) -> 0 | BJ28: 0 | BL28: RHP | BM28: Josiah Gray | BN28: =VLOOKUP($BM28,Players!$AV$3:$AW$1447,2,FALSE) -> 0 | BO28: 0
A29: 28 | B29: Austin Hedges | C29: =VLOOKUP($B29,Players!$N$3:$O$1273,2,FALSE) -> 0 | D29: 0 | F29: C.J. Cron | G29: =VLOOKUP($F29,Players!$N$3:$O$1273,2,FALSE) -> 0 | H29: 0 | J29: Jurickson Profar | K29: =VLOOKUP($J29,Players!$N$3:$O$1273,2,FALSE) -> 0 | L29: 0 | N29: Brian Anderson | O29: =VLOOKUP($N29,Players!$N$3:$O$1273,2,FALSE) -> 0 | P29: 0 | R29: Jean Segura | S29: =VLOOKUP($R29,Players!$N$3:$O$1273,2,FALSE) -> 0 | T29: 0 | V29: Michael Conforto | W29: =VLOOKUP($V29,Players!$N$3:$O$1273,2,FALSE) -> 0 | X29: 0 | AE29: Zac Gallen | AF29: =VLOOKUP($AE29,Players!$AV$3:$AW$1447,2,FALSE) -> 0 | AH29: 0 | AJ29: Dellin Betances | AK29: =VLOOKUP($AJ29,Players!$AV$3:$AW$1447,2,FALSE) -> 0 | AL29: 0 | AO29: 2019 | AP29: 3B | AQ29: Carter Kieboom | AR29: =IF(ISERROR(VLOOKUP($AQ29,Players!$N$3:$O$1456,2,FALSE)),(VLOOKUP($AQ29,Players!$AV$3:$AW$1447,2,FALSE)),(VLOOKUP($AQ29,Players!$N$3:$O$1456,2,FALSE))) -> 0 | AS29: 0 | AU29: 2022 | AV29: SS | AW29: Xavier Edwards | AX29: =VLOOKUP($AW29,Players!$N$3:$O$1456,2,FALSE) -> 0 | AY29: 0 | BA29: 2020 | BB29: RHP | BC29: Brent Honeywell | BD29: =VLOOKUP($BC29,Players!$AV$3:$AW$1447,2,FALSE) -> 0 | BE29: 0 | BG29: OF | BH29: Cristian Pache | BI29: =VLOOKUP($BH29,Players!$N$3:$O$1456,2,FALSE) -> 0 | BJ29: 0 | BL29: RHP | BM29: Sixto Sanchez | BN29: =VLOOKUP($BM29,Players!$AV$3:$AW$1447,2,FALSE) -> 0 | BO29: 0
A30: 29 | B30: Zack Collins | C30: =VLOOKUP($B30,Players!$N$3:$O$1273,2,FALSE) -> 0 | D30: 0 | F30: Ryan Mountcastle | G30: =VLOOKUP($F30,Players!$N$3:$O$1273,2,FALSE) -> 0 | H30: 0 | J30: Tommy La Stella | K30: =VLOOKUP($J30,Players!$N$3:$O$1273,2,FALSE) -> 0 | L30: 0 | N30: Gio Urshela | O30: =VLOOKUP($N30,Players!$N$3:$O$1273,2,FALSE) -> 0 | P30: 0 | R30: Garrett Hampson | S30: =VLOOKUP($R30,Players!$N$3:$O$1273,2,FALSE) -> 0 | T30: 0 | V30: Nicholas Castellanos | W30: =VLOOKUP($V30,Players!$N$3:$O$1273,2,FALSE) -> 0 | X30: 0 | AE30: Zack Wheeler | AF30: =VLOOKUP($AE30,Players!$AV$3:$AW$1447,2,FALSE) -> 0 | AH30: 0 | AJ30: Matt Barnes | AK30: =VLOOKUP($AJ30,Players!$AV$3:$AW$1447,2,FALSE) -> 0 | AL30: 0 | AO30: 2020 | AP30: RHP | AQ30: Forrest Whitley | AR30: =IF(ISERROR(VLOOKUP($AQ30,Players!$N$3:$O$1456,2,FALSE)),(VLOOKUP($AQ30,Players!$AV$3:$AW$1447,2,FALSE)),(VLOOKUP($AQ30,Players!$N$3:$O$1456,2,FALSE))) -> 0 | AS30: 0 | AU30: 2021 | AV30: OF | AW30: Trevor Larnach | AX30: =VLOOKUP($AW30,Players!$N$3:$O$1456,2,FALSE) -> 0 | AY30: 0 | BA30: 2019 | BB30: RHP | BC30: Mitch Keller | BD30: =VLOOKUP($BC30,Players!$AV$3:$AW$1447,2,FALSE) -> 0 | BE30: 0 | BG30: OF | BH30: Yoshitomo Tsutsugo | BI30: =VLOOKUP($BH30,Players!$N$3:$O$1456,2,FALSE) -> 0 | BJ30: 0 | BL30: RHP | BM30: Ian Anderson | BN30: =VLOOKUP($BM30,Players!$AV$3:$AW$1447,2,FALSE) -> 0 | BO30: 0
A31: 30 | B31: Jacob Stallings | C31: =VLOOKUP($B31,Players!$N$3:$O$1273,2,FALSE) -> 0 | D31: 0 | F31: Eric Hosmer | G31: =VLOOKUP($F31,Players!$N$3:$O$1273,2,FALSE) -> 0 | H31: 0 | J31: Starlin Castro | K31: =VLOOKUP($J31,Players!$N$3:$O$1273,2,FALSE) -> 0 | L31: 0 | N31: Justin Turner | O31: =VLOOKUP($N31,Players!$N$3:$O$1273,2,FALSE) -> 0 | P31: 0 | R31: Andrelton Simmons | S31: =VLOOKUP($R31,Players!$N$3:$O$1273,2,FALSE) -> 0 | T31: 0 | V31: Whit Merrifield | W31: =VLOOKUP($V31,Players!$N$3:$O$1273,2,FALSE) -> 0 | X31: 0 | AE31: Jake Odorizzi | AF31: =VLOOKUP($AE31,Players!$AV$3:$AW$1447,2,FALSE) -> 0 | AH31: 0 | AJ31: Keone Kela | AK31: =VLOOKUP($AJ31,Players!$AV$3:$AW$1447,2,FALSE) -> 0 | AL31: 0 | AO31: 2020 | AP31: LHP | AQ31: Tarik Skubal | AR31: =IF(ISERROR(VLOOKUP($AQ31,Players!$N$3:$O$1456,2,FALSE)),(VLOOKUP($AQ31,Players!$AV$3:$AW$1447,2,FALSE)),(VLOOKUP($AQ31,Players!$N$3:$O$1456,2,FALSE))) -> 0 | AS31: 0 | AU31: 2019 | AV31: C | AW31: Sean Murphy | AX31: =VLOOKUP($AW31,Players!$N$3:$O$1456,2,FALSE) -> 0 | AY31: 0 | BA31: 2020 | BB31: LHP | BC31: Daniel Lynch | BD31: =VLOOKUP($BC31,Players!$AV$3:$AW$1447,2,FALSE) -> 0 | BE31: =IF(BD31>0,1,0) -> 0 | BG31: OF | BH31: Monte Harrison | BI31: =VLOOKUP($BH31,Players!$N$3:$O$1456,2,FALSE) -> 0 | BJ31: 0 | BL31: RHP | BM31: Joe Ryan | BN31: =VLOOKUP($BM31,Players!$AV$3:$AW$1447,2,FALSE) -> 0 | BO31: 0
A32: 31 | B32: Manny Pina | C32: =VLOOKUP($B32,Players!$N$3:$O$1273,2,FALSE) -> 0 | D32: 0 | F32: Evan White | G32: =VLOOKUP($F32,Players!$N$3:$O$1273,2,FALSE) -> 0 | H32: 0 | J32: Nick Madrigal | K32: =VLOOKUP($J32,Players!$N$3:$O$1273,2,FALSE) -> 0 | L32: 0 | N32: Tommy La Stella | O32: =VLOOKUP($N32,Players!$N$3:$O$1273,2,FALSE) -> 0 | P32: 0 | R32: Mauricio Dubon | S32: =VLOOKUP($R32,Players!$N$3:$O$1273,2,FALSE) -> 0 | T32: 0 | V32: Jeff McNeil | W32: =VLOOKUP($V32,Players!$N$3:$O$1273,2,FALSE) -> 0 | X32: 0 | AE32: Tyler Glasnow | AF32: =VLOOKUP($AE32,Players!$AV$3:$AW$1447,2,FALSE) -> 0 | AH32: =IF(AF32>0,1,0) -> 0 | AJ32: Diego Castillo | AK32: =VLOOKUP($AJ32,Players!$AV$3:$AW$1447,2,FALSE) -> 0 | AL32: 0 | AO32: 2019 | AP32: LHP | AQ32: A.J. Puk | AR32: =IF(ISERROR(VLOOKUP($AQ32,Players!$N$3:$O$1456,2,FALSE)),(VLOOKUP($AQ32,Players!$AV$3:$AW$1447,2,FALSE)),(VLOOKUP($AQ32,Players!$N$3:$O$1456,2,FALSE))) -> 0 | AS32: 0 | AU32: 2022 | AV32: 2B | AW32: Aaron Bracho | AX32: =VLOOKUP($AW32,Players!$N$3:$O$1456,2,FALSE) -> 0 | AY32: 0 | BA32: 2019 | BB32: RHP | BC32: James Karinchak | BD32: =VLOOKUP($BC32,Players!$AV$3:$AW$1447,2,FALSE) -> 0 | BE32: 0 | BG32: SS | BH32: Jorge Mateo | BI32: =VLOOKUP($BH32,Players!$N$3:$O$1456,2,FALSE) -> 0 | BJ32: 0 | BL32: RHP | BM32: Brent Honeywell | BN32: =VLOOKUP($BM32,Players!$AV$3:$AW$1447,2,FALSE) -> 0 | BO32: 0
A33: 32 | B33: Pedro Severino | C33: =VLOOKUP($B33,Players!$N$3:$O$1273,2,FALSE) -> 0 | D33: 0 | F33: Daniel Murphy | G33: =VLOOKUP($F33,Players!$N$3:$O$1273,2,FALSE) -> 0 | H33: 0 | J33: Mauricio Dubon | K33: =VLOOKUP($J33,Players!$N$3:$O$1273,2,FALSE) -> 0 | L33: 0 | N33: Starlin Castro | O33: =VLOOKUP($N33,Players!$N$3:$O$1273,2,FALSE) -> 0 | P33: 0 | R33: Jose Iglesias | S33: =VLOOKUP($R33,Players!$N$3:$O$1273,2,FALSE) -> 0 | T33: 0 | V33: Yasiel Puig | W33: =VLOOKUP($V33,Players!$N$3:$O$1273,2,FALSE) -> 0 | X33: 0 | AE33: Shohei Ohtani | AF33: =VLOOKUP($AE33,Players!$AV$3:$AW$1447,2,FALSE) -> 0 | AH33: 0 | AJ33: Tony Watson | AK33: =VLOOKUP($AJ33,Players!$AV$3:$AW$1447,2,FALSE) -> 0 | AL33: 0 | AO33: 2019 | AP33: RHP | AQ33: Dustin May | AR33: =IF(ISERROR(VLOOKUP($AQ33,Players!$N$3:$O$1456,2,FALSE)),(VLOOKUP($AQ33,Players!$AV$3:$AW$1447,2,FALSE)),(VLOOKUP($AQ33,Players!$N$3:$O$1456,2,FALSE))) -> 0 | AS33: 0 | AU33: 2020 | AV33: SS | AW33: Jazz Chisholm | AX33: =VLOOKUP($AW33,Players!$N$3:$O$1456,2,FALSE) -> 0 | AY33: 0 | BA33: 2019 | BB33: RHP | BC33: Brusdar Graterol | BD33: =VLOOKUP($BC33,Players!$AV$3:$AW$1447,2,FALSE) -> 0 | BE33: 0 | BG33: 1B | BH33: Ryan Mountcastle | BI33: =VLOOKUP($BH33,Players!$N$3:$O$1456,2,FALSE) -> 0 | BJ33: 0 | BL33: LHP | BM33: Daniel Lynch | BN33: =VLOOKUP($BM33,Players!$AV$3:$AW$1447,2,FALSE) -> 0 | BO33: 0
A34: 33 | B34: Mike Zunino | C34: =VLOOKUP($B34,Players!$N$3:$O$1273,2,FALSE) -> 0 | D34: 0 | F34: Garrett Cooper | G34: =VLOOKUP($F34,Players!$N$3:$O$1273,2,FALSE) -> 0 | H34: 0 | J34: Isan Diaz | K34: =VLOOKUP($J34,Players!$N$3:$O$1273,2,FALSE) -> 0 | L34: 0 | N34: Hanser Alberto | O34: =VLOOKUP($N34,Players!$N$3:$O$1273,2,FALSE) -> 0 | P34: 0 | R34: Luis Urias | S34: =VLOOKUP($R34,Players!$N$3:$O$1273,2,FALSE) -> 0 | T34: 0 | V34: Michael Brantley | W34: =VLOOKUP($V34,Players!$N$3:$O$1273,2,FALSE) -> 0 | X34: 0 | AE34: Noah Syndergaard | AF34: =VLOOKUP($AE34,Players!$AV$3:$AW$1447,2,FALSE) -> 0 | AH34: 0 | AJ34: Brandon Kintzler | AK34: =VLOOKUP($AJ34,Players!$AV$3:$AW$1447,2,FALSE) -> 0 | AL34: =IF(AK34>0,1,0) -> 0 | AO34: 2020 | AP34: RHP | AQ34: Casey Mize | AR34: =IF(ISERROR(VLOOKUP($AQ34,Players!$N$3:$O$1456,2,FALSE)),(VLOOKUP($AQ34,Players!$AV$3:$AW$1447,2,FALSE)),(VLOOKUP($AQ34,Players!$N$3:$O$1456,2,FALSE))) -> 0 | AS34: 0 | AU34: 2021 | AV34: SS | AW34: Jeter Downs | AX34: =VLOOKUP($AW34,Players!$N$3:$O$1456,2,FALSE) -> 0 | AY34: 0 | BA34: 2019 | BB34: RHP | BC34: Andres Munoz | BD34: =VLOOKUP($BC34,Players!$AV$3:$AW$1447,2,FALSE) -> 0 | BE34: 0 | BG34: OF | BH34: Shogo Akiyama | BI34: =VLOOKUP($BH34,Players!$N$3:$O$1456,2,FALSE) -> 0 | BJ34: 0 | BL34: RHP | BM34: Deivi Garcia | BN34: =VLOOKUP($BM34,Players!$AV$3:$AW$1447,2,FALSE) -> 0 | BO34: 0
A35: 34 | B35: Victor Caratini | C35: =VLOOKUP($B35,Players!$N$3:$O$1273,2,FALSE) -> 0 | D35: 0 | F35: Travis D’Arnaud | G35: =VLOOKUP($F35,Players!$N$3:$O$1273,2,FALSE) -> 0 | H35: 0 | J35: Luis Urias | K35: =VLOOKUP($J35,Players!$N$3:$O$1273,2,FALSE) -> 0 | L35: 0 | N35: Luis Arraez | O35: =VLOOKUP($N35,Players!$N$3:$O$1273,2,FALSE) -> 0 | P35: 0 | R35: Carter Kieboom | S35: =VLOOKUP($R35,Players!$N$3:$O$1273,2,FALSE) -> 0 | T35: 0 | V35: Andrew Benintendi | W35: =VLOOKUP($V35,Players!$N$3:$O$1273,2,FALSE) -> 0 | X35: 0 | AE35: Mike Clevinger | AF35: =VLOOKUP($AE35,Players!$AV$3:$AW$1447,2,FALSE) -> 0 | AH35: 0 | AJ35: Wade Davis | AK35: =VLOOKUP($AJ35,Players!$AV$3:$AW$1447,2,FALSE) -> 0 | AL35: 0 | AO35: 2020 | AP35: RHP | AQ35: Matt Manning | AR35: =IF(ISERROR(VLOOKUP($AQ35,Players!$N$3:$O$1456,2,FALSE)),(VLOOKUP($AQ35,Players!$AV$3:$AW$1447,2,FALSE)),(VLOOKUP($AQ35,Players!$N$3:$O$1456,2,FALSE))) -> 0 | AS35: 0 | AU35: 2021 | AV35: C | AW35: Joey Bart | AX35: =VLOOKUP($AW35,Players!$N$3:$O$1456,2,FALSE) -> 0 | AY35: 0 | BA35: 2022 | BB35: RHP | BC35: Luis Frias | BD35: =VLOOKUP($BC35,Players!$AV$3:$AW$1447,2,FALSE) -> 0 | BE35: 0 | BG35: C | BH35: Connor Wong | BI35: =VLOOKUP($BH35,Players!$N$3:$O$1456,2,FALSE) -> 0 | BJ35: 0 | BL35: RHP | BM35: Jackson Kowar | BN35: =VLOOKUP($BM35,Players!$AV$3:$AW$1447,2,FALSE) -> 0 | BO35: 0
A36: 35 | B36: Austin Nola | C36: =VLOOKUP($B36,Players!$N$3:$O$1273,2,FALSE) -> 0 | D36: 0 | F36: Miguel Cabrera | G36: =VLOOKUP($F36,Players!$N$3:$O$1273,2,FALSE) -> 0 | H36: 0 | J36: Robinson Cano | K36: =VLOOKUP($J36,Players!$N$3:$O$1273,2,FALSE) -> 0 | L36: 0 | N36: Yandy Diaz | O36: =VLOOKUP($N36,Players!$N$3:$O$1273,2,FALSE) -> 0 | P36: 0 | R36: Niko Goodrum | S36: =VLOOKUP($R36,Players!$N$3:$O$1273,2,FALSE) -> 0 | T36: 0 | V36: Franmil Reyes | W36: =VLOOKUP($V36,Players!$N$3:$O$1273,2,FALSE) -> 0 | X36: 0 | AE36: Carlos Carrasco | AF36: =VLOOKUP($AE36,Players!$AV$3:$AW$1447,2,FALSE) -> 0 | AH36: 0 | AJ36: Daniel Hudson | AK36: =VLOOKUP($AJ36,Players!$AV$3:$AW$1447,2,FALSE) -> 0 | AL36: 0 | AO36: 2020 | AP36: 2B | AQ36: Nick Madrigal | AR36: =IF(ISERROR(VLOOKUP($AQ36,Players!$N$3:$O$1456,2,FALSE)),(VLOOKUP($AQ36,Players!$AV$3:$AW$1447,2,FALSE)),(VLOOKUP($AQ36,Players!$N$3:$O$1456,2,FALSE))) -> 0 | AS36: 0 | AU36: 2019 | AV36: OF | AW36: Sam Hilliard | AX36: =VLOOKUP($AW36,Players!$N$3:$O$1456,2,FALSE) -> 0 | AY36: 0 | BA36: 2020 | BB36: RHP | BC36: Deivi Garcia | BD36: =VLOOKUP($BC36,Players!$AV$3:$AW$1447,2,FALSE) -> 0 | BE36: 0 | BG36: 3B | BH36: Bobby Dalbec | BI36: =VLOOKUP($BH36,Players!$N$3:$O$1456,2,FALSE) -> 0 | BJ36: 0 | BL36: RHP | BM36: Daulton Jefferies | BN36: =VLOOKUP($BM36,Players!$AV$3:$AW$1447,2,FALSE) -> 0 | BO36: 0
A37: 36 | B37: James McCann | C37: =VLOOKUP($B37,Players!$N$3:$O$1273,2,FALSE) -> 0 | D37: 0 | F37: Yandy Diaz | G37: =VLOOKUP($F37,Players!$N$3:$O$1273,2,FALSE) -> 0 | H37: 0 | J37: Hanser Alberto | K37: =VLOOKUP($J37,Players!$N$3:$O$1273,2,FALSE) -> 0 | L37: 0 | N37: David Fletcher | O37: =VLOOKUP($N37,Players!$N$3:$O$1273,2,FALSE) -> 0 | P37: 0 | R37: Nick Ahmed | S37: =VLOOKUP($R37,Players!$N$3:$O$1273,2,FALSE) -> 0 | T37: 0 | V37: Willie Calhoun | W37: =VLOOKUP($V37,Players!$N$3:$O$1273,2,FALSE) -> 0 | X37: 0 | AE37: Corey Kluber | AF37: =VLOOKUP($AE37,Players!$AV$3:$AW$1447,2,FALSE) -> 0 | AH37: 0 | AJ37: Matt Magill | AK37: =VLOOKUP($AJ37,Players!$AV$3:$AW$1447,2,FALSE) -> 0 | AL37: 0 | AO37: 2020 | AP37: RHP | AQ37: Luis Patiño | AR37: =IF(ISERROR(VLOOKUP($AQ37,Players!$N$3:$O$1456,2,FALSE)),(VLOOKUP($AQ37,Players!$AV$3:$AW$1447,2,FALSE)),(VLOOKUP($AQ37,Players!$N$3:$O$1456,2,FALSE))) -> 0 | AS37: 0 | AU37: 2022 | AV37: OF | AW37: George Valera | AX37: =VLOOKUP($AW37,Players!$N$3:$O$1456,2,FALSE) -> 0 | AY37: 0 | BA37: 2019 | BB37: RHP | BC37: Kyle Wright | BD37: =VLOOKUP($BC37,Players!$AV$3:$AW$1447,2,FALSE) -> 0 | BE37: 0 | BG37: OF | BH37: Daniel Johnson | BI37: =VLOOKUP($BH37,Players!$N$3:$O$1456,2,FALSE) -> 0 | BJ37: 0 | BL37: RHP | BM37: Brady Singer | BN37: =VLOOKUP($BM37,Players!$AV$3:$AW$1447,2,FALSE) -> 0 | BO37: 0
A38: 37 | B38: Tyler Flowers | C38: =VLOOKUP($B38,Players!$N$3:$O$1273,2,FALSE) -> 0 | D38: 0 | F38: Ronald Guzman | G38: =VLOOKUP($F38,Players!$N$3:$O$1273,2,FALSE) -> 0 | H38: 0 | J38: Luis Arraez | K38: =VLOOKUP($J38,Players!$N$3:$O$1273,2,FALSE) -> 0 | L38: 0 | N38: Matt Carpenter | O38: =VLOOKUP($N38,Players!$N$3:$O$1273,2,FALSE) -> 0 | P38: 0 | R38: David Fletcher | S38: =VLOOKUP($R38,Players!$N$3:$O$1273,2,FALSE) -> 0 | T38: 0 | V38: Kyle Schwarber | W38: =VLOOKUP($V38,Players!$N$3:$O$1273,2,FALSE) -> 0 | X38: 0 | AE38: Robbie Ray | AF38: =VLOOKUP($AE38,Players!$AV$3:$AW$1447,2,FALSE) -> 0 | AH38: 0 | AJ38: Yoshihisa Hirano | AK38: =VLOOKUP($AJ38,Players!$AV$3:$AW$1447,2,FALSE) -> 0 | AL38: 0 | AO38: 2021 | AP38: LHP | AQ38: Brailyn Marquez | AR38: =IF(ISERROR(VLOOKUP($AQ38,Players!$N$3:$O$1456,2,FALSE)),(VLOOKUP($AQ38,Players!$AV$3:$AW$1447,2,FALSE)),(VLOOKUP($AQ38,Players!$N$3:$O$1456,2,FALSE))) -> 0 | AS38: 0 | AU38: 2020 | AV38: OF | AW38: Drew Waters | AX38: =VLOOKUP($AW38,Players!$N$3:$O$1456,2,FALSE) -> 0 | AY38: 0 | BA38: 2021 | BB38: RHP | BC38: Clarke Schmidt | BD38: =VLOOKUP($BC38,Players!$AV$3:$AW$1447,2,FALSE) -> 0 | BE38: 0 | BG38: C | BH38: Daulton Varsho | BI38: =VLOOKUP($BH38,Players!$N$3:$O$1456,2,FALSE) -> 0 | BJ38: 0 | BL38: RHP | BM38: Cory Abbott | BN38: =VLOOKUP($BM38,Players!$AV$3:$AW$1447,2,FALSE) -> 0 | BO38: 0
A39: 38 | B39: Austin Allen | C39: =VLOOKUP($B39,Players!$N$3:$O$1273,2,FALSE) -> 0 | D39: 0 | F39: Brandon Belt | G39: =VLOOKUP($F39,Players!$N$3:$O$1273,2,FALSE) -> 0 | H39: 0 | J39: Niko Goodrum | K39: =VLOOKUP($J39,Players!$N$3:$O$1273,2,FALSE) -> 0 | L39: 0 | N39: Asdrubal Cabrera | O39: =VLOOKUP($N39,Players!$N$3:$O$1273,2,FALSE) -> 0 | P39: 0 | R39: Nico Hoerner | S39: =VLOOKUP($R39,Players!$N$3:$O$1273,2,FALSE) -> 0 | T39: 0 | V39: Cavan Biggio | W39: =VLOOKUP($V39,Players!$N$3:$O$1273,2,FALSE) -> 0 | X39: 0 | AE39: Max Fried | AF39: =VLOOKUP($AE39,Players!$AV$3:$AW$1447,2,FALSE) -> 0 | AH39: 0 | AJ39: Ryan Pressly | AK39: =VLOOKUP($AJ39,Players!$AV$3:$AW$1447,2,FALSE) -> 0 | AL39: 0 | AO39: 2019 | AP39: U | AQ39: Nick Solak | AR39: =IF(ISERROR(VLOOKUP($AQ39,Players!$N$3:$O$1456,2,FALSE)),(VLOOKUP($AQ39,Players!$AV$3:$AW$1447,2,FALSE)),(VLOOKUP($AQ39,Players!$N$3:$O$1456,2,FALSE))) -> 0 | AS39: 0 | AU39: 2020 | AV39: OF | AW39: Cristian Pache | AX39: =VLOOKUP($AW39,Players!$N$3:$O$1456,2,FALSE) -> 0 | AY39: 0 | BA39: 2022 | BB39: LHP | BC39: DL Hall | BD39: =VLOOKUP($BC39,Players!$AV$3:$AW$1447,2,FALSE) -> 0 | BE39: 0 | BG39: OF | BH39: Brandon Marsh | BI39: =VLOOKUP($BH39,Players!$N$3:$O$1456,2,FALSE) -> 0 | BJ39: 0 | BL39: RHP | BM39: Jhoan Duran | BN39: =VLOOKUP($BM39,Players!$AV$3:$AW$1447,2,FALSE) -> 0 | BO39: 0
A40: 39 | B40: Reese McGuire | C40: =VLOOKUP($B40,Players!$N$3:$O$1273,2,FALSE) -> 0 | D40: =IF(C40>0,1,0) -> 0 | F40: Luke Voit | G40: =VLOOKUP($F40,Players!$N$3:$O$1273,2,FALSE) -> 0 | H40: 0 | J40: David Fletcher | K40: =VLOOKUP($J40,Players!$N$3:$O$1273,2,FALSE) -> 0 | L40: 0 | N40: Nick Solak | O40: =VLOOKUP($N40,Players!$N$3:$O$1273,2,FALSE) -> 0 | P40: 0 | R40: Freddy Galvis | S40: =VLOOKUP($R40,Players!$N$3:$O$1273,2,FALSE) -> 0 | T40: 0 | V40: Hunter Dozier | W40: =VLOOKUP($V40,Players!$N$3:$O$1273,2,FALSE) -> 0 | X40: 0 | AE40: Mike Soroka | AF40: =VLOOKUP($AE40,Players!$AV$3:$AW$1447,2,FALSE) -> 0 | AH40: 0 | AJ40: Colin Poche | AK40: =VLOOKUP($AJ40,Players!$AV$3:$AW$1447,2,FALSE) -> 0 | AL40: 0 | AO40: 2022 | AP40: OF | AQ40: Luis Matos | AR40: =IF(ISERROR(VLOOKUP($AQ40,Players!$N$3:$O$1456,2,FALSE)),(VLOOKUP($AQ40,Players!$AV$3:$AW$1447,2,FALSE)),(VLOOKUP($AQ40,Players!$N$3:$O$1456,2,FALSE))) -> 0 | AS40: 0 | AU40: 2024 | AV40: SS | AW40: Robert Puason | AX40: =VLOOKUP($AW40,Players!$N$3:$O$1456,2,FALSE) -> 0 | AY40: 0 | BA40: 2021 | BB40: LHP | BC40: Ethan Small | BD40: =VLOOKUP($BC40,Players!$AV$3:$AW$1447,2,FALSE) -> 0 | BE40: 0 | BG40: OF | BH40: Jake Fraley | BI40: =VLOOKUP($BH40,Players!$N$3:$O$1456,2,FALSE) -> 0 | BJ40: 0 | BL40: RHP | BM40: Shun Yamaguchi | BN40: =VLOOKUP($BM40,Players!$AV$3:$AW$1447,2,FALSE) -> 0 | BO40: 0
A41: 40 | B41: Jason Castro | C41: =VLOOKUP($B41,Players!$N$3:$O$1273,2,FALSE) -> 0 | D41: 0 | F41: Niko Goodrum | G41: =VLOOKUP($F41,Players!$N$3:$O$1273,2,FALSE) -> 0 | H41: 0 | J41: Asdrubal Cabrera | K41: =VLOOKUP($J41,Players!$N$3:$O$1273,2,FALSE) -> 0 | L41: 0 | N41: Kyle Seager | O41: =VLOOKUP($N41,Players!$N$3:$O$1273,2,FALSE) -> 0 | P41: 0 | R41: Brandon Crawford | S41: =VLOOKUP($R41,Players!$N$3:$O$1273,2,FALSE) -> 0 | T41: 0 | V41: Trey Mancini | W41: =VLOOKUP($V41,Players!$N$3:$O$1273,2,FALSE) -> 0 | X41: 0 | AE41: Madison Bumgarner | AF41: =VLOOKUP($AE41,Players!$AV$3:$AW$1447,2,FALSE) -> 0 | AH41: 0 | AJ41: Scott Oberg | AK41: =VLOOKUP($AJ41,Players!$AV$3:$AW$1447,2,FALSE) -> 0 | AL41: 0 | AO41: 2022 | AP41: SS | AQ41: Noelvi Marte | AR41: =IF(ISERROR(VLOOKUP($AQ41,Players!$N$3:$O$1456,2,FALSE)),(VLOOKUP($AQ41,Players!$AV$3:$AW$1447,2,FALSE)),(VLOOKUP($AQ41,Players!$N$3:$O$1456,2,FALSE))) -> 0 | AS41: 0 | AU41: 2020 | AV41: OF | AW41: Yoshitomo Tsutsugo | AX41: =VLOOKUP($AW41,Players!$N$3:$O$1456,2,FALSE) -> 0 | AY41: 0 | BA41: 2022 | BB41: LHP | BC41: Matthew Liberatore | BD41: =VLOOKUP($BC41,Players!$AV$3:$AW$1447,2,FALSE) -> 0 | BE41: 0 | BG41: 2B | BH41: Zach McKinstry | BI41: =VLOOKUP($BH41,Players!$N$3:$O$1456,2,FALSE) -> 0 | BJ41: 0 | BL41: RHP | BM41: Michael Baumann | BN41: =VLOOKUP($BM41,Players!$AV$3:$AW$1447,2,FALSE) -> 
A42: 41 | B42: Andrew Knizner | C42: =VLOOKUP($B42,Players!$N$3:$O$1273,2,FALSE) -> 0 | D42: 0 | F42: Wil Myers | G42: =VLOOKUP($F42,Players!$N$3:$O$1273,2,FALSE) -> 0 | H42: 0 | J42: Cesar Hernandez | K42: =VLOOKUP($J42,Players!$N$3:$O$1273,2,FALSE) -> 0 | L42: 0 | N42: Maikel Franco | O42: =VLOOKUP($N42,Players!$N$3:$O$1273,2,FALSE) -> 0 | P42: 0 | R42: Chris Taylor | S42: =VLOOKUP($R42,Players!$N$3:$O$1273,2,FALSE) -> 0 | T42: 0 | V42: Scott Kingery | W42: =VLOOKUP($V42,Players!$N$3:$O$1273,2,FALSE) -> 0 | X42: 0 | AE42: Kyle Hendricks | AF42: =VLOOKUP($AE42,Players!$AV$3:$AW$1447,2,FALSE) -> 0 | AH42: 0 | AJ42: Ryne Stanek | AK42: =VLOOKUP($AJ42,Players!$AV$3:$AW$1447,2,FALSE) -> 0 | AL42: 0 | AO42: 2022 | AP42: SS | AQ42: Xavier Edwards | AR42: =IF(ISERROR(VLOOKUP($AQ42,Players!$N$3:$O$1456,2,FALSE)),(VLOOKUP($AQ42,Players!$AV$3:$AW$1447,2,FALSE)),(VLOOKUP($AQ42,Players!$N$3:$O$1456,2,FALSE))) -> 0 | AS42: 0 | AU42: 2022 | AV42: C | AW42: Heriberto Hernandez | AX42: =VLOOKUP($AW42,Players!$N$3:$O$1456,2,FALSE) -> 0 | AY42: 0 | BA42: 2020 | BB42: RHP | BC42: Jackson Kowar | BD42: =VLOOKUP($BC42,Players!$AV$3:$AW$1447,2,FALSE) -> 0 | BE42: 0 | BG42: OF | BH42: Jesus Sanchez | BI42: =VLOOKUP($BH42,Players!$N$3:$O$1456,2,FALSE) -> 0 | BJ42: 0 | BM42: 2021 | BN42: =VLOOKUP($BM42,Players!$AV$3:$AW$1447,2,FALSE) -> 
A43: 42 | B43: Willians Astudillo | C43: =VLOOKUP($B43,Players!$N$3:$O$1273,2,FALSE) -> 0 | D43: 0 | F43: Joey Votto | G43: =VLOOKUP($F43,Players!$N$3:$O$1273,2,FALSE) -> 0 | H43: 0 | J43: Franklin Barreto | K43: =VLOOKUP($J43,Players!$N$3:$O$1273,2,FALSE) -> 0 | L43: 0 | N43: Todd Frazier | O43: =VLOOKUP($N43,Players!$N$3:$O$1273,2,FALSE) -> 0 | P43: 0 | R43: Jose Peraza | S43: =VLOOKUP($R43,Players!$N$3:$O$1273,2,FALSE) -> 0 | T43: 0 | V43: Danny Santana | W43: =VLOOKUP($V43,Players!$N$3:$O$1273,2,FALSE) -> 0 | X43: 0 | AE43: Kenta Maeda | AF43: =VLOOKUP($AE43,Players!$AV$3:$AW$1447,2,FALSE) -> 0 | AH43: 0 | AJ43: Kyle Crick | AK43: =VLOOKUP($AJ43,Players!$AV$3:$AW$1447,2,FALSE) -> 0 | AL43: 0 | AO43: 2021 | AP43: OF | AQ43: Trevor Larnach | AR43: =IF(ISERROR(VLOOKUP($AQ43,Players!$N$3:$O$1456,2,FALSE)),(VLOOKUP($AQ43,Players!$AV$3:$AW$1447,2,FALSE)),(VLOOKUP($AQ43,Players!$N$3:$O$1456,2,FALSE))) -> 0 | AS43: 0 | AU43: 2019 | AV43: OF | AW43: Kyle Lewis | AX43: =VLOOKUP($AW43,Players!$N$3:$O$1456,2,FALSE) -> 0 | AY43: 0 | BA43: 2020 | BB43: RHP | BC43: Daulton Jefferies | BD43: =VLOOKUP($BC43,Players!$AV$3:$AW$1447,2,FALSE) -> 0 | BE43: 0 | BG43: OF | BH43: Yusniel Diaz | BI43: =VLOOKUP($BH43,Players!$N$3:$O$1456,2,FALSE) -> 0 | BJ43: 0 | BL43: LHP | BM43: Brailyn Marquez | BN43: =VLOOKUP($BM43,Players!$AV$3:$AW$1447,2,FALSE) -> 0 | BO43: 0
A44: 43 | B44: Jonathan Lucroy | C44: =VLOOKUP($B44,Players!$N$3:$O$1273,2,FALSE) -> 0 | D44: 0 | F44: Nate Lowe | G44: =VLOOKUP($F44,Players!$N$3:$O$1273,2,FALSE) -> 0 | H44: 0 | J44: Dee Gordon | K44: =VLOOKUP($J44,Players!$N$3:$O$1273,2,FALSE) -> 0 | L44: 0 | N44: Travis Shaw | O44: =VLOOKUP($N44,Players!$N$3:$O$1273,2,FALSE) -> 0 | P44: 0 | R44: Enrique Hernandez | S44: =VLOOKUP($R44,Players!$N$3:$O$1273,2,FALSE) -> 0 | T44: =IF(S44>0,1,0) -> 0 | V44: Max Kepler | W44: =VLOOKUP($V44,Players!$N$3:$O$1273,2,FALSE) -> 0 | X44: 0 | AE44: Marcus Stroman | AF44: =VLOOKUP($AE44,Players!$AV$3:$AW$1447,2,FALSE) -> 0 | AH44: 0 | AJ44: Andrew Miller | AK44: =VLOOKUP($AJ44,Players!$AV$3:$AW$1447,2,FALSE) -> 0 | AL44: 0 | AO44: 2019 | AP44: C | AQ44: Sean Murphy | AR44: =IF(ISERROR(VLOOKUP($AQ44,Players!$N$3:$O$1456,2,FALSE)),(VLOOKUP($AQ44,Players!$AV$3:$AW$1447,2,FALSE)),(VLOOKUP($AQ44,Players!$N$3:$O$1456,2,FALSE))) -> 0 | AS44: 0 | AU44: 2019 | AV44: SS | AW44: Nico Hoerner | AX44: =VLOOKUP($AW44,Players!$N$3:$O$1456,2,FALSE) -> 0 | AY44: 0 | BA44: 2019 | BB44: RHP | BC44: Emmanuel Clase | BD44: =VLOOKUP($BC44,Players!$AV$3:$AW$1447,2,FALSE) -> 0 | BE44: 0 | BG44: SS | BH44: Jake Cronenworth | BI44: =VLOOKUP($BH44,Players!$N$3:$O$1456,2,FALSE) -> 0 | BJ44: 0 | BL44: RHP | BM44: George Kirby | BN44: =VLOOKUP($BM44,Players!$AV$3:$AW$1447,2,FALSE) -> 0 | BO44: 0
A45: 44 | B45: Jake Rogers | C45: =VLOOKUP($B45,Players!$N$3:$O$1273,2,FALSE) -> 0 | D45: 0 | F45: Eric Thames | G45: =VLOOKUP($F45,Players!$N$3:$O$1273,2,FALSE) -> 0 | H45: 0 | J45: Freddy Galvis | K45: =VLOOKUP($J45,Players!$N$3:$O$1273,2,FALSE) -> 0 | L45: 0 | N45: Evan Longoria | O45: =VLOOKUP($N45,Players!$N$3:$O$1273,2,FALSE) -> 0 | P45: 0 | R45: Joey Wendle | S45: =VLOOKUP($R45,Players!$N$3:$O$1273,2,FALSE) -> 0 | T45: 0 | V45: J.D. Davis | W45: =VLOOKUP($V45,Players!$N$3:$O$1273,2,FALSE) -> 0 | X45: 0 | AE45: Julio Urias | AF45: =VLOOKUP($AE45,Players!$AV$3:$AW$1447,2,FALSE) -> 0 | AH45: 0 | AJ45: Drew Pomeranz | AK45: =VLOOKUP($AJ45,Players!$AV$3:$AW$1447,2,FALSE) -> 0 | AL45: 0 | AO45: 2022 | AP45: 2B | AQ45: Aaron Bracho | AR45: =IF(ISERROR(VLOOKUP($AQ45,Players!$N$3:$O$1456,2,FALSE)),(VLOOKUP($AQ45,Players!$AV$3:$AW$1447,2,FALSE)),(VLOOKUP($AQ45,Players!$N$3:$O$1456,2,FALSE))) -> 0 | AS45: 0 | AU45: 2020 | AV45: OF | AW45: Monte Harrison | AX45: =VLOOKUP($AW45,Players!$N$3:$O$1456,2,FALSE) -> 0 | AY45: 0 | BA45: 2023 | BB45: LHP | BC45: Blake Walston | BD45: =VLOOKUP($BC45,Players!$AV$3:$AW$1447,2,FALSE) -> 0 | BE45: 0 | BG45: OF | BH45: DJ Peters | BI45: =VLOOKUP($BH45,Players!$N$3:$O$1456,2,FALSE) -> 0 | BJ45: 0 | BL45: RHP | BM45: Simeon Woods-Richardson | BN45: =VLOOKUP($BM45,Players!$AV$3:$AW$1447,2,FALSE) -> 0 | BO45: 0
A46: 45 | B46: Dom Nunez | C46: =VLOOKUP($B46,Players!$N$3:$O$1273,2,FALSE) -> 0 | D46: 0 | F46: Howie Kendrick | G46: =VLOOKUP($F46,Players!$N$3:$O$1273,2,FALSE) -> 0 | H46: 0 | J46: Nick Solak | K46: =VLOOKUP($J46,Players!$N$3:$O$1273,2,FALSE) -> 0 | L46: =IF(K46>0,1,0) -> 0 | N46: Howie Kendrick | O46: =VLOOKUP($N46,Players!$N$3:$O$1273,2,FALSE) -> 0 | P46: 0 | R46: Jon Berti | S46: =VLOOKUP($R46,Players!$N$3:$O$1273,2,FALSE) -> 0 | T46: 0 | V46: Lourdes Gurriel Jr. | W46: =VLOOKUP($V46,Players!$N$3:$O$1273,2,FALSE) -> 0 | X46: 0 | AE46: Frankie Montas | AF46: =VLOOKUP($AE46,Players!$AV$3:$AW$1447,2,FALSE) -> 0 | AH46: 0 | AJ46: Sergio Romo | AK46: =VLOOKUP($AJ46,Players!$AV$3:$AW$1447,2,FALSE) -> 0 | AL46: 0 | AO46: 2020 | AP46: SS | AQ46: Jazz Chisholm | AR46: =IF(ISERROR(VLOOKUP($AQ46,Players!$N$3:$O$1456,2,FALSE)),(VLOOKUP($AQ46,Players!$AV$3:$AW$1447,2,FALSE)),(VLOOKUP($AQ46,Players!$N$3:$O$1456,2,FALSE))) -> 0 | AS46: 0 | AU46: 2022 | AV46: 3B | AW46: Jordan Groshans | AX46: =VLOOKUP($AW46,Players!$N$3:$O$1456,2,FALSE) -> 0 | AY46: 0 | BA46: 2020 | BB46: RHP | BC46: Brady Singer | BD46: =VLOOKUP($BC46,Players!$AV$3:$AW$1447,2,FALSE) -> 0 | BE46: 0 | BG46: 2B | BH46: Andy Young | BI46: =VLOOKUP($BH46,Players!$N$3:$O$1456,2,FALSE) -> 0 | BJ46: 0 | BL46: LHP | BM46: Nick Lodolo | BN46: =VLOOKUP($BM46,Players!$AV$3:$AW$1447,2,FALSE) -> 0 | BO46: 0
A47: 46 | B47: Tony Wolters | C47: =VLOOKUP($B47,Players!$N$3:$O$1273,2,FALSE) -> 0 | D47: =IF(C47>0,1,0) -> 0 | F47: Jake Bauers | G47: =VLOOKUP($F47,Players!$N$3:$O$1273,2,FALSE) -> 0 | H47: 0 | J47: Chris Taylor | K47: =VLOOKUP($J47,Players!$N$3:$O$1273,2,FALSE) -> 0 | L47: 0 | N47: Jose Osuna | O47: =VLOOKUP($N47,Players!$N$3:$O$1273,2,FALSE) -> 0 | P47: 0 | R47: Brendan Rodgers | S47: =VLOOKUP($R47,Players!$N$3:$O$1273,2,FALSE) -> 0 | T47: 0 | V47: Tommy Edman | W47: =VLOOKUP($V47,Players!$N$3:$O$1273,2,FALSE) -> 0 | X47: 0 | AE47: Luke Weaver | AF47: =VLOOKUP($AE47,Players!$AV$3:$AW$1447,2,FALSE) -> 0 | AH47: 0 | AJ47: Joakim Soria | AK47: =VLOOKUP($AJ47,Players!$AV$3:$AW$1447,2,FALSE) -> 0 | AL47: 0 | AO47: 2021 | AP47: SS | AQ47: Jeter Downs | AR47: =IF(ISERROR(VLOOKUP($AQ47,Players!$N$3:$O$1456,2,FALSE)),(VLOOKUP($AQ47,Players!$AV$3:$AW$1447,2,FALSE)),(VLOOKUP($AQ47,Players!$N$3:$O$1456,2,FALSE))) -> 0 | AS47: 0 | AU47: 2021 | AV47: OF | AW47: Alek Thomas | AX47: =VLOOKUP($AW47,Players!$N$3:$O$1456,2,FALSE) -> 0 | AY47: 0 | BA47: 2022 | BB47: RHP | BC47: Alek Manoah | BD47: =VLOOKUP($BC47,Players!$AV$3:$AW$1447,2,FALSE) -> 0 | BE47: 0 | BG47: 3B | BH47: Isaac Paredes | BI47: =VLOOKUP($BH47,Players!$N$3:$O$1456,2,FALSE) -> 0 | BJ47: 0 | BL47: LHP | BM47: Joey Cantillo | BN47: =VLOOKUP($BM47,Players!$AV$3:$AW$1447,2,FALSE) -> 0 | BO47: 0
A48: 47 | F48: Ji-Man Choi | G48: =VLOOKUP($F48,Players!$N$3:$O$1273,2,FALSE) -> 0 | H48: 0 | J48: Adam Frazier | K48: =VLOOKUP($J48,Players!$N$3:$O$1273,2,FALSE) -> 0 | L48: 0 | N48: Rio Ruiz | O48: =VLOOKUP($N48,Players!$N$3:$O$1273,2,FALSE) -> 0 | P48: 0 | R48: Leury Garcia | S48: =VLOOKUP($R48,Players!$N$3:$O$1273,2,FALSE) -> 0 | T48: 0 | V48: David Dahl | W48: =VLOOKUP($V48,Players!$N$3:$O$1273,2,FALSE) -> 0 | X48: 0 | AE48: Andrew Heaney | AF48: =VLOOKUP($AE48,Players!$AV$3:$AW$1447,2,FALSE) -> 0 | AH48: 0 | AJ48: Shane Greene | AK48: =VLOOKUP($AJ48,Players!$AV$3:$AW$1447,2,FALSE) -> 0 | AL48: 0 | AO48: 2018 | AP48: RHP | AQ48: Michael Kopech | AR48: =IF(ISERROR(VLOOKUP($AQ48,Players!$N$3:$O$1456,2,FALSE)),(VLOOKUP($AQ48,Players!$AV$3:$AW$1447,2,FALSE)),(VLOOKUP($AQ48,Players!$N$3:$O$1456,2,FALSE))) -> 0 | AS48: 0 | AU48: 2022 | AV48: OF | AW48: Gilberto Jimenez | AX48: =VLOOKUP($AW48,Players!$N$3:$O$1456,2,FALSE) -> 0 | AY48: 0 | BA48: 2020 | BB48: RHP | BC48: Cory Abbott | BD48: =VLOOKUP($BC48,Players!$AV$3:$AW$1447,2,FALSE) -> 0 | BE48: 0 | BG48: OF | BH48: Ka’ai Tom | BI48: =VLOOKUP($BH48,Players!$N$3:$O$1456,2,FALSE) -> 0 | BJ48: 0 | BL48: RHP | BM48: Logan Gilbert | BN48: =VLOOKUP($BM48,Players!$AV$3:$AW$1447,2,FALSE) -> 0 | BO48: 0
A49: 48 | F49: Mitch Moreland | G49: =VLOOKUP($F49,Players!$N$3:$O$1273,2,FALSE) -> 0 | H49: 0 | J49: Howie Kendrick | K49: =VLOOKUP($J49,Players!$N$3:$O$1273,2,FALSE) -> 0 | L49: 0 | N49: Colin Moran | O49: =VLOOKUP($N49,Players!$N$3:$O$1273,2,FALSE) -> 0 | P49: =IF(O49>0,1,0) -> 0 | R49: Orlando Arcia | S49: =VLOOKUP($R49,Players!$N$3:$O$1273,2,FALSE) -> 0 | T49: 0 | V49: Brandon Lowe | W49: =VLOOKUP($V49,Players!$N$3:$O$1273,2,FALSE) -> 0 | X49: 0 | AE49: Jesus Luzardo | AF49: =VLOOKUP($AE49,Players!$AV$3:$AW$1447,2,FALSE) -> 0 | AH49: 0 | AJ49: Shaun Anderson | AK49: =VLOOKUP($AJ49,Players!$AV$3:$AW$1447,2,FALSE) ->  | AO49: 2021 | AP49: C | AQ49: Joey Bart | AR49: =IF(ISERROR(VLOOKUP($AQ49,Players!$N$3:$O$1456,2,FALSE)),(VLOOKUP($AQ49,Players!$AV$3:$AW$1447,2,FALSE)),(VLOOKUP($AQ49,Players!$N$3:$O$1456,2,FALSE))) -> 0 | AS49: 0 | AU49: 2019 | AV49: 2B | AW49: Brendan Rodgers | AX49: =VLOOKUP($AW49,Players!$N$3:$O$1456,2,FALSE) -> 0 | AY49: 0 | BA49: 2020 | BB49: RHP | BC49: Jhoan Duran | BD49: =VLOOKUP($BC49,Players!$AV$3:$AW$1447,2,FALSE) -> 0 | BE49: 0 | BH49: 2021 | BI49: =VLOOKUP($BH49,Players!$N$3:$O$1456,2,FALSE) ->  | BL49: RHP | BM49: Clarke Schmidt | BN49: =VLOOKUP($BM49,Players!$AV$3:$AW$1447,2,FALSE) -> 0 | BO49: 0
A50: 49 | F50: Daniel Vogelbach | G50: =VLOOKUP($F50,Players!$N$3:$O$1273,2,FALSE) -> 0 | H50: 0 | J50: Jose Peraza | K50: =VLOOKUP($J50,Players!$N$3:$O$1273,2,FALSE) -> 0 | L50: 0 | N50: Joey Wendle | O50: =VLOOKUP($N50,Players!$N$3:$O$1273,2,FALSE) -> 0 | P50: 0 | R50: Johan Camargo | S50: =VLOOKUP($R50,Players!$N$3:$O$1273,2,FALSE) -> 0 | T50: 0 | V50: Kyle Tucker | W50: =VLOOKUP($V50,Players!$N$3:$O$1273,2,FALSE) -> 0 | X50: 0 | AE50: Sean Manaea | AF50: =VLOOKUP($AE50,Players!$AV$3:$AW$1447,2,FALSE) -> 0 | AH50: 0 | AJ50: Rafael Montero | AK50: =VLOOKUP($AJ50,Players!$AV$3:$AW$1447,2,FALSE) -> 0 | AL50: 0 | AO50: 2019 | AP50: OF | AQ50: Sam Hilliard | AR50: =IF(ISERROR(VLOOKUP($AQ50,Players!$N$3:$O$1456,2,FALSE)),(VLOOKUP($AQ50,Players!$AV$3:$AW$1447,2,FALSE)),(VLOOKUP($AQ50,Players!$N$3:$O$1456,2,FALSE))) -> 0 | AS50: 0 | AU50: 2024 | AV50: OF | AW50: Erick Peña | AX50: =VLOOKUP($AW50,Players!$N$3:$O$1456,2,FALSE) -> 0 | AY50: 0 | BA50: 2023 | BB50: RHP | BC50: Ethan Hankins | BD50: =VLOOKUP($BC50,Players!$AV$3:$AW$1447,2,FALSE) -> 0 | BE50: 0 | BG50: SS | BH50: Wander Franco | BI50: =VLOOKUP($BH50,Players!$N$3:$O$1456,2,FALSE) -> 0 | BJ50: 0 | BL50: LHP | BM50: Ethan Small | BN50: =VLOOKUP($BM50,Players!$AV$3:$AW$1447,2,FALSE) -> 0 | BO50: 0
A51: 50 | F51: Ryan O’Hearn | G51: =VLOOKUP($F51,Players!$N$3:$O$1273,2,FALSE) -> 0 | H51: 0 | J51: Brian Dozier | K51: =VLOOKUP($J51,Players!$N$3:$O$1273,2,FALSE) -> 0 | L51: 0 | N51: David Bote | O51: =VLOOKUP($N51,Players!$N$3:$O$1273,2,FALSE) -> 0 | P51: 0 | R51: Jorge Mateo | S51: =VLOOKUP($R51,Players!$N$3:$O$1273,2,FALSE) -> 0 | T51: 0 | V51: Byron Buxton | W51: =VLOOKUP($V51,Players!$N$3:$O$1273,2,FALSE) -> 0 | X51: 0 | AE51: David Price | AF51: =VLOOKUP($AE51,Players!$AV$3:$AW$1447,2,FALSE) -> 0 | AH51: 0 | AJ51: Ty Buttrey | AK51: =VLOOKUP($AJ51,Players!$AV$3:$AW$1447,2,FALSE) -> 0 | AL51: 0 | AO51: 2022 | AP51: OF | AQ51: George Valera | AR51: =IF(ISERROR(VLOOKUP($AQ51,Players!$N$3:$O$1456,2,FALSE)),(VLOOKUP($AQ51,Players!$AV$3:$AW$1447,2,FALSE)),(VLOOKUP($AQ51,Players!$N$3:$O$1456,2,FALSE))) -> 0 | AS51: 0 | AU51: 2018 | AV51: OF | AW51: Austin Hays | AX51: =VLOOKUP($AW51,Players!$N$3:$O$1456,2,FALSE) -> 0 | AY51: 0 | BA51: 2021 | BB51: RHP | BC51: Luis Garcia | BD51: =VLOOKUP($BC51,Players!$AV$3:$AW$1447,2,FALSE) -> 0 | BE51: 0 | BG51: OF | BH51: Julio Rodriguez | BI51: =VLOOKUP($BH51,Players!$N$3:$O$1456,2,FALSE) -> 0 | BJ51: 0 | BL51: RHP | BM51: Luis Garcia | BN51: =VLOOKUP($BM51,Players!$AV$3:$AW$1447,2,FALSE) -> 0 | BO51: 0
A52: 51 | F52: Victor Caratini | G52: =VLOOKUP($F52,Players!$N$3:$O$1273,2,FALSE) -> 0 | H52: 0 | J52: Austin Nola | K52: =VLOOKUP($J52,Players!$N$3:$O$1273,2,FALSE) -> 0 | L52: 0 | N52: Jon Berti | O52: =VLOOKUP($N52,Players!$N$3:$O$1273,2,FALSE) -> 0 | P52: 0 | R52: Cole Tucker | S52: =VLOOKUP($R52,Players!$N$3:$O$1273,2,FALSE) -> 0 | T52: 0 | V52: Mallex Smith | W52: =VLOOKUP($V52,Players!$N$3:$O$1273,2,FALSE) -> 0 | X52: 0 | AE52: Mike Minor | AF52: =VLOOKUP($AE52,Players!$AV$3:$AW$1447,2,FALSE) -> 0 | AH52: 0 | AJ52: Blake Treinen | AK52: =VLOOKUP($AJ52,Players!$AV$3:$AW$1447,2,FALSE) -> 0 | AL52: 0 | AO52: 2020 | AP52: OF | AQ52: Drew Waters | AR52: =IF(ISERROR(VLOOKUP($AQ52,Players!$N$3:$O$1456,2,FALSE)),(VLOOKUP($AQ52,Players!$AV$3:$AW$1447,2,FALSE)),(VLOOKUP($AQ52,Players!$N$3:$O$1456,2,FALSE))) -> 0 | AS52: 0 | AU52: 2019 | AV52: 1B | AW52: Kevin Cron | AX52: =VLOOKUP($AW52,Players!$N$3:$O$1456,2,FALSE) -> 0 | AY52: 0 | BA52: 2022 | BB52: RHP | BC52: Luis Medina | BD52: =VLOOKUP($BC52,Players!$AV$3:$AW$1447,2,FALSE) -> 0 | BE52: 0 | BG52: 2B | BH52: Vidal Brujan | BI52: =VLOOKUP($BH52,Players!$N$3:$O$1456,2,FALSE) -> 0 | BJ52: 0 | BL52: LHP | BM52: Shane McClanahan | BN52: =VLOOKUP($BM52,Players!$AV$3:$AW$1447,2,FALSE) -> 0 | BO52: 0
A53: 52 | F53: Austin Nola | G53: =VLOOKUP($F53,Players!$N$3:$O$1273,2,FALSE) -> 0 | H53: 0 | J53: Shed Long | K53: =VLOOKUP($J53,Players!$N$3:$O$1273,2,FALSE) -> 0 | L53: 0 | N53: Willians Astudillo | O53: =VLOOKUP($N53,Players!$N$3:$O$1273,2,FALSE) -> 0 | P53: 0 | R53: Miguel Rojas | S53: =VLOOKUP($R53,Players!$N$3:$O$1273,2,FALSE) -> 0 | T53: =IF(S53>0,1,0) -> 0 | V53: Joc Pederson | W53: =VLOOKUP($V53,Players!$N$3:$O$1273,2,FALSE) -> 0 | X53: 0 | AE53: German Marquez | AF53: =VLOOKUP($AE53,Players!$AV$3:$AW$1447,2,FALSE) -> 0 | AH53: 0 | AJ53: Jose Alvarado | AK53: =VLOOKUP($AJ53,Players!$AV$3:$AW$1447,2,FALSE) -> 0 | AL53: 0 | AO53: 2020 | AP53: OF | AQ53: Cristian Pache | AR53: =IF(ISERROR(VLOOKUP($AQ53,Players!$N$3:$O$1456,2,FALSE)),(VLOOKUP($AQ53,Players!$AV$3:$AW$1447,2,FALSE)),(VLOOKUP($AQ53,Players!$N$3:$O$1456,2,FALSE))) -> 0 | AS53: 0 | AU53: 2023 | AV53: SS | AW53: Greg Jones | AX53: =VLOOKUP($AW53,Players!$N$3:$O$1456,2,FALSE) -> 0 | AY53: 0 | BA53: 2021 | BB53: LHP | BC53: Shane McClanahan | BD53: =VLOOKUP($BC53,Players!$AV$3:$AW$1447,2,FALSE) -> 0 | BE53: 0 | BG53: OF | BH53: Jarred Kelenic | BI53: =VLOOKUP($BH53,Players!$N$3:$O$1456,2,FALSE) -> 0 | BJ53: 0 | BL53: LHP | BM53: Seth Corry | BN53: =VLOOKUP($BM53,Players!$AV$3:$AW$1447,2,FALSE) -> 
A54: 53 | F54: Jose Osuna | G54: =VLOOKUP($F54,Players!$N$3:$O$1273,2,FALSE) -> 0 | H54: 0 | J54: Colin Moran | K54: =VLOOKUP($J54,Players!$N$3:$O$1273,2,FALSE) -> 0 | L54: 0 | N54: Ty France | O54: =VLOOKUP($N54,Players!$N$3:$O$1273,2,FALSE) -> 0 | P54: 0 | R54: J.P. Crawford | S54: =VLOOKUP($R54,Players!$N$3:$O$1273,2,FALSE) -> 0 | T54: 0 | V54: Ian Happ | W54: =VLOOKUP($V54,Players!$N$3:$O$1273,2,FALSE) -> 0 | X54: 0 | AE54: Lance McCullers Jr. | AF54: =VLOOKUP($AE54,Players!$AV$3:$AW$1447,2,FALSE) -> 0 | AH54: 0 | AJ54: John Gant | AK54: =VLOOKUP($AJ54,Players!$AV$3:$AW$1447,2,FALSE) -> 0 | AL54: 0 | AO54: 2019 | AP54: RHP | AQ54: Jose Urquidy | AR54: =IF(ISERROR(VLOOKUP($AQ54,Players!$N$3:$O$1456,2,FALSE)),(VLOOKUP($AQ54,Players!$AV$3:$AW$1447,2,FALSE)),(VLOOKUP($AQ54,Players!$N$3:$O$1456,2,FALSE))) -> 0 | AS54: 0 | AU54: 2024 | AV54: OF | AW54: Riley Greene | AX54: =VLOOKUP($AW54,Players!$N$3:$O$1456,2,FALSE) -> 0 | AY54: 0 | BA54: 2022 | BB54: RHP | BC54: Jackson Rutledge | BD54: =VLOOKUP($BC54,Players!$AV$3:$AW$1447,2,FALSE) -> 0 | BE54: 0 | BG54: 1B | BH54: Andrew Vaughn | BI54: =VLOOKUP($BH54,Players!$N$3:$O$1456,2,FALSE) -> 0 | BJ54: 0 | BM54: 2022 | BN54: =VLOOKUP($BM54,Players!$AV$3:$AW$1447,2,FALSE) -> 
A55: 54 | F55: Rio Ruiz | G55: =VLOOKUP($F55,Players!$N$3:$O$1273,2,FALSE) -> 0 | H55: 0 | J55: Enrique Hernandez | K55: =VLOOKUP($J55,Players!$N$3:$O$1273,2,FALSE) -> 0 | L55: 0 | N55: Johan Camargo | O55: =VLOOKUP($N55,Players!$N$3:$O$1273,2,FALSE) -> 0 | P55: 0 | R55: Luis Rengifo | S55: =VLOOKUP($R55,Players!$N$3:$O$1273,2,FALSE) -> 0 | T55: 0 | V55: Ryan Braun | W55: =VLOOKUP($V55,Players!$N$3:$O$1273,2,FALSE) -> 0 | X55: 0 | AE55: Matthew Boyd | AF55: =VLOOKUP($AE55,Players!$AV$3:$AW$1447,2,FALSE) -> 0 | AH55: 0 | AJ55: Zack Britton | AK55: =VLOOKUP($AJ55,Players!$AV$3:$AW$1447,2,FALSE) -> 0 | AL55: 0 | AO55: 2024 | AP55: SS | AQ55: Robert Puason | AR55: =IF(ISERROR(VLOOKUP($AQ55,Players!$N$3:$O$1456,2,FALSE)),(VLOOKUP($AQ55,Players!$AV$3:$AW$1447,2,FALSE)),(VLOOKUP($AQ55,Players!$N$3:$O$1456,2,FALSE))) -> 0 | AS55: 0 | AU55: 2022 | AV55: 3B | AW55: Nolan Gorman | AX55: =VLOOKUP($AW55,Players!$N$3:$O$1456,2,FALSE) -> 0 | AY55: 0 | BA55: 2020 | BB55: RHP | BC55: Shun Yamaguchi | BD55: =VLOOKUP($BC55,Players!$AV$3:$AW$1447,2,FALSE) -> 0 | BE55: 0 | BG55: SS | BH55: Oneil Cruz | BI55: =VLOOKUP($BH55,Players!$N$3:$O$1456,2,FALSE) -> 0 | BJ55: 0 | BL55: RHP | BM55: Grayson Rodriguez | BN55: =VLOOKUP($BM55,Players!$AV$3:$AW$1447,2,FALSE) -> 0 | BO55: 0
A56: 55 | F56: Jonathan Lucroy | G56: =VLOOKUP($F56,Players!$N$3:$O$1273,2,FALSE) -> 0 | H56: 0 | J56: Jason Kipnis | K56: =VLOOKUP($J56,Players!$N$3:$O$1273,2,FALSE) -> 0 | L56: 0 | N56: Jeimer Candelario | O56: =VLOOKUP($N56,Players!$N$3:$O$1273,2,FALSE) -> 0 | P56: 0 | R56: Nicky Lopez | S56: =VLOOKUP($R56,Players!$N$3:$O$1273,2,FALSE) -> 0 | T56: 0 | V56: Andrew McCutchen | W56: =VLOOKUP($V56,Players!$N$3:$O$1273,2,FALSE) -> 0 | X56: 0 | AE56: Mike Foltynewicz | AF56: =VLOOKUP($AE56,Players!$AV$3:$AW$1447,2,FALSE) -> 0 | AH56: 0 | AJ56: Pedro Baez | AK56: =VLOOKUP($AJ56,Players!$AV$3:$AW$1447,2,FALSE) -> 0 | AL56: 0 | AO56: 2020 | AP56: OF | AQ56: Yoshitomo Tsutsugo | AR56: =IF(ISERROR(VLOOKUP($AQ56,Players!$N$3:$O$1456,2,FALSE)),(VLOOKUP($AQ56,Players!$AV$3:$AW$1447,2,FALSE)),(VLOOKUP($AQ56,Players!$N$3:$O$1456,2,FALSE))) -> 0 | AS56: 0 | AU56: 2022 | AV56: OF | AW56: Heliot Ramos | AX56: =VLOOKUP($AW56,Players!$N$3:$O$1456,2,FALSE) -> 0 | AY56: 0 | BA56: 2019 | BB56: RHP | BC56: Bryan Abreu | BD56: =VLOOKUP($BC56,Players!$AV$3:$AW$1447,2,FALSE) -> 0 | BE56: 0 | BG56: SS | BH56: Royce Lewis | BI56: =VLOOKUP($BH56,Players!$N$3:$O$1456,2,FALSE) -> 0 | BJ56: 0 | BL56: RHP | BM56: Luis Frias | BN56: =VLOOKUP($BM56,Players!$AV$3:$AW$1447,2,FALSE) -> 0 | BO56: 0
A57: 56 | F57: Willians Astudillo | G57: =VLOOKUP($F57,Players!$N$3:$O$1273,2,FALSE) -> 0 | H57: 0 | J57: Joey Wendle | K57: =VLOOKUP($J57,Players!$N$3:$O$1273,2,FALSE) -> 0 | L57: 0 | N57: Ryon Healy | O57: =VLOOKUP($N57,Players!$N$3:$O$1273,2,FALSE) -> 0 | P57: 0 | V57: Shin-Soo Choo | W57: =VLOOKUP($V57,Players!$N$3:$O$1273,2,FALSE) -> 0 | X57: 0 | AE57: Joe Musgrove | AF57: =VLOOKUP($AE57,Players!$AV$3:$AW$1447,2,FALSE) -> 0 | AH57: 0 | AJ57: Nick Wittgren | AK57: =VLOOKUP($AJ57,Players!$AV$3:$AW$1447,2,FALSE) -> 0 | AL57: 0 | AO57: 2022 | AP57: C | AQ57: Heriberto Hernandez | AR57: =IF(ISERROR(VLOOKUP($AQ57,Players!$N$3:$O$1456,2,FALSE)),(VLOOKUP($AQ57,Players!$AV$3:$AW$1447,2,FALSE)),(VLOOKUP($AQ57,Players!$N$3:$O$1456,2,FALSE))) -> 0 | AS57: 0 | AU57: 2022 | AV57: OF | AW57: JJ Bleday | AX57: =VLOOKUP($AW57,Players!$N$3:$O$1456,2,FALSE) -> 0 | AY57: 0 | BA57: 2019 | BB57: RHP | BC57: Kevin Ginkel | BD57: =VLOOKUP($BC57,Players!$AV$3:$AW$1447,2,FALSE) -> 0 | BE57: 0 | BG57: OF | BH57: Trevor Larnach | BI57: =VLOOKUP($BH57,Players!$N$3:$O$1456,2,FALSE) -> 0 | BJ57: 0 | BL57: LHP | BM57: DL Hall | BN57: =VLOOKUP($BM57,Players!$AV$3:$AW$1447,2,FALSE) -> 0 | BO57: 0
A58: 57 | F58: Jay Bruce | G58: =VLOOKUP($F58,Players!$N$3:$O$1273,2,FALSE) -> 0 | H58: 0 | J58: David Bote | K58: =VLOOKUP($J58,Players!$N$3:$O$1273,2,FALSE) -> 0 | L58: 0 | N58: Marwin Gonzalez | O58: =VLOOKUP($N58,Players!$N$3:$O$1273,2,FALSE) -> 0 | P58: 0 | V58: Yoshitomo Tsutsugo | W58: =VLOOKUP($V58,Players!$N$3:$O$1273,2,FALSE) -> 0 | X58: 0 | AE58: Carlos Martinez | AF58: =VLOOKUP($AE58,Players!$AV$3:$AW$1447,2,FALSE) -> 0 | AH58: 0 | AJ58: Yoan Lopez | AK58: =VLOOKUP($AJ58,Players!$AV$3:$AW$1447,2,FALSE) -> 0 | AL58: 0 | AO58: 2019 | AP58: OF | AQ58: Kyle Lewis | AR58: =IF(ISERROR(VLOOKUP($AQ58,Players!$N$3:$O$1456,2,FALSE)),(VLOOKUP($AQ58,Players!$AV$3:$AW$1447,2,FALSE)),(VLOOKUP($AQ58,Players!$N$3:$O$1456,2,FALSE))) -> 0 | AS58: 0 | AU58: 2019 | AV58: OF | AW58: Randy Arozarena | AX58: =VLOOKUP($AW58,Players!$N$3:$O$1456,2,FALSE) -> 0 | AY58: 0 | BA58: 2022 | BB58: RHP | BC58: Tahnaj Thomas | BD58: =VLOOKUP($BC58,Players!$AV$3:$AW$1447,2,FALSE) -> 0 | BE58: 0 | BG58: SS | BH58: Jeter Downs | BI58: =VLOOKUP($BH58,Players!$N$3:$O$1456,2,FALSE) -> 0 | BJ58: 0 | BL58: LHP | BM58: Matthew Liberatore | BN58: =VLOOKUP($BM58,Players!$AV$3:$AW$1447,2,FALSE) -> 0 | BO58: 0
A59: 58 | F59: Dominic Smith | G59: =VLOOKUP($F59,Players!$N$3:$O$1273,2,FALSE) -> 0 | H59: 0 | J59: Brendan Rodgers | K59: =VLOOKUP($J59,Players!$N$3:$O$1273,2,FALSE) -> 0 | L59: 0 | N59: Josh Fuentes | O59: =VLOOKUP($N59,Players!$N$3:$O$1273,2,FALSE) -> 0 | P59: =IF(O59>0,1,0) -> 0 | V59: Shogo Akiyama | W59: =VLOOKUP($V59,Players!$N$3:$O$1273,2,FALSE) -> 0 | X59: 0 | AE59: Adrian Houser | AF59: =VLOOKUP($AE59,Players!$AV$3:$AW$1447,2,FALSE) -> 0 | AH59: 0 | AJ59: Adam Ottavino | AK59: =VLOOKUP($AJ59,Players!$AV$3:$AW$1447,2,FALSE) -> 0 | AL59: 0 | AO59: 2019 | AP59: SS | AQ59: Nico Hoerner | AR59: =IF(ISERROR(VLOOKUP($AQ59,Players!$N$3:$O$1456,2,FALSE)),(VLOOKUP($AQ59,Players!$AV$3:$AW$1447,2,FALSE)),(VLOOKUP($AQ59,Players!$N$3:$O$1456,2,FALSE))) -> 0 | AS59: 0 | AU59: 2024 | AV59: OF | AW59: Hedbert Perez | AX59: =VLOOKUP($AW59,Players!$N$3:$O$1456,2,FALSE) -> 0 | AY59: 0 | BA59: 2022 | BB59: RHP | BC59: Shane Baz | BD59: =VLOOKUP($BC59,Players!$AV$3:$AW$1447,2,FALSE) -> 0 | BE59: 0 | BG59: C | BH59: Joey Bart | BI59: =VLOOKUP($BH59,Players!$N$3:$O$1456,2,FALSE) -> 0 | BJ59: 0 | BL59: RHP | BM59: Alek Manoah | BN59: =VLOOKUP($BM59,Players!$AV$3:$AW$1447,2,FALSE) -> 0 | BO59: 0
A60: 59 | F60: Albert Pujols | G60: =VLOOKUP($F60,Players!$N$3:$O$1273,2,FALSE) -> 0 | H60: 0 | J60: Ty France | K60: =VLOOKUP($J60,Players!$N$3:$O$1273,2,FALSE) -> 0 | L60: 0 | N60: Matt Thaiss | O60: =VLOOKUP($N60,Players!$N$3:$O$1273,2,FALSE) -> 0 | P60: 0 | V60: David Peralta | W60: =VLOOKUP($V60,Players!$N$3:$O$1273,2,FALSE) -> 0 | X60: 0 | AE60: Griffin Canning | AF60: =VLOOKUP($AE60,Players!$AV$3:$AW$1447,2,FALSE) -> 0 | AH60: 0 | AJ60: Josh James | AK60: =VLOOKUP($AJ60,Players!$AV$3:$AW$1447,2,FALSE) -> 0 | AL60: 0 | AO60: 2021 | AP60: RHP | AQ60: George Kirby | AR60: =IF(ISERROR(VLOOKUP($AQ60,Players!$N$3:$O$1456,2,FALSE)),(VLOOKUP($AQ60,Players!$AV$3:$AW$1447,2,FALSE)),(VLOOKUP($AQ60,Players!$N$3:$O$1456,2,FALSE))) -> 0 | AS60: 0 | AU60: 2021 | AV60: SS | AW60: Jose Garcia | AX60: =VLOOKUP($AW60,Players!$N$3:$O$1456,2,FALSE) -> 0 | AY60: 0 | BA60: 2019 | BB60: RHP | BC60: Art Warren | BD60: =VLOOKUP($BC60,Players!$AV$3:$AW$1447,2,FALSE) -> 0 | BE60: 0 | BG60: OF | BH60: Alek Thomas | BI60: =VLOOKUP($BH60,Players!$N$3:$O$1456,2,FALSE) -> 0 | BJ60: 0 | BL60: RHP | BM60: Luis Medina | BN60: =VLOOKUP($BM60,Players!$AV$3:$AW$1447,2,FALSE) -> 0 | BO60: 0
A61: 60 | F61: Josh VanMeter | G61: =VLOOKUP($F61,Players!$N$3:$O$1273,2,FALSE) -> 0 | H61: 0 | J61: Sheldon Neuse | K61: =VLOOKUP($J61,Players!$N$3:$O$1273,2,FALSE) -> 0 | L61: =IF(K61>0,1,0) -> 0 | N61: Ke’Bryan Hayes | O61: =VLOOKUP($N61,Players!$N$3:$O$1273,2,FALSE) -> 0 | P61: 0 | V61: Bryan Reynolds | W61: =VLOOKUP($V61,Players!$N$3:$O$1273,2,FALSE) -> 0 | X61: 0 | AE61: Joey Lucchesi | AF61: =VLOOKUP($AE61,Players!$AV$3:$AW$1447,2,FALSE) -> 0 | AH61: 0 | AJ61: Emilio Pagan | AK61: =VLOOKUP($AJ61,Players!$AV$3:$AW$1447,2,FALSE) -> 0 | AL61: 0 | AO61: 2020 | AP61: OF | AQ61: Monte Harrison | AR61: =IF(ISERROR(VLOOKUP($AQ61,Players!$N$3:$O$1456,2,FALSE)),(VLOOKUP($AQ61,Players!$AV$3:$AW$1447,2,FALSE)),(VLOOKUP($AQ61,Players!$N$3:$O$1456,2,FALSE))) -> 0 | AS61: 0 | AU61: 2022 | AV61: 3B | AW61: Triston Casas | AX61: =VLOOKUP($AW61,Players!$N$3:$O$1456,2,FALSE) -> 0 | AY61: 0 | BA61: 2021 | BB61: LHP | BC61: Seth Corry | BD61: =VLOOKUP($BC61,Players!$AV$3:$AW$1447,2,FALSE) ->  | BG61: SS | BH61: Jose Garcia | BI61: =VLOOKUP($BH61,Players!$N$3:$O$1456,2,FALSE) -> 0 | BJ61: 0 | BL61: RHP | BM61: Jackson Rutledge | BN61: =VLOOKUP($BM61,Players!$AV$3:$AW$1447,2,FALSE) -> 0 | BO61: 0
A62: 61 | F62: Jeimer Candelario | G62: =VLOOKUP($F62,Players!$N$3:$O$1273,2,FALSE) -> 0 | H62: 0 | J62: Eric Sogard | K62: =VLOOKUP($J62,Players!$N$3:$O$1273,2,FALSE) -> 0 | L62: 0 | V62: Gregory Polanco | W62: =VLOOKUP($V62,Players!$N$3:$O$1273,2,FALSE) -> 0 | X62: 0 | AE62: Caleb Smith | AF62: =VLOOKUP($AE62,Players!$AV$3:$AW$1447,2,FALSE) -> 0 | AH62: 0 | AJ62: Hunter Harvey | AK62: =VLOOKUP($AJ62,Players!$AV$3:$AW$1447,2,FALSE) -> 0 | AL62: 0 | AO62: 2022 | AP62: 3B | AQ62: Jordan Groshans | AR62: =IF(ISERROR(VLOOKUP($AQ62,Players!$N$3:$O$1456,2,FALSE)),(VLOOKUP($AQ62,Players!$AV$3:$AW$1447,2,FALSE)),(VLOOKUP($AQ62,Players!$N$3:$O$1456,2,FALSE))) -> 0 | AS62: 0 | AU62: 2021 | AV62: 3B | AW62: Josh Jung | AX62: =VLOOKUP($AW62,Players!$N$3:$O$1456,2,FALSE) -> 0 | AY62: 0 | BA62: 2020 | BB62: RHP | BC62: Michael Baumann | BD62: =VLOOKUP($BC62,Players!$AV$3:$AW$1447,2,FALSE) ->  | BG62: 3B | BH62: Josh Jung | BI62: =VLOOKUP($BH62,Players!$N$3:$O$1456,2,FALSE) -> 0 | BJ62: 0 | BL62: RHP | BM62: Tahnaj Thomas | BN62: =VLOOKUP($BM62,Players!$AV$3:$AW$1447,2,FALSE) -> 0 | BO62: 0
A63: 62 | F63: Jesus Aguilar | G63: =VLOOKUP($F63,Players!$N$3:$O$1273,2,FALSE) -> 0 | H63: 0 | J63: Josh VanMeter | K63: =VLOOKUP($J63,Players!$N$3:$O$1273,2,FALSE) -> 0 | L63: 0 | V63: Alex Verdugo | W63: =VLOOKUP($V63,Players!$N$3:$O$1273,2,FALSE) -> 0 | X63: 0 | AE63: Brendan McKay | AF63: =VLOOKUP($AE63,Players!$AV$3:$AW$1447,2,FALSE) -> 0 | AH63: 0 | AJ63: Seranthony Dominguez | AK63: =VLOOKUP($AJ63,Players!$AV$3:$AW$1447,2,FALSE) -> 0 | AL63: 0 | AO63: 2021 | AP63: OF | AQ63: Alek Thomas | AR63: =IF(ISERROR(VLOOKUP($AQ63,Players!$N$3:$O$1456,2,FALSE)),(VLOOKUP($AQ63,Players!$AV$3:$AW$1447,2,FALSE)),(VLOOKUP($AQ63,Players!$N$3:$O$1456,2,FALSE))) -> 0 | AS63: 0 | AU63: 2021 | AV63: 2B | AW63: Kody Hoese | AX63: =VLOOKUP($AW63,Players!$N$3:$O$1456,2,FALSE) -> 0 | AY63: 0 | BG63: 2B | BH63: Kody Hoese | BI63: =VLOOKUP($BH63,Players!$N$3:$O$1456,2,FALSE) -> 0 | BJ63: 0 | BL63: RHP | BM63: Shane Baz | BN63: =VLOOKUP($BM63,Players!$AV$3:$AW$1447,2,FALSE) -> 0 | BO63: 0
A64: 63 | F64: Justin Smoak | G64: =VLOOKUP($F64,Players!$N$3:$O$1273,2,FALSE) -> 0 | H64: 0 | J64: Luis Rengifo | K64: =VLOOKUP($J64,Players!$N$3:$O$1273,2,FALSE) -> 0 | L64: 0 | V64: Aristides Aquino | W64: =VLOOKUP($V64,Players!$N$3:$O$1273,2,FALSE) -> 0 | X64: 0 | AE64: Chris Archer | AF64: =VLOOKUP($AE64,Players!$AV$3:$AW$1447,2,FALSE) -> 0 | AH64: 0 | AJ64: Michael Lorenzen | AK64: =VLOOKUP($AJ64,Players!$AV$3:$AW$1447,2,FALSE) -> 0 | AL64: 0 | AO64: 2021 | AP64: RHP | AQ64: Simeon Woods-Richardson | AR64: =IF(ISERROR(VLOOKUP($AQ64,Players!$N$3:$O$1456,2,FALSE)),(VLOOKUP($AQ64,Players!$AV$3:$AW$1447,2,FALSE)),(VLOOKUP($AQ64,Players!$N$3:$O$1456,2,FALSE))) -> 0 | AS64: 0 | AU64: 2023 | AV64: SS | AW64: Luisangel Acuña | AX64: =VLOOKUP($AW64,Players!$N$3:$O$1456,2,FALSE) -> 0 | AY64: 0 | BG64: 3B | BH64: Michael Busch | BI64: =VLOOKUP($BH64,Players!$N$3:$O$1456,2,FALSE) -> 0 | BJ64: 0 | BM64: 2023 | BN64: =VLOOKUP($BM64,Players!$AV$3:$AW$1447,2,FALSE) -> 
A65: 64 | F65: Ryon Healy | G65: =VLOOKUP($F65,Players!$N$3:$O$1273,2,FALSE) -> 0 | H65: 0 | J65: Nicky Lopez | K65: =VLOOKUP($J65,Players!$N$3:$O$1273,2,FALSE) -> 0 | L65: 0 | V65: Jo Adell | W65: =VLOOKUP($V65,Players!$N$3:$O$1273,2,FALSE) -> 0 | X65: 0 | AE65: James Paxton | AF65: =VLOOKUP($AE65,Players!$AV$3:$AW$1447,2,FALSE) -> 0 | AH65: 0 | AJ65: Steve Cishek | AK65: =VLOOKUP($AJ65,Players!$AV$3:$AW$1447,2,FALSE) -> 0 | AL65: 0 | AO65: 2022 | AP65: OF | AQ65: Gilberto Jimenez | AR65: =IF(ISERROR(VLOOKUP($AQ65,Players!$N$3:$O$1456,2,FALSE)),(VLOOKUP($AQ65,Players!$AV$3:$AW$1447,2,FALSE)),(VLOOKUP($AQ65,Players!$N$3:$O$1456,2,FALSE))) -> 0 | AS65: 0 | AU65: 2024 | AV65: SS | AW65: Maximo Acosta | AX65: =VLOOKUP($AW65,Players!$N$3:$O$1456,2,FALSE) -> 0 | AY65: 0 | BG65: 1B | BH65: Lewin Diaz | BI65: =VLOOKUP($BH65,Players!$N$3:$O$1456,2,FALSE) -> 0 | BJ65: 0 | BL65: RHP | BM65: Hunter Greene | BN65: =VLOOKUP($BM65,Players!$AV$3:$AW$1447,2,FALSE) -> 0 | BO65: 0
A66: 65 | F66: Rowdy Tellez | G66: =VLOOKUP($F66,Players!$N$3:$O$1273,2,FALSE) -> 0 | H66: 0 | V66: Garrett Hampson | W66: =VLOOKUP($V66,Players!$N$3:$O$1273,2,FALSE) -> 0 | X66: 0 | AE66: Jon Gray | AF66: =VLOOKUP($AE66,Players!$AV$3:$AW$1447,2,FALSE) -> 0 | AH66: 0 | AJ66: Sam Tuivailala | AK66: =VLOOKUP($AJ66,Players!$AV$3:$AW$1447,2,FALSE) -> 0 | AL66: =IF(AK66>0,1,0) -> 0 | AO66: 2019 | AP66: 2B | AQ66: Brendan Rodgers | AR66: =IF(ISERROR(VLOOKUP($AQ66,Players!$N$3:$O$1456,2,FALSE)),(VLOOKUP($AQ66,Players!$AV$3:$AW$1447,2,FALSE)),(VLOOKUP($AQ66,Players!$N$3:$O$1456,2,FALSE))) -> 0 | AS66: 0 | AU66: 2019 | AV66: OF | AW66: Jaylin Davis | AX66: =VLOOKUP($AW66,Players!$N$3:$O$1456,2,FALSE) -> 0 | AY66: 0 | BG66: 2B | BH66: Tyler Freeman | BI66: =VLOOKUP($BH66,Players!$N$3:$O$1456,2,FALSE) -> 0 | BJ66: 0 | BL66: LHP | BM66: Blake Walston | BN66: =VLOOKUP($BM66,Players!$AV$3:$AW$1447,2,FALSE) -> 0 | BO66: 0
A67: 66 | F67: Marwin Gonzalez | G67: =VLOOKUP($F67,Players!$N$3:$O$1273,2,FALSE) -> 0 | H67: =IF(G67>0,1,0) -> 0 | V67: Jurickson Profar | W67: =VLOOKUP($V67,Players!$N$3:$O$1273,2,FALSE) -> 0 | X67: =IF(W67>0,1,0) -> 0 | AE67: Anthony DeSclafani | AF67: =VLOOKUP($AE67,Players!$AV$3:$AW$1447,2,FALSE) -> 0 | AH67: =IF(AF67>0,1,0) -> 0 | AJ67: Jairo Diaz | AK67: =VLOOKUP($AJ67,Players!$AV$3:$AW$1447,2,FALSE) -> 0 | AL67: 0 | AO67: 2024 | AP67: OF | AQ67: Erick Peña | AR67: =IF(ISERROR(VLOOKUP($AQ67,Players!$N$3:$O$1456,2,FALSE)),(VLOOKUP($AQ67,Players!$AV$3:$AW$1447,2,FALSE)),(VLOOKUP($AQ67,Players!$N$3:$O$1456,2,FALSE))) -> 0 | AS67: =IF(AR67>0,1,0) -> 0 | AU67: 2020 | AV67: SS | AW67: Jorge Mateo | AX67: =VLOOKUP($AW67,Players!$N$3:$O$1456,2,FALSE) -> 0 | AY67: =IF(AX67>0,1,0) -> 0 | BG67: OF | BH67: Taylor Trammell | BI67: =VLOOKUP($BH67,Players!$N$3:$O$1456,2,FALSE) -> 0 | BJ67: 0 | BL67: RHP | BM67: Ethan Hankins | BN67: =VLOOKUP($BM67,Players!$AV$3:$AW$1447,2,FALSE) -> 0 | BO67: 0
A68: 67 | F68: Matt Thaiss | G68: =VLOOKUP($F68,Players!$N$3:$O$1273,2,FALSE) -> 0 | H68: 0 | V68: Brian Anderson | W68: =VLOOKUP($V68,Players!$N$3:$O$1273,2,FALSE) -> 0 | X68: 0 | AE68: Ryan Yarbrough | AF68: =VLOOKUP($AE68,Players!$AV$3:$AW$1447,2,FALSE) -> 0 | AH68: 0 | AJ68: Tommy Kahnle | AK68: =VLOOKUP($AJ68,Players!$AV$3:$AW$1447,2,FALSE) -> 0 | AL68: 0 | AO68: 2018 | AP68: OF | AQ68: Austin Hays | AR68: =IF(ISERROR(VLOOKUP($AQ68,Players!$N$3:$O$1456,2,FALSE)),(VLOOKUP($AQ68,Players!$AV$3:$AW$1447,2,FALSE)),(VLOOKUP($AQ68,Players!$N$3:$O$1456,2,FALSE))) -> 0 | AS68: 0 | AU68: 2023 | AV68: SS | AW68: Ronny Mauricio | AX68: =VLOOKUP($AW68,Players!$N$3:$O$1456,2,FALSE) -> 0 | AY68: =IF(AX68>0,1,0) -> 0 | BG68: 3B | BH68: Nolan Jones | BI68: =VLOOKUP($BH68,Players!$N$3:$O$1456,2,FALSE) -> 0 | BJ68: 0
A69: 68 | V69: Adam Eaton | W69: =VLOOKUP($V69,Players!$N$3:$O$1273,2,FALSE) -> 0 | X69: 0 | AE69: Yonny Chirinos | AF69: =VLOOKUP($AE69,Players!$AV$3:$AW$1447,2,FALSE) -> 0 | AH69: 0 | AJ69: Jose Urena | AK69: =VLOOKUP($AJ69,Players!$AV$3:$AW$1447,2,FALSE) -> 0 | AL69: 0 | AO69: 2019 | AP69: 1B | AQ69: Kevin Cron | AR69: =IF(ISERROR(VLOOKUP($AQ69,Players!$N$3:$O$1456,2,FALSE)),(VLOOKUP($AQ69,Players!$AV$3:$AW$1447,2,FALSE)),(VLOOKUP($AQ69,Players!$N$3:$O$1456,2,FALSE))) -> 0 | AS69: 0 | AU69: 2021 | AV69: 3B | AW69: Michael Busch | AX69: =VLOOKUP($AW69,Players!$N$3:$O$1456,2,FALSE) -> 0 | AY69: =IF(AX69>0,1,0) -> 0 | BG69: OF | BH69: Josh Lowe | BI69: =VLOOKUP($BH69,Players!$N$3:$O$1456,2,FALSE) -> 0 | BJ69: 0
A70: 69 | V70: Lorenzo Cain | W70: =VLOOKUP($V70,Players!$N$3:$O$1273,2,FALSE) -> 0 | X70: 0 | AE70: Aaron Civale | AF70: =VLOOKUP($AE70,Players!$AV$3:$AW$1447,2,FALSE) -> 0 | AH70: 0 | AJ70: Junior Guerra | AK70: =VLOOKUP($AJ70,Players!$AV$3:$AW$1447,2,FALSE) -> 0 | AL70: 0 | AO70: 2023 | AP70: SS | AQ70: Greg Jones | AR70: =IF(ISERROR(VLOOKUP($AQ70,Players!$N$3:$O$1456,2,FALSE)),(VLOOKUP($AQ70,Players!$AV$3:$AW$1447,2,FALSE)),(VLOOKUP($AQ70,Players!$N$3:$O$1456,2,FALSE))) -> 0 | AS70: 0 | AU70: 2023 | AV70: 3B | AW70: Orelvis Martinez | AX70: =VLOOKUP($AW70,Players!$N$3:$O$1456,2,FALSE) -> 0 | AY70: 0 | BG70: 1B | BH70: Seth Beer | BI70: =VLOOKUP($BH70,Players!$N$3:$O$1456,2,FALSE) -> 0 | BJ70: 0
A71: 70 | V71: A.J. Pollock | W71: =VLOOKUP($V71,Players!$N$3:$O$1273,2,FALSE) -> 0 | X71: 0 | AE71: Garrett Richards | AF71: =VLOOKUP($AE71,Players!$AV$3:$AW$1447,2,FALSE) -> 0 | AH71: 0 | AJ71: Anthony Bass | AK71: =VLOOKUP($AJ71,Players!$AV$3:$AW$1447,2,FALSE) -> 0 | AL71: 0 | AO71: 2024 | AP71: OF | AQ71: Riley Greene | AR71: =IF(ISERROR(VLOOKUP($AQ71,Players!$N$3:$O$1456,2,FALSE)),(VLOOKUP($AQ71,Players!$AV$3:$AW$1447,2,FALSE)),(VLOOKUP($AQ71,Players!$N$3:$O$1456,2,FALSE))) -> 0 | AS71: 0 | AU71: 2023 | AV71: OF | AW71: Misael Urbina | AX71: =VLOOKUP($AW71,Players!$N$3:$O$1456,2,FALSE) -> 0 | AY71: 0 | BG71: C | BH71: Luis Campusano | BI71: =VLOOKUP($BH71,Players!$N$3:$O$1456,2,FALSE) -> 0 | BJ71: 0
A72: 71 | V72: Justin Upton | W72: =VLOOKUP($V72,Players!$N$3:$O$1273,2,FALSE) -> 0 | X72: 0 | AE72: Johnny Cueto | AF72: =VLOOKUP($AE72,Players!$AV$3:$AW$1447,2,FALSE) -> 0 | AH72: 0 | AJ72: Yusmeiro Petit | AK72: =VLOOKUP($AJ72,Players!$AV$3:$AW$1447,2,FALSE) -> 0 | AL72: 0 | AO72: 2022 | AP72: 3B | AQ72: Nolan Gorman | AR72: =IF(ISERROR(VLOOKUP($AQ72,Players!$N$3:$O$1456,2,FALSE)),(VLOOKUP($AQ72,Players!$AV$3:$AW$1447,2,FALSE)),(VLOOKUP($AQ72,Players!$N$3:$O$1456,2,FALSE))) -> 0 | AS72: 0 | AU72: 2020 | AV72: 1B | AW72: Ryan Mountcastle | AX72: =VLOOKUP($AW72,Players!$N$3:$O$1456,2,FALSE) -> 0 | AY72: 0 | BG72: 3B | BH72: Sherten Apostel | BI72: =VLOOKUP($BH72,Players!$N$3:$O$1456,2,FALSE) -> 0 | BJ72: 0
A73: 72 | V73: Mark Canha | W73: =VLOOKUP($V73,Players!$N$3:$O$1273,2,FALSE) -> 0 | X73: 0 | AE73: Dallas Keuchel | AF73: =VLOOKUP($AE73,Players!$AV$3:$AW$1447,2,FALSE) -> 0 | AH73: 0 | AJ73: Trevor May | AK73: =VLOOKUP($AJ73,Players!$AV$3:$AW$1447,2,FALSE) -> 0 | AL73: 0 | AO73: 2020 | AP73: RHP | AQ73: Edward Cabrera | AR73: =IF(ISERROR(VLOOKUP($AQ73,Players!$N$3:$O$1456,2,FALSE)),(VLOOKUP($AQ73,Players!$AV$3:$AW$1447,2,FALSE)),(VLOOKUP($AQ73,Players!$N$3:$O$1456,2,FALSE))) -> 0 | AS73: 0 | AU73: 2023 | AV73: OF | AW73: Alexfri Planez | AX73: =VLOOKUP($AW73,Players!$N$3:$O$1456,2,FALSE) -> 0 | AY73: 0 | BG73: OF | BH73: Leody Taveras | BI73: =VLOOKUP($BH73,Players!$N$3:$O$1456,2,FALSE) -> 0 | BJ73: 0
A74: 73 | V74: Seth Brown | W74: =VLOOKUP($V74,Players!$N$3:$O$1273,2,FALSE) -> 0 | X74: 0 | AE74: Mitch Keller | AF74: =VLOOKUP($AE74,Players!$AV$3:$AW$1447,2,FALSE) -> 0 | AH74: 0 | AJ74: Rowan Wick | AK74: =VLOOKUP($AJ74,Players!$AV$3:$AW$1447,2,FALSE) -> 0 | AL74: 0 | AO74: 2020 | AP74: RHP | AQ74: Josiah Gray | AR74: =IF(ISERROR(VLOOKUP($AQ74,Players!$N$3:$O$1456,2,FALSE)),(VLOOKUP($AQ74,Players!$AV$3:$AW$1447,2,FALSE)),(VLOOKUP($AQ74,Players!$N$3:$O$1456,2,FALSE))) -> 0 | AS74: 0 | AU74: 2022 | AV74: 1B | AW74: Bryce Ball | AX74: =VLOOKUP($AW74,Players!$N$3:$O$1456,2,FALSE) -> 0 | AY74: 0 | BG74: 3B | BH74: Jonathan India | BI74: =VLOOKUP($BH74,Players!$N$3:$O$1456,2,FALSE) -> 0 | BJ74: 0
A75: 74 | V75: Derek Fisher | W75: =VLOOKUP($V75,Players!$N$3:$O$1273,2,FALSE) -> 0 | X75: 0 | AE75: Kevin Gausman | AF75: =VLOOKUP($AE75,Players!$AV$3:$AW$1447,2,FALSE) -> 0 | AH75: 0 | AJ75: Ross Stripling | AK75: =VLOOKUP($AJ75,Players!$AV$3:$AW$1447,2,FALSE) -> 0 | AL75: 0 | AO75: 2022 | AP75: OF | AQ75: Heliot Ramos | AR75: =IF(ISERROR(VLOOKUP($AQ75,Players!$N$3:$O$1456,2,FALSE)),(VLOOKUP($AQ75,Players!$AV$3:$AW$1447,2,FALSE)),(VLOOKUP($AQ75,Players!$N$3:$O$1456,2,FALSE))) -> 0 | AS75: 0 | AU75: 2023 | AV75: SS | AW75: Keithron Moss | AX75: =VLOOKUP($AW75,Players!$N$3:$O$1456,2,FALSE) -> 0 | AY75: 0 | BG75: OF | BH75: Peyton Burdick | BI75: =VLOOKUP($BH75,Players!$N$3:$O$1456,2,FALSE) -> 0 | BJ75: 0
A76: 75 | V76: Avisail Garcia | W76: =VLOOKUP($V76,Players!$N$3:$O$1273,2,FALSE) -> 0 | X76: 0 | AE76: Jose Urquidy | AF76: =VLOOKUP($AE76,Players!$AV$3:$AW$1447,2,FALSE) -> 0 | AH76: 0 | AJ76: Scott Barlow | AK76: =VLOOKUP($AJ76,Players!$AV$3:$AW$1447,2,FALSE) -> 0 | AL76: 0 | AO76: 2020 | AP76: RHP | AQ76: Sixto Sanchez | AR76: =IF(ISERROR(VLOOKUP($AQ76,Players!$N$3:$O$1456,2,FALSE)),(VLOOKUP($AQ76,Players!$AV$3:$AW$1447,2,FALSE)),(VLOOKUP($AQ76,Players!$N$3:$O$1456,2,FALSE))) -> 0 | AS76: 0 | AU76: 2022 | AV76: OF | AW76: Jordyn Aadams | AX76: =VLOOKUP($AW76,Players!$N$3:$O$1456,2,FALSE) -> 0 | AY76: 0 | BG76: SS | BH76: Jeremy Pena | BI76: =VLOOKUP($BH76,Players!$N$3:$O$1456,2,FALSE) -> 0 | BJ76: 0
A77: 76 | V77: Austin Hays | W77: =VLOOKUP($V77,Players!$N$3:$O$1273,2,FALSE) -> 0 | X77: 0 | AE77: Pablo Lopez | AF77: =VLOOKUP($AE77,Players!$AV$3:$AW$1447,2,FALSE) -> 0 | AH77: 0 | AJ77: Andres Munoz | AK77: =VLOOKUP($AJ77,Players!$AV$3:$AW$1447,2,FALSE) -> 0 | AL77: 0 | AO77: 2022 | AP77: OF | AQ77: JJ Bleday | AR77: =IF(ISERROR(VLOOKUP($AQ77,Players!$N$3:$O$1456,2,FALSE)),(VLOOKUP($AQ77,Players!$AV$3:$AW$1447,2,FALSE)),(VLOOKUP($AQ77,Players!$N$3:$O$1456,2,FALSE))) -> 0 | AS77: 0 | AU77: 2021 | AV77: 1B | AW77: Lewin Diaz | AX77: =VLOOKUP($AW77,Players!$N$3:$O$1456,2,FALSE) -> 0 | AY77: 0 | BH77: 2022 | BI77: =VLOOKUP($BH77,Players!$N$3:$O$1456,2,FALSE) -> 
A78: 77 | V78: Tyler O’Neill | W78: =VLOOKUP($V78,Players!$N$3:$O$1273,2,FALSE) -> 0 | X78: 0 | AE78: Dustin May | AF78: =VLOOKUP($AE78,Players!$AV$3:$AW$1447,2,FALSE) -> 0 | AH78: 0 | AJ78: Framber Valdez | AK78: =VLOOKUP($AJ78,Players!$AV$3:$AW$1447,2,FALSE) -> 0 | AL78: =IF(AK78>0,1,0) -> 0 | AO78: 2019 | AP78: OF | AQ78: Randy Arozarena | AR78: =IF(ISERROR(VLOOKUP($AQ78,Players!$N$3:$O$1456,2,FALSE)),(VLOOKUP($AQ78,Players!$AV$3:$AW$1447,2,FALSE)),(VLOOKUP($AQ78,Players!$N$3:$O$1456,2,FALSE))) -> 0 | AS78: 0 | AU78: 2022 | AV78: SS | AW78: Geraldo Perdomo | AX78: =VLOOKUP($AW78,Players!$N$3:$O$1456,2,FALSE) -> 0 | AY78: 0 | BG78: SS | BH78: Marco Luciano | BI78: =VLOOKUP($BH78,Players!$N$3:$O$1456,2,FALSE) -> 0 | BJ78: 0
A79: 78 | V79: Trent Grisham | W79: =VLOOKUP($V79,Players!$N$3:$O$1273,2,FALSE) -> 0 | X79: 0 | AE79: Zach Eflin | AF79: =VLOOKUP($AE79,Players!$AV$3:$AW$1447,2,FALSE) -> 0 | AH79: 0 | AJ79: Brent Suter | AK79: =VLOOKUP($AJ79,Players!$AV$3:$AW$1447,2,FALSE) -> 0 | AL79: 0 | AO79: 2024 | AP79: OF | AQ79: Hedbert Perez | AR79: =IF(ISERROR(VLOOKUP($AQ79,Players!$N$3:$O$1456,2,FALSE)),(VLOOKUP($AQ79,Players!$AV$3:$AW$1447,2,FALSE)),(VLOOKUP($AQ79,Players!$N$3:$O$1456,2,FALSE))) -> 0 | AS79: 0 | AU79: 2024 | AV79: C | AW79: Francisco Alvarez | AX79: =VLOOKUP($AW79,Players!$N$3:$O$1456,2,FALSE) -> 0 | AY79: 0 | BG79: OF | BH79: Kristian Robinson | BI79: =VLOOKUP($BH79,Players!$N$3:$O$1456,2,FALSE) -> 0 | BJ79: =IF(BI79>0,1,0) -> 0
A80: 79 | V80: Sam Hilliard | W80: =VLOOKUP($V80,Players!$N$3:$O$1273,2,FALSE) -> 0 | X80: 0 | AE80: Zach Plesac | AF80: =VLOOKUP($AE80,Players!$AV$3:$AW$1447,2,FALSE) -> 0 | AH80: 0 | AJ80: Amir Garrett | AK80: =VLOOKUP($AJ80,Players!$AV$3:$AW$1447,2,FALSE) -> 0 | AL80: 0 | AO80: 2021 | AP80: SS | AQ80: Jose Garcia | AR80: =IF(ISERROR(VLOOKUP($AQ80,Players!$N$3:$O$1456,2,FALSE)),(VLOOKUP($AQ80,Players!$AV$3:$AW$1447,2,FALSE)),(VLOOKUP($AQ80,Players!$N$3:$O$1456,2,FALSE))) -> 0 | AS80: 0 | AU80: 2021 | AV80: 2B | AW80: Tyler Freeman | AX80: =VLOOKUP($AW80,Players!$N$3:$O$1456,2,FALSE) -> 0 | AY80: 0 | BG80: OF | BH80: Corbin Carroll | BI80: =VLOOKUP($BH80,Players!$N$3:$O$1456,2,FALSE) -> 0 | BJ80: 0
A81: 80 | V81: Christin Stewart | W81: =VLOOKUP($V81,Players!$N$3:$O$1273,2,FALSE) -> 0 | X81: 0 | AE81: Steven Matz | AF81: =VLOOKUP($AE81,Players!$AV$3:$AW$1447,2,FALSE) -> 0 | AH81: 0 | AJ81: Buck Farmer | AK81: =VLOOKUP($AJ81,Players!$AV$3:$AW$1447,2,FALSE) -> 0 | AL81: 0 | AO81: 2022 | AP81: 3B | AQ81: Triston Casas | AR81: =IF(ISERROR(VLOOKUP($AQ81,Players!$N$3:$O$1456,2,FALSE)),(VLOOKUP($AQ81,Players!$AV$3:$AW$1447,2,FALSE)),(VLOOKUP($AQ81,Players!$N$3:$O$1456,2,FALSE))) -> 0 | AS81: 0 | AU81: 2020 | AV81: OF | AW81: Shogo Akiyama | AX81: =VLOOKUP($AW81,Players!$N$3:$O$1456,2,FALSE) -> 0 | AY81: 0 | BG81: C | BH81: Adley Rutschman | BI81: =VLOOKUP($BH81,Players!$N$3:$O$1456,2,FALSE) -> 0 | BJ81: 0
A82: 81 | V82: Garrett Cooper | W82: =VLOOKUP($V82,Players!$N$3:$O$1273,2,FALSE) -> 0 | X82: 0 | AE82: Chris Bassitt | AF82: =VLOOKUP($AE82,Players!$AV$3:$AW$1447,2,FALSE) -> 0 | AH82: 0 | AJ82: Will Harris | AK82: =VLOOKUP($AJ82,Players!$AV$3:$AW$1447,2,FALSE) -> 0 | AL82: 0 | AO82: 2021 | AP82: 3B | AQ82: Josh Jung | AR82: =IF(ISERROR(VLOOKUP($AQ82,Players!$N$3:$O$1456,2,FALSE)),(VLOOKUP($AQ82,Players!$AV$3:$AW$1447,2,FALSE)),(VLOOKUP($AQ82,Players!$N$3:$O$1456,2,FALSE))) -> 0 | AS82: 0 | AU82: 2023 | AV82: OF | AW82: Hudson Head | AX82: =VLOOKUP($AW82,Players!$N$3:$O$1456,2,FALSE) -> 0 | AY82: 0 | BG82: OF | BH82: Brennen Davis | BI82: =VLOOKUP($BH82,Players!$N$3:$O$1456,2,FALSE) -> 0 | BJ82: 0
A83: 82 | V83: Austin Riley | W83: =VLOOKUP($V83,Players!$N$3:$O$1273,2,FALSE) -> 0 | X83: 0 | AE83: Sandy Alcantara | AF83: =VLOOKUP($AE83,Players!$AV$3:$AW$1447,2,FALSE) -> 0 | AH83: 0 | AJ83: Joe Kelly | AK83: =VLOOKUP($AJ83,Players!$AV$3:$AW$1447,2,FALSE) -> 0 | AL83: 0 | AO83: 2021 | AP83: 2B | AQ83: Kody Hoese | AR83: =IF(ISERROR(VLOOKUP($AQ83,Players!$N$3:$O$1456,2,FALSE)),(VLOOKUP($AQ83,Players!$AV$3:$AW$1447,2,FALSE)),(VLOOKUP($AQ83,Players!$N$3:$O$1456,2,FALSE))) -> 0 | AS83: 0 | AU83: 2020 | AV83: C | AW83: Connor Wong | AX83: =VLOOKUP($AW83,Players!$N$3:$O$1456,2,FALSE) -> 0 | AY83: 0 | BG83: OF | BH83: Luis Matos | BI83: =VLOOKUP($BH83,Players!$N$3:$O$1456,2,FALSE) -> 0 | BJ83: 0
A84: 83 | V84: Luis Arraez | W84: =VLOOKUP($V84,Players!$N$3:$O$1273,2,FALSE) -> 0 | X84: 0 | AE84: Jordan Yamamoto | AF84: =VLOOKUP($AE84,Players!$AV$3:$AW$1447,2,FALSE) -> 0 | AH84: 0 | AJ84: Randy Dobnak | AK84: =VLOOKUP($AJ84,Players!$AV$3:$AW$1447,2,FALSE) -> 0 | AL84: 0 | AO84: 2023 | AP84: RHP | AQ84: Hunter Greene | AR84: =IF(ISERROR(VLOOKUP($AQ84,Players!$N$3:$O$1456,2,FALSE)),(VLOOKUP($AQ84,Players!$AV$3:$AW$1447,2,FALSE)),(VLOOKUP($AQ84,Players!$N$3:$O$1456,2,FALSE))) -> 0 | AS84: 0 | AU84: 2020 | AV84: 3B | AW84: Bobby Dalbec | AX84: =VLOOKUP($AW84,Players!$N$3:$O$1456,2,FALSE) -> 0 | AY84: 0 | BG84: SS | BH84: Noelvi Marte | BI84: =VLOOKUP($BH84,Players!$N$3:$O$1456,2,FALSE) -> 0 | BJ84: 0
A85: 84 | V85: Anthony Santander | W85: =VLOOKUP($V85,Players!$N$3:$O$1273,2,FALSE) -> 0 | X85: 0 | AE85: Justus Sheffield | AF85: =VLOOKUP($AE85,Players!$AV$3:$AW$1447,2,FALSE) -> 0 | AH85: 0 | AJ85: Yimi Garcia | AK85: =VLOOKUP($AJ85,Players!$AV$3:$AW$1447,2,FALSE) -> 0 | AL85: 0 | AO85: 2021 | AP85: LHP | AQ85: Nick Lodolo | AR85: =IF(ISERROR(VLOOKUP($AQ85,Players!$N$3:$O$1456,2,FALSE)),(VLOOKUP($AQ85,Players!$AV$3:$AW$1447,2,FALSE)),(VLOOKUP($AQ85,Players!$N$3:$O$1456,2,FALSE))) -> 0 | AS85: 0 | AU85: 2021 | AV85: OF | AW85: Taylor Trammell | AX85: =VLOOKUP($AW85,Players!$N$3:$O$1456,2,FALSE) -> 0 | AY85: 0 | BG85: SS | BH85: Xavier Edwards | BI85: =VLOOKUP($BH85,Players!$N$3:$O$1456,2,FALSE) -> 0 | BJ85: 0
A86: 85 | V86: Nick Senzel | W86: =VLOOKUP($V86,Players!$N$3:$O$1273,2,FALSE) -> 0 | X86: 0 | AE86: Freddy Peralta | AF86: =VLOOKUP($AE86,Players!$AV$3:$AW$1447,2,FALSE) -> 0 | AH86: 0 | AJ86: Art Warren | AK86: =VLOOKUP($AJ86,Players!$AV$3:$AW$1447,2,FALSE) -> 0 | AL86: 0 | AO86: 2023 | AP86: SS | AQ86: Luisangel Acuña | AR86: =IF(ISERROR(VLOOKUP($AQ86,Players!$N$3:$O$1456,2,FALSE)),(VLOOKUP($AQ86,Players!$AV$3:$AW$1447,2,FALSE)),(VLOOKUP($AQ86,Players!$N$3:$O$1456,2,FALSE))) -> 0 | AS86: 0 | AU86: 2020 | AV86: OF | AW86: Daniel Johnson | AX86: =VLOOKUP($AW86,Players!$N$3:$O$1456,2,FALSE) -> 0 | AY86: 0 | BG86: 2B | BH86: Aaron Bracho | BI86: =VLOOKUP($BH86,Players!$N$3:$O$1456,2,FALSE) -> 0 | BJ86: 0
A87: 86 | V87: Jesse Winker | W87: =VLOOKUP($V87,Players!$N$3:$O$1273,2,FALSE) -> 0 | X87: 0 | AE87: Masahiro Tanaka | AF87: =VLOOKUP($AE87,Players!$AV$3:$AW$1447,2,FALSE) -> 0 | AH87: 0 | AJ87: Richard Rodriguez | AK87: =VLOOKUP($AJ87,Players!$AV$3:$AW$1447,2,FALSE) -> 0 | AL87: 0 | AO87: 2024 | AP87: SS | AQ87: Maximo Acosta | AR87: =IF(ISERROR(VLOOKUP($AQ87,Players!$N$3:$O$1456,2,FALSE)),(VLOOKUP($AQ87,Players!$AV$3:$AW$1447,2,FALSE)),(VLOOKUP($AQ87,Players!$N$3:$O$1456,2,FALSE))) -> 0 | AS87: 0 | AU87: 2020 | AV87: C | AW87: Daulton Varsho | AX87: =VLOOKUP($AW87,Players!$N$3:$O$1456,2,FALSE) -> 0 | AY87: 0 | BG87: OF | BH87: George Valera | BI87: =VLOOKUP($BH87,Players!$N$3:$O$1456,2,FALSE) -> 0 | BJ87: 0
A88: 87 | V88: Nomar Mazara | W88: =VLOOKUP($V88,Players!$N$3:$O$1273,2,FALSE) -> 0 | X88: 0 | AE88: Mike Fiers | AF88: =VLOOKUP($AE88,Players!$AV$3:$AW$1447,2,FALSE) -> 0 | AH88: 0 | AJ88: Richard Bleier | AK88: =VLOOKUP($AJ88,Players!$AV$3:$AW$1447,2,FALSE) -> 0 | AL88: 0 | AO88: 2019 | AP88: OF | AQ88: Jaylin Davis | AR88: =IF(ISERROR(VLOOKUP($AQ88,Players!$N$3:$O$1456,2,FALSE)),(VLOOKUP($AQ88,Players!$AV$3:$AW$1447,2,FALSE)),(VLOOKUP($AQ88,Players!$N$3:$O$1456,2,FALSE))) -> 0 | AS88: 0 | AU88: 2020 | AV88: OF | AW88: Brandon Marsh | AX88: =VLOOKUP($AW88,Players!$N$3:$O$1456,2,FALSE) -> 0 | AY88: 0 | BG88: C | BH88: Heriberto Hernandez | BI88: =VLOOKUP($BH88,Players!$N$3:$O$1456,2,FALSE) -> 0 | BJ88: 0
A89: 88 | V89: Mike Yastrzemski | W89: =VLOOKUP($V89,Players!$N$3:$O$1273,2,FALSE) -> 0 | X89: 0 | AE89: Dylan Bundy | AF89: =VLOOKUP($AE89,Players!$AV$3:$AW$1447,2,FALSE) -> 0 | AH89: 0 | AO89: 2020 | AP89: SS | AQ89: Jorge Mateo | AR89: =IF(ISERROR(VLOOKUP($AQ89,Players!$N$3:$O$1456,2,FALSE)),(VLOOKUP($AQ89,Players!$AV$3:$AW$1447,2,FALSE)),(VLOOKUP($AQ89,Players!$N$3:$O$1456,2,FALSE))) -> 0 | AS89: 0 | AU89: 2021 | AV89: 3B | AW89: Nolan Jones | AX89: =VLOOKUP($AW89,Players!$N$3:$O$1456,2,FALSE) -> 0 | AY89: 0 | BG89: 3B | BH89: Jordan Groshans | BI89: =VLOOKUP($BH89,Players!$N$3:$O$1456,2,FALSE) -> 0 | BJ89: 0
A90: 89 | V90: Kevin Kiermaier | W90: =VLOOKUP($V90,Players!$N$3:$O$1273,2,FALSE) -> 0 | X90: 0 | AE90: Kyle Gibson | AF90: =VLOOKUP($AE90,Players!$AV$3:$AW$1447,2,FALSE) -> 0 | AH90: 0 | AO90: 2023 | AP90: SS | AQ90: Ronny Mauricio | AR90: =IF(ISERROR(VLOOKUP($AQ90,Players!$N$3:$O$1456,2,FALSE)),(VLOOKUP($AQ90,Players!$AV$3:$AW$1447,2,FALSE)),(VLOOKUP($AQ90,Players!$N$3:$O$1456,2,FALSE))) -> 0 | AS90: 0 | AU90: 2020 | AV90: OF | AW90: Jake Fraley | AX90: =VLOOKUP($AW90,Players!$N$3:$O$1456,2,FALSE) -> 0 | AY90: 0 | BG90: OF | BH90: Gilberto Jimenez | BI90: =VLOOKUP($BH90,Players!$N$3:$O$1456,2,FALSE) -> 0 | BJ90: 0
A91: 90 | V91: Hunter Renfroe | W91: =VLOOKUP($V91,Players!$N$3:$O$1273,2,FALSE) -> 0 | X91: 0 | AE91: Jose Quintana | AF91: =VLOOKUP($AE91,Players!$AV$3:$AW$1447,2,FALSE) -> 0 | AH91: 0 | AO91: 2021 | AP91: 3B | AQ91: Michael Busch | AR91: =IF(ISERROR(VLOOKUP($AQ91,Players!$N$3:$O$1456,2,FALSE)),(VLOOKUP($AQ91,Players!$AV$3:$AW$1447,2,FALSE)),(VLOOKUP($AQ91,Players!$N$3:$O$1456,2,FALSE))) -> 0 | AS91: 0 | AU91: 2021 | AV91: OF | AW91: Josh Lowe | AX91: =VLOOKUP($AW91,Players!$N$3:$O$1456,2,FALSE) -> 0 | AY91: 0 | BG91: 3B | BH91: Nolan Gorman | BI91: =VLOOKUP($BH91,Players!$N$3:$O$1456,2,FALSE) -> 0 | BJ91: 0
A92: 91 | V92: Kole Calhoun | W92: =VLOOKUP($V92,Players!$N$3:$O$1273,2,FALSE) -> 0 | X92: 0 | AE92: Michael Pineda | AF92: =VLOOKUP($AE92,Players!$AV$3:$AW$1447,2,FALSE) -> 0 | AH92: 0 | AO92: 2023 | AP92: 3B | AQ92: Orelvis Martinez | AR92: =IF(ISERROR(VLOOKUP($AQ92,Players!$N$3:$O$1456,2,FALSE)),(VLOOKUP($AQ92,Players!$AV$3:$AW$1447,2,FALSE)),(VLOOKUP($AQ92,Players!$N$3:$O$1456,2,FALSE))) -> 0 | AS92: 0 | AU92: 2022 | AV92: SS | AW92: Ji-Hwan Bae | AX92: =VLOOKUP($AW92,Players!$N$3:$O$1456,2,FALSE) -> 0 | AY92: 0 | BG92: OF | BH92: Heliot Ramos | BI92: =VLOOKUP($BH92,Players!$N$3:$O$1456,2,FALSE) -> 0 | BJ92: 0
A93: 92 | V93: Dexter Fowler | W93: =VLOOKUP($V93,Players!$N$3:$O$1273,2,FALSE) -> 0 | X93: 0 | AE93: Jeff Samardzija | AF93: =VLOOKUP($AE93,Players!$AV$3:$AW$1447,2,FALSE) -> 0 | AH93: 0 | AO93: 2023 | AP93: OF | AQ93: Misael Urbina | AR93: =IF(ISERROR(VLOOKUP($AQ93,Players!$N$3:$O$1456,2,FALSE)),(VLOOKUP($AQ93,Players!$AV$3:$AW$1447,2,FALSE)),(VLOOKUP($AQ93,Players!$N$3:$O$1456,2,FALSE))) -> 0 | AS93: 0 | AU93: 2024 | AV93: OF | AW93: Luis Rodriguez | AX93: =VLOOKUP($AW93,Players!$N$3:$O$1456,2,FALSE) -> 0 | AY93: 0 | BG93: OF | BH93: JJ Bleday | BI93: =VLOOKUP($BH93,Players!$N$3:$O$1456,2,FALSE) -> 0 | BJ93: 0
A94: 93 | V94: Teoscar Hernandez | W94: =VLOOKUP($V94,Players!$N$3:$O$1273,2,FALSE) -> 0 | X94: 0 | AE94: Jon Lester | AF94: =VLOOKUP($AE94,Players!$AV$3:$AW$1447,2,FALSE) -> 0 | AH94: 0 | AO94: 2022 | AP94: RHP | AQ94: Grayson Rodriguez | AR94: =IF(ISERROR(VLOOKUP($AQ94,Players!$N$3:$O$1456,2,FALSE)),(VLOOKUP($AQ94,Players!$AV$3:$AW$1447,2,FALSE)),(VLOOKUP($AQ94,Players!$N$3:$O$1456,2,FALSE))) -> 0 | AS94: 0 | AU94: 2021 | AV94: 1B | AW94: Seth Beer | AX94: =VLOOKUP($AW94,Players!$N$3:$O$1456,2,FALSE) -> 0 | AY94: 0 | BG94: 3B | BH94: Triston Casas | BI94: =VLOOKUP($BH94,Players!$N$3:$O$1456,2,FALSE) -> 0 | BJ94: 0
A95: 94 | V95: JaCoby Jones | W95: =VLOOKUP($V95,Players!$N$3:$O$1273,2,FALSE) -> 0 | X95: 0 | AE95: Anibal Sanchez | AF95: =VLOOKUP($AE95,Players!$AV$3:$AW$1447,2,FALSE) -> 0 | AH95: 0 | AO95: 2020 | AP95: RHP | AQ95: Ian Anderson | AR95: =IF(ISERROR(VLOOKUP($AQ95,Players!$N$3:$O$1456,2,FALSE)),(VLOOKUP($AQ95,Players!$AV$3:$AW$1447,2,FALSE)),(VLOOKUP($AQ95,Players!$N$3:$O$1456,2,FALSE))) -> 0 | AS95: 0 | AU95: 2022 | AV95: SS | AW95: Liover Peguero | AX95: =VLOOKUP($AW95,Players!$N$3:$O$1456,2,FALSE) -> 0 | AY95: 0 | BG95: 1B | BH95: Bryce Ball | BI95: =VLOOKUP($BH95,Players!$N$3:$O$1456,2,FALSE) -> 0 | BJ95: 0
A96: 95 | V96: Brandon Belt | W96: =VLOOKUP($V96,Players!$N$3:$O$1273,2,FALSE) -> 0 | X96: 0 | AE96: Dakota Hudson | AF96: =VLOOKUP($AE96,Players!$AV$3:$AW$1447,2,FALSE) -> 0 | AH96: 0 | AO96: 2020 | AP96: 1B | AQ96: Ryan Mountcastle | AR96: =IF(ISERROR(VLOOKUP($AQ96,Players!$N$3:$O$1456,2,FALSE)),(VLOOKUP($AQ96,Players!$AV$3:$AW$1447,2,FALSE)),(VLOOKUP($AQ96,Players!$N$3:$O$1456,2,FALSE))) -> 0 | AS96: 0 | AU96: 2019 | AV96: 3B | AW96: Abraham Toro | AX96: =VLOOKUP($AW96,Players!$N$3:$O$1456,2,FALSE) -> 0 | AY96: 0 | BG96: OF | BH96: Jordyn Aadams | BI96: =VLOOKUP($BH96,Players!$N$3:$O$1456,2,FALSE) -> 0 | BJ96: 0
A97: 96 | V97: Randal Grichuk | W97: =VLOOKUP($V97,Players!$N$3:$O$1273,2,FALSE) -> 0 | X97: 0 | AE97: Gio Gonzalez | AF97: =VLOOKUP($AE97,Players!$AV$3:$AW$1447,2,FALSE) -> 0 | AH97: 0 | AO97: 2021 | AP97: LHP | AQ97: Joey Cantillo | AR97: =IF(ISERROR(VLOOKUP($AQ97,Players!$N$3:$O$1456,2,FALSE)),(VLOOKUP($AQ97,Players!$AV$3:$AW$1447,2,FALSE)),(VLOOKUP($AQ97,Players!$N$3:$O$1456,2,FALSE))) -> 0 | AS97: 0 | AU97: 2022 | AV97: OF | AW97: Hunter Bishop | AX97: =VLOOKUP($AW97,Players!$N$3:$O$1456,2,FALSE) -> 0 | AY97: 0 | BG97: SS | BH97: Geraldo Perdomo | BI97: =VLOOKUP($BH97,Players!$N$3:$O$1456,2,FALSE) -> 0 | BJ97: 0
A98: 97 | V98: Mitch Haniger | W98: =VLOOKUP($V98,Players!$N$3:$O$1273,2,FALSE) -> 0 | X98: 0 | AE98: Julio Teheran | AF98: =VLOOKUP($AE98,Players!$AV$3:$AW$1447,2,FALSE) -> 0 | AH98: 0 | AO98: 2023 | AP98: OF | AQ98: Alexfri Planez | AR98: =IF(ISERROR(VLOOKUP($AQ98,Players!$N$3:$O$1456,2,FALSE)),(VLOOKUP($AQ98,Players!$AV$3:$AW$1447,2,FALSE)),(VLOOKUP($AQ98,Players!$N$3:$O$1456,2,FALSE))) -> 0 | AS98: 0 | AU98: 2022 | AV98: 3B | AW98: Brett Baty | AX98: =VLOOKUP($AW98,Players!$N$3:$O$1456,2,FALSE) -> 0 | AY98: 0 | BG98: SS | BH98: Ji-Hwan Bae | BI98: =VLOOKUP($BH98,Players!$N$3:$O$1456,2,FALSE) -> 0 | BJ98: 0
A99: 98 | V99: Domingo Santana | W99: =VLOOKUP($V99,Players!$N$3:$O$1273,2,FALSE) -> 0 | X99: 0 | AE99: Josh Lindblom | AF99: =VLOOKUP($AE99,Players!$AV$3:$AW$1447,2,FALSE) -> 0 | AH99: 0 | AO99: 2020 | AP99: RHP | AQ99: Joe Ryan | AR99: =IF(ISERROR(VLOOKUP($AQ99,Players!$N$3:$O$1456,2,FALSE)),(VLOOKUP($AQ99,Players!$AV$3:$AW$1447,2,FALSE)),(VLOOKUP($AQ99,Players!$N$3:$O$1456,2,FALSE))) -> 0 | AS99: 0 | AU99: 2023 | AV99: OF | AW99: Benyamin Bailey | AX99: =VLOOKUP($AW99,Players!$N$3:$O$1456,2,FALSE) -> 0 | AY99: 0 | BG99: SS | BH99: Liover Peguero | BI99: =VLOOKUP($BH99,Players!$N$3:$O$1456,2,FALSE) -> 0 | BJ99: 0
A100: 99 | V100: Niko Goodrum | W100: =VLOOKUP($V100,Players!$N$3:$O$1273,2,FALSE) -> 0 | X100: 0 | AE100: Kwang-Hyun Kim | AF100: =VLOOKUP($AE100,Players!$AV$3:$AW$1447,2,FALSE) -> 0 | AH100: 0 | AO100: 2022 | AP100: 1B | AQ100: Bryce Ball | AR100: =IF(ISERROR(VLOOKUP($AQ100,Players!$N$3:$O$1456,2,FALSE)),(VLOOKUP($AQ100,Players!$AV$3:$AW$1447,2,FALSE)),(VLOOKUP($AQ100,Players!$N$3:$O$1456,2,FALSE))) -> 0 | AS100: 0 | AU100: 2021 | AV100: C | AW100: Luis Campusano | AX100: =VLOOKUP($AW100,Players!$N$3:$O$1456,2,FALSE) -> 0 | AY100: 0 | BG100: OF | BH100: Hunter Bishop | BI100: =VLOOKUP($BH100,Players!$N$3:$O$1456,2,FALSE) -> 0 | BJ100: 0
A101: 100 | V101: Wil Myers | W101: =VLOOKUP($V101,Players!$N$3:$O$1273,2,FALSE) -> 0 | X101: 0 | AE101: Reynaldo Lopez | AF101: =VLOOKUP($AE101,Players!$AV$3:$AW$1447,2,FALSE) -> 0 | AH101: 0 | AO101: 2023 | AP101: SS | AQ101: Keithron Moss | AR101: =IF(ISERROR(VLOOKUP($AQ101,Players!$N$3:$O$1456,2,FALSE)),(VLOOKUP($AQ101,Players!$AV$3:$AW$1447,2,FALSE)),(VLOOKUP($AQ101,Players!$N$3:$O$1456,2,FALSE))) -> 0 | AS101: 0 | AU101: 2020 | AV101: 2B | AW101: Zach McKinstry | AX101: =VLOOKUP($AW101,Players!$N$3:$O$1456,2,FALSE) -> 0 | AY101: 0 | BG101: 3B | BH101: Brett Baty | BI101: =VLOOKUP($BH101,Players!$N$3:$O$1456,2,FALSE) -> 0 | BJ101: 0
A102: 101 | V102: David Fletcher | W102: =VLOOKUP($V102,Players!$N$3:$O$1273,2,FALSE) -> 0 | X102: 0 | AE102: Rick Porcello | AF102: =VLOOKUP($AE102,Players!$AV$3:$AW$1447,2,FALSE) -> 0 | AH102: 0 | AO102: 2021 | AP102: RHP | AQ102: Logan Gilbert | AR102: =IF(ISERROR(VLOOKUP($AQ102,Players!$N$3:$O$1456,2,FALSE)),(VLOOKUP($AQ102,Players!$AV$3:$AW$1447,2,FALSE)),(VLOOKUP($AQ102,Players!$N$3:$O$1456,2,FALSE))) -> 0 | AS102: 0 | AU102: 2022 | AV102: SS | AW102: Angel Martinez | AX102: =VLOOKUP($AW102,Players!$N$3:$O$1456,2,FALSE) -> 0 | AY102: 0 | BG102: SS | BH102: Angel Martinez | BI102: =VLOOKUP($BH102,Players!$N$3:$O$1456,2,FALSE) -> 0 | BJ102: 0
A103: 102 | V103: Brett Gardner | W103: =VLOOKUP($V103,Players!$N$3:$O$1273,2,FALSE) -> 0 | X103: 0 | AE103: Marco Gonzales | AF103: =VLOOKUP($AE103,Players!$AV$3:$AW$1447,2,FALSE) -> 0 | AH103: 0 | AO103: 2022 | AP103: OF | AQ103: Jordyn Aadams | AR103: =IF(ISERROR(VLOOKUP($AQ103,Players!$N$3:$O$1456,2,FALSE)),(VLOOKUP($AQ103,Players!$AV$3:$AW$1447,2,FALSE)),(VLOOKUP($AQ103,Players!$N$3:$O$1456,2,FALSE))) -> 0 | AS103: 0 | AU103: 2023 | AV103: 2B | AW103: Alex De Jesus | AX103: =VLOOKUP($AW103,Players!$N$3:$O$1456,2,FALSE) -> 0 | AY103: 0 | BG103: OF | BH103: Kameron Misner | BI103: =VLOOKUP($BH103,Players!$N$3:$O$1456,2,FALSE) -> 0 | BJ103: 0
A104: 103 | V104: Jason Heyward | W104: =VLOOKUP($V104,Players!$N$3:$O$1273,2,FALSE) -> 0 | X104: 0 | AE104: Nathan Eovaldi | AF104: =VLOOKUP($AE104,Players!$AV$3:$AW$1447,2,FALSE) -> 0 | AH104: 0 | AO104: 2021 | AP104: 1B | AQ104: Lewin Diaz | AR104: =IF(ISERROR(VLOOKUP($AQ104,Players!$N$3:$O$1456,2,FALSE)),(VLOOKUP($AQ104,Players!$AV$3:$AW$1447,2,FALSE)),(VLOOKUP($AQ104,Players!$N$3:$O$1456,2,FALSE))) -> 0 | AS104: 0 | AU104: 2021 | AV104: 3B | AW104: Sherten Apostel | AX104: =VLOOKUP($AW104,Players!$N$3:$O$1456,2,FALSE) -> 0 | AY104: 0 | BG104: 3B | BH104: Miguel Vargas | BI104: =VLOOKUP($BH104,Players!$N$3:$O$1456,2,FALSE) -> 0 | BJ104: 0
A105: 104 | V105: Chris Taylor | W105: =VLOOKUP($V105,Players!$N$3:$O$1273,2,FALSE) -> 0 | X105: 0 | AE105: Brad Keller | AF105: =VLOOKUP($AE105,Players!$AV$3:$AW$1447,2,FALSE) -> 0 | AH105: 0 | AO105: 2020 | AP105: RHP | AQ105: Brent Honeywell | AR105: =IF(ISERROR(VLOOKUP($AQ105,Players!$N$3:$O$1456,2,FALSE)),(VLOOKUP($AQ105,Players!$AV$3:$AW$1447,2,FALSE)),(VLOOKUP($AQ105,Players!$N$3:$O$1456,2,FALSE))) -> 0 | AS105: 0 | AU105: 2023 | AV105: 3B | AW105: Alexander Mojica | AX105: =VLOOKUP($AW105,Players!$N$3:$O$1456,2,FALSE) -> 0 | AY105: 0 | BG105: SS | BH105: Brayan Rocchio | BI105: =VLOOKUP($BH105,Players!$N$3:$O$1456,2,FALSE) -> 0 | BJ105: 0
A106: 105 | V106: Jose Martinez | W106: =VLOOKUP($V106,Players!$N$3:$O$1273,2,FALSE) -> 0 | X106: 0 | AE106: Tanner Roark | AF106: =VLOOKUP($AE106,Players!$AV$3:$AW$1447,2,FALSE) -> 0 | AH106: 0 | AO106: 2019 | AP106: RHP | AQ106: Mitch Keller | AR106: =IF(ISERROR(VLOOKUP($AQ106,Players!$N$3:$O$1456,2,FALSE)),(VLOOKUP($AQ106,Players!$AV$3:$AW$1447,2,FALSE)),(VLOOKUP($AQ106,Players!$N$3:$O$1456,2,FALSE))) -> 0 | AS106: 0 | AU106: 2022 | AV106: OF | AW106: Kameron Misner | AX106: =VLOOKUP($AW106,Players!$N$3:$O$1456,2,FALSE) -> 0 | AY106: 0 | BG106: 2B | BH106: Will Wilson | BI106: =VLOOKUP($BH106,Players!$N$3:$O$1456,2,FALSE) -> 0 | BJ106: 0
A107: 106 | V107: A.J. Pollock | W107: =VLOOKUP($V107,Players!$N$3:$O$1273,2,FALSE) -> 0 | X107: 0 | AE107: Jakob Junis | AF107: =VLOOKUP($AE107,Players!$AV$3:$AW$1447,2,FALSE) -> 0 | AH107: 0 | AO107: 2022 | AP107: SS | AQ107: Geraldo Perdomo | AR107: =IF(ISERROR(VLOOKUP($AQ107,Players!$N$3:$O$1456,2,FALSE)),(VLOOKUP($AQ107,Players!$AV$3:$AW$1447,2,FALSE)),(VLOOKUP($AQ107,Players!$N$3:$O$1456,2,FALSE))) -> 0 | AS107: 0 | AU107: 2024 | AV107: OF | AW107: Bayron Lora | AX107: =VLOOKUP($AW107,Players!$N$3:$O$1456,2,FALSE) -> 0 | AY107: 0 | BG107: SS | BH107: Jeremiah Jackson | BI107: =VLOOKUP($BH107,Players!$N$3:$O$1456,2,FALSE) -> 0 | BJ107: 0
A108: 107 | V108: Jackie Bradley Jr. | W108: =VLOOKUP($V108,Players!$N$3:$O$1273,2,FALSE) -> 0 | X108: 0 | AE108: Danny Duffy | AF108: =VLOOKUP($AE108,Players!$AV$3:$AW$1447,2,FALSE) -> 0 | AH108: 0 | AO108: 2024 | AP108: C | AQ108: Francisco Alvarez | AR108: =IF(ISERROR(VLOOKUP($AQ108,Players!$N$3:$O$1456,2,FALSE)),(VLOOKUP($AQ108,Players!$AV$3:$AW$1447,2,FALSE)),(VLOOKUP($AQ108,Players!$N$3:$O$1456,2,FALSE))) -> 0 | AS108: 0 | AU108: 2021 | AV108: OF | AW108: Leody Taveras | AX108: =VLOOKUP($AW108,Players!$N$3:$O$1456,2,FALSE) -> 0 | AY108: 0 | BG108: 2B | BH108: Eqequiel Duran | BI108: =VLOOKUP($BH108,Players!$N$3:$O$1456,2,FALSE) -> 0 | BJ108: 0
A109: 108 | V109: Adam Haseley | W109: =VLOOKUP($V109,Players!$N$3:$O$1273,2,FALSE) -> 0 | X109: 0 | AE109: Cole Hamels | AF109: =VLOOKUP($AE109,Players!$AV$3:$AW$1447,2,FALSE) -> 0 | AH109: 0 | AO109: 2021 | AP109: 2B | AQ109: Tyler Freeman | AR109: =IF(ISERROR(VLOOKUP($AQ109,Players!$N$3:$O$1456,2,FALSE)),(VLOOKUP($AQ109,Players!$AV$3:$AW$1447,2,FALSE)),(VLOOKUP($AQ109,Players!$N$3:$O$1456,2,FALSE))) -> 0 | AS109: 0 | AU109: 2024 | AV109: SS | AW109: Keoni Cavaco | AX109: =VLOOKUP($AW109,Players!$N$3:$O$1456,2,FALSE) -> 0 | AY109: 0 | BG109: SS | BH109: Jose Fermin | BI109: =VLOOKUP($BH109,Players!$N$3:$O$1456,2,FALSE) -> 0 | BJ109: 0
A110: 109 | V110: Ender Inciarte | W110: =VLOOKUP($V110,Players!$N$3:$O$1273,2,FALSE) -> 0 | X110: 0 | AE110: John Means | AF110: =VLOOKUP($AE110,Players!$AV$3:$AW$1447,2,FALSE) -> 0 | AH110: 0 | AO110: 2020 | AP110: LHP | AQ110: Daniel Lynch | AR110: =IF(ISERROR(VLOOKUP($AQ110,Players!$N$3:$O$1456,2,FALSE)),(VLOOKUP($AQ110,Players!$AV$3:$AW$1447,2,FALSE)),(VLOOKUP($AQ110,Players!$N$3:$O$1456,2,FALSE))) -> 0 | AS110: 0 | AU110: 2020 | AV110: OF | AW110: Jesus Sanchez | AX110: =VLOOKUP($AW110,Players!$N$3:$O$1456,2,FALSE) -> 0 | AY110: 0 | BG110: 1B | BH110: Mason Martin | BI110: =VLOOKUP($BH110,Players!$N$3:$O$1456,2,FALSE) -> 0 | BJ110: 0
A111: 110 | V111: Mike Tauchman | W111: =VLOOKUP($V111,Players!$N$3:$O$1273,2,FALSE) -> 0 | X111: 0 | AE111: Jake Arrieta | AF111: =VLOOKUP($AE111,Players!$AV$3:$AW$1447,2,FALSE) -> 0 | AH111: 0 | AO111: 2020 | AP111: OF | AQ111: Shogo Akiyama | AR111: =IF(ISERROR(VLOOKUP($AQ111,Players!$N$3:$O$1456,2,FALSE)),(VLOOKUP($AQ111,Players!$AV$3:$AW$1447,2,FALSE)),(VLOOKUP($AQ111,Players!$N$3:$O$1456,2,FALSE))) -> 0 | AS111: 0 | AU111: 2020 | AV111: OF | AW111: Yusniel Diaz | AX111: =VLOOKUP($AW111,Players!$N$3:$O$1456,2,FALSE) -> 0 | AY111: 0 | BH111: 2023 | BI111: =VLOOKUP($BH111,Players!$N$3:$O$1456,2,FALSE) -> 
A112: 111 | V112: Manuel Margot | W112: =VLOOKUP($V112,Players!$N$3:$O$1273,2,FALSE) -> 0 | X112: 0 | AE112: Dylan Cease | AF112: =VLOOKUP($AE112,Players!$AV$3:$AW$1447,2,FALSE) -> 0 | AH112: 0 | AO112: 2023 | AP112: OF | AQ112: Hudson Head | AR112: =IF(ISERROR(VLOOKUP($AQ112,Players!$N$3:$O$1456,2,FALSE)),(VLOOKUP($AQ112,Players!$AV$3:$AW$1447,2,FALSE)),(VLOOKUP($AQ112,Players!$N$3:$O$1456,2,FALSE))) -> 0 | AS112: 0 | AU112: 2021 | AV112: 3B | AW112: Jonathan India | AX112: =VLOOKUP($AW112,Players!$N$3:$O$1456,2,FALSE) -> 0 | AY112: 0 | BG112: SS | BH112: CJ Abrams | BI112: =VLOOKUP($BH112,Players!$N$3:$O$1456,2,FALSE) -> 0 | BJ112: 0
A113: 112 | V113: Cameron Maybin | W113: =VLOOKUP($V113,Players!$N$3:$O$1273,2,FALSE) -> 0 | X113: 0 | AE113: Jordan Lyles | AF113: =VLOOKUP($AE113,Players!$AV$3:$AW$1447,2,FALSE) -> 0 | AH113: 0 | AO113: 2020 | AP113: C | AQ113: Connor Wong | AR113: =IF(ISERROR(VLOOKUP($AQ113,Players!$N$3:$O$1456,2,FALSE)),(VLOOKUP($AQ113,Players!$AV$3:$AW$1447,2,FALSE)),(VLOOKUP($AQ113,Players!$N$3:$O$1456,2,FALSE))) -> 0 | AS113: 0 | AU113: 2022 | AV113: 3B | AW113: Miguel Vargas | AX113: =VLOOKUP($AW113,Players!$N$3:$O$1456,2,FALSE) -> 0 | AY113: 0 | BG113: SS | BH113: Bobby Witt Jr. | BI113: =VLOOKUP($BH113,Players!$N$3:$O$1456,2,FALSE) -> 0 | BJ113: 0
A114: 113 | V114: Corey Dickerson | W114: =VLOOKUP($V114,Players!$N$3:$O$1273,2,FALSE) -> 0 | X114: 0 | AE114: Adam Wainwright | AF114: =VLOOKUP($AE114,Players!$AV$3:$AW$1447,2,FALSE) -> 0 | AH114: 0 | AO114: 2019 | AP114: RHP | AQ114: James Karinchak | AR114: =IF(ISERROR(VLOOKUP($AQ114,Players!$N$3:$O$1456,2,FALSE)),(VLOOKUP($AQ114,Players!$AV$3:$AW$1447,2,FALSE)),(VLOOKUP($AQ114,Players!$N$3:$O$1456,2,FALSE))) -> 0 | AS114: 0 | AU114: 2022 | AV114: SS | AW114: Brayan Rocchio | AX114: =VLOOKUP($AW114,Players!$N$3:$O$1456,2,FALSE) -> 0 | AY114: 0 | BG114: SS | BH114: Greg Jones | BI114: =VLOOKUP($BH114,Players!$N$3:$O$1456,2,FALSE) -> 0 | BJ114: 0
A115: 114 | V115: Stephen Piscotty | W115: =VLOOKUP($V115,Players!$N$3:$O$1273,2,FALSE) -> 0 | X115: 0 | AE115: Miles Mikolas | AF115: =VLOOKUP($AE115,Players!$AV$3:$AW$1447,2,FALSE) -> 0 | AH115: 0 | AO115: 2019 | AP115: RHP | AQ115: Brusdar Graterol | AR115: =IF(ISERROR(VLOOKUP($AQ115,Players!$N$3:$O$1456,2,FALSE)),(VLOOKUP($AQ115,Players!$AV$3:$AW$1447,2,FALSE)),(VLOOKUP($AQ115,Players!$N$3:$O$1456,2,FALSE))) -> 0 | AS115: 0 | AU115: 2021 | AV115: OF | AW115: Peyton Burdick | AX115: =VLOOKUP($AW115,Players!$N$3:$O$1456,2,FALSE) -> 0 | AY115: 0 | BG115: SS | BH115: Luisangel Acuña | BI115: =VLOOKUP($BH115,Players!$N$3:$O$1456,2,FALSE) -> 0 | BJ115: 0
A116: 115 | V116: Raimel Tapia | W116: =VLOOKUP($V116,Players!$N$3:$O$1273,2,FALSE) -> 0 | X116: 0 | AE116: Spencer Turnbull | AF116: =VLOOKUP($AE116,Players!$AV$3:$AW$1447,2,FALSE) -> 0 | AH116: 0 | AO116: 2020 | AP116: 3B | AQ116: Bobby Dalbec | AR116: =IF(ISERROR(VLOOKUP($AQ116,Players!$N$3:$O$1456,2,FALSE)),(VLOOKUP($AQ116,Players!$AV$3:$AW$1447,2,FALSE)),(VLOOKUP($AQ116,Players!$N$3:$O$1456,2,FALSE))) -> 0 | AS116: 0 | AU116: 2020 | AV116: SS | AW116: Jake Cronenworth | AX116: =VLOOKUP($AW116,Players!$N$3:$O$1456,2,FALSE) -> 0 | AY116: 0 | BG116: SS | BH116: Ronny Mauricio | BI116: =VLOOKUP($BH116,Players!$N$3:$O$1456,2,FALSE) -> 0 | BJ116: 0
A117: 116 | V117: Harrison Bader | W117: =VLOOKUP($V117,Players!$N$3:$O$1273,2,FALSE) -> 0 | X117: 0 | AE117: Zach Davies | AF117: =VLOOKUP($AE117,Players!$AV$3:$AW$1447,2,FALSE) -> 0 | AH117: 0 | AO117: 2021 | AP117: OF | AQ117: Taylor Trammell | AR117: =IF(ISERROR(VLOOKUP($AQ117,Players!$N$3:$O$1456,2,FALSE)),(VLOOKUP($AQ117,Players!$AV$3:$AW$1447,2,FALSE)),(VLOOKUP($AQ117,Players!$N$3:$O$1456,2,FALSE))) -> 0 | AS117: 0 | AU117: 2021 | AV117: SS | AW117: Jeremy Pena | AX117: =VLOOKUP($AW117,Players!$N$3:$O$1456,2,FALSE) -> 0 | AY117: 0 | BG117: 3B | BH117: Orelvis Martinez | BI117: =VLOOKUP($BH117,Players!$N$3:$O$1456,2,FALSE) -> 0 | BJ117: 0
A118: 117 | V118: Eric Thames | W118: =VLOOKUP($V118,Players!$N$3:$O$1273,2,FALSE) -> 0 | X118: 0 | AE118: Wade Miley | AF118: =VLOOKUP($AE118,Players!$AV$3:$AW$1447,2,FALSE) -> 0 | AH118: 0 | AO118: 2020 | AP118: OF | AQ118: Daniel Johnson | AR118: =IF(ISERROR(VLOOKUP($AQ118,Players!$N$3:$O$1456,2,FALSE)),(VLOOKUP($AQ118,Players!$AV$3:$AW$1447,2,FALSE)),(VLOOKUP($AQ118,Players!$N$3:$O$1456,2,FALSE))) -> 0 | AS118: 0 | AU118: 2020 | AV118: OF | AW118: DJ Peters | AX118: =VLOOKUP($AW118,Players!$N$3:$O$1456,2,FALSE) -> 0 | AY118: 0 | BG118: OF | BH118: Misael Urbina | BI118: =VLOOKUP($BH118,Players!$N$3:$O$1456,2,FALSE) -> 0 | BJ118: 0
A119: 118 | V119: Jose Peraza | W119: =VLOOKUP($V119,Players!$N$3:$O$1273,2,FALSE) -> 0 | X119: 0 | AE119: J.A. Happ | AF119: =VLOOKUP($AE119,Players!$AV$3:$AW$1447,2,FALSE) -> 0 | AH119: 0 | AO119: 2020 | AP119: C | AQ119: Daulton Varsho | AR119: =IF(ISERROR(VLOOKUP($AQ119,Players!$N$3:$O$1456,2,FALSE)),(VLOOKUP($AQ119,Players!$AV$3:$AW$1447,2,FALSE)),(VLOOKUP($AQ119,Players!$N$3:$O$1456,2,FALSE))) -> 0 | AS119: 0 | AU119: 2019 | AV119: 1B | AW119: Edwin Rios | AX119: =VLOOKUP($AW119,Players!$N$3:$O$1456,2,FALSE) -> 0 | AY119: 0 | BG119: OF | BH119: Alexfri Planez | BI119: =VLOOKUP($BH119,Players!$N$3:$O$1456,2,FALSE) -> 0 | BJ119: 0
A120: 119 | V120: Jake Bauers | W120: =VLOOKUP($V120,Players!$N$3:$O$1273,2,FALSE) -> 0 | X120: 0 | AE120: Tyler Beede | AF120: =VLOOKUP($AE120,Players!$AV$3:$AW$1447,2,FALSE) ->  | AO120: 2019 | AP120: RHP | AQ120: Andres Munoz | AR120: =IF(ISERROR(VLOOKUP($AQ120,Players!$N$3:$O$1456,2,FALSE)),(VLOOKUP($AQ120,Players!$AV$3:$AW$1447,2,FALSE)),(VLOOKUP($AQ120,Players!$N$3:$O$1456,2,FALSE))) -> 0 | AS120: 0 | AU120: 2020 | AV120: 2B | AW120: Andy Young | AX120: =VLOOKUP($AW120,Players!$N$3:$O$1456,2,FALSE) -> 0 | AY120: 0 | BG120: SS | BH120: Keithron Moss | BI120: =VLOOKUP($BH120,Players!$N$3:$O$1456,2,FALSE) -> 0 | BJ120: 0
A121: 120 | V121: Jose Osuna | W121: =VLOOKUP($V121,Players!$N$3:$O$1273,2,FALSE) -> 0 | X121: 0 | AE121: Michael Wacha | AF121: =VLOOKUP($AE121,Players!$AV$3:$AW$1447,2,FALSE) -> 0 | AH121: 0 | AO121: 2020 | AP121: OF | AQ121: Brandon Marsh | AR121: =IF(ISERROR(VLOOKUP($AQ121,Players!$N$3:$O$1456,2,FALSE)),(VLOOKUP($AQ121,Players!$AV$3:$AW$1447,2,FALSE)),(VLOOKUP($AQ121,Players!$N$3:$O$1456,2,FALSE))) -> 0 | AS121: 0 | AU121: 2023 | AV121: OF | AW121: Marcus Smith | AX121: =VLOOKUP($AW121,Players!$N$3:$O$1456,2,FALSE) -> 0 | AY121: 0 | BG121: OF | BH121: Hudson Head | BI121: =VLOOKUP($BH121,Players!$N$3:$O$1456,2,FALSE) -> 0 | BJ121: 0
A122: 121 | V122: Shed Long | W122: =VLOOKUP($V122,Players!$N$3:$O$1273,2,FALSE) -> 0 | X122: 0 | AE122: Eric Lauer | AF122: =VLOOKUP($AE122,Players!$AV$3:$AW$1447,2,FALSE) -> 0 | AH122: 0 | AO122: 2021 | AP122: 3B | AQ122: Nolan Jones | AR122: =IF(ISERROR(VLOOKUP($AQ122,Players!$N$3:$O$1456,2,FALSE)),(VLOOKUP($AQ122,Players!$AV$3:$AW$1447,2,FALSE)),(VLOOKUP($AQ122,Players!$N$3:$O$1456,2,FALSE))) -> 0 | AS122: 0 | AU122: 2022 | AV122: 2B | AW122: Will Wilson | AX122: =VLOOKUP($AW122,Players!$N$3:$O$1456,2,FALSE) -> 0 | AY122: 0 | BG122: OF | BH122: Benyamin Bailey | BI122: =VLOOKUP($BH122,Players!$N$3:$O$1456,2,FALSE) -> 0 | BJ122: 0
A123: 122 | V123: Enrique Hernandez | W123: =VLOOKUP($V123,Players!$N$3:$O$1273,2,FALSE) -> 0 | X123: 0 | AE123: Chase Anderson | AF123: =VLOOKUP($AE123,Players!$AV$3:$AW$1447,2,FALSE) -> 0 | AH123: 0 | AO123: 2022 | AP123: RHP | AQ123: Luis Frias | AR123: =IF(ISERROR(VLOOKUP($AQ123,Players!$N$3:$O$1456,2,FALSE)),(VLOOKUP($AQ123,Players!$AV$3:$AW$1447,2,FALSE)),(VLOOKUP($AQ123,Players!$N$3:$O$1456,2,FALSE))) -> 0 | AS123: 0 | AU123: 2023 | AV123: OF | AW123: Andy Pages | AX123: =VLOOKUP($AW123,Players!$N$3:$O$1456,2,FALSE) -> 0 | AY123: 0 | BG123: 2B | BH123: Alex De Jesus | BI123: =VLOOKUP($BH123,Players!$N$3:$O$1456,2,FALSE) -> 0 | BJ123: 0
A124: 123 | V124: Jon Berti | W124: =VLOOKUP($V124,Players!$N$3:$O$1273,2,FALSE) -> 0 | X124: 0 | AE124: Ross Stripling | AF124: =VLOOKUP($AE124,Players!$AV$3:$AW$1447,2,FALSE) -> 0 | AH124: 0 | AO124: 2020 | AP124: OF | AQ124: Jake Fraley | AR124: =IF(ISERROR(VLOOKUP($AQ124,Players!$N$3:$O$1456,2,FALSE)),(VLOOKUP($AQ124,Players!$AV$3:$AW$1447,2,FALSE)),(VLOOKUP($AQ124,Players!$N$3:$O$1456,2,FALSE))) -> 0 | AS124: 0 | AU124: 2024 | AV124: OF | AW124: George Feliz | AX124: =VLOOKUP($AW124,Players!$N$3:$O$1456,2,FALSE) -> 0 | AY124: 0 | BG124: 3B | BH124: Alexander Mojica | BI124: =VLOOKUP($BH124,Players!$N$3:$O$1456,2,FALSE) -> 0 | BJ124: 0
A125: 124 | V125: Ian Desmond | W125: =VLOOKUP($V125,Players!$N$3:$O$1273,2,FALSE) -> 0 | X125: 0 | AE125: Alex Wood | AF125: =VLOOKUP($AE125,Players!$AV$3:$AW$1447,2,FALSE) -> 0 | AH125: 0 | AO125: 2020 | AP125: RHP | AQ125: Deivi Garcia | AR125: =IF(ISERROR(VLOOKUP($AQ125,Players!$N$3:$O$1456,2,FALSE)),(VLOOKUP($AQ125,Players!$AV$3:$AW$1447,2,FALSE)),(VLOOKUP($AQ125,Players!$N$3:$O$1456,2,FALSE))) -> 0 | AS125: 0 | AU125: 2022 | AV125: SS | AW125: Jeremiah Jackson | AX125: =VLOOKUP($AW125,Players!$N$3:$O$1456,2,FALSE) -> 0 | AY125: 0 | BG125: OF | BH125: Marcus Smith | BI125: =VLOOKUP($BH125,Players!$N$3:$O$1456,2,FALSE) -> 0 | BJ125: 0
A126: 125 | V126: Josh Rojas | W126: =VLOOKUP($V126,Players!$N$3:$O$1273,2,FALSE) -> 0 | X126: 0 | AE126: Jordan Montgomery | AF126: =VLOOKUP($AE126,Players!$AV$3:$AW$1447,2,FALSE) -> 0 | AH126: 0 | AO126: 2019 | AP126: RHP | AQ126: Kyle Wright | AR126: =IF(ISERROR(VLOOKUP($AQ126,Players!$N$3:$O$1456,2,FALSE)),(VLOOKUP($AQ126,Players!$AV$3:$AW$1447,2,FALSE)),(VLOOKUP($AQ126,Players!$N$3:$O$1456,2,FALSE))) -> 0 | AS126: 0 | AU126: 2023 | AV126: OF | AW126: Darryl Collins | AX126: =VLOOKUP($AW126,Players!$N$3:$O$1456,2,FALSE) -> 0 | AY126: 0 | BG126: OF | BH126: Andy Pages | BI126: =VLOOKUP($BH126,Players!$N$3:$O$1456,2,FALSE) -> 0 | BJ126: 0
A127: 126 | V127: Greg Allen | W127: =VLOOKUP($V127,Players!$N$3:$O$1273,2,FALSE) -> 0 | X127: 0 | AE127: Sean Newcomb | AF127: =VLOOKUP($AE127,Players!$AV$3:$AW$1447,2,FALSE) -> 0 | AH127: 0 | AO127: 2021 | AP127: OF | AQ127: Josh Lowe | AR127: =IF(ISERROR(VLOOKUP($AQ127,Players!$N$3:$O$1456,2,FALSE)),(VLOOKUP($AQ127,Players!$AV$3:$AW$1447,2,FALSE)),(VLOOKUP($AQ127,Players!$N$3:$O$1456,2,FALSE))) -> 0 | AS127: 0 | AU127: 2022 | AV127: 2B | AW127: Eqequiel Duran | AX127: =VLOOKUP($AW127,Players!$N$3:$O$1456,2,FALSE) -> 0 | AY127: 0 | BG127: OF | BH127: Darryl Collins | BI127: =VLOOKUP($BH127,Players!$N$3:$O$1456,2,FALSE) -> 0 | BJ127: 0
A128: 127 | V128: Brandon Nimmo | W128: =VLOOKUP($V128,Players!$N$3:$O$1273,2,FALSE) -> 0 | X128: 0 | AE128: Shun Yamaguchi | AF128: =VLOOKUP($AE128,Players!$AV$3:$AW$1447,2,FALSE) -> 0 | AH128: 0 | AO128: 2022 | AP128: SS | AQ128: Ji-Hwan Bae | AR128: =IF(ISERROR(VLOOKUP($AQ128,Players!$N$3:$O$1456,2,FALSE)),(VLOOKUP($AQ128,Players!$AV$3:$AW$1447,2,FALSE)),(VLOOKUP($AQ128,Players!$N$3:$O$1456,2,FALSE))) -> 0 | AS128: 0 | AU128: 2022 | AV128: SS | AW128: Jose Fermin | AX128: =VLOOKUP($AW128,Players!$N$3:$O$1456,2,FALSE) -> 0 | AY128: 0 | BG128: SS | BH128: Maikol Escotto | BI128: =VLOOKUP($BH128,Players!$N$3:$O$1456,2,FALSE) -> 0 | BJ128: 0
A129: 128 | V129: Steven Duggar | W129: =VLOOKUP($V129,Players!$N$3:$O$1273,2,FALSE) -> 0 | X129: 0 | AE129: Joe Ross | AF129: =VLOOKUP($AE129,Players!$AV$3:$AW$1447,2,FALSE) -> 0 | AH129: 0 | AO129: 2024 | AP129: OF | AQ129: Luis Rodriguez | AR129: =IF(ISERROR(VLOOKUP($AQ129,Players!$N$3:$O$1456,2,FALSE)),(VLOOKUP($AQ129,Players!$AV$3:$AW$1447,2,FALSE)),(VLOOKUP($AQ129,Players!$N$3:$O$1456,2,FALSE))) -> 0 | AS129: 0 | AU129: 2019 | AV129: 2B | AW129: Mauricio Dubon | AX129: =VLOOKUP($AW129,Players!$N$3:$O$1456,2,FALSE) -> 0 | AY129: 0 | BG129: SS | BH129: Pedro Martinez | BI129: =VLOOKUP($BH129,Players!$N$3:$O$1456,2,FALSE) -> 0 | BJ129: 0
A130: 129 | V130: Leury Garcia | W130: =VLOOKUP($V130,Players!$N$3:$O$1273,2,FALSE) -> 0 | X130: 0 | AE130: Rogelio Armenteros | AF130: =VLOOKUP($AE130,Players!$AV$3:$AW$1447,2,FALSE) -> 0 | AH130: 0 | AO130: 2021 | AP130: RHP | AQ130: Clarke Schmidt | AR130: =IF(ISERROR(VLOOKUP($AQ130,Players!$N$3:$O$1456,2,FALSE)),(VLOOKUP($AQ130,Players!$AV$3:$AW$1447,2,FALSE)),(VLOOKUP($AQ130,Players!$N$3:$O$1456,2,FALSE))) -> 0 | AS130: 0 | AU130: 2023 | AV130: SS | AW130: Maikol Escotto | AX130: =VLOOKUP($AW130,Players!$N$3:$O$1456,2,FALSE) -> 0 | AY130: 0 | BG130: OF | BH130: Jasiah Dixon | BI130: =VLOOKUP($BH130,Players!$N$3:$O$1456,2,FALSE) -> 0 | BJ130: 0
A131: 130 | V131: Jay Bruce | W131: =VLOOKUP($V131,Players!$N$3:$O$1273,2,FALSE) -> 0 | X131: =IF(W131>0,1,0) -> 0 | AE131: Domingo German | AF131: =VLOOKUP($AE131,Players!$AV$3:$AW$1447,2,FALSE) -> 0 | AH131: =IF(AF131>0,1,0) -> 0 | AO131: 2022 | AP131: LHP | AQ131: DL Hall | AR131: =IF(ISERROR(VLOOKUP($AQ131,Players!$N$3:$O$1456,2,FALSE)),(VLOOKUP($AQ131,Players!$AV$3:$AW$1447,2,FALSE)),(VLOOKUP($AQ131,Players!$N$3:$O$1456,2,FALSE))) -> 0 | AS131: =IF(AR131>0,1,0) -> 0 | AU131: 2024 | AV131: OF | AW131: Alexander Ramirez | AX131: =VLOOKUP($AW131,Players!$N$3:$O$1456,2,FALSE) -> 0 | AY131: 0 | BG131: SS | BH131: Alexander Vargas | BI131: =VLOOKUP($BH131,Players!$N$3:$O$1456,2,FALSE) -> 0 | BJ131: 0
A132: 131 | V132: Johan Camargo | W132: =VLOOKUP($V132,Players!$N$3:$O$1273,2,FALSE) -> 0 | X132: 0 | AE132: Tyler Mahle | AF132: =VLOOKUP($AE132,Players!$AV$3:$AW$1447,2,FALSE) -> 0 | AH132: 0 | AO132: 2021 | AP132: 1B | AQ132: Seth Beer | AR132: =IF(ISERROR(VLOOKUP($AQ132,Players!$N$3:$O$1456,2,FALSE)),(VLOOKUP($AQ132,Players!$AV$3:$AW$1447,2,FALSE)),(VLOOKUP($AQ132,Players!$N$3:$O$1456,2,FALSE))) -> 0 | AS132: 0 | AU132: 2023 | AV132: SS | AW132: Pedro Martinez | AX132: =VLOOKUP($AW132,Players!$N$3:$O$1456,2,FALSE) -> 0 | AY132: 0 | BG132: SS | BH132: Kyren Paris | BI132: =VLOOKUP($BH132,Players!$N$3:$O$1456,2,FALSE) -> 0 | BJ132: 0
A133: 132 | V133: Eric Sogard | W133: =VLOOKUP($V133,Players!$N$3:$O$1273,2,FALSE) -> 0 | X133: 0 | AE133: Matt Manning | AF133: =VLOOKUP($AE133,Players!$AV$3:$AW$1447,2,FALSE) -> 0 | AH133: 0 | AO133: 2022 | AP133: SS | AQ133: Liover Peguero | AR133: =IF(ISERROR(VLOOKUP($AQ133,Players!$N$3:$O$1456,2,FALSE)),(VLOOKUP($AQ133,Players!$AV$3:$AW$1447,2,FALSE)),(VLOOKUP($AQ133,Players!$N$3:$O$1456,2,FALSE))) -> 0 | AS133: 0 | AU133: 2024 | AV133: SS | AW133: Reggie Preciado | AX133: =VLOOKUP($AW133,Players!$N$3:$O$1456,2,FALSE) -> 0 | AY133: =IF(AX133>0,1,0) -> 0 | BH133: 2024 | BI133: =VLOOKUP($BH133,Players!$N$3:$O$1456,2,FALSE) -> 
A134: 133 | V134: Kyle Lewis | W134: =VLOOKUP($V134,Players!$N$3:$O$1273,2,FALSE) -> 0 | X134: 0 | AE134: Casey Mize | AF134: =VLOOKUP($AE134,Players!$AV$3:$AW$1447,2,FALSE) -> 0 | AH134: 0 | AO134: 2021 | AP134: LHP | AQ134: Ethan Small | AR134: =IF(ISERROR(VLOOKUP($AQ134,Players!$N$3:$O$1456,2,FALSE)),(VLOOKUP($AQ134,Players!$AV$3:$AW$1447,2,FALSE)),(VLOOKUP($AQ134,Players!$N$3:$O$1456,2,FALSE))) -> 0 | AS134: 0 | AU134: 2019 | AV134: OF | AW134: Seth Brown | AX134: =VLOOKUP($AW134,Players!$N$3:$O$1456,2,FALSE) -> 0 | AY134: 0 | BG134: OF | BH134: Jasson Dominguez | BI134: =VLOOKUP($BH134,Players!$N$3:$O$1456,2,FALSE) -> 0 | BJ134: 0
A135: 134 | V135: Jarrod Dyson | W135: =VLOOKUP($V135,Players!$N$3:$O$1273,2,FALSE) -> 0 | X135: 0 | AE135: Michael Kopech | AF135: =VLOOKUP($AE135,Players!$AV$3:$AW$1447,2,FALSE) -> 0 | AH135: 0 | AO135: 2022 | AP135: LHP | AQ135: Matthew Liberatore | AR135: =IF(ISERROR(VLOOKUP($AQ135,Players!$N$3:$O$1456,2,FALSE)),(VLOOKUP($AQ135,Players!$AV$3:$AW$1447,2,FALSE)),(VLOOKUP($AQ135,Players!$N$3:$O$1456,2,FALSE))) -> 0 | AS135: 0 | AU135: 2022 | AV135: 1B | AW135: Mason Martin | AX135: =VLOOKUP($AW135,Players!$N$3:$O$1456,2,FALSE) -> 0 | AY135: 0 | BG135: SS | BH135: Robert Puason | BI135: =VLOOKUP($BH135,Players!$N$3:$O$1456,2,FALSE) -> 0 | BJ135: 0
A136: 135 | V136: Brett Phillips | W136: =VLOOKUP($V136,Players!$N$3:$O$1273,2,FALSE) -> 0 | X136: 0 | AE136: Brent Honeywell | AF136: =VLOOKUP($AE136,Players!$AV$3:$AW$1447,2,FALSE) -> 0 | AH136: 0 | AO136: 2019 | AP136: 3B | AQ136: Abraham Toro | AR136: =IF(ISERROR(VLOOKUP($AQ136,Players!$N$3:$O$1456,2,FALSE)),(VLOOKUP($AQ136,Players!$AV$3:$AW$1447,2,FALSE)),(VLOOKUP($AQ136,Players!$N$3:$O$1456,2,FALSE))) -> 0 | AS136: 0 | AU136: 2020 | AV136: 3B | AW136: Isaac Paredes | AX136: =VLOOKUP($AW136,Players!$N$3:$O$1456,2,FALSE) -> 0 | AY136: 0 | BG136: OF | BH136: Erick Peña | BI136: =VLOOKUP($BH136,Players!$N$3:$O$1456,2,FALSE) -> 0 | BJ136: 0
A137: 136 | V137: Nick Markakis | W137: =VLOOKUP($V137,Players!$N$3:$O$1273,2,FALSE) -> 0 | X137: 0 | AE137: Edward Cabrera | AF137: =VLOOKUP($AE137,Players!$AV$3:$AW$1447,2,FALSE) -> 0 | AH137: 0 | AO137: 2022 | AP137: OF | AQ137: Hunter Bishop | AR137: =IF(ISERROR(VLOOKUP($AQ137,Players!$N$3:$O$1456,2,FALSE)),(VLOOKUP($AQ137,Players!$AV$3:$AW$1447,2,FALSE)),(VLOOKUP($AQ137,Players!$N$3:$O$1456,2,FALSE))) -> 0 | AS137: 0 | AU137: 2020 | AV137: OF | AW137: Ka’ai Tom | AX137: =VLOOKUP($AW137,Players!$N$3:$O$1456,2,FALSE) -> 0 | AY137: 0 | BG137: OF | BH137: Riley Greene | BI137: =VLOOKUP($BH137,Players!$N$3:$O$1456,2,FALSE) -> 0 | BJ137: 0
A138: 137 | V138: Delino DeShields | W138: =VLOOKUP($V138,Players!$N$3:$O$1273,2,FALSE) -> 0 | X138: =IF(W138>0,1,0) -> 0 | AE138: Sixto Sanchez | AF138: =VLOOKUP($AE138,Players!$AV$3:$AW$1447,2,FALSE) -> 0 | AH138: 0 | AO138: 2022 | AP138: 3B | AQ138: Brett Baty | AR138: =IF(ISERROR(VLOOKUP($AQ138,Players!$N$3:$O$1456,2,FALSE)),(VLOOKUP($AQ138,Players!$AV$3:$AW$1447,2,FALSE)),(VLOOKUP($AQ138,Players!$N$3:$O$1456,2,FALSE))) -> 0 | AS138: 0 | AU138: 2023 | AV138: OF | AW138: Jasiah Dixon | AX138: =VLOOKUP($AW138,Players!$N$3:$O$1456,2,FALSE) -> 0 | AY138: 0 | BG138: OF | BH138: Hedbert Perez | BI138: =VLOOKUP($BH138,Players!$N$3:$O$1456,2,FALSE) -> 0 | BJ138: 0
A139: 138 | V139: Franchy Cordero | W139: =VLOOKUP($V139,Players!$N$3:$O$1273,2,FALSE) -> 0 | X139: =IF(W139>0,1,0) -> 0 | AE139: Forrest Whitley | AF139: =VLOOKUP($AE139,Players!$AV$3:$AW$1447,2,FALSE) -> 0 | AH139: 0 | AO139: 2020 | AP139: RHP | AQ139: Jackson Kowar | AR139: =IF(ISERROR(VLOOKUP($AQ139,Players!$N$3:$O$1456,2,FALSE)),(VLOOKUP($AQ139,Players!$AV$3:$AW$1447,2,FALSE)),(VLOOKUP($AQ139,Players!$N$3:$O$1456,2,FALSE))) -> 0 | AS139: 0 | AU139: 2023 | AV139: SS | AW139: Alexander Vargas | AX139: =VLOOKUP($AW139,Players!$N$3:$O$1456,2,FALSE) -> 0 | AY139: 0 | BG139: SS | BH139: Maximo Acosta | BI139: =VLOOKUP($BH139,Players!$N$3:$O$1456,2,FALSE) -> 0 | BJ139: 0
A140: 139 | V140: Brian Goodwin | W140: =VLOOKUP($V140,Players!$N$3:$O$1273,2,FALSE) -> 0 | X140: 0 | AE140: MacKenzie Gore | AF140: =VLOOKUP($AE140,Players!$AV$3:$AW$1447,2,FALSE) -> 0 | AH140: 0 | AO140: 2023 | AP140: OF | AQ140: Benyamin Bailey | AR140: =IF(ISERROR(VLOOKUP($AQ140,Players!$N$3:$O$1456,2,FALSE)),(VLOOKUP($AQ140,Players!$AV$3:$AW$1447,2,FALSE)),(VLOOKUP($AQ140,Players!$N$3:$O$1456,2,FALSE))) -> 0 | AS140: 0 | AU140: 2023 | AV140: SS | AW140: Kyren Paris | AX140: =VLOOKUP($AW140,Players!$N$3:$O$1456,2,FALSE) -> 0 | AY140: 0 | BG140: C | BH140: Francisco Alvarez | BI140: =VLOOKUP($BH140,Players!$N$3:$O$1456,2,FALSE) -> 0 | BJ140: 0
A141: 140 | V141: Monte Harrison | W141: =VLOOKUP($V141,Players!$N$3:$O$1273,2,FALSE) -> 0 | X141: 0 | AE141: Rich Hill | AF141: =VLOOKUP($AE141,Players!$AV$3:$AW$1447,2,FALSE) -> 0 | AH141: 0 | AO141: 2021 | AP141: C | AQ141: Luis Campusano | AR141: =IF(ISERROR(VLOOKUP($AQ141,Players!$N$3:$O$1456,2,FALSE)),(VLOOKUP($AQ141,Players!$AV$3:$AW$1447,2,FALSE)),(VLOOKUP($AQ141,Players!$N$3:$O$1456,2,FALSE))) -> 0 | AS141: 0 | BG141: OF | BH141: Luis Rodriguez | BI141: =VLOOKUP($BH141,Players!$N$3:$O$1456,2,FALSE) -> 0 | BJ141: 0
A142: 141 | V142: Dylan Carlson | W142: =VLOOKUP($V142,Players!$N$3:$O$1273,2,FALSE) -> 0 | X142: 0 | AE142: Matt Shoemaker | AF142: =VLOOKUP($AE142,Players!$AV$3:$AW$1447,2,FALSE) -> 0 | AH142: 0 | AO142: 2020 | AP142: RHP | AQ142: Daulton Jefferies | AR142: =IF(ISERROR(VLOOKUP($AQ142,Players!$N$3:$O$1456,2,FALSE)),(VLOOKUP($AQ142,Players!$AV$3:$AW$1447,2,FALSE)),(VLOOKUP($AQ142,Players!$N$3:$O$1456,2,FALSE))) -> 0 | AS142: 0 | BG142: OF | BH142: Bayron Lora | BI142: =VLOOKUP($BH142,Players!$N$3:$O$1456,2,FALSE) -> 0 | BJ142: 0
A143: 142 | V143: Yoenis Cespedes | W143: =VLOOKUP($V143,Players!$N$3:$O$1273,2,FALSE) -> 0 | X143: 0 | AE143: Asher Wojciechowski | AF143: =VLOOKUP($AE143,Players!$AV$3:$AW$1447,2,FALSE) -> 0 | AH143: 0 | AO143: 2019 | AP143: RHP | AQ143: Emmanuel Clase | AR143: =IF(ISERROR(VLOOKUP($AQ143,Players!$N$3:$O$1456,2,FALSE)),(VLOOKUP($AQ143,Players!$AV$3:$AW$1447,2,FALSE)),(VLOOKUP($AQ143,Players!$N$3:$O$1456,2,FALSE))) -> 0 | AS143: 0 | BG143: SS | BH143: Keoni Cavaco | BI143: =VLOOKUP($BH143,Players!$N$3:$O$1456,2,FALSE) -> 0 | BJ143: =IF(BI143>0,1,0) -> 0
A144: 143 | V144: Victor Reyes | W144: =VLOOKUP($V144,Players!$N$3:$O$1273,2,FALSE) -> 0 | X144: 0 | AE144: Jimmy Nelson | AF144: =VLOOKUP($AE144,Players!$AV$3:$AW$1447,2,FALSE) -> 0 | AH144: =IF(AF144>0,1,0) -> 0 | AO144: 2023 | AP144: LHP | AQ144: Blake Walston | AR144: =IF(ISERROR(VLOOKUP($AQ144,Players!$N$3:$O$1456,2,FALSE)),(VLOOKUP($AQ144,Players!$AV$3:$AW$1447,2,FALSE)),(VLOOKUP($AQ144,Players!$N$3:$O$1456,2,FALSE))) -> 0 | AS144: 0 | BG144: OF | BH144: George Feliz | BI144: =VLOOKUP($BH144,Players!$N$3:$O$1456,2,FALSE) -> 0 | BJ144: 0
A145: 144 | V145: Josh Reddick | W145: =VLOOKUP($V145,Players!$N$3:$O$1273,2,FALSE) -> 0 | X145: 0 | AE145: Vince Velasquez | AF145: =VLOOKUP($AE145,Players!$AV$3:$AW$1447,2,FALSE) -> 0 | AH145: 0 | AO145: 2020 | AP145: 2B | AQ145: Zach McKinstry | AR145: =IF(ISERROR(VLOOKUP($AQ145,Players!$N$3:$O$1456,2,FALSE)),(VLOOKUP($AQ145,Players!$AV$3:$AW$1447,2,FALSE)),(VLOOKUP($AQ145,Players!$N$3:$O$1456,2,FALSE))) -> 0 | AS145: 0 | BG145: OF | BH145: Alexander Ramirez | BI145: =VLOOKUP($BH145,Players!$N$3:$O$1456,2,FALSE) -> 0 | BJ145: 0
A146: 145 | V146: Alex Dickerson | W146: =VLOOKUP($V146,Players!$N$3:$O$1273,2,FALSE) -> 0 | X146: 0 | AE146: Martin Perez | AF146: =VLOOKUP($AE146,Players!$AV$3:$AW$1447,2,FALSE) -> 0 | AH146: =IF(AF146>0,1,0) -> 0 | AO146: 2022 | AP146: SS | AQ146: Angel Martinez | AR146: =IF(ISERROR(VLOOKUP($AQ146,Players!$N$3:$O$1456,2,FALSE)),(VLOOKUP($AQ146,Players!$AV$3:$AW$1447,2,FALSE)),(VLOOKUP($AQ146,Players!$N$3:$O$1456,2,FALSE))) -> 0 | AS146: 0 | BG146: SS | BH146: Reggie Preciado | BI146: =VLOOKUP($BH146,Players!$N$3:$O$1456,2,FALSE) -> 0 | BJ146: 0
A147: 146 | V147: Jaylin Davis | W147: =VLOOKUP($V147,Players!$N$3:$O$1273,2,FALSE) -> 0 | X147: 0 | AE147: Merrill Kelly | AF147: =VLOOKUP($AE147,Players!$AV$3:$AW$1447,2,FALSE) -> 0 | AH147: 0 | AO147: 2023 | AP147: 2B | AQ147: Alex De Jesus | AR147: =IF(ISERROR(VLOOKUP($AQ147,Players!$N$3:$O$1456,2,FALSE)),(VLOOKUP($AQ147,Players!$AV$3:$AW$1447,2,FALSE)),(VLOOKUP($AQ147,Players!$N$3:$O$1456,2,FALSE))) -> 0 | AS147: 0
A148: 147 | V148: Lewis Brinson | W148: =VLOOKUP($V148,Players!$N$3:$O$1273,2,FALSE) -> 0 | X148: 0 | AE148: Yusei Kikuchi | AF148: =VLOOKUP($AE148,Players!$AV$3:$AW$1447,2,FALSE) -> 0 | AH148: 0 | AO148: 2021 | AP148: 3B | AQ148: Sherten Apostel | AR148: =IF(ISERROR(VLOOKUP($AQ148,Players!$N$3:$O$1456,2,FALSE)),(VLOOKUP($AQ148,Players!$AV$3:$AW$1447,2,FALSE)),(VLOOKUP($AQ148,Players!$N$3:$O$1456,2,FALSE))) -> 0 | AS148: 0
A149: 148 | V149: Alex Gordon | W149: =VLOOKUP($V149,Players!$N$3:$O$1273,2,FALSE) -> 0 | X149: 0 | AO149: 2023 | AP149: 3B | AQ149: Alexander Mojica | AR149: =IF(ISERROR(VLOOKUP($AQ149,Players!$N$3:$O$1456,2,FALSE)),(VLOOKUP($AQ149,Players!$AV$3:$AW$1447,2,FALSE)),(VLOOKUP($AQ149,Players!$N$3:$O$1456,2,FALSE))) -> 0 | AS149: 0
A150: 149 | V150: Guillermo Heredia | W150: =VLOOKUP($V150,Players!$N$3:$O$1273,2,FALSE) -> 0 | X150: 0 | AO150: 2020 | AP150: RHP | AQ150: Brady Singer | AR150: =IF(ISERROR(VLOOKUP($AQ150,Players!$N$3:$O$1456,2,FALSE)),(VLOOKUP($AQ150,Players!$AV$3:$AW$1447,2,FALSE)),(VLOOKUP($AQ150,Players!$N$3:$O$1456,2,FALSE))) -> 0 | AS150: 0
A151: 150 | V151: Dominic Smith | W151: =VLOOKUP($V151,Players!$N$3:$O$1273,2,FALSE) -> 0 | X151: 0 | AO151: 2022 | AP151: OF | AQ151: Kameron Misner | AR151: =IF(ISERROR(VLOOKUP($AQ151,Players!$N$3:$O$1456,2,FALSE)),(VLOOKUP($AQ151,Players!$AV$3:$AW$1447,2,FALSE)),(VLOOKUP($AQ151,Players!$N$3:$O$1456,2,FALSE))) -> 0 | AS151: 0
A152: 151 | V152: Josh VanMeter | W152: =VLOOKUP($V152,Players!$N$3:$O$1273,2,FALSE) -> 0 | X152: 0 | AO152: 2022 | AP152: RHP | AQ152: Alek Manoah | AR152: =IF(ISERROR(VLOOKUP($AQ152,Players!$N$3:$O$1456,2,FALSE)),(VLOOKUP($AQ152,Players!$AV$3:$AW$1447,2,FALSE)),(VLOOKUP($AQ152,Players!$N$3:$O$1456,2,FALSE))) -> 0 | AS152: 0
A153: 152 | V153: Josh Naylor | W153: =VLOOKUP($V153,Players!$N$3:$O$1273,2,FALSE) -> 0 | X153: 0 | AO153: 2020 | AP153: RHP | AQ153: Cory Abbott | AR153: =IF(ISERROR(VLOOKUP($AQ153,Players!$N$3:$O$1456,2,FALSE)),(VLOOKUP($AQ153,Players!$AV$3:$AW$1447,2,FALSE)),(VLOOKUP($AQ153,Players!$N$3:$O$1456,2,FALSE))) -> 0 | AS153: 0
A154: 153 | V154: Marwin Gonzalez | W154: =VLOOKUP($V154,Players!$N$3:$O$1273,2,FALSE) -> 0 | X154: 0 | AO154: 2020 | AP154: RHP | AQ154: Jhoan Duran | AR154: =IF(ISERROR(VLOOKUP($AQ154,Players!$N$3:$O$1456,2,FALSE)),(VLOOKUP($AQ154,Players!$AV$3:$AW$1447,2,FALSE)),(VLOOKUP($AQ154,Players!$N$3:$O$1456,2,FALSE))) -> 0 | AS154: 0
A155: 154 | V155: Jake Fraley | W155: =VLOOKUP($V155,Players!$N$3:$O$1273,2,FALSE) -> 0 | X155: 0 | AO155: 2024 | AP155: OF | AQ155: Bayron Lora | AR155: =IF(ISERROR(VLOOKUP($AQ155,Players!$N$3:$O$1456,2,FALSE)),(VLOOKUP($AQ155,Players!$AV$3:$AW$1447,2,FALSE)),(VLOOKUP($AQ155,Players!$N$3:$O$1456,2,FALSE))) -> 0 | AS155: 0
A156: 155 | AO156: 2021 | AP156: OF | AQ156: Leody Taveras | AR156: =IF(ISERROR(VLOOKUP($AQ156,Players!$N$3:$O$1456,2,FALSE)),(VLOOKUP($AQ156,Players!$AV$3:$AW$1447,2,FALSE)),(VLOOKUP($AQ156,Players!$N$3:$O$1456,2,FALSE))) -> 0 | AS156: 0
A157: 156 | AO157: 2024 | AP157: SS | AQ157: Keoni Cavaco | AR157: =IF(ISERROR(VLOOKUP($AQ157,Players!$N$3:$O$1456,2,FALSE)),(VLOOKUP($AQ157,Players!$AV$3:$AW$1447,2,FALSE)),(VLOOKUP($AQ157,Players!$N$3:$O$1456,2,FALSE))) -> 0 | AS157: 0
A158: 157 | AO158: 2020 | AP158: OF | AQ158: Jesus Sanchez | AR158: =IF(ISERROR(VLOOKUP($AQ158,Players!$N$3:$O$1456,2,FALSE)),(VLOOKUP($AQ158,Players!$AV$3:$AW$1447,2,FALSE)),(VLOOKUP($AQ158,Players!$N$3:$O$1456,2,FALSE))) -> 0 | AS158: 0
A159: 158 | AO159: 2020 | AP159: OF | AQ159: Yusniel Diaz | AR159: =IF(ISERROR(VLOOKUP($AQ159,Players!$N$3:$O$1456,2,FALSE)),(VLOOKUP($AQ159,Players!$AV$3:$AW$1447,2,FALSE)),(VLOOKUP($AQ159,Players!$N$3:$O$1456,2,FALSE))) -> 0 | AS159: 0
A160: 159 | AO160: 2021 | AP160: 3B | AQ160: Jonathan India | AR160: =IF(ISERROR(VLOOKUP($AQ160,Players!$N$3:$O$1456,2,FALSE)),(VLOOKUP($AQ160,Players!$AV$3:$AW$1447,2,FALSE)),(VLOOKUP($AQ160,Players!$N$3:$O$1456,2,FALSE))) -> 0 | AS160: 0
A161: 160 | AO161: 2023 | AP161: RHP | AQ161: Ethan Hankins | AR161: =IF(ISERROR(VLOOKUP($AQ161,Players!$N$3:$O$1456,2,FALSE)),(VLOOKUP($AQ161,Players!$AV$3:$AW$1447,2,FALSE)),(VLOOKUP($AQ161,Players!$N$3:$O$1456,2,FALSE))) -> 0 | AS161: 0
A162: 161 | AO162: 2021 | AP162: RHP | AQ162: Luis Garcia | AR162: =IF(ISERROR(VLOOKUP($AQ162,Players!$N$3:$O$1456,2,FALSE)),(VLOOKUP($AQ162,Players!$AV$3:$AW$1447,2,FALSE)),(VLOOKUP($AQ162,Players!$N$3:$O$1456,2,FALSE))) -> 0 | AS162: 0
A163: 162 | AO163: 2022 | AP163: 3B | AQ163: Miguel Vargas | AR163: =IF(ISERROR(VLOOKUP($AQ163,Players!$N$3:$O$1456,2,FALSE)),(VLOOKUP($AQ163,Players!$AV$3:$AW$1447,2,FALSE)),(VLOOKUP($AQ163,Players!$N$3:$O$1456,2,FALSE))) -> 0 | AS163: 0
A164: 163 | AO164: 2022 | AP164: SS | AQ164: Brayan Rocchio | AR164: =IF(ISERROR(VLOOKUP($AQ164,Players!$N$3:$O$1456,2,FALSE)),(VLOOKUP($AQ164,Players!$AV$3:$AW$1447,2,FALSE)),(VLOOKUP($AQ164,Players!$N$3:$O$1456,2,FALSE))) -> 0 | AS164: 0
A165: 164 | AO165: 2022 | AP165: RHP | AQ165: Luis Medina | AR165: =IF(ISERROR(VLOOKUP($AQ165,Players!$N$3:$O$1456,2,FALSE)),(VLOOKUP($AQ165,Players!$AV$3:$AW$1447,2,FALSE)),(VLOOKUP($AQ165,Players!$N$3:$O$1456,2,FALSE))) -> 0 | AS165: 0
A166: 165 | AO166: 2021 | AP166: OF | AQ166: Peyton Burdick | AR166: =IF(ISERROR(VLOOKUP($AQ166,Players!$N$3:$O$1456,2,FALSE)),(VLOOKUP($AQ166,Players!$AV$3:$AW$1447,2,FALSE)),(VLOOKUP($AQ166,Players!$N$3:$O$1456,2,FALSE))) -> 0 | AS166: 0
A167: 166 | AO167: 2021 | AP167: LHP | AQ167: Shane McClanahan | AR167: =IF(ISERROR(VLOOKUP($AQ167,Players!$N$3:$O$1456,2,FALSE)),(VLOOKUP($AQ167,Players!$AV$3:$AW$1447,2,FALSE)),(VLOOKUP($AQ167,Players!$N$3:$O$1456,2,FALSE))) -> 0 | AS167: 0
A168: 167 | AO168: 2022 | AP168: RHP | AQ168: Jackson Rutledge | AR168: =IF(ISERROR(VLOOKUP($AQ168,Players!$N$3:$O$1456,2,FALSE)),(VLOOKUP($AQ168,Players!$AV$3:$AW$1447,2,FALSE)),(VLOOKUP($AQ168,Players!$N$3:$O$1456,2,FALSE))) -> 0 | AS168: 0
A169: 168 | AO169: 2020 | AP169: SS | AQ169: Jake Cronenworth | AR169: =IF(ISERROR(VLOOKUP($AQ169,Players!$N$3:$O$1456,2,FALSE)),(VLOOKUP($AQ169,Players!$AV$3:$AW$1447,2,FALSE)),(VLOOKUP($AQ169,Players!$N$3:$O$1456,2,FALSE))) -> 0 | AS169: 0
A170: 169 | AO170: 2020 | AP170: RHP | AQ170: Shun Yamaguchi | AR170: =IF(ISERROR(VLOOKUP($AQ170,Players!$N$3:$O$1456,2,FALSE)),(VLOOKUP($AQ170,Players!$AV$3:$AW$1447,2,FALSE)),(VLOOKUP($AQ170,Players!$N$3:$O$1456,2,FALSE))) -> 0 | AS170: 0
A171: 170 | AO171: 2019 | AP171: RHP | AQ171: Bryan Abreu | AR171: =IF(ISERROR(VLOOKUP($AQ171,Players!$N$3:$O$1456,2,FALSE)),(VLOOKUP($AQ171,Players!$AV$3:$AW$1447,2,FALSE)),(VLOOKUP($AQ171,Players!$N$3:$O$1456,2,FALSE))) -> 0 | AS171: 0
A172: 171 | AO172: 2021 | AP172: SS | AQ172: Jeremy Pena | AR172: =IF(ISERROR(VLOOKUP($AQ172,Players!$N$3:$O$1456,2,FALSE)),(VLOOKUP($AQ172,Players!$AV$3:$AW$1447,2,FALSE)),(VLOOKUP($AQ172,Players!$N$3:$O$1456,2,FALSE))) -> 0 | AS172: 0
A173: 172 | AO173: 2020 | AP173: OF | AQ173: DJ Peters | AR173: =IF(ISERROR(VLOOKUP($AQ173,Players!$N$3:$O$1456,2,FALSE)),(VLOOKUP($AQ173,Players!$AV$3:$AW$1447,2,FALSE)),(VLOOKUP($AQ173,Players!$N$3:$O$1456,2,FALSE))) -> 0 | AS173: 0
A174: 173 | AO174: 2019 | AP174: 1B | AQ174: Edwin Rios | AR174: =IF(ISERROR(VLOOKUP($AQ174,Players!$N$3:$O$1456,2,FALSE)),(VLOOKUP($AQ174,Players!$AV$3:$AW$1447,2,FALSE)),(VLOOKUP($AQ174,Players!$N$3:$O$1456,2,FALSE))) -> 0 | AS174: 0
A175: 174 | AO175: 2020 | AP175: 2B | AQ175: Andy Young | AR175: =IF(ISERROR(VLOOKUP($AQ175,Players!$N$3:$O$1456,2,FALSE)),(VLOOKUP($AQ175,Players!$AV$3:$AW$1447,2,FALSE)),(VLOOKUP($AQ175,Players!$N$3:$O$1456,2,FALSE))) -> 0 | AS175: 0
A176: 175 | AO176: 2023 | AP176: OF | AQ176: Marcus Smith | AR176: =IF(ISERROR(VLOOKUP($AQ176,Players!$N$3:$O$1456,2,FALSE)),(VLOOKUP($AQ176,Players!$AV$3:$AW$1447,2,FALSE)),(VLOOKUP($AQ176,Players!$N$3:$O$1456,2,FALSE))) -> 0 | AS176: 0
A177: 176 | AO177: 2022 | AP177: 2B | AQ177: Will Wilson | AR177: =IF(ISERROR(VLOOKUP($AQ177,Players!$N$3:$O$1456,2,FALSE)),(VLOOKUP($AQ177,Players!$AV$3:$AW$1447,2,FALSE)),(VLOOKUP($AQ177,Players!$N$3:$O$1456,2,FALSE))) -> 0 | AS177: 0
A178: 177 | AO178: 2023 | AP178: OF | AQ178: Andy Pages | AR178: =IF(ISERROR(VLOOKUP($AQ178,Players!$N$3:$O$1456,2,FALSE)),(VLOOKUP($AQ178,Players!$AV$3:$AW$1447,2,FALSE)),(VLOOKUP($AQ178,Players!$N$3:$O$1456,2,FALSE))) -> 0 | AS178: 0
A179: 178 | AO179: 2024 | AP179: OF | AQ179: George Feliz | AR179: =IF(ISERROR(VLOOKUP($AQ179,Players!$N$3:$O$1456,2,FALSE)),(VLOOKUP($AQ179,Players!$AV$3:$AW$1447,2,FALSE)),(VLOOKUP($AQ179,Players!$N$3:$O$1456,2,FALSE))) -> 0 | AS179: 0
A180: 179 | AO180: 2019 | AP180: RHP | AQ180: Kevin Ginkel | AR180: =IF(ISERROR(VLOOKUP($AQ180,Players!$N$3:$O$1456,2,FALSE)),(VLOOKUP($AQ180,Players!$AV$3:$AW$1447,2,FALSE)),(VLOOKUP($AQ180,Players!$N$3:$O$1456,2,FALSE))) -> 0 | AS180: 0
A181: 180 | AO181: 2022 | AP181: SS | AQ181: Jeremiah Jackson | AR181: =IF(ISERROR(VLOOKUP($AQ181,Players!$N$3:$O$1456,2,FALSE)),(VLOOKUP($AQ181,Players!$AV$3:$AW$1447,2,FALSE)),(VLOOKUP($AQ181,Players!$N$3:$O$1456,2,FALSE))) -> 0 | AS181: 0
A182: 181 | AO182: 2023 | AP182: OF | AQ182: Darryl Collins | AR182: =IF(ISERROR(VLOOKUP($AQ182,Players!$N$3:$O$1456,2,FALSE)),(VLOOKUP($AQ182,Players!$AV$3:$AW$1447,2,FALSE)),(VLOOKUP($AQ182,Players!$N$3:$O$1456,2,FALSE))) -> 0 | AS182: 0
A183: 182 | AO183: 2022 | AP183: 2B | AQ183: Eqequiel Duran | AR183: =IF(ISERROR(VLOOKUP($AQ183,Players!$N$3:$O$1456,2,FALSE)),(VLOOKUP($AQ183,Players!$AV$3:$AW$1447,2,FALSE)),(VLOOKUP($AQ183,Players!$N$3:$O$1456,2,FALSE))) -> 0 | AS183: 0
A184: 183 | AO184: 2022 | AP184: SS | AQ184: Jose Fermin | AR184: =IF(ISERROR(VLOOKUP($AQ184,Players!$N$3:$O$1456,2,FALSE)),(VLOOKUP($AQ184,Players!$AV$3:$AW$1447,2,FALSE)),(VLOOKUP($AQ184,Players!$N$3:$O$1456,2,FALSE))) -> 0 | AS184: 0
A185: 184 | AO185: 2019 | AP185: 2B | AQ185: Mauricio Dubon | AR185: =IF(ISERROR(VLOOKUP($AQ185,Players!$N$3:$O$1456,2,FALSE)),(VLOOKUP($AQ185,Players!$AV$3:$AW$1447,2,FALSE)),(VLOOKUP($AQ185,Players!$N$3:$O$1456,2,FALSE))) -> 0 | AS185: 0
A186: 185 | AO186: 2022 | AP186: RHP | AQ186: Tahnaj Thomas | AR186: =IF(ISERROR(VLOOKUP($AQ186,Players!$N$3:$O$1456,2,FALSE)),(VLOOKUP($AQ186,Players!$AV$3:$AW$1447,2,FALSE)),(VLOOKUP($AQ186,Players!$N$3:$O$1456,2,FALSE))) -> 0 | AS186: 0
A187: 186 | AO187: 2023 | AP187: SS | AQ187: Maikol Escotto | AR187: =IF(ISERROR(VLOOKUP($AQ187,Players!$N$3:$O$1456,2,FALSE)),(VLOOKUP($AQ187,Players!$AV$3:$AW$1447,2,FALSE)),(VLOOKUP($AQ187,Players!$N$3:$O$1456,2,FALSE))) -> 0 | AS187: 0
A188: 187 | AO188: 2024 | AP188: OF | AQ188: Alexander Ramirez | AR188: =IF(ISERROR(VLOOKUP($AQ188,Players!$N$3:$O$1456,2,FALSE)),(VLOOKUP($AQ188,Players!$AV$3:$AW$1447,2,FALSE)),(VLOOKUP($AQ188,Players!$N$3:$O$1456,2,FALSE))) -> 0 | AS188: 0
A189: 188 | AO189: 2023 | AP189: SS | AQ189: Pedro Martinez | AR189: =IF(ISERROR(VLOOKUP($AQ189,Players!$N$3:$O$1456,2,FALSE)),(VLOOKUP($AQ189,Players!$AV$3:$AW$1447,2,FALSE)),(VLOOKUP($AQ189,Players!$N$3:$O$1456,2,FALSE))) -> 0 | AS189: 0
A190: 189 | AO190: 2024 | AP190: SS | AQ190: Reggie Preciado | AR190: =IF(ISERROR(VLOOKUP($AQ190,Players!$N$3:$O$1456,2,FALSE)),(VLOOKUP($AQ190,Players!$AV$3:$AW$1447,2,FALSE)),(VLOOKUP($AQ190,Players!$N$3:$O$1456,2,FALSE))) -> 0 | AS190: 0
A191: 190 | AO191: 2022 | AP191: RHP | AQ191: Shane Baz | AR191: =IF(ISERROR(VLOOKUP($AQ191,Players!$N$3:$O$1456,2,FALSE)),(VLOOKUP($AQ191,Players!$AV$3:$AW$1447,2,FALSE)),(VLOOKUP($AQ191,Players!$N$3:$O$1456,2,FALSE))) -> 0 | AS191: 0
A192: 191 | AO192: 2019 | AP192: OF | AQ192: Seth Brown | AR192: =IF(ISERROR(VLOOKUP($AQ192,Players!$N$3:$O$1456,2,FALSE)),(VLOOKUP($AQ192,Players!$AV$3:$AW$1447,2,FALSE)),(VLOOKUP($AQ192,Players!$N$3:$O$1456,2,FALSE))) -> 0 | AS192: 0
A193: 192 | AO193: 2019 | AP193: RHP | AQ193: Art Warren | AR193: =IF(ISERROR(VLOOKUP($AQ193,Players!$N$3:$O$1456,2,FALSE)),(VLOOKUP($AQ193,Players!$AV$3:$AW$1447,2,FALSE)),(VLOOKUP($AQ193,Players!$N$3:$O$1456,2,FALSE))) -> 0 | AS193: 0
A194: 193 | AO194: 2022 | AP194: 1B | AQ194: Mason Martin | AR194: =IF(ISERROR(VLOOKUP($AQ194,Players!$N$3:$O$1456,2,FALSE)),(VLOOKUP($AQ194,Players!$AV$3:$AW$1447,2,FALSE)),(VLOOKUP($AQ194,Players!$N$3:$O$1456,2,FALSE))) -> 0 | AS194: 0
A195: 194 | AO195: 2021 | AP195: LHP | AQ195: Seth Corry | AR195: =IF(ISERROR(VLOOKUP($AQ195,Players!$N$3:$O$1456,2,FALSE)),(VLOOKUP($AQ195,Players!$AV$3:$AW$1447,2,FALSE)),(VLOOKUP($AQ195,Players!$N$3:$O$1456,2,FALSE))) ->  | AS195: =IF(AR195>0,1,0) -> 
A196: 195 | AO196: 2020 | AP196: 3B | AQ196: Isaac Paredes | AR196: =IF(ISERROR(VLOOKUP($AQ196,Players!$N$3:$O$1456,2,FALSE)),(VLOOKUP($AQ196,Players!$AV$3:$AW$1447,2,FALSE)),(VLOOKUP($AQ196,Players!$N$3:$O$1456,2,FALSE))) -> 0 | AS196: 0
A197: 196 | AO197: 2020 | AP197: OF | AQ197: Ka’ai Tom | AR197: =IF(ISERROR(VLOOKUP($AQ197,Players!$N$3:$O$1456,2,FALSE)),(VLOOKUP($AQ197,Players!$AV$3:$AW$1447,2,FALSE)),(VLOOKUP($AQ197,Players!$N$3:$O$1456,2,FALSE))) -> 0 | AS197: 0
A198: 197 | AO198: 2023 | AP198: OF | AQ198: Jasiah Dixon | AR198: =IF(ISERROR(VLOOKUP($AQ198,Players!$N$3:$O$1456,2,FALSE)),(VLOOKUP($AQ198,Players!$AV$3:$AW$1447,2,FALSE)),(VLOOKUP($AQ198,Players!$N$3:$O$1456,2,FALSE))) -> 0 | AS198: 0
A199: 198 | AO199: 2023 | AP199: SS | AQ199: Alexander Vargas | AR199: =IF(ISERROR(VLOOKUP($AQ199,Players!$N$3:$O$1456,2,FALSE)),(VLOOKUP($AQ199,Players!$AV$3:$AW$1447,2,FALSE)),(VLOOKUP($AQ199,Players!$N$3:$O$1456,2,FALSE))) -> 0 | AS199: 0
A200: 199 | AO200: 2020 | AP200: RHP | AQ200: Michael Baumann | AR200: =IF(ISERROR(VLOOKUP($AQ200,Players!$N$3:$O$1456,2,FALSE)),(VLOOKUP($AQ200,Players!$AV$3:$AW$1447,2,FALSE)),(VLOOKUP($AQ200,Players!$N$3:$O$1456,2,FALSE))) -> 
... 24 more rows

Sheet War Room
E1: Goal Tracking
E2: R | F2: HR | G2: RBI | H2: SB | I2: AVG
D3: Target | E3: ='User Input'!C40/'User Input'!C34 -> 60.05882353 | F3: ='User Input'!C41/'User Input'!C34 -> 15 | G3: ='User Input'!C42/'User Input'!C34 -> 57.23529412 | H3: ='User Input'!C43/'User Input'!C34 -> 10.41176471 | I3: ='User Input'!C44 -> 0.271 | Q3: (click '+' to expand above T & AC for salary details if required)
D4: Current | E4: =IF(ISERROR(C81),"N/A",C81) -> N/A | F4: =IF(ISERROR(D81),"N/A",D81) -> N/A | G4: =IF(ISERROR(E81),"N/A",E81) -> N/A | H4: =IF(ISERROR(F81),"N/A",F81) -> N/A | I4: =IF(ISERROR(G81),"N/A",G81) -> N/A
P5: Your Selected Players
E6: ERA | F6: WHIP | G6: W | H6: S | I6: K | P6: Batters | Y6: Pitchers
D7: Target | E7: ='User Input'!C46 -> 3.56 | F7: ='User Input'!C47 -> 1.23 | G7: ='User Input'!C48/'User Input'!C35 -> 5.733333333 | H7: ='User Input'!C49/'User Input'!C35 -> 8.133333333 | I7: ='User Input'!C50/'User Input'!C35 -> 84.8 | P7: # | Q7: Player | R7: Bid | S7: Proj | Y7: # | Z7: Player | AA7: Bid | AB7: Proj
D8: Current | E8: =IF(ISERROR(I81),"N/A",I81) -> N/A | F8: =IF(ISERROR(J81),"N/A",J81) -> N/A | G8: =IF(ISERROR(K81),"N/A",K81) -> N/A | H8: =IF(ISERROR(L81),"N/A",L81) -> N/A | I8: =IF(ISERROR(M81),"N/A",M81) -> N/A | P8: 1 | Q8: =IFERROR(VLOOKUP(P8,Players!$AF$3:$AH$1019,2,FALSE),"") ->  | R8: =IFERROR(VLOOKUP(P8,Players!$AF$3:$AH$1019,3,FALSE),"") ->  | S8: =VLOOKUP(P8,Players!$AF$3:$AI$1019,4,FALSE) ->  | U8: =ISERROR(S8) -> TRUE | V8: =IF(U8=FALSE,R8,0) -> 0 | W8: =IF(U8=FALSE,S8,0) -> 0 | Y8: 1 | Z8: =IFERROR(VLOOKUP(Y8,Players!$BO$3:$BQ$1019,2,FALSE),"") ->  | AA8: =IFERROR(VLOOKUP(Y8,Players!$BO$3:$BQ$1019,3,FALSE),"") ->  | AB8: =VLOOKUP(Y8,Players!$BO$3:$BR$1019,4,FALSE) ->  | AD8: =ISERROR(AB8) -> TRUE | AE8: =IF(AD8=FALSE,AA8,0) -> 0 | AF8: =IF(AD8=FALSE,AB8,0) -> 0
D9: =SUM(D13:D42) -> 0 | E9: Total Players Taken By All teams | P9: =P8+1 -> 2 | Q9: =IFERROR(VLOOKUP(P9,Players!$AF$3:$AH$1019,2,FALSE),"") ->  | R9: =IFERROR(VLOOKUP(P9,Players!$AF$3:$AH$1019,3,FALSE),"") ->  | S9: =VLOOKUP(P9,Players!$AF$3:$AI$1019,4,FALSE) ->  | U9: TRUE | V9: 0 | W9: 0 | Y9: =Y8+1 -> 2 | Z9: =IFERROR(VLOOKUP(Y9,Players!$BO$3:$BQ$1019,2,FALSE),"") ->  | AA9: =IFERROR(VLOOKUP(Y9,Players!$BO$3:$BQ$1019,3,FALSE),"") ->  | AB9: =VLOOKUP(Y9,Players!$BO$3:$BR$1019,4,FALSE) ->  | AD9: TRUE | AE9: 0 | AF9: 0
P10: =P9+1 -> 3 | Q10: =IFERROR(VLOOKUP(P10,Players!$AF$3:$AH$1019,2,FALSE),"") ->  | R10: =IFERROR(VLOOKUP(P10,Players!$AF$3:$AH$1019,3,FALSE),"") ->  | S10: =VLOOKUP(P10,Players!$AF$3:$AI$1019,4,FALSE) ->  | U10: =ISERROR(S10) -> TRUE | V10: =IF(U10=FALSE,R10,0) -> 0 | W10: =IF(U10=FALSE,S10,0) -> 0 | Y10: =Y9+1 -> 3 | Z10: =IFERROR(VLOOKUP(Y10,Players!$BO$3:$BQ$1019,2,FALSE),"") ->  | AA10: =IFERROR(VLOOKUP(Y10,Players!$BO$3:$BQ$1019,3,FALSE),"") ->  | AB10: =VLOOKUP(Y10,Players!$BO$3:$BR$1019,4,FALSE) ->  | AD10: TRUE | AE10: 0 | AF10: 0
B11: # of Players Taken | E11: Salaries | H11: # of Players Left | L11: Finances | P11: 4 | Q11: =IFERROR(VLOOKUP(P11,Players!$AF$3:$AH$1019,2,FALSE),"") ->  | R11: =IFERROR(VLOOKUP(P11,Players!$AF$3:$AH$1019,3,FALSE),"") ->  | S11: =VLOOKUP(P11,Players!$AF$3:$AI$1019,4,FALSE) ->  | U11: TRUE | V11: 0 | W11: 0 | Y11: 4 | Z11: =IFERROR(VLOOKUP(Y11,Players!$BO$3:$BQ$1019,2,FALSE),"") ->  | AA11: =IFERROR(VLOOKUP(Y11,Players!$BO$3:$BQ$1019,3,FALSE),"") ->  | AB11: =VLOOKUP(Y11,Players!$BO$3:$BR$1019,4,FALSE) ->  | AD11: TRUE | AE11: 0 | AF11: 0
A12: Team | B12: Bat | C12: Pit | D12: Tot | E12: Bat | F12: Pit | G12: Tot | H12: Bat | I12: Pit | J12: Bench | K12: Tot | L12: $$ Left | M12: APP | N12: Max Bid | P12: 5 | Q12: =IFERROR(VLOOKUP(P12,Players!$AF$3:$AH$1019,2,FALSE),"") ->  | R12: =IFERROR(VLOOKUP(P12,Players!$AF$3:$AH$1019,3,FALSE),"") ->  | S12: =VLOOKUP(P12,Players!$AF$3:$AI$1019,4,FALSE) ->  | U12: TRUE | V12: 0 | W12: 0 | Y12: 5 | Z12: =IFERROR(VLOOKUP(Y12,Players!$BO$3:$BQ$1019,2,FALSE),"") ->  | AA12: =IFERROR(VLOOKUP(Y12,Players!$BO$3:$BQ$1019,3,FALSE),"") ->  | AB12: =VLOOKUP(Y12,Players!$BO$3:$BR$1019,4,FALSE) ->  | AD12: TRUE | AE12: 0 | AF12: 0
A13: =IF('User Input'!C1 = 0,"",'User Input'!C1) -> a | B13: =IF('User Input'!C1=0,"",COUNTIF(Players!$O$3:$O$903,A13)) -> 0 | C13: =IF('User Input'!C1=0,"",COUNTIF(Players!$AV$3:$AW$937,A13)) -> 0 | D13: =IF('User Input'!C1=0,"",C13+B13) -> 0 | E13: =IF('User Input'!C1=0,"",SUMIF(Players!$O$3:$O$903,A13,Players!$P$3:$P$903)) -> 0 | F13: =IF('User Input'!C1=0,"",SUMIF(Players!$AW$3:$AW$937,A13,Players!$AX$3:$AX$937)) -> 0 | G13: =IF('User Input'!C1 = 0,"",F13+E13) -> 0 | H13: =IF('User Input'!C1=0,"",IF(('User Input'!$C$34-B13)<0,0,'User Input'!$C$34-B13)) -> 17 | I13: =IF('User Input'!C1=0,"",IF(('User Input'!$C$35-C13)<0,0,'User Input'!$C$35-C13)) -> 15 | J13: =IF('User Input'!C1=0,"",K13-H13-I13) -> 0 | K13: =IF('User Input'!C1 = 0,"",'User Input'!$C$34+'User Input'!$C$35+'User Input'!$C$36-D13) -> 32 | L13: =IF('User Input'!C1 = 0,"",'User Input'!$C$32-G13) -> 280 | M13: =IF('User Input'!C1=0,"",IF(K13<1,0,L13/K13)) -> 8.75 | N13: =IF('User Input'!C1 = 0,"",L13-K13+1) -> 249 | O13: ← YOUR TEAM | P13: 6 | Q13: =IFERROR(VLOOKUP(P13,Players!$AF$3:$AH$1019,2,FALSE),"") ->  | R13: =IFERROR(VLOOKUP(P13,Players!$AF$3:$AH$1019,3,FALSE),"") ->  | S13: =VLOOKUP(P13,Players!$AF$3:$AI$1019,4,FALSE) ->  | U13: TRUE | V13: 0 | W13: 0 | Y13: 6 | Z13: =IFERROR(VLOOKUP(Y13,Players!$BO$3:$BQ$1019,2,FALSE),"") ->  | AA13: =IFERROR(VLOOKUP(Y13,Players!$BO$3:$BQ$1019,3,FALSE),"") ->  | AB13: =VLOOKUP(Y13,Players!$BO$3:$BR$1019,4,FALSE) ->  | AD13: TRUE | AE13: 0 | AF13: 0
A14: =IF('User Input'!C2 = 0,"",'User Input'!C2) -> b | B14: =IF('User Input'!C2=0,"",COUNTIF(Players!$O$3:$O$903,A14)) -> 0 | C14: =IF('User Input'!C2=0,"",COUNTIF(Players!$AV$3:$AW$937,A14)) -> 0 | D14: =IF('User Input'!C2=0,"",C14+B14) -> 0 | E14: =IF('User Input'!C2=0,"",SUMIF(Players!$O$3:$O$903,A14,Players!$P$3:$P$903)) -> 0 | F14: =IF('User Input'!C2=0,"",SUMIF(Players!$AW$3:$AW$937,A14,Players!$AX$3:$AX$937)) -> 0 | G14: =IF('User Input'!C2 = 0,"",F14+E14) -> 0 | H14: =IF('User Input'!C2=0,"",IF(('User Input'!$C$34-B14)<0,0,'User Input'!$C$34-B14)) -> 17 | I14: =IF('User Input'!C2=0,"",IF(('User Input'!$C$35-C14)<0,0,'User Input'!$C$35-C14)) -> 15 | J14: =IF('User Input'!C2=0,"",K14-H14-I14) -> 0 | K14: =IF('User Input'!C2 = 0,"",'User Input'!$C$34+'User Input'!$C$35+'User Input'!$C$36-D14) -> 32 | L14: =IF('User Input'!C2 = 0,"",'User Input'!$C$32-G14) -> 280 | M14: =IF('User Input'!C2=0,"",IF(K14<1,0,L14/K14)) -> 8.75 | N14: =IF('User Input'!C2 = 0,"",L14-K14+1) -> 249 | P14: 7 | Q14: =IFERROR(VLOOKUP(P14,Players!$AF$3:$AH$1019,2,FALSE),"") ->  | R14: =IFERROR(VLOOKUP(P14,Players!$AF$3:$AH$1019,3,FALSE),"") ->  | S14: =VLOOKUP(P14,Players!$AF$3:$AI$1019,4,FALSE) ->  | U14: TRUE | V14: 0 | W14: 0 | Y14: 7 | Z14: =IFERROR(VLOOKUP(Y14,Players!$BO$3:$BQ$1019,2,FALSE),"") ->  | AA14: =IFERROR(VLOOKUP(Y14,Players!$BO$3:$BQ$1019,3,FALSE),"") ->  | AB14: =VLOOKUP(Y14,Players!$BO$3:$BR$1019,4,FALSE) ->  | AD14: TRUE | AE14: 0 | AF14: 0 | DT14: C | DU14: SP
A15: =IF('User Input'!C3 = 0,"",'User Input'!C3) -> c | B15: =IF('User Input'!C3=0,"",COUNTIF(Players!$O$3:$O$903,A15)) -> 0 | C15: =IF('User Input'!C3=0,"",COUNTIF(Players!$AV$3:$AW$937,A15)) -> 0 | D15: =IF('User Input'!C3=0,"",C15+B15) -> 0 | E15: =IF('User Input'!C3=0,"",SUMIF(Players!$O$3:$O$903,A15,Players!$P$3:$P$903)) -> 0 | F15: =IF('User Input'!C3=0,"",SUMIF(Players!$AW$3:$AW$937,A15,Players!$AX$3:$AX$937)) -> 0 | G15: =IF('User Input'!C3 = 0,"",F15+E15) -> 0 | H15: =IF('User Input'!C3=0,"",IF(('User Input'!$C$34-B15)<0,0,'User Input'!$C$34-B15)) -> 17 | I15: =IF('User Input'!C3=0,"",IF(('User Input'!$C$35-C15)<0,0,'User Input'!$C$35-C15)) -> 15 | J15: =IF('User Input'!C3=0,"",K15-H15-I15) -> 0 | K15: =IF('User Input'!C3 = 0,"",'User Input'!$C$34+'User Input'!$C$35+'User Input'!$C$36-D15) -> 32 | L15: =IF('User Input'!C3 = 0,"",'User Input'!$C$32-G15) -> 280 | M15: =IF('User Input'!C3=0,"",IF(K15<1,0,L15/K15)) -> 8.75 | N15: =IF('User Input'!C3 = 0,"",L15-K15+1) -> 249 | P15: 8 | Q15: =IFERROR(VLOOKUP(P15,Players!$AF$3:$AH$1019,2,FALSE),"") ->  | R15: =IFERROR(VLOOKUP(P15,Players!$AF$3:$AH$1019,3,FALSE),"") ->  | S15: =VLOOKUP(P15,Players!$AF$3:$AI$1019,4,FALSE) ->  | U15: TRUE | V15: 0 | W15: 0 | Y15: 8 | Z15: =IFERROR(VLOOKUP(Y15,Players!$BO$3:$BQ$1019,2,FALSE),"") ->  | AA15: =IFERROR(VLOOKUP(Y15,Players!$BO$3:$BQ$1019,3,FALSE),"") ->  | AB15: =VLOOKUP(Y15,Players!$BO$3:$BR$1019,4,FALSE) ->  | AD15: TRUE | AE15: 0 | AF15: 0 | DT15: 1B | DU15: RP
A16: =IF('User Input'!C4 = 0,"",'User Input'!C4) -> d | B16: =IF('User Input'!C4=0,"",COUNTIF(Players!$O$3:$O$903,A16)) -> 0 | C16: =IF('User Input'!C4=0,"",COUNTIF(Players!$AV$3:$AW$937,A16)) -> 0 | D16: =IF('User Input'!C4=0,"",C16+B16) -> 0 | E16: =IF('User Input'!C4=0,"",SUMIF(Players!$O$3:$O$903,A16,Players!$P$3:$P$903)) -> 0 | F16: =IF('User Input'!C4=0,"",SUMIF(Players!$AW$3:$AW$937,A16,Players!$AX$3:$AX$937)) -> 0 | G16: =IF('User Input'!C4 = 0,"",F16+E16) -> 0 | H16: =IF('User Input'!C4=0,"",IF(('User Input'!$C$34-B16)<0,0,'User Input'!$C$34-B16)) -> 17 | I16: =IF('User Input'!C4=0,"",IF(('User Input'!$C$35-C16)<0,0,'User Input'!$C$35-C16)) -> 15 | J16: =IF('User Input'!C4=0,"",K16-H16-I16) -> 0 | K16: =IF('User Input'!C4 = 0,"",'User Input'!$C$34+'User Input'!$C$35+'User Input'!$C$36-D16) -> 32 | L16: =IF('User Input'!C4 = 0,"",'User Input'!$C$32-G16) -> 280 | M16: =IF('User Input'!C4=0,"",IF(K16<1,0,L16/K16)) -> 8.75 | N16: =IF('User Input'!C4 = 0,"",L16-K16+1) -> 249 | P16: 9 | Q16: =IFERROR(VLOOKUP(P16,Players!$AF$3:$AH$1019,2,FALSE),"") ->  | R16: =IFERROR(VLOOKUP(P16,Players!$AF$3:$AH$1019,3,FALSE),"") ->  | S16: =VLOOKUP(P16,Players!$AF$3:$AI$1019,4,FALSE) ->  | U16: TRUE | V16: 0 | W16: 0 | Y16: 9 | Z16: =IFERROR(VLOOKUP(Y16,Players!$BO$3:$BQ$1019,2,FALSE),"") ->  | AA16: =IFERROR(VLOOKUP(Y16,Players!$BO$3:$BQ$1019,3,FALSE),"") ->  | AB16: =VLOOKUP(Y16,Players!$BO$3:$BR$1019,4,FALSE) ->  | AD16: TRUE | AE16: 0 | AF16: 0 | DT16: 2B
A17: =IF('User Input'!C5 = 0,"",'User Input'!C5) -> e | B17: =IF('User Input'!C5=0,"",COUNTIF(Players!$O$3:$O$903,A17)) -> 0 | C17: =IF('User Input'!C5=0,"",COUNTIF(Players!$AV$3:$AW$937,A17)) -> 0 | D17: =IF('User Input'!C5=0,"",C17+B17) -> 0 | E17: =IF('User Input'!C5=0,"",SUMIF(Players!$O$3:$O$903,A17,Players!$P$3:$P$903)) -> 0 | F17: =IF('User Input'!C5=0,"",SUMIF(Players!$AW$3:$AW$937,A17,Players!$AX$3:$AX$937)) -> 0 | G17: =IF('User Input'!C5 = 0,"",F17+E17) -> 0 | H17: =IF('User Input'!C5=0,"",IF(('User Input'!$C$34-B17)<0,0,'User Input'!$C$34-B17)) -> 17 | I17: =IF('User Input'!C5=0,"",IF(('User Input'!$C$35-C17)<0,0,'User Input'!$C$35-C17)) -> 15 | J17: =IF('User Input'!C5=0,"",K17-H17-I17) -> 0 | K17: =IF('User Input'!C5 = 0,"",'User Input'!$C$34+'User Input'!$C$35+'User Input'!$C$36-D17) -> 32 | L17: =IF('User Input'!C5 = 0,"",'User Input'!$C$32-G17) -> 280 | M17: =IF('User Input'!C5=0,"",IF(K17<1,0,L17/K17)) -> 8.75 | N17: =IF('User Input'!C5 = 0,"",L17-K17+1) -> 249 | P17: 10 | Q17: =IFERROR(VLOOKUP(P17,Players!$AF$3:$AH$1019,2,FALSE),"") ->  | R17: =IFERROR(VLOOKUP(P17,Players!$AF$3:$AH$1019,3,FALSE),"") ->  | S17: =VLOOKUP(P17,Players!$AF$3:$AI$1019,4,FALSE) ->  | U17: TRUE | V17: 0 | W17: 0 | Y17: 10 | Z17: =IFERROR(VLOOKUP(Y17,Players!$BO$3:$BQ$1019,2,FALSE),"") ->  | AA17: =IFERROR(VLOOKUP(Y17,Players!$BO$3:$BQ$1019,3,FALSE),"") ->  | AB17: =VLOOKUP(Y17,Players!$BO$3:$BR$1019,4,FALSE) ->  | AD17: TRUE | AE17: 0 | AF17: 0 | DT17: 3B
A18: =IF('User Input'!C6 = 0,"",'User Input'!C6) -> f | B18: =IF('User Input'!C6=0,"",COUNTIF(Players!$O$3:$O$903,A18)) -> 0 | C18: =IF('User Input'!C6=0,"",COUNTIF(Players!$AV$3:$AW$937,A18)) -> 0 | D18: =IF('User Input'!C6=0,"",C18+B18) -> 0 | E18: =IF('User Input'!C6=0,"",SUMIF(Players!$O$3:$O$903,A18,Players!$P$3:$P$903)) -> 0 | F18: =IF('User Input'!C6=0,"",SUMIF(Players!$AW$3:$AW$937,A18,Players!$AX$3:$AX$937)) -> 0 | G18: =IF('User Input'!C6 = 0,"",F18+E18) -> 0 | H18: =IF('User Input'!C6=0,"",IF(('User Input'!$C$34-B18)<0,0,'User Input'!$C$34-B18)) -> 17 | I18: =IF('User Input'!C6=0,"",IF(('User Input'!$C$35-C18)<0,0,'User Input'!$C$35-C18)) -> 15 | J18: =IF('User Input'!C6=0,"",K18-H18-I18) -> 0 | K18: =IF('User Input'!C6 = 0,"",'User Input'!$C$34+'User Input'!$C$35+'User Input'!$C$36-D18) -> 32 | L18: =IF('User Input'!C6 = 0,"",'User Input'!$C$32-G18) -> 280 | M18: =IF('User Input'!C6=0,"",IF(K18<1,0,L18/K18)) -> 8.75 | N18: =IF('User Input'!C6 = 0,"",L18-K18+1) -> 249 | P18: 11 | Q18: =IFERROR(VLOOKUP(P18,Players!$AF$3:$AH$1019,2,FALSE),"") ->  | R18: =IFERROR(VLOOKUP(P18,Players!$AF$3:$AH$1019,3,FALSE),"") ->  | S18: =VLOOKUP(P18,Players!$AF$3:$AI$1019,4,FALSE) ->  | U18: TRUE | V18: 0 | W18: 0 | Y18: 11 | Z18: =IFERROR(VLOOKUP(Y18,Players!$BO$3:$BQ$1019,2,FALSE),"") ->  | AA18: =IFERROR(VLOOKUP(Y18,Players!$BO$3:$BQ$1019,3,FALSE),"") ->  | AB18: =VLOOKUP(Y18,Players!$BO$3:$BR$1019,4,FALSE) ->  | AD18: TRUE | AE18: 0 | AF18: 0 | DT18: SS
A19: =IF('User Input'!C7 = 0,"",'User Input'!C7) -> g | B19: =IF('User Input'!C7=0,"",COUNTIF(Players!$O$3:$O$903,A19)) -> 0 | C19: =IF('User Input'!C7=0,"",COUNTIF(Players!$AV$3:$AW$937,A19)) -> 0 | D19: =IF('User Input'!C7=0,"",C19+B19) -> 0 | E19: =IF('User Input'!C7=0,"",SUMIF(Players!$O$3:$O$903,A19,Players!$P$3:$P$903)) -> 0 | F19: =IF('User Input'!C7=0,"",SUMIF(Players!$AW$3:$AW$937,A19,Players!$AX$3:$AX$937)) -> 0 | G19: =IF('User Input'!C7 = 0,"",F19+E19) -> 0 | H19: =IF('User Input'!C7=0,"",IF(('User Input'!$C$34-B19)<0,0,'User Input'!$C$34-B19)) -> 17 | I19: =IF('User Input'!C7=0,"",IF(('User Input'!$C$35-C19)<0,0,'User Input'!$C$35-C19)) -> 15 | J19: =IF('User Input'!C7=0,"",K19-H19-I19) -> 0 | K19: =IF('User Input'!C7 = 0,"",'User Input'!$C$34+'User Input'!$C$35+'User Input'!$C$36-D19) -> 32 | L19: =IF('User Input'!C7 = 0,"",'User Input'!$C$32-G19) -> 280 | M19: =IF('User Input'!C7=0,"",IF(K19<1,0,L19/K19)) -> 8.75 | N19: =IF('User Input'!C7 = 0,"",L19-K19+1) -> 249 | P19: 12 | Q19: =IFERROR(VLOOKUP(P19,Players!$AF$3:$AH$1019,2,FALSE),"") ->  | R19: =IFERROR(VLOOKUP(P19,Players!$AF$3:$AH$1019,3,FALSE),"") ->  | S19: =VLOOKUP(P19,Players!$AF$3:$AI$1019,4,FALSE) ->  | U19: TRUE | V19: 0 | W19: 0 | Y19: 12 | Z19: =IFERROR(VLOOKUP(Y19,Players!$BO$3:$BQ$1019,2,FALSE),"") ->  | AA19: =IFERROR(VLOOKUP(Y19,Players!$BO$3:$BQ$1019,3,FALSE),"") ->  | AB19: =VLOOKUP(Y19,Players!$BO$3:$BR$1019,4,FALSE) ->  | AD19: TRUE | AE19: 0 | AF19: 0 | DT19: OF
A20: =IF('User Input'!C8 = 0,"",'User Input'!C8) -> h | B20: =IF('User Input'!C8=0,"",COUNTIF(Players!$O$3:$O$903,A20)) -> 0 | C20: =IF('User Input'!C8=0,"",COUNTIF(Players!$AV$3:$AW$937,A20)) -> 0 | D20: =IF('User Input'!C8=0,"",C20+B20) -> 0 | E20: =IF('User Input'!C8=0,"",SUMIF(Players!$O$3:$O$903,A20,Players!$P$3:$P$903)) -> 0 | F20: =IF('User Input'!C8=0,"",SUMIF(Players!$AW$3:$AW$937,A20,Players!$AX$3:$AX$937)) -> 0 | G20: =IF('User Input'!C8 = 0,"",F20+E20) -> 0 | H20: =IF('User Input'!C8=0,"",IF(('User Input'!$C$34-B20)<0,0,'User Input'!$C$34-B20)) -> 17 | I20: =IF('User Input'!C8=0,"",IF(('User Input'!$C$35-C20)<0,0,'User Input'!$C$35-C20)) -> 15 | J20: =IF('User Input'!C8=0,"",K20-H20-I20) -> 0 | K20: =IF('User Input'!C8 = 0,"",'User Input'!$C$34+'User Input'!$C$35+'User Input'!$C$36-D20) -> 32 | L20: =IF('User Input'!C8 = 0,"",'User Input'!$C$32-G20) -> 280 | M20: =IF('User Input'!C8=0,"",IF(K20<1,0,L20/K20)) -> 8.75 | N20: =IF('User Input'!C8 = 0,"",L20-K20+1) -> 249 | P20: 13 | Q20: =IFERROR(VLOOKUP(P20,Players!$AF$3:$AH$1019,2,FALSE),"") ->  | R20: =IFERROR(VLOOKUP(P20,Players!$AF$3:$AH$1019,3,FALSE),"") ->  | S20: =VLOOKUP(P20,Players!$AF$3:$AI$1019,4,FALSE) ->  | U20: TRUE | V20: 0 | W20: 0 | Y20: 13 | Z20: =IFERROR(VLOOKUP(Y20,Players!$BO$3:$BQ$1019,2,FALSE),"") ->  | AA20: =IFERROR(VLOOKUP(Y20,Players!$BO$3:$BQ$1019,3,FALSE),"") ->  | AB20: =VLOOKUP(Y20,Players!$BO$3:$BR$1019,4,FALSE) ->  | AD20: TRUE | AE20: 0 | AF20: 0 | DT20: CI
A21: =IF('User Input'!C9 = 0,"",'User Input'!C9) -> i | B21: =IF('User Input'!C9=0,"",COUNTIF(Players!$O$3:$O$903,A21)) -> 0 | C21: =IF('User Input'!C9=0,"",COUNTIF(Players!$AV$3:$AW$937,A21)) -> 0 | D21: =IF('User Input'!C9=0,"",C21+B21) -> 0 | E21: =IF('User Input'!C9=0,"",SUMIF(Players!$O$3:$O$903,A21,Players!$P$3:$P$903)) -> 0 | F21: =IF('User Input'!C9=0,"",SUMIF(Players!$AW$3:$AW$937,A21,Players!$AX$3:$AX$937)) -> 0 | G21: =IF('User Input'!C9 = 0,"",F21+E21) -> 0 | H21: =IF('User Input'!C9=0,"",IF(('User Input'!$C$34-B21)<0,0,'User Input'!$C$34-B21)) -> 17 | I21: =IF('User Input'!C9=0,"",IF(('User Input'!$C$35-C21)<0,0,'User Input'!$C$35-C21)) -> 15 | J21: =IF('User Input'!C9=0,"",K21-H21-I21) -> 0 | K21: =IF('User Input'!C9 = 0,"",'User Input'!$C$34+'User Input'!$C$35+'User Input'!$C$36-D21) -> 32 | L21: =IF('User Input'!C9 = 0,"",'User Input'!$C$32-G21) -> 280 | M21: =IF('User Input'!C9=0,"",IF(K21<1,0,L21/K21)) -> 8.75 | N21: =IF('User Input'!C9 = 0,"",L21-K21+1) -> 249 | P21: 14 | Q21: =IFERROR(VLOOKUP(P21,Players!$AF$3:$AH$1019,2,FALSE),"") ->  | R21: =IFERROR(VLOOKUP(P21,Players!$AF$3:$AH$1019,3,FALSE),"") ->  | S21: =VLOOKUP(P21,Players!$AF$3:$AI$1019,4,FALSE) ->  | U21: TRUE | V21: 0 | W21: 0 | Y21: 14 | Z21: =IFERROR(VLOOKUP(Y21,Players!$BO$3:$BQ$1019,2,FALSE),"") ->  | AA21: =IFERROR(VLOOKUP(Y21,Players!$BO$3:$BQ$1019,3,FALSE),"") ->  | AB21: =VLOOKUP(Y21,Players!$BO$3:$BR$1019,4,FALSE) ->  | AD21: TRUE | AE21: 0 | AF21: 0 | DT21: MI
A22: =IF('User Input'!C10 = 0,"",'User Input'!C10) -> j | B22: =IF('User Input'!C10=0,"",COUNTIF(Players!$O$3:$O$903,A22)) -> 0 | C22: =IF('User Input'!C10=0,"",COUNTIF(Players!$AV$3:$AW$937,A22)) -> 0 | D22: =IF('User Input'!C10=0,"",C22+B22) -> 0 | E22: =IF('User Input'!C10=0,"",SUMIF(Players!$O$3:$O$903,A22,Players!$P$3:$P$903)) -> 0 | F22: =IF('User Input'!C10=0,"",SUMIF(Players!$AW$3:$AW$937,A22,Players!$AX$3:$AX$937)) -> 0 | G22: =IF('User Input'!C10 = 0,"",F22+E22) -> 0 | H22: =IF('User Input'!C10=0,"",IF(('User Input'!$C$34-B22)<0,0,'User Input'!$C$34-B22)) -> 17 | I22: =IF('User Input'!C10=0,"",IF(('User Input'!$C$35-C22)<0,0,'User Input'!$C$35-C22)) -> 15 | J22: =IF('User Input'!C10=0,"",K22-H22-I22) -> 0 | K22: =IF('User Input'!C10 = 0,"",'User Input'!$C$34+'User Input'!$C$35+'User Input'!$C$36-D22) -> 32 | L22: =IF('User Input'!C10 = 0,"",'User Input'!$C$32-G22) -> 280 | M22: =IF('User Input'!C10=0,"",IF(K22<1,0,L22/K22)) -> 8.75 | N22: =IF('User Input'!C10 = 0,"",L22-K22+1) -> 249 | P22: 15 | Q22: =IFERROR(VLOOKUP(P22,Players!$AF$3:$AH$1019,2,FALSE),"") ->  | R22: =IFERROR(VLOOKUP(P22,Players!$AF$3:$AH$1019,3,FALSE),"") ->  | S22: =VLOOKUP(P22,Players!$AF$3:$AI$1019,4,FALSE) ->  | U22: TRUE | V22: 0 | W22: 0 | Y22: 15 | Z22: =IFERROR(VLOOKUP(Y22,Players!$BO$3:$BQ$1019,2,FALSE),"") ->  | AA22: =IFERROR(VLOOKUP(Y22,Players!$BO$3:$BQ$1019,3,FALSE),"") ->  | AB22: =VLOOKUP(Y22,Players!$BO$3:$BR$1019,4,FALSE) ->  | AD22: TRUE | AE22: 0 | AF22: 0 | DT22: UT
A23: =IF('User Input'!C11 = 0,"",'User Input'!C11) -> k | B23: =IF('User Input'!C11=0,"",COUNTIF(Players!$O$3:$O$903,A23)) -> 0 | C23: =IF('User Input'!C11=0,"",COUNTIF(Players!$AV$3:$AW$937,A23)) -> 0 | D23: =IF('User Input'!C11=0,"",C23+B23) -> 0 | E23: =IF('User Input'!C11=0,"",SUMIF(Players!$O$3:$O$903,A23,Players!$P$3:$P$903)) -> 0 | F23: =IF('User Input'!C11=0,"",SUMIF(Players!$AW$3:$AW$937,A23,Players!$AX$3:$AX$937)) -> 0 | G23: =IF('User Input'!C11 = 0,"",F23+E23) -> 0 | H23: =IF('User Input'!C11=0,"",IF(('User Input'!$C$34-B23)<0,0,'User Input'!$C$34-B23)) -> 17 | I23: =IF('User Input'!C11=0,"",IF(('User Input'!$C$35-C23)<0,0,'User Input'!$C$35-C23)) -> 15 | J23: =IF('User Input'!C11=0,"",K23-H23-I23) -> 0 | K23: =IF('User Input'!C11 = 0,"",'User Input'!$C$34+'User Input'!$C$35+'User Input'!$C$36-D23) -> 32 | L23: =IF('User Input'!C11 = 0,"",'User Input'!$C$32-G23) -> 280 | M23: =IF('User Input'!C11=0,"",IF(K23<1,0,L23/K23)) -> 8.75 | N23: =IF('User Input'!C11 = 0,"",L23-K23+1) -> 249 | P23: 16 | Q23: =IFERROR(VLOOKUP(P23,Players!$AF$3:$AH$1019,2,FALSE),"") ->  | R23: =IFERROR(VLOOKUP(P23,Players!$AF$3:$AH$1019,3,FALSE),"") ->  | S23: =VLOOKUP(P23,Players!$AF$3:$AI$1019,4,FALSE) ->  | U23: TRUE | V23: 0 | W23: 0 | Y23: 16 | Z23: =IFERROR(VLOOKUP(Y23,Players!$BO$3:$BQ$1019,2,FALSE),"") ->  | AA23: =IFERROR(VLOOKUP(Y23,Players!$BO$3:$BQ$1019,3,FALSE),"") ->  | AB23: =VLOOKUP(Y23,Players!$BO$3:$BR$1019,4,FALSE) ->  | AD23: =ISERROR(AB23) -> TRUE | AE23: =IF(AD23=FALSE,AA23,0) -> 0 | AF23: =IF(AD23=FALSE,AB23,0) -> 0
A24: =IF('User Input'!C12 = 0,"",'User Input'!C12) -> l | B24: =IF('User Input'!C12=0,"",COUNTIF(Players!$O$3:$O$903,A24)) -> 0 | C24: =IF('User Input'!C12=0,"",COUNTIF(Players!$AV$3:$AW$937,A24)) -> 0 | D24: =IF('User Input'!C12=0,"",C24+B24) -> 0 | E24: =IF('User Input'!C12=0,"",SUMIF(Players!$O$3:$O$903,A24,Players!$P$3:$P$903)) -> 0 | F24: =IF('User Input'!C12=0,"",SUMIF(Players!$AW$3:$AW$937,A24,Players!$AX$3:$AX$937)) -> 0 | G24: =IF('User Input'!C12 = 0,"",F24+E24) -> 0 | H24: =IF('User Input'!C12=0,"",IF(('User Input'!$C$34-B24)<0,0,'User Input'!$C$34-B24)) -> 17 | I24: =IF('User Input'!C12=0,"",IF(('User Input'!$C$35-C24)<0,0,'User Input'!$C$35-C24)) -> 15 | J24: =IF('User Input'!C12=0,"",K24-H24-I24) -> 0 | K24: =IF('User Input'!C12 = 0,"",'User Input'!$C$34+'User Input'!$C$35+'User Input'!$C$36-D24) -> 32 | L24: =IF('User Input'!C12 = 0,"",'User Input'!$C$32-G24) -> 280 | M24: =IF('User Input'!C12=0,"",IF(K24<1,0,L24/K24)) -> 8.75 | N24: =IF('User Input'!C12 = 0,"",L24-K24+1) -> 249 | P24: 17 | Q24: =IFERROR(VLOOKUP(P24,Players!$AF$3:$AH$1019,2,FALSE),"") ->  | R24: =IFERROR(VLOOKUP(P24,Players!$AF$3:$AH$1019,3,FALSE),"") ->  | S24: =VLOOKUP(P24,Players!$AF$3:$AI$1019,4,FALSE) ->  | U24: TRUE | V24: 0 | W24: 0 | Y24: 17 | Z24: =IFERROR(VLOOKUP(Y24,Players!$BO$3:$BQ$1019,2,FALSE),"") ->  | AA24: =IFERROR(VLOOKUP(Y24,Players!$BO$3:$BQ$1019,3,FALSE),"") ->  | AB24: =VLOOKUP(Y24,Players!$BO$3:$BR$1019,4,FALSE) ->  | AD24: TRUE | AE24: 0 | AF24: 0
A25: =IF('User Input'!C13 = 0,"",'User Input'!C13) ->  | B25: =IF('User Input'!C13=0,"",COUNTIF(Players!$O$3:$O$903,A25)) ->  | C25: =IF('User Input'!C13=0,"",COUNTIF(Players!$AV$3:$AW$937,A25)) ->  | D25: =IF('User Input'!C13=0,"",C25+B25) ->  | E25: =IF('User Input'!C13=0,"",SUMIF(Players!$O$3:$O$903,A25,Players!$P$3:$P$903)) ->  | F25: =IF('User Input'!C13=0,"",SUMIF(Players!$AW$3:$AW$937,A25,Players!$AX$3:$AX$937)) ->  | G25: =IF('User Input'!C13 = 0,"",F25+E25) ->  | H25: =IF('User Input'!C13=0,"",IF(('User Input'!$C$34-B25)<0,0,'User Input'!$C$34-B25)) ->  | I25: =IF('User Input'!C13=0,"",IF(('User Input'!$C$35-C25)<0,0,'User Input'!$C$35-C25)) ->  | J25: =IF('User Input'!C13=0,"",K25-H25-I25) ->  | K25: =IF('User Input'!C13 = 0,"",'User Input'!$C$34+'User Input'!$C$35+'User Input'!$C$36-D25) ->  | L25: =IF('User Input'!C13 = 0,"",'User Input'!$C$32-G25) ->  | M25: =IF('User Input'!C13=0,"",IF(K25<1,0,L25/K25)) ->  | N25: =IF('User Input'!C13 = 0,"",L25-K25+1) ->  | P25: 18 | Q25: =IFERROR(VLOOKUP(P25,Players!$AF$3:$AH$1019,2,FALSE),"") ->  | R25: =IFERROR(VLOOKUP(P25,Players!$AF$3:$AH$1019,3,FALSE),"") ->  | S25: =VLOOKUP(P25,Players!$AF$3:$AI$1019,4,FALSE) ->  | U25: TRUE | V25: 0 | W25: 0 | Y25: 18 | Z25: =IFERROR(VLOOKUP(Y25,Players!$BO$3:$BQ$1019,2,FALSE),"") ->  | AA25: =IFERROR(VLOOKUP(Y25,Players!$BO$3:$BQ$1019,3,FALSE),"") ->  | AB25: =VLOOKUP(Y25,Players!$BO$3:$BR$1019,4,FALSE) ->  | AD25: TRUE | AE25: 0 | AF25: 0
A26: =IF('User Input'!C14 = 0,"",'User Input'!C14) ->  | B26: =IF('User Input'!C14=0,"",COUNTIF(Players!$O$3:$O$903,A26)) ->  | C26: =IF('User Input'!C14=0,"",COUNTIF(Players!$AV$3:$AW$937,A26)) ->  | D26: =IF('User Input'!C14=0,"",C26+B26) ->  | E26: =IF('User Input'!C14=0,"",SUMIF(Players!$O$3:$O$903,A26,Players!$P$3:$P$903)) ->  | F26: =IF('User Input'!C14=0,"",SUMIF(Players!$AW$3:$AW$937,A26,Players!$AX$3:$AX$937)) ->  | G26: =IF('User Input'!C14 = 0,"",F26+E26) ->  | H26: =IF('User Input'!C14=0,"",IF(('User Input'!$C$34-B26)<0,0,'User Input'!$C$34-B26)) ->  | I26: =IF('User Input'!C14=0,"",IF(('User Input'!$C$35-C26)<0,0,'User Input'!$C$35-C26)) ->  | J26: =IF('User Input'!C14=0,"",K26-H26-I26) ->  | K26: =IF('User Input'!C14 = 0,"",'User Input'!$C$34+'User Input'!$C$35+'User Input'!$C$36-D26) ->  | L26: =IF('User Input'!C14 = 0,"",'User Input'!$C$32-G26) ->  | M26: =IF('User Input'!C14=0,"",IF(K26<1,0,L26/K26)) ->  | N26: =IF('User Input'!C14 = 0,"",L26-K26+1) ->  | P26: 19 | Q26: =IFERROR(VLOOKUP(P26,Players!$AF$3:$AH$1019,2,FALSE),"") ->  | R26: =IFERROR(VLOOKUP(P26,Players!$AF$3:$AH$1019,3,FALSE),"") ->  | S26: =VLOOKUP(P26,Players!$AF$3:$AI$1019,4,FALSE) ->  | U26: TRUE | V26: 0 | W26: 0 | Y26: 19 | Z26: =IFERROR(VLOOKUP(Y26,Players!$BO$3:$BQ$1019,2,FALSE),"") ->  | AA26: =IFERROR(VLOOKUP(Y26,Players!$BO$3:$BQ$1019,3,FALSE),"") ->  | AB26: =VLOOKUP(Y26,Players!$BO$3:$BR$1019,4,FALSE) ->  | AD26: TRUE | AE26: 0 | AF26: 0
A27: =IF('User Input'!C15 = 0,"",'User Input'!C15) ->  | B27: =IF('User Input'!C15=0,"",COUNTIF(Players!$O$3:$O$903,A27)) ->  | C27: =IF('User Input'!C15=0,"",COUNTIF(Players!$AV$3:$AW$937,A27)) ->  | D27: =IF('User Input'!C15=0,"",C27+B27) ->  | E27: =IF('User Input'!C15=0,"",SUMIF(Players!$O$3:$O$903,A27,Players!$P$3:$P$903)) ->  | F27: =IF('User Input'!C15=0,"",SUMIF(Players!$AW$3:$AW$937,A27,Players!$AX$3:$AX$937)) ->  | G27: =IF('User Input'!C15 = 0,"",F27+E27) ->  | H27: =IF('User Input'!C15=0,"",IF(('User Input'!$C$34-B27)<0,0,'User Input'!$C$34-B27)) ->  | I27: =IF('User Input'!C15=0,"",IF(('User Input'!$C$35-C27)<0,0,'User Input'!$C$35-C27)) ->  | J27: =IF('User Input'!C15=0,"",K27-H27-I27) ->  | K27: =IF('User Input'!C15 = 0,"",'User Input'!$C$34+'User Input'!$C$35+'User Input'!$C$36-D27) ->  | L27: =IF('User Input'!C15 = 0,"",'User Input'!$C$32-G27) ->  | M27: =IF('User Input'!C15=0,"",IF(K27<1,0,L27/K27)) ->  | N27: =IF('User Input'!C15 = 0,"",L27-K27+1) ->  | P27: 20 | Q27: =IFERROR(VLOOKUP(P27,Players!$AF$3:$AH$1019,2,FALSE),"") ->  | R27: =IFERROR(VLOOKUP(P27,Players!$AF$3:$AH$1019,3,FALSE),"") ->  | S27: =VLOOKUP(P27,Players!$AF$3:$AI$1019,4,FALSE) ->  | U27: TRUE | V27: 0 | W27: 0 | Y27: 20 | Z27: =IFERROR(VLOOKUP(Y27,Players!$BO$3:$BQ$1019,2,FALSE),"") ->  | AA27: =IFERROR(VLOOKUP(Y27,Players!$BO$3:$BQ$1019,3,FALSE),"") ->  | AB27: =VLOOKUP(Y27,Players!$BO$3:$BR$1019,4,FALSE) ->  | AD27: TRUE | AE27: 0 | AF27: 0
A28: =IF('User Input'!C16 = 0,"",'User Input'!C16) ->  | B28: =IF('User Input'!C16=0,"",COUNTIF(Players!$O$3:$O$903,A28)) ->  | C28: =IF('User Input'!C16=0,"",COUNTIF(Players!$AV$3:$AW$937,A28)) ->  | D28: =IF('User Input'!C16=0,"",C28+B28) ->  | E28: =IF('User Input'!C16=0,"",SUMIF(Players!$O$3:$O$903,A28,Players!$P$3:$P$903)) ->  | F28: =IF('User Input'!C16=0,"",SUMIF(Players!$AW$3:$AW$937,A28,Players!$AX$3:$AX$937)) ->  | G28: =IF('User Input'!C16 = 0,"",F28+E28) ->  | H28: =IF('User Input'!C16=0,"",IF(('User Input'!$C$34-B28)<0,0,'User Input'!$C$34-B28)) ->  | I28: =IF('User Input'!C16=0,"",IF(('User Input'!$C$35-C28)<0,0,'User Input'!$C$35-C28)) ->  | J28: =IF('User Input'!C16=0,"",K28-H28-I28) ->  | K28: =IF('User Input'!C16 = 0,"",'User Input'!$C$34+'User Input'!$C$35+'User Input'!$C$36-D28) ->  | L28: =IF('User Input'!C16 = 0,"",'User Input'!$C$32-G28) ->  | M28: =IF('User Input'!C16=0,"",IF(K28<1,0,L28/K28)) ->  | N28: =IF('User Input'!C16 = 0,"",L28-K28+1) ->  | P28: 21 | Q28: =IFERROR(VLOOKUP(P28,Players!$AF$3:$AH$1019,2,FALSE),"") ->  | R28: =IFERROR(VLOOKUP(P28,Players!$AF$3:$AH$1019,3,FALSE),"") ->  | S28: =VLOOKUP(P28,Players!$AF$3:$AI$1019,4,FALSE) ->  | U28: TRUE | V28: 0 | W28: 0 | Y28: 21 | Z28: =IFERROR(VLOOKUP(Y28,Players!$BO$3:$BQ$1019,2,FALSE),"") ->  | AA28: =IFERROR(VLOOKUP(Y28,Players!$BO$3:$BQ$1019,3,FALSE),"") ->  | AB28: =VLOOKUP(Y28,Players!$BO$3:$BR$1019,4,FALSE) ->  | AD28: TRUE | AE28: 0 | AF28: 0
A29: =IF('User Input'!C17 = 0,"",'User Input'!C17) ->  | B29: =IF('User Input'!C17=0,"",COUNTIF(Players!$O$3:$O$903,A29)) ->  | C29: =IF('User Input'!C17=0,"",COUNTIF(Players!$AV$3:$AW$937,A29)) ->  | D29: =IF('User Input'!C17=0,"",C29+B29) ->  | E29: =IF('User Input'!C17=0,"",SUMIF(Players!$O$3:$O$903,A29,Players!$P$3:$P$903)) ->  | F29: =IF('User Input'!C17=0,"",SUMIF(Players!$AW$3:$AW$937,A29,Players!$AX$3:$AX$937)) ->  | G29: =IF('User Input'!C17 = 0,"",F29+E29) ->  | H29: =IF('User Input'!C17=0,"",IF(('User Input'!$C$34-B29)<0,0,'User Input'!$C$34-B29)) ->  | I29: =IF('User Input'!C17=0,"",IF(('User Input'!$C$35-C29)<0,0,'User Input'!$C$35-C29)) ->  | J29: =IF('User Input'!C17=0,"",K29-H29-I29) ->  | K29: =IF('User Input'!C17 = 0,"",'User Input'!$C$34+'User Input'!$C$35+'User Input'!$C$36-D29) ->  | L29: =IF('User Input'!C17 = 0,"",'User Input'!$C$32-G29) ->  | M29: =IF('User Input'!C17=0,"",IF(K29<1,0,L29/K29)) ->  | N29: =IF('User Input'!C17 = 0,"",L29-K29+1) ->  | P29: 22 | Q29: =IFERROR(VLOOKUP(P29,Players!$AF$3:$AH$1019,2,FALSE),"") ->  | R29: =IFERROR(VLOOKUP(P29,Players!$AF$3:$AH$1019,3,FALSE),"") ->  | S29: =VLOOKUP(P29,Players!$AF$3:$AI$1019,4,FALSE) ->  | U29: TRUE | V29: 0 | W29: 0 | Y29: 22 | Z29: =IFERROR(VLOOKUP(Y29,Players!$BO$3:$BQ$1019,2,FALSE),"") ->  | AA29: =IFERROR(VLOOKUP(Y29,Players!$BO$3:$BQ$1019,3,FALSE),"") ->  | AB29: =VLOOKUP(Y29,Players!$BO$3:$BR$1019,4,FALSE) ->  | AD29: TRUE | AE29: 0 | AF29: 0
A30: =IF('User Input'!C18 = 0,"",'User Input'!C18) ->  | B30: =IF('User Input'!C18=0,"",COUNTIF(Players!$O$3:$O$903,A30)) ->  | C30: =IF('User Input'!C18=0,"",COUNTIF(Players!$AV$3:$AW$937,A30)) ->  | D30: =IF('User Input'!C18=0,"",C30+B30) ->  | E30: =IF('User Input'!C18=0,"",SUMIF(Players!$O$3:$O$903,A30,Players!$P$3:$P$903)) ->  | F30: =IF('User Input'!C18=0,"",SUMIF(Players!$AW$3:$AW$937,A30,Players!$AX$3:$AX$937)) ->  | G30: =IF('User Input'!C18 = 0,"",F30+E30) ->  | H30: =IF('User Input'!C18=0,"",IF(('User Input'!$C$34-B30)<0,0,'User Input'!$C$34-B30)) ->  | I30: =IF('User Input'!C18=0,"",IF(('User Input'!$C$35-C30)<0,0,'User Input'!$C$35-C30)) ->  | J30: =IF('User Input'!C18=0,"",K30-H30-I30) ->  | K30: =IF('User Input'!C18 = 0,"",'User Input'!$C$34+'User Input'!$C$35+'User Input'!$C$36-D30) ->  | L30: =IF('User Input'!C18 = 0,"",'User Input'!$C$32-G30) ->  | M30: =IF('User Input'!C18=0,"",IF(K30<1,0,L30/K30)) ->  | N30: =IF('User Input'!C18 = 0,"",L30-K30+1) ->  | P30: 23 | Q30: =IFERROR(VLOOKUP(P30,Players!$AF$3:$AH$1019,2,FALSE),"") ->  | R30: =IFERROR(VLOOKUP(P30,Players!$AF$3:$AH$1019,3,FALSE),"") ->  | S30: =VLOOKUP(P30,Players!$AF$3:$AI$1019,4,FALSE) ->  | U30: TRUE | V30: 0 | W30: 0 | Y30: 23 | Z30: =IFERROR(VLOOKUP(Y30,Players!$BO$3:$BQ$1019,2,FALSE),"") ->  | AA30: =IFERROR(VLOOKUP(Y30,Players!$BO$3:$BQ$1019,3,FALSE),"") ->  | AB30: =VLOOKUP(Y30,Players!$BO$3:$BR$1019,4,FALSE) ->  | AD30: TRUE | AE30: 0 | AF30: 0
A31: =IF('User Input'!C19 = 0,"",'User Input'!C19) ->  | B31: =IF('User Input'!C19=0,"",COUNTIF(Players!$O$3:$O$903,A31)) ->  | C31: =IF('User Input'!C19=0,"",COUNTIF(Players!$AV$3:$AW$937,A31)) ->  | D31: =IF('User Input'!C19=0,"",C31+B31) ->  | E31: =IF('User Input'!C19=0,"",SUMIF(Players!$O$3:$O$903,A31,Players!$P$3:$P$903)) ->  | F31: =IF('User Input'!C19=0,"",SUMIF(Players!$AW$3:$AW$937,A31,Players!$AX$3:$AX$937)) ->  | G31: =IF('User Input'!C19 = 0,"",F31+E31) ->  | H31: =IF('User Input'!C19=0,"",IF(('User Input'!$C$34-B31)<0,0,'User Input'!$C$34-B31)) ->  | I31: =IF('User Input'!C19=0,"",IF(('User Input'!$C$35-C31)<0,0,'User Input'!$C$35-C31)) ->  | J31: =IF('User Input'!C19=0,"",K31-H31-I31) ->  | K31: =IF('User Input'!C19 = 0,"",'User Input'!$C$34+'User Input'!$C$35+'User Input'!$C$36-D31) ->  | L31: =IF('User Input'!C19 = 0,"",'User Input'!$C$32-G31) ->  | M31: =IF('User Input'!C19=0,"",IF(K31<1,0,L31/K31)) ->  | N31: =IF('User Input'!C19 = 0,"",L31-K31+1) ->  | P31: 24 | Q31: =IFERROR(VLOOKUP(P31,Players!$AF$3:$AH$1019,2,FALSE),"") ->  | R31: =IFERROR(VLOOKUP(P31,Players!$AF$3:$AH$1019,3,FALSE),"") ->  | S31: =VLOOKUP(P31,Players!$AF$3:$AI$1019,4,FALSE) ->  | U31: TRUE | V31: 0 | W31: 0 | Y31: 24 | Z31: =IFERROR(VLOOKUP(Y31,Players!$BO$3:$BQ$1019,2,FALSE),"") ->  | AA31: =IFERROR(VLOOKUP(Y31,Players!$BO$3:$BQ$1019,3,FALSE),"") ->  | AB31: =VLOOKUP(Y31,Players!$BO$3:$BR$1019,4,FALSE) ->  | AD31: TRUE | AE31: 0 | AF31: 0
A32: =IF('User Input'!C20 = 0,"",'User Input'!C20) ->  | B32: =IF('User Input'!C20=0,"",COUNTIF(Players!$O$3:$O$903,A32)) ->  | C32: =IF('User Input'!C20=0,"",COUNTIF(Players!$AV$3:$AW$937,A32)) ->  | D32: =IF('User Input'!C20=0,"",C32+B32) ->  | E32: =IF('User Input'!C20=0,"",SUMIF(Players!$O$3:$O$903,A32,Players!$P$3:$P$903)) ->  | F32: =IF('User Input'!C20=0,"",SUMIF(Players!$AW$3:$AW$937,A32,Players!$AX$3:$AX$937)) ->  | G32: =IF('User Input'!C20 = 0,"",F32+E32) ->  | H32: =IF('User Input'!C20=0,"",IF(('User Input'!$C$34-B32)<0,0,'User Input'!$C$34-B32)) ->  | I32: =IF('User Input'!C20=0,"",IF(('User Input'!$C$35-C32)<0,0,'User Input'!$C$35-C32)) ->  | J32: =IF('User Input'!C20=0,"",K32-H32-I32) ->  | K32: =IF('User Input'!C20 = 0,"",'User Input'!$C$34+'User Input'!$C$35+'User Input'!$C$36-D32) ->  | L32: =IF('User Input'!C20 = 0,"",'User Input'!$C$32-G32) ->  | M32: =IF('User Input'!C20=0,"",IF(K32<1,0,L32/K32)) ->  | N32: =IF('User Input'!C20 = 0,"",L32-K32+1) ->  | P32: 25 | Q32: =IFERROR(VLOOKUP(P32,Players!$AF$3:$AH$1019,2,FALSE),"") ->  | R32: =IFERROR(VLOOKUP(P32,Players!$AF$3:$AH$1019,3,FALSE),"") ->  | S32: =VLOOKUP(P32,Players!$AF$3:$AI$1019,4,FALSE) ->  | U32: TRUE | V32: 0 | W32: 0 | Y32: 25 | Z32: =IFERROR(VLOOKUP(Y32,Players!$BO$3:$BQ$1019,2,FALSE),"") ->  | AA32: =IFERROR(VLOOKUP(Y32,Players!$BO$3:$BQ$1019,3,FALSE),"") ->  | AB32: =VLOOKUP(Y32,Players!$BO$3:$BR$1019,4,FALSE) ->  | AD32: TRUE | AE32: 0 | AF32: 0
A33: =IF('User Input'!C21 = 0,"",'User Input'!C21) ->  | B33: =IF('User Input'!C21=0,"",COUNTIF(Players!$O$3:$O$903,A33)) ->  | C33: =IF('User Input'!C21=0,"",COUNTIF(Players!$AV$3:$AW$937,A33)) ->  | D33: =IF('User Input'!C21=0,"",C33+B33) ->  | E33: =IF('User Input'!C21=0,"",SUMIF(Players!$O$3:$O$903,A33,Players!$P$3:$P$903)) ->  | F33: =IF('User Input'!C21=0,"",SUMIF(Players!$AW$3:$AW$937,A33,Players!$AX$3:$AX$937)) ->  | G33: =IF('User Input'!C21 = 0,"",F33+E33) ->  | H33: =IF('User Input'!C21=0,"",IF(('User Input'!$C$34-B33)<0,0,'User Input'!$C$34-B33)) ->  | I33: =IF('User Input'!C21=0,"",IF(('User Input'!$C$35-C33)<0,0,'User Input'!$C$35-C33)) ->  | J33: =IF('User Input'!C21=0,"",K33-H33-I33) ->  | K33: =IF('User Input'!C21 = 0,"",'User Input'!$C$34+'User Input'!$C$35+'User Input'!$C$36-D33) ->  | L33: =IF('User Input'!C21 = 0,"",'User Input'!$C$32-G33) ->  | M33: =IF('User Input'!C21=0,"",IF(K33<1,0,L33/K33)) ->  | N33: =IF('User Input'!C21 = 0,"",L33-K33+1) ->  | P33: 26 | Q33: =IFERROR(VLOOKUP(P33,Players!$AF$3:$AH$1019,2,FALSE),"") ->  | R33: =IFERROR(VLOOKUP(P33,Players!$AF$3:$AH$1019,3,FALSE),"") ->  | S33: =VLOOKUP(P33,Players!$AF$3:$AI$1019,4,FALSE) ->  | U33: TRUE | V33: 0 | W33: 0 | Y33: 26 | Z33: =IFERROR(VLOOKUP(Y33,Players!$BO$3:$BQ$1019,2,FALSE),"") ->  | AA33: =IFERROR(VLOOKUP(Y33,Players!$BO$3:$BQ$1019,3,FALSE),"") ->  | AB33: =VLOOKUP(Y33,Players!$BO$3:$BR$1019,4,FALSE) ->  | AD33: TRUE | AE33: 0 | AF33: 0
A34: =IF('User Input'!C22 = 0,"",'User Input'!C22) ->  | B34: =IF('User Input'!C22=0,"",COUNTIF(Players!$O$3:$O$903,A34)) ->  | C34: =IF('User Input'!C22=0,"",COUNTIF(Players!$AV$3:$AW$937,A34)) ->  | D34: =IF('User Input'!C22=0,"",C34+B34) ->  | E34: =IF('User Input'!C22=0,"",SUMIF(Players!$O$3:$O$903,A34,Players!$P$3:$P$903)) ->  | F34: =IF('User Input'!C22=0,"",SUMIF(Players!$AW$3:$AW$937,A34,Players!$AX$3:$AX$937)) ->  | G34: =IF('User Input'!C22 = 0,"",F34+E34) ->  | H34: =IF('User Input'!C22=0,"",IF(('User Input'!$C$34-B34)<0,0,'User Input'!$C$34-B34)) ->  | I34: =IF('User Input'!C22=0,"",IF(('User Input'!$C$35-C34)<0,0,'User Input'!$C$35-C34)) ->  | J34: =IF('User Input'!C22=0,"",K34-H34-I34) ->  | K34: =IF('User Input'!C22 = 0,"",'User Input'!$C$34+'User Input'!$C$35+'User Input'!$C$36-D34) ->  | L34: =IF('User Input'!C22 = 0,"",'User Input'!$C$32-G34) ->  | M34: =IF('User Input'!C22=0,"",IF(K34<1,0,L34/K34)) ->  | N34: =IF('User Input'!C22 = 0,"",L34-K34+1) ->  | P34: 27 | Q34: =IFERROR(VLOOKUP(P34,Players!$AF$3:$AH$1019,2,FALSE),"") ->  | R34: =IFERROR(VLOOKUP(P34,Players!$AF$3:$AH$1019,3,FALSE),"") ->  | S34: =VLOOKUP(P34,Players!$AF$3:$AI$1019,4,FALSE) ->  | U34: TRUE | V34: 0 | W34: 0 | Y34: 27 | Z34: =IFERROR(VLOOKUP(Y34,Players!$BO$3:$BQ$1019,2,FALSE),"") ->  | AA34: =IFERROR(VLOOKUP(Y34,Players!$BO$3:$BQ$1019,3,FALSE),"") ->  | AB34: =VLOOKUP(Y34,Players!$BO$3:$BR$1019,4,FALSE) ->  | AD34: TRUE | AE34: 0 | AF34: 0
A35: =IF('User Input'!C23 = 0,"",'User Input'!C23) ->  | B35: =IF('User Input'!C23=0,"",COUNTIF(Players!$O$3:$O$903,A35)) ->  | C35: =IF('User Input'!C23=0,"",COUNTIF(Players!$AV$3:$AW$937,A35)) ->  | D35: =IF('User Input'!C23=0,"",C35+B35) ->  | E35: =IF('User Input'!C23=0,"",SUMIF(Players!$O$3:$O$903,A35,Players!$P$3:$P$903)) ->  | F35: =IF('User Input'!C23=0,"",SUMIF(Players!$AW$3:$AW$937,A35,Players!$AX$3:$AX$937)) ->  | G35: =IF('User Input'!C23 = 0,"",F35+E35) ->  | H35: =IF('User Input'!C23=0,"",IF(('User Input'!$C$34-B35)<0,0,'User Input'!$C$34-B35)) ->  | I35: =IF('User Input'!C23=0,"",IF(('User Input'!$C$35-C35)<0,0,'User Input'!$C$35-C35)) ->  | J35: =IF('User Input'!C23=0,"",K35-H35-I35) ->  | K35: =IF('User Input'!C23 = 0,"",'User Input'!$C$34+'User Input'!$C$35+'User Input'!$C$36-D35) ->  | L35: =IF('User Input'!C23 = 0,"",'User Input'!$C$32-G35) ->  | M35: =IF('User Input'!C23=0,"",IF(K35<1,0,L35/K35)) ->  | N35: =IF('User Input'!C23 = 0,"",L35-K35+1) ->  | P35: 28 | Q35: =IFERROR(VLOOKUP(P35,Players!$AF$3:$AH$1019,2,FALSE),"") ->  | R35: =IFERROR(VLOOKUP(P35,Players!$AF$3:$AH$1019,3,FALSE),"") ->  | S35: =VLOOKUP(P35,Players!$AF$3:$AI$1019,4,FALSE) ->  | U35: TRUE | V35: 0 | W35: 0 | Y35: 28 | Z35: =IFERROR(VLOOKUP(Y35,Players!$BO$3:$BQ$1019,2,FALSE),"") ->  | AA35: =IFERROR(VLOOKUP(Y35,Players!$BO$3:$BQ$1019,3,FALSE),"") ->  | AB35: =VLOOKUP(Y35,Players!$BO$3:$BR$1019,4,FALSE) ->  | AD35: TRUE | AE35: 0 | AF35: 0
A36: =IF('User Input'!C24 = 0,"",'User Input'!C24) ->  | B36: =IF('User Input'!C24=0,"",COUNTIF(Players!$O$3:$O$903,A36)) ->  | C36: =IF('User Input'!C24=0,"",COUNTIF(Players!$AV$3:$AW$937,A36)) ->  | D36: =IF('User Input'!C24=0,"",C36+B36) ->  | E36: =IF('User Input'!C24=0,"",SUMIF(Players!$O$3:$O$903,A36,Players!$P$3:$P$903)) ->  | F36: =IF('User Input'!C24=0,"",SUMIF(Players!$AW$3:$AW$937,A36,Players!$AX$3:$AX$937)) ->  | G36: =IF('User Input'!C24 = 0,"",F36+E36) ->  | H36: =IF('User Input'!C24=0,"",IF(('User Input'!$C$34-B36)<0,0,'User Input'!$C$34-B36)) ->  | I36: =IF('User Input'!C24=0,"",IF(('User Input'!$C$35-C36)<0,0,'User Input'!$C$35-C36)) ->  | J36: =IF('User Input'!C24=0,"",K36-H36-I36) ->  | K36: =IF('User Input'!C24 = 0,"",'User Input'!$C$34+'User Input'!$C$35+'User Input'!$C$36-D36) ->  | L36: =IF('User Input'!C24 = 0,"",'User Input'!$C$32-G36) ->  | M36: =IF('User Input'!C24=0,"",IF(K36<1,0,L36/K36)) ->  | N36: =IF('User Input'!C24 = 0,"",L36-K36+1) ->  | P36: 29 | Q36: =IFERROR(VLOOKUP(P36,Players!$AF$3:$AH$1019,2,FALSE),"") ->  | R36: =IFERROR(VLOOKUP(P36,Players!$AF$3:$AH$1019,3,FALSE),"") ->  | S36: =VLOOKUP(P36,Players!$AF$3:$AI$1019,4,FALSE) ->  | U36: TRUE | V36: 0 | W36: 0 | Y36: 29 | Z36: =IFERROR(VLOOKUP(Y36,Players!$BO$3:$BQ$1019,2,FALSE),"") ->  | AA36: =IFERROR(VLOOKUP(Y36,Players!$BO$3:$BQ$1019,3,FALSE),"") ->  | AB36: =VLOOKUP(Y36,Players!$BO$3:$BR$1019,4,FALSE) ->  | AD36: TRUE | AE36: 0 | AF36: 0
A37: =IF('User Input'!C25 = 0,"",'User Input'!C25) ->  | B37: =IF('User Input'!C25=0,"",COUNTIF(Players!$O$3:$O$903,A37)) ->  | C37: =IF('User Input'!C25=0,"",COUNTIF(Players!$AV$3:$AW$937,A37)) ->  | D37: =IF('User Input'!C25=0,"",C37+B37) ->  | E37: =IF('User Input'!C25=0,"",SUMIF(Players!$O$3:$O$903,A37,Players!$P$3:$P$903)) ->  | F37: =IF('User Input'!C25=0,"",SUMIF(Players!$AW$3:$AW$937,A37,Players!$AX$3:$AX$937)) ->  | G37: =IF('User Input'!C25 = 0,"",F37+E37) ->  | H37: =IF('User Input'!C25=0,"",IF(('User Input'!$C$34-B37)<0,0,'User Input'!$C$34-B37)) ->  | I37: =IF('User Input'!C25=0,"",IF(('User Input'!$C$35-C37)<0,0,'User Input'!$C$35-C37)) ->  | J37: =IF('User Input'!C25=0,"",K37-H37-I37) ->  | K37: =IF('User Input'!C25 = 0,"",'User Input'!$C$34+'User Input'!$C$35+'User Input'!$C$36-D37) ->  | L37: =IF('User Input'!C25 = 0,"",'User Input'!$C$32-G37) ->  | M37: =IF('User Input'!C25=0,"",IF(K37<1,0,L37/K37)) ->  | N37: =IF('User Input'!C25 = 0,"",L37-K37+1) ->  | P37: 30 | Q37: =IFERROR(VLOOKUP(P37,Players!$AF$3:$AH$1019,2,FALSE),"") ->  | R37: =IFERROR(VLOOKUP(P37,Players!$AF$3:$AH$1019,3,FALSE),"") ->  | S37: =VLOOKUP(P37,Players!$AF$3:$AI$1019,4,FALSE) ->  | Y37: 30 | Z37: =IFERROR(VLOOKUP(Y37,Players!$BO$3:$BQ$1019,2,FALSE),"") ->  | AA37: =IFERROR(VLOOKUP(Y37,Players!$BO$3:$BQ$1019,3,FALSE),"") ->  | AB37: =VLOOKUP(Y37,Players!$BO$3:$BR$1019,4,FALSE) -> 
A38: =IF('User Input'!C26 = 0,"",'User Input'!C26) ->  | B38: =IF('User Input'!C26=0,"",COUNTIF(Players!$O$3:$O$903,A38)) ->  | C38: =IF('User Input'!C26=0,"",COUNTIF(Players!$AV$3:$AW$937,A38)) ->  | D38: =IF('User Input'!C26=0,"",C38+B38) ->  | E38: =IF('User Input'!C26=0,"",SUMIF(Players!$O$3:$O$903,A38,Players!$P$3:$P$903)) ->  | F38: =IF('User Input'!C26=0,"",SUMIF(Players!$AW$3:$AW$937,A38,Players!$AX$3:$AX$937)) ->  | G38: =IF('User Input'!C26 = 0,"",F38+E38) ->  | H38: =IF('User Input'!C26=0,"",IF(('User Input'!$C$34-B38)<0,0,'User Input'!$C$34-B38)) ->  | I38: =IF('User Input'!C26=0,"",IF(('User Input'!$C$35-C38)<0,0,'User Input'!$C$35-C38)) ->  | J38: =IF('User Input'!C26=0,"",K38-H38-I38) ->  | K38: =IF('User Input'!C26 = 0,"",'User Input'!$C$34+'User Input'!$C$35+'User Input'!$C$36-D38) ->  | L38: =IF('User Input'!C26 = 0,"",'User Input'!$C$32-G38) ->  | M38: =IF('User Input'!C26=0,"",IF(K38<1,0,L38/K38)) ->  | N38: =IF('User Input'!C26 = 0,"",L38-K38+1) ->  | P38: 31 | Q38: =IFERROR(VLOOKUP(P38,Players!$AF$3:$AH$1019,2,FALSE),"") ->  | R38: =IFERROR(VLOOKUP(P38,Players!$AF$3:$AH$1019,3,FALSE),"") ->  | S38: =VLOOKUP(P38,Players!$AF$3:$AI$1019,4,FALSE) ->  | Y38: 31 | Z38: =IFERROR(VLOOKUP(Y38,Players!$BO$3:$BQ$1019,2,FALSE),"") ->  | AA38: =IFERROR(VLOOKUP(Y38,Players!$BO$3:$BQ$1019,3,FALSE),"") ->  | AB38: =VLOOKUP(Y38,Players!$BO$3:$BR$1019,4,FALSE) -> 
A39: =IF('User Input'!C27 = 0,"",'User Input'!C27) ->  | B39: =IF('User Input'!C27=0,"",COUNTIF(Players!$O$3:$O$903,A39)) ->  | C39: =IF('User Input'!C27=0,"",COUNTIF(Players!$AV$3:$AW$937,A39)) ->  | D39: =IF('User Input'!C27=0,"",C39+B39) ->  | E39: =IF('User Input'!C27=0,"",SUMIF(Players!$O$3:$O$903,A39,Players!$P$3:$P$903)) ->  | F39: =IF('User Input'!C27=0,"",SUMIF(Players!$AW$3:$AW$937,A39,Players!$AX$3:$AX$937)) ->  | G39: =IF('User Input'!C27 = 0,"",F39+E39) ->  | H39: =IF('User Input'!C27=0,"",IF(('User Input'!$C$34-B39)<0,0,'User Input'!$C$34-B39)) ->  | I39: =IF('User Input'!C27=0,"",IF(('User Input'!$C$35-C39)<0,0,'User Input'!$C$35-C39)) ->  | J39: =IF('User Input'!C27=0,"",K39-H39-I39) ->  | K39: =IF('User Input'!C27 = 0,"",'User Input'!$C$34+'User Input'!$C$35+'User Input'!$C$36-D39) ->  | L39: =IF('User Input'!C27 = 0,"",'User Input'!$C$32-G39) ->  | M39: =IF('User Input'!C27=0,"",IF(K39<1,0,L39/K39)) ->  | N39: =IF('User Input'!C27 = 0,"",L39-K39+1) ->  | P39: 32 | Q39: =IFERROR(VLOOKUP(P39,Players!$AF$3:$AH$1019,2,FALSE),"") ->  | R39: =IFERROR(VLOOKUP(P39,Players!$AF$3:$AH$1019,3,FALSE),"") ->  | S39: =VLOOKUP(P39,Players!$AF$3:$AI$1019,4,FALSE) ->  | Y39: 32 | Z39: =IFERROR(VLOOKUP(Y39,Players!$BO$3:$BQ$1019,2,FALSE),"") ->  | AA39: =IFERROR(VLOOKUP(Y39,Players!$BO$3:$BQ$1019,3,FALSE),"") ->  | AB39: =VLOOKUP(Y39,Players!$BO$3:$BR$1019,4,FALSE) -> 
A40: =IF('User Input'!C28 = 0,"",'User Input'!C28) ->  | B40: =IF('User Input'!C28=0,"",COUNTIF(Players!$O$3:$O$903,A40)) ->  | C40: =IF('User Input'!C28=0,"",COUNTIF(Players!$AV$3:$AW$937,A40)) ->  | D40: =IF('User Input'!C28=0,"",C40+B40) ->  | E40: =IF('User Input'!C28=0,"",SUMIF(Players!$O$3:$O$903,A40,Players!$P$3:$P$903)) ->  | F40: =IF('User Input'!C28=0,"",SUMIF(Players!$AW$3:$AW$937,A40,Players!$AX$3:$AX$937)) ->  | G40: =IF('User Input'!C28 = 0,"",F40+E40) ->  | H40: =IF('User Input'!C28=0,"",IF(('User Input'!$C$34-B40)<0,0,'User Input'!$C$34-B40)) ->  | I40: =IF('User Input'!C28=0,"",IF(('User Input'!$C$35-C40)<0,0,'User Input'!$C$35-C40)) ->  | J40: =IF('User Input'!C28=0,"",K40-H40-I40) ->  | K40: =IF('User Input'!C28 = 0,"",'User Input'!$C$34+'User Input'!$C$35+'User Input'!$C$36-D40) ->  | L40: =IF('User Input'!C28 = 0,"",'User Input'!$C$32-G40) ->  | M40: =IF('User Input'!C28=0,"",IF(K40<1,0,L40/K40)) ->  | N40: =IF('User Input'!C28 = 0,"",L40-K40+1) ->  | P40: 33 | Q40: =IFERROR(VLOOKUP(P40,Players!$AF$3:$AH$1019,2,FALSE),"") ->  | R40: =IFERROR(VLOOKUP(P40,Players!$AF$3:$AH$1019,3,FALSE),"") ->  | S40: =VLOOKUP(P40,Players!$AF$3:$AI$1019,4,FALSE) ->  | Y40: 33 | Z40: =IFERROR(VLOOKUP(Y40,Players!$BO$3:$BQ$1019,2,FALSE),"") ->  | AA40: =IFERROR(VLOOKUP(Y40,Players!$BO$3:$BQ$1019,3,FALSE),"") ->  | AB40: =VLOOKUP(Y40,Players!$BO$3:$BR$1019,4,FALSE) -> 
A41: =IF('User Input'!C29 = 0,"",'User Input'!C29) ->  | B41: =IF('User Input'!C29=0,"",COUNTIF(Players!$O$3:$O$903,A41)) ->  | C41: =IF('User Input'!C29=0,"",COUNTIF(Players!$AV$3:$AW$937,A41)) ->  | D41: =IF('User Input'!C29=0,"",C41+B41) ->  | E41: =IF('User Input'!C29=0,"",SUMIF(Players!$O$3:$O$903,A41,Players!$P$3:$P$903)) ->  | F41: =IF('User Input'!C29=0,"",SUMIF(Players!$AW$3:$AW$937,A41,Players!$AX$3:$AX$937)) ->  | G41: =IF('User Input'!C29 = 0,"",F41+E41) ->  | H41: =IF('User Input'!C29=0,"",IF(('User Input'!$C$34-B41)<0,0,'User Input'!$C$34-B41)) ->  | I41: =IF('User Input'!C29=0,"",IF(('User Input'!$C$35-C41)<0,0,'User Input'!$C$35-C41)) ->  | J41: =IF('User Input'!C29=0,"",K41-H41-I41) ->  | K41: =IF('User Input'!C29 = 0,"",'User Input'!$C$34+'User Input'!$C$35+'User Input'!$C$36-D41) ->  | L41: =IF('User Input'!C29 = 0,"",'User Input'!$C$32-G41) ->  | M41: =IF('User Input'!C29=0,"",IF(K41<1,0,L41/K41)) ->  | N41: =IF('User Input'!C29 = 0,"",L41-K41+1) ->  | P41: 34 | Q41: =IFERROR(VLOOKUP(P41,Players!$AF$3:$AH$1019,2,FALSE),"") ->  | R41: =IFERROR(VLOOKUP(P41,Players!$AF$3:$AH$1019,3,FALSE),"") ->  | S41: =VLOOKUP(P41,Players!$AF$3:$AI$1019,4,FALSE) ->  | Y41: 34 | Z41: =IFERROR(VLOOKUP(Y41,Players!$BO$3:$BQ$1019,2,FALSE),"") ->  | AA41: =IFERROR(VLOOKUP(Y41,Players!$BO$3:$BQ$1019,3,FALSE),"") ->  | AB41: =VLOOKUP(Y41,Players!$BO$3:$BR$1019,4,FALSE) -> 
A42: =IF('User Input'!C30 = 0,"",'User Input'!C30) ->  | B42: =IF('User Input'!C30=0,"",COUNTIF(Players!$O$3:$O$903,A42)) ->  | C42: =IF('User Input'!C30=0,"",COUNTIF(Players!$AV$3:$AW$937,A42)) ->  | D42: =IF('User Input'!C30=0,"",C42+B42) ->  | E42: =IF('User Input'!C30=0,"",SUMIF(Players!$O$3:$O$903,A42,Players!$P$3:$P$903)) ->  | F42: =IF('User Input'!C30=0,"",SUMIF(Players!$AW$3:$AW$937,A42,Players!$AX$3:$AX$937)) ->  | G42: =IF('User Input'!C30 = 0,"",F42+E42) ->  | H42: =IF('User Input'!C30=0,"",IF(('User Input'!$C$34-B42)<0,0,'User Input'!$C$34-B42)) ->  | I42: =IF('User Input'!C30=0,"",IF(('User Input'!$C$35-C42)<0,0,'User Input'!$C$35-C42)) ->  | J42: =IF('User Input'!C30=0,"",K42-H42-I42) ->  | K42: =IF('User Input'!C30 = 0,"",'User Input'!$C$34+'User Input'!$C$35+'User Input'!$C$36-D42) ->  | L42: =IF('User Input'!C30 = 0,"",'User Input'!$C$32-G42) ->  | M42: =IF('User Input'!C30=0,"",IF(K42<1,0,L42/K42)) ->  | N42: =IF('User Input'!C30 = 0,"",L42-K42+1) ->  | P42: 35 | Q42: =IFERROR(VLOOKUP(P42,Players!$AF$3:$AH$1019,2,FALSE),"") ->  | R42: =IFERROR(VLOOKUP(P42,Players!$AF$3:$AH$1019,3,FALSE),"") ->  | S42: =VLOOKUP(P42,Players!$AF$3:$AI$1019,4,FALSE) ->  | U42: =ISERROR(S42) -> TRUE | V42: =IF(U42=FALSE,R42,0) -> 0 | W42: =IF(U42=FALSE,S42,0) -> 0 | Y42: 35 | Z42: =IFERROR(VLOOKUP(Y42,Players!$BO$3:$BQ$1019,2,FALSE),"") ->  | AA42: =IFERROR(VLOOKUP(Y42,Players!$BO$3:$BQ$1019,3,FALSE),"") ->  | AB42: =VLOOKUP(Y42,Players!$BO$3:$BR$1019,4,FALSE) ->  | AD42: TRUE | AE42: 0 | AF42: 0
R43: =SUM(V8:V42) -> 0 | S43: =SUM(W8:W42) -> 0 | AA43: =SUM(AE8:AE42) -> 0 | AB43: =SUM(AF8:AF42) -> 0
B44: RANKING STYLE: | C44: =IF(ranktype=1,'User Input'!N25,'User Input'!N24) -> descending 1-12 (1 is best, 12 worst) | I44: (change on User Input tab)
B45: Projected Batting Ranks | H45: Projected Pitching Ranks | M45: tot | N45: Team Rank** | O45: (** Total rank requires min 1 H and 1P from every active team)
B46: R | C46: HR | D46: RBI | E46: SB | F46: AVG | G46: IP | H46: ERA | I46: WHIP | J46: W | K46: S | L46: K
A47: =IF('User Input'!C1 = 0,"",'User Input'!C1) -> a | B47: =IF('User Input'!C1=0,"",RANK(C114,C$114:C$143,ranktype)) -> 1 | C47: =IF('User Input'!C1=0,"",RANK(D114,D$114:D$143,ranktype)) -> 1 | D47: =IF('User Input'!C1=0,"",RANK(E114,E$114:E$143,ranktype)) -> 1 | E47: =IF('User Input'!C1=0,"",RANK(F114,F$114:F$143,ranktype)) -> 1 | F47: =IF(ISERROR(IF('User Input'!C1=0,"",RANK(G114,G$114:G$143,ranktype))),"N/A",(IF('User Input'!C1=0,"",RANK(G114,G$114:G$143,ranktype)))) -> N/A | G47: =IF('User Input'!C1=0,"",SUMIF(Players!$AW$3:$AW$937,A47,Players!BD$3:BD$937)) -> 0 | H47: =IF(ISERROR(IF('User Input'!C1=0,"",RANK(I114,I$114:I$143,IF(ranktype=1,0,1)))),"N/A",(IF('User Input'!C1=0,"",RANK(I114,I$114:I$143,IF(ranktype=1,0,1))))) -> N/A | I47: =IF(ISERROR(IF('User Input'!C1=0,"",RANK(J114,J$114:J$143,IF(ranktype=1,0,1)))),"N/A",(IF('User Input'!C1=0,"",RANK(J114,J$114:J$143,IF(ranktype=1,0,1))))) -> N/A | J47: =IF('User Input'!C1=0,"",RANK(K114,K$114:K$143,ranktype)) -> 1 | K47: =IF('User Input'!C1=0,"",RANK(L114,L$114:L$143,ranktype)) -> 1 | L47: =IF('User Input'!C1=0,"",RANK(M114,M$114:M$143,ranktype)) -> 1 | M47: =IF(ISERROR(IF('User Input'!C1=0,"",B47+C47+D47+E47+F47+H47+I47+J47+K47+L47)),"N/A",(IF('User Input'!C1=0,"",B47+C47+D47+E47+F47+H47+I47+J47+K47+L47))) -> N/A | N47: =IF(ISERROR(IF('User Input'!C1=0,"",RANK(M47,M$47:M$76,IF(ranktype=1,0,1)))),"N/A",(IF('User Input'!C1=0,"",RANK(M47,M$47:M$76,IF(ranktype=1,0,1))))) -> N/A | O47: ← ← ← YOUR TEAM
A48: =IF('User Input'!C2 = 0,"",'User Input'!C2) -> b | B48: =IF('User Input'!C2=0,"",RANK(C115,C$114:C$143,ranktype)) -> 1 | C48: =IF('User Input'!C2=0,"",RANK(D115,D$114:D$143,ranktype)) -> 1 | D48: =IF('User Input'!C2=0,"",RANK(E115,E$114:E$143,ranktype)) -> 1 | E48: =IF('User Input'!C2=0,"",RANK(F115,F$114:F$143,ranktype)) -> 1 | F48: =IF(ISERROR(IF('User Input'!C2=0,"",RANK(G115,G$114:G$143,ranktype))),"N/A",(IF('User Input'!C2=0,"",RANK(G115,G$114:G$143,ranktype)))) -> N/A | G48: =IF('User Input'!C2=0,"",SUMIF(Players!$AW$3:$AW$937,A48,Players!BD$3:BD$937)) -> 0 | H48: =IF(ISERROR(IF('User Input'!C2=0,"",RANK(I115,I$114:I$143,IF(ranktype=1,0,1)))),"N/A",(IF('User Input'!C2=0,"",RANK(I115,I$114:I$143,IF(ranktype=1,0,1))))) -> N/A | I48: =IF(ISERROR(IF('User Input'!C2=0,"",RANK(J115,J$114:J$143,IF(ranktype=1,0,1)))),"N/A",(IF('User Input'!C2=0,"",RANK(J115,J$114:J$143,IF(ranktype=1,0,1))))) -> N/A | J48: =IF('User Input'!C2=0,"",RANK(K115,K$114:K$143,ranktype)) -> 1 | K48: =IF('User Input'!C2=0,"",RANK(L115,L$114:L$143,ranktype)) -> 1 | L48: =IF('User Input'!C2=0,"",RANK(M115,M$114:M$143,ranktype)) -> 1 | M48: =IF(ISERROR(IF('User Input'!C2=0,"",B48+C48+D48+E48+F48+H48+I48+J48+K48+L48)),"N/A",(IF('User Input'!C2=0,"",B48+C48+D48+E48+F48+H48+I48+J48+K48+L48))) -> N/A | N48: =IF(ISERROR(IF('User Input'!C2=0,"",RANK(M48,M$47:M$76,IF(ranktype=1,0,1)))),"N/A",(IF('User Input'!C2=0,"",RANK(M48,M$47:M$76,IF(ranktype=1,0,1))))) -> N/A
A49: =IF('User Input'!C3 = 0,"",'User Input'!C3) -> c | B49: =IF('User Input'!C3=0,"",RANK(C116,C$114:C$143,ranktype)) -> 1 | C49: =IF('User Input'!C3=0,"",RANK(D116,D$114:D$143,ranktype)) -> 1 | D49: =IF('User Input'!C3=0,"",RANK(E116,E$114:E$143,ranktype)) -> 1 | E49: =IF('User Input'!C3=0,"",RANK(F116,F$114:F$143,ranktype)) -> 1 | F49: =IF(ISERROR(IF('User Input'!C3=0,"",RANK(G116,G$114:G$143,ranktype))),"N/A",(IF('User Input'!C3=0,"",RANK(G116,G$114:G$143,ranktype)))) -> N/A | G49: =IF('User Input'!C3=0,"",SUMIF(Players!$AW$3:$AW$937,A49,Players!BD$3:BD$937)) -> 0 | H49: =IF(ISERROR(IF('User Input'!C3=0,"",RANK(I116,I$114:I$143,IF(ranktype=1,0,1)))),"N/A",(IF('User Input'!C3=0,"",RANK(I116,I$114:I$143,IF(ranktype=1,0,1))))) -> N/A | I49: =IF(ISERROR(IF('User Input'!C3=0,"",RANK(J116,J$114:J$143,IF(ranktype=1,0,1)))),"N/A",(IF('User Input'!C3=0,"",RANK(J116,J$114:J$143,IF(ranktype=1,0,1))))) -> N/A | J49: =IF('User Input'!C3=0,"",RANK(K116,K$114:K$143,ranktype)) -> 1 | K49: =IF('User Input'!C3=0,"",RANK(L116,L$114:L$143,ranktype)) -> 1 | L49: =IF('User Input'!C3=0,"",RANK(M116,M$114:M$143,ranktype)) -> 1 | M49: =IF(ISERROR(IF('User Input'!C3=0,"",B49+C49+D49+E49+F49+H49+I49+J49+K49+L49)),"N/A",(IF('User Input'!C3=0,"",B49+C49+D49+E49+F49+H49+I49+J49+K49+L49))) -> N/A | N49: =IF(ISERROR(IF('User Input'!C3=0,"",RANK(M49,M$47:M$76,IF(ranktype=1,0,1)))),"N/A",(IF('User Input'!C3=0,"",RANK(M49,M$47:M$76,IF(ranktype=1,0,1))))) -> N/A
A50: =IF('User Input'!C4 = 0,"",'User Input'!C4) -> d | B50: =IF('User Input'!C4=0,"",RANK(C117,C$114:C$143,ranktype)) -> 1 | C50: =IF('User Input'!C4=0,"",RANK(D117,D$114:D$143,ranktype)) -> 1 | D50: =IF('User Input'!C4=0,"",RANK(E117,E$114:E$143,ranktype)) -> 1 | E50: =IF('User Input'!C4=0,"",RANK(F117,F$114:F$143,ranktype)) -> 1 | F50: =IF(ISERROR(IF('User Input'!C4=0,"",RANK(G117,G$114:G$143,ranktype))),"N/A",(IF('User Input'!C4=0,"",RANK(G117,G$114:G$143,ranktype)))) -> N/A | G50: =IF('User Input'!C4=0,"",SUMIF(Players!$AW$3:$AW$937,A50,Players!BD$3:BD$937)) -> 0 | H50: =IF(ISERROR(IF('User Input'!C4=0,"",RANK(I117,I$114:I$143,IF(ranktype=1,0,1)))),"N/A",(IF('User Input'!C4=0,"",RANK(I117,I$114:I$143,IF(ranktype=1,0,1))))) -> N/A | I50: =IF(ISERROR(IF('User Input'!C4=0,"",RANK(J117,J$114:J$143,IF(ranktype=1,0,1)))),"N/A",(IF('User Input'!C4=0,"",RANK(J117,J$114:J$143,IF(ranktype=1,0,1))))) -> N/A | J50: =IF('User Input'!C4=0,"",RANK(K117,K$114:K$143,ranktype)) -> 1 | K50: =IF('User Input'!C4=0,"",RANK(L117,L$114:L$143,ranktype)) -> 1 | L50: =IF('User Input'!C4=0,"",RANK(M117,M$114:M$143,ranktype)) -> 1 | M50: =IF(ISERROR(IF('User Input'!C4=0,"",B50+C50+D50+E50+F50+H50+I50+J50+K50+L50)),"N/A",(IF('User Input'!C4=0,"",B50+C50+D50+E50+F50+H50+I50+J50+K50+L50))) -> N/A | N50: =IF(ISERROR(IF('User Input'!C4=0,"",RANK(M50,M$47:M$76,IF(ranktype=1,0,1)))),"N/A",(IF('User Input'!C4=0,"",RANK(M50,M$47:M$76,IF(ranktype=1,0,1))))) -> N/A
A51: =IF('User Input'!C5 = 0,"",'User Input'!C5) -> e | B51: =IF('User Input'!C5=0,"",RANK(C118,C$114:C$143,ranktype)) -> 1 | C51: =IF('User Input'!C5=0,"",RANK(D118,D$114:D$143,ranktype)) -> 1 | D51: =IF('User Input'!C5=0,"",RANK(E118,E$114:E$143,ranktype)) -> 1 | E51: =IF('User Input'!C5=0,"",RANK(F118,F$114:F$143,ranktype)) -> 1 | F51: =IF(ISERROR(IF('User Input'!C5=0,"",RANK(G118,G$114:G$143,ranktype))),"N/A",(IF('User Input'!C5=0,"",RANK(G118,G$114:G$143,ranktype)))) -> N/A | G51: =IF('User Input'!C5=0,"",SUMIF(Players!$AW$3:$AW$937,A51,Players!BD$3:BD$937)) -> 0 | H51: =IF(ISERROR(IF('User Input'!C5=0,"",RANK(I118,I$114:I$143,IF(ranktype=1,0,1)))),"N/A",(IF('User Input'!C5=0,"",RANK(I118,I$114:I$143,IF(ranktype=1,0,1))))) -> N/A | I51: =IF(ISERROR(IF('User Input'!C5=0,"",RANK(J118,J$114:J$143,IF(ranktype=1,0,1)))),"N/A",(IF('User Input'!C5=0,"",RANK(J118,J$114:J$143,IF(ranktype=1,0,1))))) -> N/A | J51: =IF('User Input'!C5=0,"",RANK(K118,K$114:K$143,ranktype)) -> 1 | K51: =IF('User Input'!C5=0,"",RANK(L118,L$114:L$143,ranktype)) -> 1 | L51: =IF('User Input'!C5=0,"",RANK(M118,M$114:M$143,ranktype)) -> 1 | M51: =IF(ISERROR(IF('User Input'!C5=0,"",B51+C51+D51+E51+F51+H51+I51+J51+K51+L51)),"N/A",(IF('User Input'!C5=0,"",B51+C51+D51+E51+F51+H51+I51+J51+K51+L51))) -> N/A | N51: =IF(ISERROR(IF('User Input'!C5=0,"",RANK(M51,M$47:M$76,IF(ranktype=1,0,1)))),"N/A",(IF('User Input'!C5=0,"",RANK(M51,M$47:M$76,IF(ranktype=1,0,1))))) -> N/A
A52: =IF('User Input'!C6 = 0,"",'User Input'!C6) -> f | B52: =IF('User Input'!C6=0,"",RANK(C119,C$114:C$143,ranktype)) -> 1 | C52: =IF('User Input'!C6=0,"",RANK(D119,D$114:D$143,ranktype)) -> 1 | D52: =IF('User Input'!C6=0,"",RANK(E119,E$114:E$143,ranktype)) -> 1 | E52: =IF('User Input'!C6=0,"",RANK(F119,F$114:F$143,ranktype)) -> 1 | F52: =IF(ISERROR(IF('User Input'!C6=0,"",RANK(G119,G$114:G$143,ranktype))),"N/A",(IF('User Input'!C6=0,"",RANK(G119,G$114:G$143,ranktype)))) -> N/A | G52: =IF('User Input'!C6=0,"",SUMIF(Players!$AW$3:$AW$937,A52,Players!BD$3:BD$937)) -> 0 | H52: =IF(ISERROR(IF('User Input'!C6=0,"",RANK(I119,I$114:I$143,IF(ranktype=1,0,1)))),"N/A",(IF('User Input'!C6=0,"",RANK(I119,I$114:I$143,IF(ranktype=1,0,1))))) -> N/A | I52: =IF(ISERROR(IF('User Input'!C6=0,"",RANK(J119,J$114:J$143,IF(ranktype=1,0,1)))),"N/A",(IF('User Input'!C6=0,"",RANK(J119,J$114:J$143,IF(ranktype=1,0,1))))) -> N/A | J52: =IF('User Input'!C6=0,"",RANK(K119,K$114:K$143,ranktype)) -> 1 | K52: =IF('User Input'!C6=0,"",RANK(L119,L$114:L$143,ranktype)) -> 1 | L52: =IF('User Input'!C6=0,"",RANK(M119,M$114:M$143,ranktype)) -> 1 | M52: =IF(ISERROR(IF('User Input'!C6=0,"",B52+C52+D52+E52+F52+H52+I52+J52+K52+L52)),"N/A",(IF('User Input'!C6=0,"",B52+C52+D52+E52+F52+H52+I52+J52+K52+L52))) -> N/A | N52: =IF(ISERROR(IF('User Input'!C6=0,"",RANK(M52,M$47:M$76,IF(ranktype=1,0,1)))),"N/A",(IF('User Input'!C6=0,"",RANK(M52,M$47:M$76,IF(ranktype=1,0,1))))) -> N/A
A53: =IF('User Input'!C7 = 0,"",'User Input'!C7) -> g | B53: =IF('User Input'!C7=0,"",RANK(C120,C$114:C$143,ranktype)) -> 1 | C53: =IF('User Input'!C7=0,"",RANK(D120,D$114:D$143,ranktype)) -> 1 | D53: =IF('User Input'!C7=0,"",RANK(E120,E$114:E$143,ranktype)) -> 1 | E53: =IF('User Input'!C7=0,"",RANK(F120,F$114:F$143,ranktype)) -> 1 | F53: =IF(ISERROR(IF('User Input'!C7=0,"",RANK(G120,G$114:G$143,ranktype))),"N/A",(IF('User Input'!C7=0,"",RANK(G120,G$114:G$143,ranktype)))) -> N/A | G53: =IF('User Input'!C7=0,"",SUMIF(Players!$AW$3:$AW$937,A53,Players!BD$3:BD$937)) -> 0 | H53: =IF(ISERROR(IF('User Input'!C7=0,"",RANK(I120,I$114:I$143,IF(ranktype=1,0,1)))),"N/A",(IF('User Input'!C7=0,"",RANK(I120,I$114:I$143,IF(ranktype=1,0,1))))) -> N/A | I53: =IF(ISERROR(IF('User Input'!C7=0,"",RANK(J120,J$114:J$143,IF(ranktype=1,0,1)))),"N/A",(IF('User Input'!C7=0,"",RANK(J120,J$114:J$143,IF(ranktype=1,0,1))))) -> N/A | J53: =IF('User Input'!C7=0,"",RANK(K120,K$114:K$143,ranktype)) -> 1 | K53: =IF('User Input'!C7=0,"",RANK(L120,L$114:L$143,ranktype)) -> 1 | L53: =IF('User Input'!C7=0,"",RANK(M120,M$114:M$143,ranktype)) -> 1 | M53: =IF(ISERROR(IF('User Input'!C7=0,"",B53+C53+D53+E53+F53+H53+I53+J53+K53+L53)),"N/A",(IF('User Input'!C7=0,"",B53+C53+D53+E53+F53+H53+I53+J53+K53+L53))) -> N/A | N53: =IF(ISERROR(IF('User Input'!C7=0,"",RANK(M53,M$47:M$76,IF(ranktype=1,0,1)))),"N/A",(IF('User Input'!C7=0,"",RANK(M53,M$47:M$76,IF(ranktype=1,0,1))))) -> N/A
A54: =IF('User Input'!C8 = 0,"",'User Input'!C8) -> h | B54: =IF('User Input'!C8=0,"",RANK(C121,C$114:C$143,ranktype)) -> 1 | C54: =IF('User Input'!C8=0,"",RANK(D121,D$114:D$143,ranktype)) -> 1 | D54: =IF('User Input'!C8=0,"",RANK(E121,E$114:E$143,ranktype)) -> 1 | E54: =IF('User Input'!C8=0,"",RANK(F121,F$114:F$143,ranktype)) -> 1 | F54: =IF(ISERROR(IF('User Input'!C8=0,"",RANK(G121,G$114:G$143,ranktype))),"N/A",(IF('User Input'!C8=0,"",RANK(G121,G$114:G$143,ranktype)))) -> N/A | G54: =IF('User Input'!C8=0,"",SUMIF(Players!$AW$3:$AW$937,A54,Players!BD$3:BD$937)) -> 0 | H54: =IF(ISERROR(IF('User Input'!C8=0,"",RANK(I121,I$114:I$143,IF(ranktype=1,0,1)))),"N/A",(IF('User Input'!C8=0,"",RANK(I121,I$114:I$143,IF(ranktype=1,0,1))))) -> N/A | I54: =IF(ISERROR(IF('User Input'!C8=0,"",RANK(J121,J$114:J$143,IF(ranktype=1,0,1)))),"N/A",(IF('User Input'!C8=0,"",RANK(J121,J$114:J$143,IF(ranktype=1,0,1))))) -> N/A | J54: =IF('User Input'!C8=0,"",RANK(K121,K$114:K$143,ranktype)) -> 1 | K54: =IF('User Input'!C8=0,"",RANK(L121,L$114:L$143,ranktype)) -> 1 | L54: =IF('User Input'!C8=0,"",RANK(M121,M$114:M$143,ranktype)) -> 1 | M54: =IF(ISERROR(IF('User Input'!C8=0,"",B54+C54+D54+E54+F54+H54+I54+J54+K54+L54)),"N/A",(IF('User Input'!C8=0,"",B54+C54+D54+E54+F54+H54+I54+J54+K54+L54))) -> N/A | N54: =IF(ISERROR(IF('User Input'!C8=0,"",RANK(M54,M$47:M$76,IF(ranktype=1,0,1)))),"N/A",(IF('User Input'!C8=0,"",RANK(M54,M$47:M$76,IF(ranktype=1,0,1))))) -> N/A
A55: =IF('User Input'!C9 = 0,"",'User Input'!C9) -> i | B55: =IF('User Input'!C9=0,"",RANK(C122,C$114:C$143,ranktype)) -> 1 | C55: =IF('User Input'!C9=0,"",RANK(D122,D$114:D$143,ranktype)) -> 1 | D55: =IF('User Input'!C9=0,"",RANK(E122,E$114:E$143,ranktype)) -> 1 | E55: =IF('User Input'!C9=0,"",RANK(F122,F$114:F$143,ranktype)) -> 1 | F55: =IF(ISERROR(IF('User Input'!C9=0,"",RANK(G122,G$114:G$143,ranktype))),"N/A",(IF('User Input'!C9=0,"",RANK(G122,G$114:G$143,ranktype)))) -> N/A | G55: =IF('User Input'!C9=0,"",SUMIF(Players!$AW$3:$AW$937,A55,Players!BD$3:BD$937)) -> 0 | H55: =IF(ISERROR(IF('User Input'!C9=0,"",RANK(I122,I$114:I$143,IF(ranktype=1,0,1)))),"N/A",(IF('User Input'!C9=0,"",RANK(I122,I$114:I$143,IF(ranktype=1,0,1))))) -> N/A | I55: =IF(ISERROR(IF('User Input'!C9=0,"",RANK(J122,J$114:J$143,IF(ranktype=1,0,1)))),"N/A",(IF('User Input'!C9=0,"",RANK(J122,J$114:J$143,IF(ranktype=1,0,1))))) -> N/A | J55: =IF('User Input'!C9=0,"",RANK(K122,K$114:K$143,ranktype)) -> 1 | K55: =IF('User Input'!C9=0,"",RANK(L122,L$114:L$143,ranktype)) -> 1 | L55: =IF('User Input'!C9=0,"",RANK(M122,M$114:M$143,ranktype)) -> 1 | M55: =IF(ISERROR(IF('User Input'!C9=0,"",B55+C55+D55+E55+F55+H55+I55+J55+K55+L55)),"N/A",(IF('User Input'!C9=0,"",B55+C55+D55+E55+F55+H55+I55+J55+K55+L55))) -> N/A | N55: =IF(ISERROR(IF('User Input'!C9=0,"",RANK(M55,M$47:M$76,IF(ranktype=1,0,1)))),"N/A",(IF('User Input'!C9=0,"",RANK(M55,M$47:M$76,IF(ranktype=1,0,1))))) -> N/A
A56: =IF('User Input'!C10 = 0,"",'User Input'!C10) -> j | B56: =IF('User Input'!C10=0,"",RANK(C123,C$114:C$143,ranktype)) -> 1 | C56: =IF('User Input'!C10=0,"",RANK(D123,D$114:D$143,ranktype)) -> 1 | D56: =IF('User Input'!C10=0,"",RANK(E123,E$114:E$143,ranktype)) -> 1 | E56: =IF('User Input'!C10=0,"",RANK(F123,F$114:F$143,ranktype)) -> 1 | F56: =IF(ISERROR(IF('User Input'!C10=0,"",RANK(G123,G$114:G$143,ranktype))),"N/A",(IF('User Input'!C10=0,"",RANK(G123,G$114:G$143,ranktype)))) -> N/A | G56: =IF('User Input'!C10=0,"",SUMIF(Players!$AW$3:$AW$937,A56,Players!BD$3:BD$937)) -> 0 | H56: =IF(ISERROR(IF('User Input'!C10=0,"",RANK(I123,I$114:I$143,IF(ranktype=1,0,1)))),"N/A",(IF('User Input'!C10=0,"",RANK(I123,I$114:I$143,IF(ranktype=1,0,1))))) -> N/A | I56: =IF(ISERROR(IF('User Input'!C10=0,"",RANK(J123,J$114:J$143,IF(ranktype=1,0,1)))),"N/A",(IF('User Input'!C10=0,"",RANK(J123,J$114:J$143,IF(ranktype=1,0,1))))) -> N/A | J56: =IF('User Input'!C10=0,"",RANK(K123,K$114:K$143,ranktype)) -> 1 | K56: =IF('User Input'!C10=0,"",RANK(L123,L$114:L$143,ranktype)) -> 1 | L56: =IF('User Input'!C10=0,"",RANK(M123,M$114:M$143,ranktype)) -> 1 | M56: =IF(ISERROR(IF('User Input'!C10=0,"",B56+C56+D56+E56+F56+H56+I56+J56+K56+L56)),"N/A",(IF('User Input'!C10=0,"",B56+C56+D56+E56+F56+H56+I56+J56+K56+L56))) -> N/A | N56: =IF(ISERROR(IF('User Input'!C10=0,"",RANK(M56,M$47:M$76,IF(ranktype=1,0,1)))),"N/A",(IF('User Input'!C10=0,"",RANK(M56,M$47:M$76,IF(ranktype=1,0,1))))) -> N/A
A57: =IF('User Input'!C11 = 0,"",'User Input'!C11) -> k | B57: =IF('User Input'!C11=0,"",RANK(C124,C$114:C$143,ranktype)) -> 1 | C57: =IF('User Input'!C11=0,"",RANK(D124,D$114:D$143,ranktype)) -> 1 | D57: =IF('User Input'!C11=0,"",RANK(E124,E$114:E$143,ranktype)) -> 1 | E57: =IF('User Input'!C11=0,"",RANK(F124,F$114:F$143,ranktype)) -> 1 | F57: =IF(ISERROR(IF('User Input'!C11=0,"",RANK(G124,G$114:G$143,ranktype))),"N/A",(IF('User Input'!C11=0,"",RANK(G124,G$114:G$143,ranktype)))) -> N/A | G57: =IF('User Input'!C11=0,"",SUMIF(Players!$AW$3:$AW$937,A57,Players!BD$3:BD$937)) -> 0 | H57: =IF(ISERROR(IF('User Input'!C11=0,"",RANK(I124,I$114:I$143,IF(ranktype=1,0,1)))),"N/A",(IF('User Input'!C11=0,"",RANK(I124,I$114:I$143,IF(ranktype=1,0,1))))) -> N/A | I57: =IF(ISERROR(IF('User Input'!C11=0,"",RANK(J124,J$114:J$143,IF(ranktype=1,0,1)))),"N/A",(IF('User Input'!C11=0,"",RANK(J124,J$114:J$143,IF(ranktype=1,0,1))))) -> N/A | J57: =IF('User Input'!C11=0,"",RANK(K124,K$114:K$143,ranktype)) -> 1 | K57: =IF('User Input'!C11=0,"",RANK(L124,L$114:L$143,ranktype)) -> 1 | L57: =IF('User Input'!C11=0,"",RANK(M124,M$114:M$143,ranktype)) -> 1 | M57: =IF(ISERROR(IF('User Input'!C11=0,"",B57+C57+D57+E57+F57+H57+I57+J57+K57+L57)),"N/A",(IF('User Input'!C11=0,"",B57+C57+D57+E57+F57+H57+I57+J57+K57+L57))) -> N/A | N57: =IF(ISERROR(IF('User Input'!C11=0,"",RANK(M57,M$47:M$76,IF(ranktype=1,0,1)))),"N/A",(IF('User Input'!C11=0,"",RANK(M57,M$47:M$76,IF(ranktype=1,0,1))))) -> N/A
A58: =IF('User Input'!C12 = 0,"",'User Input'!C12) -> l | B58: =IF('User Input'!C12=0,"",RANK(C125,C$114:C$143,ranktype)) -> 1 | C58: =IF('User Input'!C12=0,"",RANK(D125,D$114:D$143,ranktype)) -> 1 | D58: =IF('User Input'!C12=0,"",RANK(E125,E$114:E$143,ranktype)) -> 1 | E58: =IF('User Input'!C12=0,"",RANK(F125,F$114:F$143,ranktype)) -> 1 | F58: =IF(ISERROR(IF('User Input'!C12=0,"",RANK(G125,G$114:G$143,ranktype))),"N/A",(IF('User Input'!C12=0,"",RANK(G125,G$114:G$143,ranktype)))) -> N/A | G58: =IF('User Input'!C12=0,"",SUMIF(Players!$AW$3:$AW$937,A58,Players!BD$3:BD$937)) -> 0 | H58: =IF(ISERROR(IF('User Input'!C12=0,"",RANK(I125,I$114:I$143,IF(ranktype=1,0,1)))),"N/A",(IF('User Input'!C12=0,"",RANK(I125,I$114:I$143,IF(ranktype=1,0,1))))) -> N/A | I58: =IF(ISERROR(IF('User Input'!C12=0,"",RANK(J125,J$114:J$143,IF(ranktype=1,0,1)))),"N/A",(IF('User Input'!C12=0,"",RANK(J125,J$114:J$143,IF(ranktype=1,0,1))))) -> N/A | J58: =IF('User Input'!C12=0,"",RANK(K125,K$114:K$143,ranktype)) -> 1 | K58: =IF('User Input'!C12=0,"",RANK(L125,L$114:L$143,ranktype)) -> 1 | L58: =IF('User Input'!C12=0,"",RANK(M125,M$114:M$143,ranktype)) -> 1 | M58: =IF(ISERROR(IF('User Input'!C12=0,"",B58+C58+D58+E58+F58+H58+I58+J58+K58+L58)),"N/A",(IF('User Input'!C12=0,"",B58+C58+D58+E58+F58+H58+I58+J58+K58+L58))) -> N/A | N58: =IF(ISERROR(IF('User Input'!C12=0,"",RANK(M58,M$47:M$76,IF(ranktype=1,0,1)))),"N/A",(IF('User Input'!C12=0,"",RANK(M58,M$47:M$76,IF(ranktype=1,0,1))))) -> N/A
A59: =IF('User Input'!C13 = 0,"",'User Input'!C13) ->  | B59: =IF('User Input'!C13=0,"",RANK(C126,C$114:C$143,ranktype)) ->  | C59: =IF('User Input'!C13=0,"",RANK(D126,D$114:D$143,ranktype)) ->  | D59: =IF('User Input'!C13=0,"",RANK(E126,E$114:E$143,ranktype)) ->  | E59: =IF('User Input'!C13=0,"",RANK(F126,F$114:F$143,ranktype)) ->  | F59: =IF(ISERROR(IF('User Input'!C13=0,"",RANK(G126,G$114:G$143,ranktype))),"N/A",(IF('User Input'!C13=0,"",RANK(G126,G$114:G$143,ranktype)))) ->  | G59: =IF('User Input'!C13=0,"",SUMIF(Players!$AW$3:$AW$937,A59,Players!BD$3:BD$937)) ->  | H59: =IF(ISERROR(IF('User Input'!C13=0,"",RANK(I126,I$114:I$143,IF(ranktype=1,0,1)))),"N/A",(IF('User Input'!C13=0,"",RANK(I126,I$114:I$143,IF(ranktype=1,0,1))))) ->  | I59: =IF(ISERROR(IF('User Input'!C13=0,"",RANK(J126,J$114:J$143,IF(ranktype=1,0,1)))),"N/A",(IF('User Input'!C13=0,"",RANK(J126,J$114:J$143,IF(ranktype=1,0,1))))) ->  | J59: =IF('User Input'!C13=0,"",RANK(K126,K$114:K$143,ranktype)) ->  | K59: =IF('User Input'!C13=0,"",RANK(L126,L$114:L$143,ranktype)) ->  | L59: =IF('User Input'!C13=0,"",RANK(M126,M$114:M$143,ranktype)) ->  | M59: =IF(ISERROR(IF('User Input'!C13=0,"",B59+C59+D59+E59+F59+H59+I59+J59+K59+L59)),"N/A",(IF('User Input'!C13=0,"",B59+C59+D59+E59+F59+H59+I59+J59+K59+L59))) ->  | N59: =IF(ISERROR(IF('User Input'!C13=0,"",RANK(M59,M$47:M$76,IF(ranktype=1,0,1)))),"N/A",(IF('User Input'!C13=0,"",RANK(M59,M$47:M$76,IF(ranktype=1,0,1))))) -> 
A60: =IF('User Input'!C14 = 0,"",'User Input'!C14) ->  | B60: =IF('User Input'!C14=0,"",RANK(C127,C$114:C$143,ranktype)) ->  | C60: =IF('User Input'!C14=0,"",RANK(D127,D$114:D$143,ranktype)) ->  | D60: =IF('User Input'!C14=0,"",RANK(E127,E$114:E$143,ranktype)) ->  | E60: =IF('User Input'!C14=0,"",RANK(F127,F$114:F$143,ranktype)) ->  | F60: =IF(ISERROR(IF('User Input'!C14=0,"",RANK(G127,G$114:G$143,ranktype))),"N/A",(IF('User Input'!C14=0,"",RANK(G127,G$114:G$143,ranktype)))) ->  | G60: =IF('User Input'!C14=0,"",SUMIF(Players!$AW$3:$AW$937,A60,Players!BD$3:BD$937)) ->  | H60: =IF(ISERROR(IF('User Input'!C14=0,"",RANK(I127,I$114:I$143,IF(ranktype=1,0,1)))),"N/A",(IF('User Input'!C14=0,"",RANK(I127,I$114:I$143,IF(ranktype=1,0,1))))) ->  | I60: =IF(ISERROR(IF('User Input'!C14=0,"",RANK(J127,J$114:J$143,IF(ranktype=1,0,1)))),"N/A",(IF('User Input'!C14=0,"",RANK(J127,J$114:J$143,IF(ranktype=1,0,1))))) ->  | J60: =IF('User Input'!C14=0,"",RANK(K127,K$114:K$143,ranktype)) ->  | K60: =IF('User Input'!C14=0,"",RANK(L127,L$114:L$143,ranktype)) ->  | L60: =IF('User Input'!C14=0,"",RANK(M127,M$114:M$143,ranktype)) ->  | M60: =IF(ISERROR(IF('User Input'!C14=0,"",B60+C60+D60+E60+F60+H60+I60+J60+K60+L60)),"N/A",(IF('User Input'!C14=0,"",B60+C60+D60+E60+F60+H60+I60+J60+K60+L60))) ->  | N60: =IF(ISERROR(IF('User Input'!C14=0,"",RANK(M60,M$47:M$76,IF(ranktype=1,0,1)))),"N/A",(IF('User Input'!C14=0,"",RANK(M60,M$47:M$76,IF(ranktype=1,0,1))))) -> 
A61: =IF('User Input'!C15 = 0,"",'User Input'!C15) ->  | B61: =IF('User Input'!C15=0,"",RANK(C128,C$114:C$143,ranktype)) ->  | C61: =IF('User Input'!C15=0,"",RANK(D128,D$114:D$143,ranktype)) ->  | D61: =IF('User Input'!C15=0,"",RANK(E128,E$114:E$143,ranktype)) ->  | E61: =IF('User Input'!C15=0,"",RANK(F128,F$114:F$143,ranktype)) ->  | F61: =IF(ISERROR(IF('User Input'!C15=0,"",RANK(G128,G$114:G$143,ranktype))),"N/A",(IF('User Input'!C15=0,"",RANK(G128,G$114:G$143,ranktype)))) ->  | G61: =IF('User Input'!C15=0,"",SUMIF(Players!$AW$3:$AW$937,A61,Players!BD$3:BD$937)) ->  | H61: =IF(ISERROR(IF('User Input'!C15=0,"",RANK(I128,I$114:I$143,IF(ranktype=1,0,1)))),"N/A",(IF('User Input'!C15=0,"",RANK(I128,I$114:I$143,IF(ranktype=1,0,1))))) ->  | I61: =IF(ISERROR(IF('User Input'!C15=0,"",RANK(J128,J$114:J$143,IF(ranktype=1,0,1)))),"N/A",(IF('User Input'!C15=0,"",RANK(J128,J$114:J$143,IF(ranktype=1,0,1))))) ->  | J61: =IF('User Input'!C15=0,"",RANK(K128,K$114:K$143,ranktype)) ->  | K61: =IF('User Input'!C15=0,"",RANK(L128,L$114:L$143,ranktype)) ->  | L61: =IF('User Input'!C15=0,"",RANK(M128,M$114:M$143,ranktype)) ->  | M61: =IF(ISERROR(IF('User Input'!C15=0,"",B61+C61+D61+E61+F61+H61+I61+J61+K61+L61)),"N/A",(IF('User Input'!C15=0,"",B61+C61+D61+E61+F61+H61+I61+J61+K61+L61))) ->  | N61: =IF(ISERROR(IF('User Input'!C15=0,"",RANK(M61,M$47:M$76,IF(ranktype=1,0,1)))),"N/A",(IF('User Input'!C15=0,"",RANK(M61,M$47:M$76,IF(ranktype=1,0,1))))) -> 
A62: =IF('User Input'!C16 = 0,"",'User Input'!C16) ->  | B62: =IF('User Input'!C16=0,"",RANK(C134,C$114:C$143,ranktype)) ->  | C62: =IF('User Input'!C16=0,"",RANK(D134,D$114:D$143,ranktype)) ->  | D62: =IF('User Input'!C16=0,"",RANK(E134,E$114:E$143,ranktype)) ->  | E62: =IF('User Input'!C16=0,"",RANK(F134,F$114:F$143,ranktype)) ->  | F62: =IF(ISERROR(IF('User Input'!C16=0,"",RANK(G134,G$114:G$143,ranktype))),"N/A",(IF('User Input'!C16=0,"",RANK(G134,G$114:G$143,ranktype)))) ->  | G62: =IF('User Input'!C16=0,"",SUMIF(Players!$AW$3:$AW$937,A62,Players!BD$3:BD$937)) ->  | H62: =IF(ISERROR(IF('User Input'!C16=0,"",RANK(I134,I$114:I$143,IF(ranktype=1,0,1)))),"N/A",(IF('User Input'!C16=0,"",RANK(I134,I$114:I$143,IF(ranktype=1,0,1))))) ->  | I62: =IF(ISERROR(IF('User Input'!C16=0,"",RANK(J134,J$114:J$143,IF(ranktype=1,0,1)))),"N/A",(IF('User Input'!C16=0,"",RANK(J134,J$114:J$143,IF(ranktype=1,0,1))))) ->  | J62: =IF('User Input'!C16=0,"",RANK(K134,K$114:K$143,ranktype)) ->  | K62: =IF('User Input'!C16=0,"",RANK(L134,L$114:L$143,ranktype)) ->  | L62: =IF('User Input'!C16=0,"",RANK(M134,M$114:M$143,ranktype)) ->  | M62: =IF(ISERROR(IF('User Input'!C16=0,"",B62+C62+D62+E62+F62+H62+I62+J62+K62+L62)),"N/A",(IF('User Input'!C16=0,"",B62+C62+D62+E62+F62+H62+I62+J62+K62+L62))) ->  | N62: =IF(ISERROR(IF('User Input'!C16=0,"",RANK(M62,M$47:M$76,IF(ranktype=1,0,1)))),"N/A",(IF('User Input'!C16=0,"",RANK(M62,M$47:M$76,IF(ranktype=1,0,1))))) -> 
A63: =IF('User Input'!C17 = 0,"",'User Input'!C17) ->  | B63: =IF('User Input'!C17=0,"",RANK(C135,C$114:C$143,ranktype)) ->  | C63: =IF('User Input'!C17=0,"",RANK(D135,D$114:D$143,ranktype)) ->  | D63: =IF('User Input'!C17=0,"",RANK(E135,E$114:E$143,ranktype)) ->  | E63: =IF('User Input'!C17=0,"",RANK(F135,F$114:F$143,ranktype)) ->  | F63: =IF(ISERROR(IF('User Input'!C17=0,"",RANK(G135,G$114:G$143,ranktype))),"N/A",(IF('User Input'!C17=0,"",RANK(G135,G$114:G$143,ranktype)))) ->  | G63: =IF('User Input'!C17=0,"",SUMIF(Players!$AW$3:$AW$937,A63,Players!BD$3:BD$937)) ->  | H63: =IF(ISERROR(IF('User Input'!C17=0,"",RANK(I135,I$114:I$143,IF(ranktype=1,0,1)))),"N/A",(IF('User Input'!C17=0,"",RANK(I135,I$114:I$143,IF(ranktype=1,0,1))))) ->  | I63: =IF(ISERROR(IF('User Input'!C17=0,"",RANK(J135,J$114:J$143,IF(ranktype=1,0,1)))),"N/A",(IF('User Input'!C17=0,"",RANK(J135,J$114:J$143,IF(ranktype=1,0,1))))) ->  | J63: =IF('User Input'!C17=0,"",RANK(K135,K$114:K$143,ranktype)) ->  | K63: =IF('User Input'!C17=0,"",RANK(L135,L$114:L$143,ranktype)) ->  | L63: =IF('User Input'!C17=0,"",RANK(M135,M$114:M$143,ranktype)) ->  | M63: =IF(ISERROR(IF('User Input'!C17=0,"",B63+C63+D63+E63+F63+H63+I63+J63+K63+L63)),"N/A",(IF('User Input'!C17=0,"",B63+C63+D63+E63+F63+H63+I63+J63+K63+L63))) ->  | N63: =IF(ISERROR(IF('User Input'!C17=0,"",RANK(M63,M$47:M$76,IF(ranktype=1,0,1)))),"N/A",(IF('User Input'!C17=0,"",RANK(M63,M$47:M$76,IF(ranktype=1,0,1))))) -> 
A64: =IF('User Input'!C18 = 0,"",'User Input'!C18) ->  | B64: =IF('User Input'!C18=0,"",RANK(C136,C$114:C$143,ranktype)) ->  | C64: =IF('User Input'!C18=0,"",RANK(D136,D$114:D$143,ranktype)) ->  | D64: =IF('User Input'!C18=0,"",RANK(E136,E$114:E$143,ranktype)) ->  | E64: =IF('User Input'!C18=0,"",RANK(F136,F$114:F$143,ranktype)) ->  | F64: =IF(ISERROR(IF('User Input'!C18=0,"",RANK(G136,G$114:G$143,ranktype))),"N/A",(IF('User Input'!C18=0,"",RANK(G136,G$114:G$143,ranktype)))) ->  | G64: =IF('User Input'!C18=0,"",SUMIF(Players!$AW$3:$AW$937,A64,Players!BD$3:BD$937)) ->  | H64: =IF(ISERROR(IF('User Input'!C18=0,"",RANK(I136,I$114:I$143,IF(ranktype=1,0,1)))),"N/A",(IF('User Input'!C18=0,"",RANK(I136,I$114:I$143,IF(ranktype=1,0,1))))) ->  | I64: =IF(ISERROR(IF('User Input'!C18=0,"",RANK(J136,J$114:J$143,IF(ranktype=1,0,1)))),"N/A",(IF('User Input'!C18=0,"",RANK(J136,J$114:J$143,IF(ranktype=1,0,1))))) ->  | J64: =IF('User Input'!C18=0,"",RANK(K136,K$114:K$143,ranktype)) ->  | K64: =IF('User Input'!C18=0,"",RANK(L136,L$114:L$143,ranktype)) ->  | L64: =IF('User Input'!C18=0,"",RANK(M136,M$114:M$143,ranktype)) ->  | M64: =IF(ISERROR(IF('User Input'!C18=0,"",B64+C64+D64+E64+F64+H64+I64+J64+K64+L64)),"N/A",(IF('User Input'!C18=0,"",B64+C64+D64+E64+F64+H64+I64+J64+K64+L64))) ->  | N64: =IF(ISERROR(IF('User Input'!C18=0,"",RANK(M64,M$47:M$76,IF(ranktype=1,0,1)))),"N/A",(IF('User Input'!C18=0,"",RANK(M64,M$47:M$76,IF(ranktype=1,0,1))))) -> 
A65: =IF('User Input'!C19 = 0,"",'User Input'!C19) ->  | B65: =IF('User Input'!C19=0,"",RANK(C137,C$114:C$143,ranktype)) ->  | C65: =IF('User Input'!C19=0,"",RANK(D137,D$114:D$143,ranktype)) ->  | D65: =IF('User Input'!C19=0,"",RANK(E137,E$114:E$143,ranktype)) ->  | E65: =IF('User Input'!C19=0,"",RANK(F137,F$114:F$143,ranktype)) ->  | F65: =IF(ISERROR(IF('User Input'!C19=0,"",RANK(G137,G$114:G$143,ranktype))),"N/A",(IF('User Input'!C19=0,"",RANK(G137,G$114:G$143,ranktype)))) ->  | G65: =IF('User Input'!C19=0,"",SUMIF(Players!$AW$3:$AW$937,A65,Players!BD$3:BD$937)) ->  | H65: =IF(ISERROR(IF('User Input'!C19=0,"",RANK(I137,I$114:I$143,IF(ranktype=1,0,1)))),"N/A",(IF('User Input'!C19=0,"",RANK(I137,I$114:I$143,IF(ranktype=1,0,1))))) ->  | I65: =IF(ISERROR(IF('User Input'!C19=0,"",RANK(J137,J$114:J$143,IF(ranktype=1,0,1)))),"N/A",(IF('User Input'!C19=0,"",RANK(J137,J$114:J$143,IF(ranktype=1,0,1))))) ->  | J65: =IF('User Input'!C19=0,"",RANK(K137,K$114:K$143,ranktype)) ->  | K65: =IF('User Input'!C19=0,"",RANK(L137,L$114:L$143,ranktype)) ->  | L65: =IF('User Input'!C19=0,"",RANK(M137,M$114:M$143,ranktype)) ->  | M65: =IF(ISERROR(IF('User Input'!C19=0,"",B65+C65+D65+E65+F65+H65+I65+J65+K65+L65)),"N/A",(IF('User Input'!C19=0,"",B65+C65+D65+E65+F65+H65+I65+J65+K65+L65))) ->  | N65: =IF(ISERROR(IF('User Input'!C19=0,"",RANK(M65,M$47:M$76,IF(ranktype=1,0,1)))),"N/A",(IF('User Input'!C19=0,"",RANK(M65,M$47:M$76,IF(ranktype=1,0,1))))) -> 
A66: =IF('User Input'!C20 = 0,"",'User Input'!C20) ->  | B66: =IF('User Input'!C20=0,"",RANK(C138,C$114:C$143,ranktype)) ->  | C66: =IF('User Input'!C20=0,"",RANK(D138,D$114:D$143,ranktype)) ->  | D66: =IF('User Input'!C20=0,"",RANK(E138,E$114:E$143,ranktype)) ->  | E66: =IF('User Input'!C20=0,"",RANK(F138,F$114:F$143,ranktype)) ->  | F66: =IF(ISERROR(IF('User Input'!C20=0,"",RANK(G138,G$114:G$143,ranktype))),"N/A",(IF('User Input'!C20=0,"",RANK(G138,G$114:G$143,ranktype)))) ->  | G66: =IF('User Input'!C20=0,"",SUMIF(Players!$AW$3:$AW$937,A66,Players!BD$3:BD$937)) ->  | H66: =IF(ISERROR(IF('User Input'!C20=0,"",RANK(I138,I$114:I$143,IF(ranktype=1,0,1)))),"N/A",(IF('User Input'!C20=0,"",RANK(I138,I$114:I$143,IF(ranktype=1,0,1))))) ->  | I66: =IF(ISERROR(IF('User Input'!C20=0,"",RANK(J138,J$114:J$143,IF(ranktype=1,0,1)))),"N/A",(IF('User Input'!C20=0,"",RANK(J138,J$114:J$143,IF(ranktype=1,0,1))))) ->  | J66: =IF('User Input'!C20=0,"",RANK(K138,K$114:K$143,ranktype)) ->  | K66: =IF('User Input'!C20=0,"",RANK(L138,L$114:L$143,ranktype)) ->  | L66: =IF('User Input'!C20=0,"",RANK(M138,M$114:M$143,ranktype)) ->  | M66: =IF(ISERROR(IF('User Input'!C20=0,"",B66+C66+D66+E66+F66+H66+I66+J66+K66+L66)),"N/A",(IF('User Input'!C20=0,"",B66+C66+D66+E66+F66+H66+I66+J66+K66+L66))) ->  | N66: =IF(ISERROR(IF('User Input'!C20=0,"",RANK(M66,M$47:M$76,IF(ranktype=1,0,1)))),"N/A",(IF('User Input'!C20=0,"",RANK(M66,M$47:M$76,IF(ranktype=1,0,1))))) -> 
A67: =IF('User Input'!C21 = 0,"",'User Input'!C21) ->  | B67: =IF('User Input'!C21=0,"",RANK(C139,C$114:C$143,ranktype)) ->  | C67: =IF('User Input'!C21=0,"",RANK(D139,D$114:D$143,ranktype)) ->  | D67: =IF('User Input'!C21=0,"",RANK(E139,E$114:E$143,ranktype)) ->  | E67: =IF('User Input'!C21=0,"",RANK(F139,F$114:F$143,ranktype)) ->  | F67: =IF(ISERROR(IF('User Input'!C21=0,"",RANK(G139,G$114:G$143,ranktype))),"N/A",(IF('User Input'!C21=0,"",RANK(G139,G$114:G$143,ranktype)))) ->  | G67: =IF('User Input'!C21=0,"",SUMIF(Players!$AW$3:$AW$937,A67,Players!BD$3:BD$937)) ->  | H67: =IF(ISERROR(IF('User Input'!C21=0,"",RANK(I139,I$114:I$143,IF(ranktype=1,0,1)))),"N/A",(IF('User Input'!C21=0,"",RANK(I139,I$114:I$143,IF(ranktype=1,0,1))))) ->  | I67: =IF(ISERROR(IF('User Input'!C21=0,"",RANK(J139,J$114:J$143,IF(ranktype=1,0,1)))),"N/A",(IF('User Input'!C21=0,"",RANK(J139,J$114:J$143,IF(ranktype=1,0,1))))) ->  | J67: =IF('User Input'!C21=0,"",RANK(K139,K$114:K$143,ranktype)) ->  | K67: =IF('User Input'!C21=0,"",RANK(L139,L$114:L$143,ranktype)) ->  | L67: =IF('User Input'!C21=0,"",RANK(M139,M$114:M$143,ranktype)) ->  | M67: =IF(ISERROR(IF('User Input'!C21=0,"",B67+C67+D67+E67+F67+H67+I67+J67+K67+L67)),"N/A",(IF('User Input'!C21=0,"",B67+C67+D67+E67+F67+H67+I67+J67+K67+L67))) ->  | N67: =IF(ISERROR(IF('User Input'!C21=0,"",RANK(M67,M$47:M$76,IF(ranktype=1,0,1)))),"N/A",(IF('User Input'!C21=0,"",RANK(M67,M$47:M$76,IF(ranktype=1,0,1))))) -> 
A68: =IF('User Input'!C22 = 0,"",'User Input'!C22) ->  | B68: =IF('User Input'!C22=0,"",RANK(C140,C$114:C$143,ranktype)) ->  | C68: =IF('User Input'!C22=0,"",RANK(D140,D$114:D$143,ranktype)) ->  | D68: =IF('User Input'!C22=0,"",RANK(E140,E$114:E$143,ranktype)) ->  | E68: =IF('User Input'!C22=0,"",RANK(F140,F$114:F$143,ranktype)) ->  | F68: =IF(ISERROR(IF('User Input'!C22=0,"",RANK(G140,G$114:G$143,ranktype))),"N/A",(IF('User Input'!C22=0,"",RANK(G140,G$114:G$143,ranktype)))) ->  | G68: =IF('User Input'!C22=0,"",SUMIF(Players!$AW$3:$AW$937,A68,Players!BD$3:BD$937)) ->  | H68: =IF(ISERROR(IF('User Input'!C22=0,"",RANK(I140,I$114:I$143,IF(ranktype=1,0,1)))),"N/A",(IF('User Input'!C22=0,"",RANK(I140,I$114:I$143,IF(ranktype=1,0,1))))) ->  | I68: =IF(ISERROR(IF('User Input'!C22=0,"",RANK(J140,J$114:J$143,IF(ranktype=1,0,1)))),"N/A",(IF('User Input'!C22=0,"",RANK(J140,J$114:J$143,IF(ranktype=1,0,1))))) ->  | J68: =IF('User Input'!C22=0,"",RANK(K140,K$114:K$143,ranktype)) ->  | K68: =IF('User Input'!C22=0,"",RANK(L140,L$114:L$143,ranktype)) ->  | L68: =IF('User Input'!C22=0,"",RANK(M140,M$114:M$143,ranktype)) ->  | M68: =IF(ISERROR(IF('User Input'!C22=0,"",B68+C68+D68+E68+F68+H68+I68+J68+K68+L68)),"N/A",(IF('User Input'!C22=0,"",B68+C68+D68+E68+F68+H68+I68+J68+K68+L68))) ->  | N68: =IF(ISERROR(IF('User Input'!C22=0,"",RANK(M68,M$47:M$76,IF(ranktype=1,0,1)))),"N/A",(IF('User Input'!C22=0,"",RANK(M68,M$47:M$76,IF(ranktype=1,0,1))))) -> 
A69: =IF('User Input'!C23 = 0,"",'User Input'!C23) ->  | B69: =IF('User Input'!C23=0,"",RANK(C141,C$114:C$143,ranktype)) ->  | C69: =IF('User Input'!C23=0,"",RANK(D141,D$114:D$143,ranktype)) ->  | D69: =IF('User Input'!C23=0,"",RANK(E141,E$114:E$143,ranktype)) ->  | E69: =IF('User Input'!C23=0,"",RANK(F141,F$114:F$143,ranktype)) ->  | F69: =IF(ISERROR(IF('User Input'!C23=0,"",RANK(G141,G$114:G$143,ranktype))),"N/A",(IF('User Input'!C23=0,"",RANK(G141,G$114:G$143,ranktype)))) ->  | G69: =IF('User Input'!C23=0,"",SUMIF(Players!$AW$3:$AW$937,A69,Players!BD$3:BD$937)) ->  | H69: =IF(ISERROR(IF('User Input'!C23=0,"",RANK(I141,I$114:I$143,IF(ranktype=1,0,1)))),"N/A",(IF('User Input'!C23=0,"",RANK(I141,I$114:I$143,IF(ranktype=1,0,1))))) ->  | I69: =IF(ISERROR(IF('User Input'!C23=0,"",RANK(J141,J$114:J$143,IF(ranktype=1,0,1)))),"N/A",(IF('User Input'!C23=0,"",RANK(J141,J$114:J$143,IF(ranktype=1,0,1))))) ->  | J69: =IF('User Input'!C23=0,"",RANK(K141,K$114:K$143,ranktype)) ->  | K69: =IF('User Input'!C23=0,"",RANK(L141,L$114:L$143,ranktype)) ->  | L69: =IF('User Input'!C23=0,"",RANK(M141,M$114:M$143,ranktype)) ->  | M69: =IF(ISERROR(IF('User Input'!C23=0,"",B69+C69+D69+E69+F69+H69+I69+J69+K69+L69)),"N/A",(IF('User Input'!C23=0,"",B69+C69+D69+E69+F69+H69+I69+J69+K69+L69))) ->  | N69: =IF(ISERROR(IF('User Input'!C23=0,"",RANK(M69,M$47:M$76,IF(ranktype=1,0,1)))),"N/A",(IF('User Input'!C23=0,"",RANK(M69,M$47:M$76,IF(ranktype=1,0,1))))) -> 
A70: =IF('User Input'!C24 = 0,"",'User Input'!C24) ->  | B70: =IF('User Input'!C24=0,"",RANK(C142,C$114:C$143,ranktype)) ->  | C70: =IF('User Input'!C24=0,"",RANK(D142,D$114:D$143,ranktype)) ->  | D70: =IF('User Input'!C24=0,"",RANK(E142,E$114:E$143,ranktype)) ->  | E70: =IF('User Input'!C24=0,"",RANK(F142,F$114:F$143,ranktype)) ->  | F70: =IF(ISERROR(IF('User Input'!C24=0,"",RANK(G142,G$114:G$143,ranktype))),"N/A",(IF('User Input'!C24=0,"",RANK(G142,G$114:G$143,ranktype)))) ->  | G70: =IF('User Input'!C24=0,"",SUMIF(Players!$AW$3:$AW$937,A70,Players!BD$3:BD$937)) ->  | H70: =IF(ISERROR(IF('User Input'!C24=0,"",RANK(I142,I$114:I$143,IF(ranktype=1,0,1)))),"N/A",(IF('User Input'!C24=0,"",RANK(I142,I$114:I$143,IF(ranktype=1,0,1))))) ->  | I70: =IF(ISERROR(IF('User Input'!C24=0,"",RANK(J142,J$114:J$143,IF(ranktype=1,0,1)))),"N/A",(IF('User Input'!C24=0,"",RANK(J142,J$114:J$143,IF(ranktype=1,0,1))))) ->  | J70: =IF('User Input'!C24=0,"",RANK(K142,K$114:K$143,ranktype)) ->  | K70: =IF('User Input'!C24=0,"",RANK(L142,L$114:L$143,ranktype)) ->  | L70: =IF('User Input'!C24=0,"",RANK(M142,M$114:M$143,ranktype)) ->  | M70: =IF(ISERROR(IF('User Input'!C24=0,"",B70+C70+D70+E70+F70+H70+I70+J70+K70+L70)),"N/A",(IF('User Input'!C24=0,"",B70+C70+D70+E70+F70+H70+I70+J70+K70+L70))) ->  | N70: =IF(ISERROR(IF('User Input'!C24=0,"",RANK(M70,M$47:M$76,IF(ranktype=1,0,1)))),"N/A",(IF('User Input'!C24=0,"",RANK(M70,M$47:M$76,IF(ranktype=1,0,1))))) -> 
A71: =IF('User Input'!C25 = 0,"",'User Input'!C25) ->  | B71: =IF('User Input'!C25=0,"",RANK(C143,C$114:C$143,ranktype)) ->  | C71: =IF('User Input'!C25=0,"",RANK(D143,D$114:D$143,ranktype)) ->  | D71: =IF('User Input'!C25=0,"",RANK(E143,E$114:E$143,ranktype)) ->  | E71: =IF('User Input'!C25=0,"",RANK(F143,F$114:F$143,ranktype)) ->  | F71: =IF(ISERROR(IF('User Input'!C25=0,"",RANK(G143,G$114:G$143,ranktype))),"N/A",(IF('User Input'!C25=0,"",RANK(G143,G$114:G$143,ranktype)))) ->  | G71: =IF('User Input'!C25=0,"",SUMIF(Players!$AW$3:$AW$937,A71,Players!BD$3:BD$937)) ->  | H71: =IF(ISERROR(IF('User Input'!C25=0,"",RANK(I143,I$114:I$143,IF(ranktype=1,0,1)))),"N/A",(IF('User Input'!C25=0,"",RANK(I143,I$114:I$143,IF(ranktype=1,0,1))))) ->  | I71: =IF(ISERROR(IF('User Input'!C25=0,"",RANK(J143,J$114:J$143,IF(ranktype=1,0,1)))),"N/A",(IF('User Input'!C25=0,"",RANK(J143,J$114:J$143,IF(ranktype=1,0,1))))) ->  | J71: =IF('User Input'!C25=0,"",RANK(K143,K$114:K$143,ranktype)) ->  | K71: =IF('User Input'!C25=0,"",RANK(L143,L$114:L$143,ranktype)) ->  | L71: =IF('User Input'!C25=0,"",RANK(M143,M$114:M$143,ranktype)) ->  | M71: =IF(ISERROR(IF('User Input'!C25=0,"",B71+C71+D71+E71+F71+H71+I71+J71+K71+L71)),"N/A",(IF('User Input'!C25=0,"",B71+C71+D71+E71+F71+H71+I71+J71+K71+L71))) ->  | N71: =IF(ISERROR(IF('User Input'!C25=0,"",RANK(M71,M$47:M$76,IF(ranktype=1,0,1)))),"N/A",(IF('User Input'!C25=0,"",RANK(M71,M$47:M$76,IF(ranktype=1,0,1))))) -> 
A72: =IF('User Input'!C26 = 0,"",'User Input'!C26) ->  | B72: =IF('User Input'!C26=0,"",RANK(C144,C$114:C$143,ranktype)) ->  | C72: =IF('User Input'!C26=0,"",RANK(D144,D$114:D$143,ranktype)) ->  | D72: =IF('User Input'!C26=0,"",RANK(E144,E$114:E$143,ranktype)) ->  | E72: =IF('User Input'!C26=0,"",RANK(F144,F$114:F$143,ranktype)) ->  | F72: =IF(ISERROR(IF('User Input'!C26=0,"",RANK(G144,G$114:G$143,ranktype))),"N/A",(IF('User Input'!C26=0,"",RANK(G144,G$114:G$143,ranktype)))) ->  | G72: =IF('User Input'!C26=0,"",SUMIF(Players!$AW$3:$AW$937,A72,Players!BD$3:BD$937)) ->  | H72: =IF(ISERROR(IF('User Input'!C26=0,"",RANK(I144,I$114:I$143,IF(ranktype=1,0,1)))),"N/A",(IF('User Input'!C26=0,"",RANK(I144,I$114:I$143,IF(ranktype=1,0,1))))) ->  | I72: =IF(ISERROR(IF('User Input'!C26=0,"",RANK(J144,J$114:J$143,IF(ranktype=1,0,1)))),"N/A",(IF('User Input'!C26=0,"",RANK(J144,J$114:J$143,IF(ranktype=1,0,1))))) ->  | J72: =IF('User Input'!C26=0,"",RANK(K144,K$114:K$143,ranktype)) ->  | K72: =IF('User Input'!C26=0,"",RANK(L144,L$114:L$143,ranktype)) ->  | L72: =IF('User Input'!C26=0,"",RANK(M144,M$114:M$143,ranktype)) ->  | M72: =IF(ISERROR(IF('User Input'!C26=0,"",B72+C72+D72+E72+F72+H72+I72+J72+K72+L72)),"N/A",(IF('User Input'!C26=0,"",B72+C72+D72+E72+F72+H72+I72+J72+K72+L72))) ->  | N72: =IF(ISERROR(IF('User Input'!C26=0,"",RANK(M72,M$47:M$76,IF(ranktype=1,0,1)))),"N/A",(IF('User Input'!C26=0,"",RANK(M72,M$47:M$76,IF(ranktype=1,0,1))))) -> 
A73: =IF('User Input'!C27 = 0,"",'User Input'!C27) ->  | B73: =IF('User Input'!C27=0,"",RANK(C145,C$114:C$143,ranktype)) ->  | C73: =IF('User Input'!C27=0,"",RANK(D145,D$114:D$143,ranktype)) ->  | D73: =IF('User Input'!C27=0,"",RANK(E145,E$114:E$143,ranktype)) ->  | E73: =IF('User Input'!C27=0,"",RANK(F145,F$114:F$143,ranktype)) ->  | F73: =IF(ISERROR(IF('User Input'!C27=0,"",RANK(G145,G$114:G$143,ranktype))),"N/A",(IF('User Input'!C27=0,"",RANK(G145,G$114:G$143,ranktype)))) ->  | G73: =IF('User Input'!C27=0,"",SUMIF(Players!$AW$3:$AW$937,A73,Players!BD$3:BD$937)) ->  | H73: =IF(ISERROR(IF('User Input'!C27=0,"",RANK(I145,I$114:I$143,IF(ranktype=1,0,1)))),"N/A",(IF('User Input'!C27=0,"",RANK(I145,I$114:I$143,IF(ranktype=1,0,1))))) ->  | I73: =IF(ISERROR(IF('User Input'!C27=0,"",RANK(J145,J$114:J$143,IF(ranktype=1,0,1)))),"N/A",(IF('User Input'!C27=0,"",RANK(J145,J$114:J$143,IF(ranktype=1,0,1))))) ->  | J73: =IF('User Input'!C27=0,"",RANK(K145,K$114:K$143,ranktype)) ->  | K73: =IF('User Input'!C27=0,"",RANK(L145,L$114:L$143,ranktype)) ->  | L73: =IF('User Input'!C27=0,"",RANK(M145,M$114:M$143,ranktype)) ->  | M73: =IF(ISERROR(IF('User Input'!C27=0,"",B73+C73+D73+E73+F73+H73+I73+J73+K73+L73)),"N/A",(IF('User Input'!C27=0,"",B73+C73+D73+E73+F73+H73+I73+J73+K73+L73))) ->  | N73: =IF(ISERROR(IF('User Input'!C27=0,"",RANK(M73,M$47:M$76,IF(ranktype=1,0,1)))),"N/A",(IF('User Input'!C27=0,"",RANK(M73,M$47:M$76,IF(ranktype=1,0,1))))) -> 
A74: =IF('User Input'!C28 = 0,"",'User Input'!C28) ->  | B74: =IF('User Input'!C28=0,"",RANK(C146,C$114:C$143,ranktype)) ->  | C74: =IF('User Input'!C28=0,"",RANK(D146,D$114:D$143,ranktype)) ->  | D74: =IF('User Input'!C28=0,"",RANK(E146,E$114:E$143,ranktype)) ->  | E74: =IF('User Input'!C28=0,"",RANK(F146,F$114:F$143,ranktype)) ->  | F74: =IF(ISERROR(IF('User Input'!C28=0,"",RANK(G146,G$114:G$143,ranktype))),"N/A",(IF('User Input'!C28=0,"",RANK(G146,G$114:G$143,ranktype)))) ->  | G74: =IF('User Input'!C28=0,"",SUMIF(Players!$AW$3:$AW$937,A74,Players!BD$3:BD$937)) ->  | H74: =IF(ISERROR(IF('User Input'!C28=0,"",RANK(I146,I$114:I$143,IF(ranktype=1,0,1)))),"N/A",(IF('User Input'!C28=0,"",RANK(I146,I$114:I$143,IF(ranktype=1,0,1))))) ->  | I74: =IF(ISERROR(IF('User Input'!C28=0,"",RANK(J146,J$114:J$143,IF(ranktype=1,0,1)))),"N/A",(IF('User Input'!C28=0,"",RANK(J146,J$114:J$143,IF(ranktype=1,0,1))))) ->  | J74: =IF('User Input'!C28=0,"",RANK(K146,K$114:K$143,ranktype)) ->  | K74: =IF('User Input'!C28=0,"",RANK(L146,L$114:L$143,ranktype)) ->  | L74: =IF('User Input'!C28=0,"",RANK(M146,M$114:M$143,ranktype)) ->  | M74: =IF(ISERROR(IF('User Input'!C28=0,"",B74+C74+D74+E74+F74+H74+I74+J74+K74+L74)),"N/A",(IF('User Input'!C28=0,"",B74+C74+D74+E74+F74+H74+I74+J74+K74+L74))) ->  | N74: =IF(ISERROR(IF('User Input'!C28=0,"",RANK(M74,M$47:M$76,IF(ranktype=1,0,1)))),"N/A",(IF('User Input'!C28=0,"",RANK(M74,M$47:M$76,IF(ranktype=1,0,1))))) -> 
A75: =IF('User Input'!C29 = 0,"",'User Input'!C29) ->  | B75: =IF('User Input'!C29=0,"",RANK(C147,C$114:C$143,ranktype)) ->  | C75: =IF('User Input'!C29=0,"",RANK(D147,D$114:D$143,ranktype)) ->  | D75: =IF('User Input'!C29=0,"",RANK(E147,E$114:E$143,ranktype)) ->  | E75: =IF('User Input'!C29=0,"",RANK(F147,F$114:F$143,ranktype)) ->  | F75: =IF(ISERROR(IF('User Input'!C29=0,"",RANK(G147,G$114:G$143,ranktype))),"N/A",(IF('User Input'!C29=0,"",RANK(G147,G$114:G$143,ranktype)))) ->  | G75: =IF('User Input'!C29=0,"",SUMIF(Players!$AW$3:$AW$937,A75,Players!BD$3:BD$937)) ->  | H75: =IF(ISERROR(IF('User Input'!C29=0,"",RANK(I147,I$114:I$143,IF(ranktype=1,0,1)))),"N/A",(IF('User Input'!C29=0,"",RANK(I147,I$114:I$143,IF(ranktype=1,0,1))))) ->  | I75: =IF(ISERROR(IF('User Input'!C29=0,"",RANK(J147,J$114:J$143,IF(ranktype=1,0,1)))),"N/A",(IF('User Input'!C29=0,"",RANK(J147,J$114:J$143,IF(ranktype=1,0,1))))) ->  | J75: =IF('User Input'!C29=0,"",RANK(K147,K$114:K$143,ranktype)) ->  | K75: =IF('User Input'!C29=0,"",RANK(L147,L$114:L$143,ranktype)) ->  | L75: =IF('User Input'!C29=0,"",RANK(M147,M$114:M$143,ranktype)) ->  | M75: =IF(ISERROR(IF('User Input'!C29=0,"",B75+C75+D75+E75+F75+H75+I75+J75+K75+L75)),"N/A",(IF('User Input'!C29=0,"",B75+C75+D75+E75+F75+H75+I75+J75+K75+L75))) ->  | N75: =IF(ISERROR(IF('User Input'!C29=0,"",RANK(M75,M$47:M$76,IF(ranktype=1,0,1)))),"N/A",(IF('User Input'!C29=0,"",RANK(M75,M$47:M$76,IF(ranktype=1,0,1))))) -> 
A76: =IF('User Input'!C30 = 0,"",'User Input'!C30) ->  | B76: =IF('User Input'!C30=0,"",RANK(C148,C$114:C$143,ranktype)) ->  | C76: =IF('User Input'!C30=0,"",RANK(D148,D$114:D$143,ranktype)) ->  | D76: =IF('User Input'!C30=0,"",RANK(E148,E$114:E$143,ranktype)) ->  | E76: =IF('User Input'!C30=0,"",RANK(F148,F$114:F$143,ranktype)) ->  | F76: =IF(ISERROR(IF('User Input'!C30=0,"",RANK(G148,G$114:G$143,ranktype))),"N/A",(IF('User Input'!C30=0,"",RANK(G148,G$114:G$143,ranktype)))) ->  | G76: =IF('User Input'!C30=0,"",SUMIF(Players!$AW$3:$AW$937,A76,Players!BD$3:BD$937)) ->  | H76: =IF(ISERROR(IF('User Input'!C30=0,"",RANK(I148,I$114:I$143,IF(ranktype=1,0,1)))),"N/A",(IF('User Input'!C30=0,"",RANK(I148,I$114:I$143,IF(ranktype=1,0,1))))) ->  | I76: =IF(ISERROR(IF('User Input'!C30=0,"",RANK(J148,J$114:J$143,IF(ranktype=1,0,1)))),"N/A",(IF('User Input'!C30=0,"",RANK(J148,J$114:J$143,IF(ranktype=1,0,1))))) ->  | J76: =IF('User Input'!C30=0,"",RANK(K148,K$114:K$143,ranktype)) ->  | K76: =IF('User Input'!C30=0,"",RANK(L148,L$114:L$143,ranktype)) ->  | L76: =IF('User Input'!C30=0,"",RANK(M148,M$114:M$143,ranktype)) ->  | M76: =IF(ISERROR(IF('User Input'!C30=0,"",B76+C76+D76+E76+F76+H76+I76+J76+K76+L76)),"N/A",(IF('User Input'!C30=0,"",B76+C76+D76+E76+F76+H76+I76+J76+K76+L76))) ->  | N76: =IF(ISERROR(IF('User Input'!C30=0,"",RANK(M76,M$47:M$76,IF(ranktype=1,0,1)))),"N/A",(IF('User Input'!C30=0,"",RANK(M76,M$47:M$76,IF(ranktype=1,0,1))))) -> 
C79: Batting Per Player | I79: Pitching Per Player
A80: Team | C80: R | D80: HR | E80: RBI | F80: SB | G80: AVG | I80: ERA | J80: WHIP | K80: W | L80: S | M80: K
A81: =IF('User Input'!C1 = 0,"",'User Input'!C1) -> a | C81: =IF('User Input'!C1 = 0,"",C114/$B13) ->  | D81: =IF('User Input'!C1 = 0,"",D114/$B13) ->  | E81: =IF('User Input'!C1 = 0,"",E114/$B13) ->  | F81: =IF('User Input'!C1 = 0,"",F114/$B13) ->  | G81: =IF('User Input'!C1 = 0,"",G114) ->  | I81: =IF('User Input'!C1 = 0,"",I114) ->  | J81: =IF('User Input'!C1 = 0,"",J114) ->  | K81: =IF('User Input'!C1 = 0,"",K114/$C13) ->  | L81: =IF('User Input'!C1 = 0,"",L114/$C13) ->  | M81: =IF('User Input'!C1 = 0,"",M114/$C13) ->  | N81: ← ← ← | O81: YOUR TEAM
A82: =IF('User Input'!C2 = 0,"",'User Input'!C2) -> b | C82: =IF('User Input'!C2 = 0,"",C115/$B14) ->  | D82: =IF('User Input'!C2 = 0,"",D115/$B14) ->  | E82: =IF('User Input'!C2 = 0,"",E115/$B14) ->  | F82: =IF('User Input'!C2 = 0,"",F115/$B14) ->  | G82: =IF('User Input'!C2 = 0,"",G115) ->  | I82: =IF('User Input'!C2 = 0,"",I115) ->  | J82: =IF('User Input'!C2 = 0,"",J115) ->  | K82: =IF('User Input'!C2 = 0,"",K115/$C14) ->  | L82: =IF('User Input'!C2 = 0,"",L115/$C14) ->  | M82: =IF('User Input'!C2 = 0,"",M115/$C14) -> 
A83: =IF('User Input'!C3 = 0,"",'User Input'!C3) -> c | C83: =IF('User Input'!C3 = 0,"",C116/$B15) ->  | D83: =IF('User Input'!C3 = 0,"",D116/$B15) ->  | E83: =IF('User Input'!C3 = 0,"",E116/$B15) ->  | F83: =IF('User Input'!C3 = 0,"",F116/$B15) ->  | G83: =IF('User Input'!C3 = 0,"",G116) ->  | I83: =IF('User Input'!C3 = 0,"",I116) ->  | J83: =IF('User Input'!C3 = 0,"",J116) ->  | K83: =IF('User Input'!C3 = 0,"",K116/$C15) ->  | L83: =IF('User Input'!C3 = 0,"",L116/$C15) ->  | M83: =IF('User Input'!C3 = 0,"",M116/$C15) -> 
A84: =IF('User Input'!C4 = 0,"",'User Input'!C4) -> d | C84: =IF('User Input'!C4 = 0,"",C117/$B16) ->  | D84: =IF('User Input'!C4 = 0,"",D117/$B16) ->  | E84: =IF('User Input'!C4 = 0,"",E117/$B16) ->  | F84: =IF('User Input'!C4 = 0,"",F117/$B16) ->  | G84: =IF('User Input'!C4 = 0,"",G117) ->  | I84: =IF('User Input'!C4 = 0,"",I117) ->  | J84: =IF('User Input'!C4 = 0,"",J117) ->  | K84: =IF('User Input'!C4 = 0,"",K117/$C16) ->  | L84: =IF('User Input'!C4 = 0,"",L117/$C16) ->  | M84: =IF('User Input'!C4 = 0,"",M117/$C16) -> 
A85: =IF('User Input'!C5 = 0,"",'User Input'!C5) -> e | C85: =IF('User Input'!C5 = 0,"",C118/$B17) ->  | D85: =IF('User Input'!C5 = 0,"",D118/$B17) ->  | E85: =IF('User Input'!C5 = 0,"",E118/$B17) ->  | F85: =IF('User Input'!C5 = 0,"",F118/$B17) ->  | G85: =IF('User Input'!C5 = 0,"",G118) ->  | I85: =IF('User Input'!C5 = 0,"",I118) ->  | J85: =IF('User Input'!C5 = 0,"",J118) ->  | K85: =IF('User Input'!C5 = 0,"",K118/$C17) ->  | L85: =IF('User Input'!C5 = 0,"",L118/$C17) ->  | M85: =IF('User Input'!C5 = 0,"",M118/$C17) -> 
A86: =IF('User Input'!C6 = 0,"",'User Input'!C6) -> f | C86: =IF('User Input'!C6 = 0,"",C119/$B18) ->  | D86: =IF('User Input'!C6 = 0,"",D119/$B18) ->  | E86: =IF('User Input'!C6 = 0,"",E119/$B18) ->  | F86: =IF('User Input'!C6 = 0,"",F119/$B18) ->  | G86: =IF('User Input'!C6 = 0,"",G119) ->  | I86: =IF('User Input'!C6 = 0,"",I119) ->  | J86: =IF('User Input'!C6 = 0,"",J119) ->  | K86: =IF('User Input'!C6 = 0,"",K119/$C18) ->  | L86: =IF('User Input'!C6 = 0,"",L119/$C18) ->  | M86: =IF('User Input'!C6 = 0,"",M119/$C18) -> 
A87: =IF('User Input'!C7 = 0,"",'User Input'!C7) -> g | C87: =IF('User Input'!C7 = 0,"",C120/$B19) ->  | D87: =IF('User Input'!C7 = 0,"",D120/$B19) ->  | E87: =IF('User Input'!C7 = 0,"",E120/$B19) ->  | F87: =IF('User Input'!C7 = 0,"",F120/$B19) ->  | G87: =IF('User Input'!C7 = 0,"",G120) ->  | I87: =IF('User Input'!C7 = 0,"",I120) ->  | J87: =IF('User Input'!C7 = 0,"",J120) ->  | K87: =IF('User Input'!C7 = 0,"",K120/$C19) ->  | L87: =IF('User Input'!C7 = 0,"",L120/$C19) ->  | M87: =IF('User Input'!C7 = 0,"",M120/$C19) -> 
A88: =IF('User Input'!C8 = 0,"",'User Input'!C8) -> h | C88: =IF('User Input'!C8 = 0,"",C121/$B20) ->  | D88: =IF('User Input'!C8 = 0,"",D121/$B20) ->  | E88: =IF('User Input'!C8 = 0,"",E121/$B20) ->  | F88: =IF('User Input'!C8 = 0,"",F121/$B20) ->  | G88: =IF('User Input'!C8 = 0,"",G121) ->  | I88: =IF('User Input'!C8 = 0,"",I121) ->  | J88: =IF('User Input'!C8 = 0,"",J121) ->  | K88: =IF('User Input'!C8 = 0,"",K121/$C20) ->  | L88: =IF('User Input'!C8 = 0,"",L121/$C20) ->  | M88: =IF('User Input'!C8 = 0,"",M121/$C20) -> 
A89: =IF('User Input'!C9 = 0,"",'User Input'!C9) -> i | C89: =IF('User Input'!C9 = 0,"",C122/$B21) ->  | D89: =IF('User Input'!C9 = 0,"",D122/$B21) ->  | E89: =IF('User Input'!C9 = 0,"",E122/$B21) ->  | F89: =IF('User Input'!C9 = 0,"",F122/$B21) ->  | G89: =IF('User Input'!C9 = 0,"",G122) ->  | I89: =IF('User Input'!C9 = 0,"",I122) ->  | J89: =IF('User Input'!C9 = 0,"",J122) ->  | K89: =IF('User Input'!C9 = 0,"",K122/$C21) ->  | L89: =IF('User Input'!C9 = 0,"",L122/$C21) ->  | M89: =IF('User Input'!C9 = 0,"",M122/$C21) -> 
A90: =IF('User Input'!C10 = 0,"",'User Input'!C10) -> j | C90: =IF('User Input'!C10 = 0,"",C123/$B22) ->  | D90: =IF('User Input'!C10 = 0,"",D123/$B22) ->  | E90: =IF('User Input'!C10 = 0,"",E123/$B22) ->  | F90: =IF('User Input'!C10 = 0,"",F123/$B22) ->  | G90: =IF('User Input'!C10 = 0,"",G123) ->  | I90: =IF('User Input'!C10 = 0,"",I123) ->  | J90: =IF('User Input'!C10 = 0,"",J123) ->  | K90: =IF('User Input'!C10 = 0,"",K123/$C22) ->  | L90: =IF('User Input'!C10 = 0,"",L123/$C22) ->  | M90: =IF('User Input'!C10 = 0,"",M123/$C22) -> 
A91: =IF('User Input'!C11 = 0,"",'User Input'!C11) -> k | C91: =IF('User Input'!C11 = 0,"",C124/$B23) ->  | D91: =IF('User Input'!C11 = 0,"",D124/$B23) ->  | E91: =IF('User Input'!C11 = 0,"",E124/$B23) ->  | F91: =IF('User Input'!C11 = 0,"",F124/$B23) ->  | G91: =IF('User Input'!C11 = 0,"",G124) ->  | I91: =IF('User Input'!C11 = 0,"",I124) ->  | J91: =IF('User Input'!C11 = 0,"",J124) ->  | K91: =IF('User Input'!C11 = 0,"",K124/$C23) ->  | L91: =IF('User Input'!C11 = 0,"",L124/$C23) ->  | M91: =IF('User Input'!C11 = 0,"",M124/$C23) -> 
A92: =IF('User Input'!C12 = 0,"",'User Input'!C12) -> l | C92: =IF('User Input'!C12 = 0,"",C125/$B24) ->  | D92: =IF('User Input'!C12 = 0,"",D125/$B24) ->  | E92: =IF('User Input'!C12 = 0,"",E125/$B24) ->  | F92: =IF('User Input'!C12 = 0,"",F125/$B24) ->  | G92: =IF('User Input'!C12 = 0,"",G125) ->  | I92: =IF('User Input'!C12 = 0,"",I125) ->  | J92: =IF('User Input'!C12 = 0,"",J125) ->  | K92: =IF('User Input'!C12 = 0,"",K125/$C24) ->  | L92: =IF('User Input'!C12 = 0,"",L125/$C24) ->  | M92: =IF('User Input'!C12 = 0,"",M125/$C24) -> 
A93: =IF('User Input'!C13 = 0,"",'User Input'!C13) ->  | C93: =IF('User Input'!C13 = 0,"",C126/$B25) ->  | D93: =IF('User Input'!C13 = 0,"",D126/$B25) ->  | E93: =IF('User Input'!C13 = 0,"",E126/$B25) ->  | F93: =IF('User Input'!C13 = 0,"",F126/$B25) ->  | G93: =IF('User Input'!C13 = 0,"",G126) ->  | I93: =IF('User Input'!C13 = 0,"",I126) ->  | J93: =IF('User Input'!C13 = 0,"",J126) ->  | K93: =IF('User Input'!C13 = 0,"",K126/$C25) ->  | L93: =IF('User Input'!C13 = 0,"",L126/$C25) ->  | M93: =IF('User Input'!C13 = 0,"",M126/$C25) -> 
A94: =IF('User Input'!C14 = 0,"",'User Input'!C14) ->  | C94: =IF('User Input'!C14 = 0,"",C127/$B26) ->  | D94: =IF('User Input'!C14 = 0,"",D127/$B26) ->  | E94: =IF('User Input'!C14 = 0,"",E127/$B26) ->  | F94: =IF('User Input'!C14 = 0,"",F127/$B26) ->  | G94: =IF('User Input'!C14 = 0,"",G127) ->  | I94: =IF('User Input'!C14 = 0,"",I127) ->  | J94: =IF('User Input'!C14 = 0,"",J127) ->  | K94: =IF('User Input'!C14 = 0,"",K127/$C26) ->  | L94: =IF('User Input'!C14 = 0,"",L127/$C26) ->  | M94: =IF('User Input'!C14 = 0,"",M127/$C26) -> 
A95: =IF('User Input'!C15 = 0,"",'User Input'!C15) ->  | C95: =IF('User Input'!C15 = 0,"",C128/$B27) ->  | D95: =IF('User Input'!C15 = 0,"",D128/$B27) ->  | E95: =IF('User Input'!C15 = 0,"",E128/$B27) ->  | F95: =IF('User Input'!C15 = 0,"",F128/$B27) ->  | G95: =IF('User Input'!C15 = 0,"",G128) ->  | I95: =IF('User Input'!C15 = 0,"",I128) ->  | J95: =IF('User Input'!C15 = 0,"",J128) ->  | K95: =IF('User Input'!C15 = 0,"",K128/$C27) ->  | L95: =IF('User Input'!C15 = 0,"",L128/$C27) ->  | M95: =IF('User Input'!C15 = 0,"",M128/$C27) -> 
A96: =IF('User Input'!C16 = 0,"",'User Input'!C16) ->  | C96: =IF('User Input'!C16 = 0,"",C129/$B28) ->  | D96: =IF('User Input'!C16 = 0,"",D129/$B28) ->  | E96: =IF('User Input'!C16 = 0,"",E129/$B28) ->  | F96: =IF('User Input'!C16 = 0,"",F129/$B28) ->  | G96: =IF('User Input'!C16 = 0,"",G129) ->  | I96: =IF('User Input'!C16 = 0,"",I129) ->  | J96: =IF('User Input'!C16 = 0,"",J129) ->  | K96: =IF('User Input'!C16 = 0,"",K129/$C28) ->  | L96: =IF('User Input'!C16 = 0,"",L129/$C28) ->  | M96: =IF('User Input'!C16 = 0,"",M129/$C28) -> 
A97: =IF('User Input'!C17 = 0,"",'User Input'!C17) ->  | C97: =IF('User Input'!C17 = 0,"",C130/$B29) ->  | D97: =IF('User Input'!C17 = 0,"",D130/$B29) ->  | E97: =IF('User Input'!C17 = 0,"",E130/$B29) ->  | F97: =IF('User Input'!C17 = 0,"",F130/$B29) ->  | G97: =IF('User Input'!C17 = 0,"",G130) ->  | I97: =IF('User Input'!C17 = 0,"",I130) ->  | J97: =IF('User Input'!C17 = 0,"",J130) ->  | K97: =IF('User Input'!C17 = 0,"",K130/$C29) ->  | L97: =IF('User Input'!C17 = 0,"",L130/$C29) ->  | M97: =IF('User Input'!C17 = 0,"",M130/$C29) -> 
A98: =IF('User Input'!C18 = 0,"",'User Input'!C18) ->  | C98: =IF('User Input'!C18 = 0,"",C131/$B30) ->  | D98: =IF('User Input'!C18 = 0,"",D131/$B30) ->  | E98: =IF('User Input'!C18 = 0,"",E131/$B30) ->  | F98: =IF('User Input'!C18 = 0,"",F131/$B30) ->  | G98: =IF('User Input'!C18 = 0,"",G131) ->  | I98: =IF('User Input'!C18 = 0,"",I131) ->  | J98: =IF('User Input'!C18 = 0,"",J131) ->  | K98: =IF('User Input'!C18 = 0,"",K131/$C30) ->  | L98: =IF('User Input'!C18 = 0,"",L131/$C30) ->  | M98: =IF('User Input'!C18 = 0,"",M131/$C30) -> 
A99: =IF('User Input'!C19 = 0,"",'User Input'!C19) ->  | C99: =IF('User Input'!C19 = 0,"",C132/$B31) ->  | D99: =IF('User Input'!C19 = 0,"",D132/$B31) ->  | E99: =IF('User Input'!C19 = 0,"",E132/$B31) ->  | F99: =IF('User Input'!C19 = 0,"",F132/$B31) ->  | G99: =IF('User Input'!C19 = 0,"",G132) ->  | I99: =IF('User Input'!C19 = 0,"",I132) ->  | J99: =IF('User Input'!C19 = 0,"",J132) ->  | K99: =IF('User Input'!C19 = 0,"",K132/$C31) ->  | L99: =IF('User Input'!C19 = 0,"",L132/$C31) ->  | M99: =IF('User Input'!C19 = 0,"",M132/$C31) -> 
A100: =IF('User Input'!C20 = 0,"",'User Input'!C20) ->  | C100: =IF('User Input'!C20 = 0,"",C133/$B32) ->  | D100: =IF('User Input'!C20 = 0,"",D133/$B32) ->  | E100: =IF('User Input'!C20 = 0,"",E133/$B32) ->  | F100: =IF('User Input'!C20 = 0,"",F133/$B32) ->  | G100: =IF('User Input'!C20 = 0,"",G133) ->  | I100: =IF('User Input'!C20 = 0,"",I133) ->  | J100: =IF('User Input'!C20 = 0,"",J133) ->  | K100: =IF('User Input'!C20 = 0,"",K133/$C32) ->  | L100: =IF('User Input'!C20 = 0,"",L133/$C32) ->  | M100: =IF('User Input'!C20 = 0,"",M133/$C32) -> 
A101: =IF('User Input'!C21 = 0,"",'User Input'!C21) ->  | C101: =IF('User Input'!C21 = 0,"",C134/$B33) ->  | D101: =IF('User Input'!C21 = 0,"",D134/$B33) ->  | E101: =IF('User Input'!C21 = 0,"",E134/$B33) ->  | F101: =IF('User Input'!C21 = 0,"",F134/$B33) ->  | G101: =IF('User Input'!C21 = 0,"",G134) ->  | I101: =IF('User Input'!C21 = 0,"",I134) ->  | J101: =IF('User Input'!C21 = 0,"",J134) ->  | K101: =IF('User Input'!C21 = 0,"",K134/$C33) ->  | L101: =IF('User Input'!C21 = 0,"",L134/$C33) ->  | M101: =IF('User Input'!C21 = 0,"",M134/$C33) -> 
A102: =IF('User Input'!C22 = 0,"",'User Input'!C22) ->  | C102: =IF('User Input'!C22 = 0,"",C135/$B34) ->  | D102: =IF('User Input'!C22 = 0,"",D135/$B34) ->  | E102: =IF('User Input'!C22 = 0,"",E135/$B34) ->  | F102: =IF('User Input'!C22 = 0,"",F135/$B34) ->  | G102: =IF('User Input'!C22 = 0,"",G135) ->  | I102: =IF('User Input'!C22 = 0,"",I135) ->  | J102: =IF('User Input'!C22 = 0,"",J135) ->  | K102: =IF('User Input'!C22 = 0,"",K135/$C34) ->  | L102: =IF('User Input'!C22 = 0,"",L135/$C34) ->  | M102: =IF('User Input'!C22 = 0,"",M135/$C34) -> 
A103: =IF('User Input'!C23 = 0,"",'User Input'!C23) ->  | C103: =IF('User Input'!C23 = 0,"",C136/$B35) ->  | D103: =IF('User Input'!C23 = 0,"",D136/$B35) ->  | E103: =IF('User Input'!C23 = 0,"",E136/$B35) ->  | F103: =IF('User Input'!C23 = 0,"",F136/$B35) ->  | G103: =IF('User Input'!C23 = 0,"",G136) ->  | I103: =IF('User Input'!C23 = 0,"",I136) ->  | J103: =IF('User Input'!C23 = 0,"",J136) ->  | K103: =IF('User Input'!C23 = 0,"",K136/$C35) ->  | L103: =IF('User Input'!C23 = 0,"",L136/$C35) ->  | M103: =IF('User Input'!C23 = 0,"",M136/$C35) -> 
A104: =IF('User Input'!C24 = 0,"",'User Input'!C24) ->  | C104: =IF('User Input'!C24 = 0,"",C137/$B36) ->  | D104: =IF('User Input'!C24 = 0,"",D137/$B36) ->  | E104: =IF('User Input'!C24 = 0,"",E137/$B36) ->  | F104: =IF('User Input'!C24 = 0,"",F137/$B36) ->  | G104: =IF('User Input'!C24 = 0,"",G137) ->  | I104: =IF('User Input'!C24 = 0,"",I137) ->  | J104: =IF('User Input'!C24 = 0,"",J137) ->  | K104: =IF('User Input'!C24 = 0,"",K137/$C36) ->  | L104: =IF('User Input'!C24 = 0,"",L137/$C36) ->  | M104: =IF('User Input'!C24 = 0,"",M137/$C36) -> 
A105: =IF('User Input'!C25 = 0,"",'User Input'!C25) ->  | C105: =IF('User Input'!C25 = 0,"",C138/$B37) ->  | D105: =IF('User Input'!C25 = 0,"",D138/$B37) ->  | E105: =IF('User Input'!C25 = 0,"",E138/$B37) ->  | F105: =IF('User Input'!C25 = 0,"",F138/$B37) ->  | G105: =IF('User Input'!C25 = 0,"",G138) ->  | I105: =IF('User Input'!C25 = 0,"",I138) ->  | J105: =IF('User Input'!C25 = 0,"",J138) ->  | K105: =IF('User Input'!C25 = 0,"",K138/$C37) ->  | L105: =IF('User Input'!C25 = 0,"",L138/$C37) ->  | M105: =IF('User Input'!C25 = 0,"",M138/$C37) -> 
A106: =IF('User Input'!C26 = 0,"",'User Input'!C26) ->  | C106: =IF('User Input'!C26 = 0,"",C139/$B38) ->  | D106: =IF('User Input'!C26 = 0,"",D139/$B38) ->  | E106: =IF('User Input'!C26 = 0,"",E139/$B38) ->  | F106: =IF('User Input'!C26 = 0,"",F139/$B38) ->  | G106: =IF('User Input'!C26 = 0,"",G139) ->  | I106: =IF('User Input'!C26 = 0,"",I139) ->  | J106: =IF('User Input'!C26 = 0,"",J139) ->  | K106: =IF('User Input'!C26 = 0,"",K139/$C38) ->  | L106: =IF('User Input'!C26 = 0,"",L139/$C38) ->  | M106: =IF('User Input'!C26 = 0,"",M139/$C38) -> 
A107: =IF('User Input'!C27 = 0,"",'User Input'!C27) ->  | C107: =IF('User Input'!C27 = 0,"",C140/$B39) ->  | D107: =IF('User Input'!C27 = 0,"",D140/$B39) ->  | E107: =IF('User Input'!C27 = 0,"",E140/$B39) ->  | F107: =IF('User Input'!C27 = 0,"",F140/$B39) ->  | G107: =IF('User Input'!C27 = 0,"",G140) ->  | I107: =IF('User Input'!C27 = 0,"",I140) ->  | J107: =IF('User Input'!C27 = 0,"",J140) ->  | K107: =IF('User Input'!C27 = 0,"",K140/$C39) ->  | L107: =IF('User Input'!C27 = 0,"",L140/$C39) ->  | M107: =IF('User Input'!C27 = 0,"",M140/$C39) -> 
A108: =IF('User Input'!C28 = 0,"",'User Input'!C28) ->  | C108: =IF('User Input'!C28 = 0,"",C141/$B40) ->  | D108: =IF('User Input'!C28 = 0,"",D141/$B40) ->  | E108: =IF('User Input'!C28 = 0,"",E141/$B40) ->  | F108: =IF('User Input'!C28 = 0,"",F141/$B40) ->  | G108: =IF('User Input'!C28 = 0,"",G141) ->  | I108: =IF('User Input'!C28 = 0,"",I141) ->  | J108: =IF('User Input'!C28 = 0,"",J141) ->  | K108: =IF('User Input'!C28 = 0,"",K141/$C40) ->  | L108: =IF('User Input'!C28 = 0,"",L141/$C40) ->  | M108: =IF('User Input'!C28 = 0,"",M141/$C40) -> 
A109: =IF('User Input'!C29 = 0,"",'User Input'!C29) ->  | C109: =IF('User Input'!C29 = 0,"",C142/$B41) ->  | D109: =IF('User Input'!C29 = 0,"",D142/$B41) ->  | E109: =IF('User Input'!C29 = 0,"",E142/$B41) ->  | F109: =IF('User Input'!C29 = 0,"",F142/$B41) ->  | G109: =IF('User Input'!C29 = 0,"",G142) ->  | I109: =IF('User Input'!C29 = 0,"",I142) ->  | J109: =IF('User Input'!C29 = 0,"",J142) ->  | K109: =IF('User Input'!C29 = 0,"",K142/$C41) ->  | L109: =IF('User Input'!C29 = 0,"",L142/$C41) ->  | M109: =IF('User Input'!C29 = 0,"",M142/$C41) -> 
A110: =IF('User Input'!C30 = 0,"",'User Input'!C30) ->  | C110: =IF('User Input'!C30 = 0,"",C143/$B42) ->  | D110: =IF('User Input'!C30 = 0,"",D143/$B42) ->  | E110: =IF('User Input'!C30 = 0,"",E143/$B42) ->  | F110: =IF('User Input'!C30 = 0,"",F143/$B42) ->  | G110: =IF('User Input'!C30 = 0,"",G143) ->  | I110: =IF('User Input'!C30 = 0,"",I143) ->  | J110: =IF('User Input'!C30 = 0,"",J143) ->  | K110: =IF('User Input'!C30 = 0,"",K143/$C42) ->  | L110: =IF('User Input'!C30 = 0,"",L143/$C42) ->  | M110: =IF('User Input'!C30 = 0,"",M143/$C42) -> 
B112: Projected Batting Totals | H112: Projected Pitching Totals
A113: Team | B113: AB | C113: R | D113: HR | E113: RBI | F113: SB | G113: AVG | H113: IP | I113: ERA | J113: WHIP | K113: W | L113: S | M113: K
A114: =IF('User Input'!C1 = 0,"",'User Input'!C1) -> a | B114: =IF('User Input'!C1=0,"",SUMIF(Players!$O$3:$O$903,A114,Players!V$3:V$903)) -> 0 | C114: =IF('User Input'!C1=0,"",SUMIF(Players!$O$3:$O$903,A114,Players!W$3:W$903)) -> 0 | D114: =IF('User Input'!C1=0,"",SUMIF(Players!$O$3:$O$903,A114,Players!X$3:X$903)) -> 0 | E114: =IF('User Input'!C1=0,"",SUMIF(Players!$O$3:$O$903,A114,Players!Y$3:Y$903)) -> 0 | F114: =IF('User Input'!C1=0,"",SUMIF(Players!$O$3:$O$903,A114,Players!Z$3:Z$903)) -> 0 | G114: =IF('User Input'!C1=0,"",(SUMIF(Players!$O$3:$O$903,A114,Players!AC$3:AC$1019))/B114) ->  | H114: =IF('User Input'!C1=0,"",SUMIF(Players!$AW$3:$AW$937,A114,Players!BD$3:BD$937)) -> 0 | I114: =IF('User Input'!C1=0,"",SUMIF(Players!$AW$3:$AW$937,A114,Players!BK$3:BK$1019)/H114) ->  | J114: =IF('User Input'!C1=0,"",SUMIF(Players!$AW$3:$AW$937,A114,Players!BL$3:BL$1019)/H114) ->  | K114: =IF('User Input'!C1=0,"",SUMIF(Players!$AW$3:$AW$937,A114,Players!BG$3:BG$937)) -> 0 | L114: =IF('User Input'!C1=0,"",SUMIF(Players!$AW$3:$AW$937,A114,Players!BH$3:BH$937)) -> 0 | M114: =IF('User Input'!C1=0,"",SUMIF(Players!$AW$3:$AW$937,A114,Players!BI$3:BI$937)) -> 0 | N114: ← ← ← | O114: YOUR TEAM
A115: =IF('User Input'!C2 = 0,"",'User Input'!C2) -> b | B115: =IF('User Input'!C2=0,"",SUMIF(Players!$O$3:$O$903,A115,Players!V$3:V$903)) -> 0 | C115: =IF('User Input'!C2=0,"",SUMIF(Players!$O$3:$O$903,A115,Players!W$3:W$903)) -> 0 | D115: =IF('User Input'!C2=0,"",SUMIF(Players!$O$3:$O$903,A115,Players!X$3:X$903)) -> 0 | E115: =IF('User Input'!C2=0,"",SUMIF(Players!$O$3:$O$903,A115,Players!Y$3:Y$903)) -> 0 | F115: =IF('User Input'!C2=0,"",SUMIF(Players!$O$3:$O$903,A115,Players!Z$3:Z$903)) -> 0 | G115: =IF('User Input'!C2=0,"",(SUMIF(Players!$O$3:$O$903,A115,Players!AC$3:AC$1019))/B115) ->  | H115: =IF('User Input'!C2=0,"",SUMIF(Players!$AW$3:$AW$937,A115,Players!BD$3:BD$937)) -> 0 | I115: =IF('User Input'!C2=0,"",SUMIF(Players!$AW$3:$AW$937,A115,Players!BK$3:BK$1019)/H115) ->  | J115: =IF('User Input'!C2=0,"",SUMIF(Players!$AW$3:$AW$937,A115,Players!BL$3:BL$1019)/H115) ->  | K115: =IF('User Input'!C2=0,"",SUMIF(Players!$AW$3:$AW$937,A115,Players!BG$3:BG$937)) -> 0 | L115: =IF('User Input'!C2=0,"",SUMIF(Players!$AW$3:$AW$937,A115,Players!BH$3:BH$937)) -> 0 | M115: =IF('User Input'!C2=0,"",SUMIF(Players!$AW$3:$AW$937,A115,Players!BI$3:BI$937)) -> 0
A116: =IF('User Input'!C3 = 0,"",'User Input'!C3) -> c | B116: =IF('User Input'!C3=0,"",SUMIF(Players!$O$3:$O$903,A116,Players!V$3:V$903)) -> 0 | C116: =IF('User Input'!C3=0,"",SUMIF(Players!$O$3:$O$903,A116,Players!W$3:W$903)) -> 0 | D116: =IF('User Input'!C3=0,"",SUMIF(Players!$O$3:$O$903,A116,Players!X$3:X$903)) -> 0 | E116: =IF('User Input'!C3=0,"",SUMIF(Players!$O$3:$O$903,A116,Players!Y$3:Y$903)) -> 0 | F116: =IF('User Input'!C3=0,"",SUMIF(Players!$O$3:$O$903,A116,Players!Z$3:Z$903)) -> 0 | G116: =IF('User Input'!C3=0,"",(SUMIF(Players!$O$3:$O$903,A116,Players!AC$3:AC$1019))/B116) ->  | H116: =IF('User Input'!C3=0,"",SUMIF(Players!$AW$3:$AW$937,A116,Players!BD$3:BD$937)) -> 0 | I116: =IF('User Input'!C3=0,"",SUMIF(Players!$AW$3:$AW$937,A116,Players!BK$3:BK$1019)/H116) ->  | J116: =IF('User Input'!C3=0,"",SUMIF(Players!$AW$3:$AW$937,A116,Players!BL$3:BL$1019)/H116) ->  | K116: =IF('User Input'!C3=0,"",SUMIF(Players!$AW$3:$AW$937,A116,Players!BG$3:BG$937)) -> 0 | L116: =IF('User Input'!C3=0,"",SUMIF(Players!$AW$3:$AW$937,A116,Players!BH$3:BH$937)) -> 0 | M116: =IF('User Input'!C3=0,"",SUMIF(Players!$AW$3:$AW$937,A116,Players!BI$3:BI$937)) -> 0
A117: =IF('User Input'!C4 = 0,"",'User Input'!C4) -> d | B117: =IF('User Input'!C4=0,"",SUMIF(Players!$O$3:$O$903,A117,Players!V$3:V$903)) -> 0 | C117: =IF('User Input'!C4=0,"",SUMIF(Players!$O$3:$O$903,A117,Players!W$3:W$903)) -> 0 | D117: =IF('User Input'!C4=0,"",SUMIF(Players!$O$3:$O$903,A117,Players!X$3:X$903)) -> 0 | E117: =IF('User Input'!C4=0,"",SUMIF(Players!$O$3:$O$903,A117,Players!Y$3:Y$903)) -> 0 | F117: =IF('User Input'!C4=0,"",SUMIF(Players!$O$3:$O$903,A117,Players!Z$3:Z$903)) -> 0 | G117: =IF('User Input'!C4=0,"",(SUMIF(Players!$O$3:$O$903,A117,Players!AC$3:AC$1019))/B117) ->  | H117: =IF('User Input'!C4=0,"",SUMIF(Players!$AW$3:$AW$937,A117,Players!BD$3:BD$937)) -> 0 | I117: =IF('User Input'!C4=0,"",SUMIF(Players!$AW$3:$AW$937,A117,Players!BK$3:BK$1019)/H117) ->  | J117: =IF('User Input'!C4=0,"",SUMIF(Players!$AW$3:$AW$937,A117,Players!BL$3:BL$1019)/H117) ->  | K117: =IF('User Input'!C4=0,"",SUMIF(Players!$AW$3:$AW$937,A117,Players!BG$3:BG$937)) -> 0 | L117: =IF('User Input'!C4=0,"",SUMIF(Players!$AW$3:$AW$937,A117,Players!BH$3:BH$937)) -> 0 | M117: =IF('User Input'!C4=0,"",SUMIF(Players!$AW$3:$AW$937,A117,Players!BI$3:BI$937)) -> 0
A118: =IF('User Input'!C5 = 0,"",'User Input'!C5) -> e | B118: =IF('User Input'!C5=0,"",SUMIF(Players!$O$3:$O$903,A118,Players!V$3:V$903)) -> 0 | C118: =IF('User Input'!C5=0,"",SUMIF(Players!$O$3:$O$903,A118,Players!W$3:W$903)) -> 0 | D118: =IF('User Input'!C5=0,"",SUMIF(Players!$O$3:$O$903,A118,Players!X$3:X$903)) -> 0 | E118: =IF('User Input'!C5=0,"",SUMIF(Players!$O$3:$O$903,A118,Players!Y$3:Y$903)) -> 0 | F118: =IF('User Input'!C5=0,"",SUMIF(Players!$O$3:$O$903,A118,Players!Z$3:Z$903)) -> 0 | G118: =IF('User Input'!C5=0,"",(SUMIF(Players!$O$3:$O$903,A118,Players!AC$3:AC$1019))/B118) ->  | H118: =IF('User Input'!C5=0,"",SUMIF(Players!$AW$3:$AW$937,A118,Players!BD$3:BD$937)) -> 0 | I118: =IF('User Input'!C5=0,"",SUMIF(Players!$AW$3:$AW$937,A118,Players!BK$3:BK$1019)/H118) ->  | J118: =IF('User Input'!C5=0,"",SUMIF(Players!$AW$3:$AW$937,A118,Players!BL$3:BL$1019)/H118) ->  | K118: =IF('User Input'!C5=0,"",SUMIF(Players!$AW$3:$AW$937,A118,Players!BG$3:BG$937)) -> 0 | L118: =IF('User Input'!C5=0,"",SUMIF(Players!$AW$3:$AW$937,A118,Players!BH$3:BH$937)) -> 0 | M118: =IF('User Input'!C5=0,"",SUMIF(Players!$AW$3:$AW$937,A118,Players!BI$3:BI$937)) -> 0
A119: =IF('User Input'!C6 = 0,"",'User Input'!C6) -> f | B119: =IF('User Input'!C6=0,"",SUMIF(Players!$O$3:$O$903,A119,Players!V$3:V$903)) -> 0 | C119: =IF('User Input'!C6=0,"",SUMIF(Players!$O$3:$O$903,A119,Players!W$3:W$903)) -> 0 | D119: =IF('User Input'!C6=0,"",SUMIF(Players!$O$3:$O$903,A119,Players!X$3:X$903)) -> 0 | E119: =IF('User Input'!C6=0,"",SUMIF(Players!$O$3:$O$903,A119,Players!Y$3:Y$903)) -> 0 | F119: =IF('User Input'!C6=0,"",SUMIF(Players!$O$3:$O$903,A119,Players!Z$3:Z$903)) -> 0 | G119: =IF('User Input'!C6=0,"",(SUMIF(Players!$O$3:$O$903,A119,Players!AC$3:AC$1019))/B119) ->  | H119: =IF('User Input'!C6=0,"",SUMIF(Players!$AW$3:$AW$937,A119,Players!BD$3:BD$937)) -> 0 | I119: =IF('User Input'!C6=0,"",SUMIF(Players!$AW$3:$AW$937,A119,Players!BK$3:BK$1019)/H119) ->  | J119: =IF('User Input'!C6=0,"",SUMIF(Players!$AW$3:$AW$937,A119,Players!BL$3:BL$1019)/H119) ->  | K119: =IF('User Input'!C6=0,"",SUMIF(Players!$AW$3:$AW$937,A119,Players!BG$3:BG$937)) -> 0 | L119: =IF('User Input'!C6=0,"",SUMIF(Players!$AW$3:$AW$937,A119,Players!BH$3:BH$937)) -> 0 | M119: =IF('User Input'!C6=0,"",SUMIF(Players!$AW$3:$AW$937,A119,Players!BI$3:BI$937)) -> 0
A120: =IF('User Input'!C7 = 0,"",'User Input'!C7) -> g | B120: =IF('User Input'!C7=0,"",SUMIF(Players!$O$3:$O$903,A120,Players!V$3:V$903)) -> 0 | C120: =IF('User Input'!C7=0,"",SUMIF(Players!$O$3:$O$903,A120,Players!W$3:W$903)) -> 0 | D120: =IF('User Input'!C7=0,"",SUMIF(Players!$O$3:$O$903,A120,Players!X$3:X$903)) -> 0 | E120: =IF('User Input'!C7=0,"",SUMIF(Players!$O$3:$O$903,A120,Players!Y$3:Y$903)) -> 0 | F120: =IF('User Input'!C7=0,"",SUMIF(Players!$O$3:$O$903,A120,Players!Z$3:Z$903)) -> 0 | G120: =IF('User Input'!C7=0,"",(SUMIF(Players!$O$3:$O$903,A120,Players!AC$3:AC$1019))/B120) ->  | H120: =IF('User Input'!C7=0,"",SUMIF(Players!$AW$3:$AW$937,A120,Players!BD$3:BD$937)) -> 0 | I120: =IF('User Input'!C7=0,"",SUMIF(Players!$AW$3:$AW$937,A120,Players!BK$3:BK$1019)/H120) ->  | J120: =IF('User Input'!C7=0,"",SUMIF(Players!$AW$3:$AW$937,A120,Players!BL$3:BL$1019)/H120) ->  | K120: =IF('User Input'!C7=0,"",SUMIF(Players!$AW$3:$AW$937,A120,Players!BG$3:BG$937)) -> 0 | L120: =IF('User Input'!C7=0,"",SUMIF(Players!$AW$3:$AW$937,A120,Players!BH$3:BH$937)) -> 0 | M120: =IF('User Input'!C7=0,"",SUMIF(Players!$AW$3:$AW$937,A120,Players!BI$3:BI$937)) -> 0
A121: =IF('User Input'!C8 = 0,"",'User Input'!C8) -> h | B121: =IF('User Input'!C8=0,"",SUMIF(Players!$O$3:$O$903,A121,Players!V$3:V$903)) -> 0 | C121: =IF('User Input'!C8=0,"",SUMIF(Players!$O$3:$O$903,A121,Players!W$3:W$903)) -> 0 | D121: =IF('User Input'!C8=0,"",SUMIF(Players!$O$3:$O$903,A121,Players!X$3:X$903)) -> 0 | E121: =IF('User Input'!C8=0,"",SUMIF(Players!$O$3:$O$903,A121,Players!Y$3:Y$903)) -> 0 | F121: =IF('User Input'!C8=0,"",SUMIF(Players!$O$3:$O$903,A121,Players!Z$3:Z$903)) -> 0 | G121: =IF('User Input'!C8=0,"",(SUMIF(Players!$O$3:$O$903,A121,Players!AC$3:AC$1019))/B121) ->  | H121: =IF('User Input'!C8=0,"",SUMIF(Players!$AW$3:$AW$937,A121,Players!BD$3:BD$937)) -> 0 | I121: =IF('User Input'!C8=0,"",SUMIF(Players!$AW$3:$AW$937,A121,Players!BK$3:BK$1019)/H121) ->  | J121: =IF('User Input'!C8=0,"",SUMIF(Players!$AW$3:$AW$937,A121,Players!BL$3:BL$1019)/H121) ->  | K121: =IF('User Input'!C8=0,"",SUMIF(Players!$AW$3:$AW$937,A121,Players!BG$3:BG$937)) -> 0 | L121: =IF('User Input'!C8=0,"",SUMIF(Players!$AW$3:$AW$937,A121,Players!BH$3:BH$937)) -> 0 | M121: =IF('User Input'!C8=0,"",SUMIF(Players!$AW$3:$AW$937,A121,Players!BI$3:BI$937)) -> 0
A122: =IF('User Input'!C9 = 0,"",'User Input'!C9) -> i | B122: =IF('User Input'!C9=0,"",SUMIF(Players!$O$3:$O$903,A122,Players!V$3:V$903)) -> 0 | C122: =IF('User Input'!C9=0,"",SUMIF(Players!$O$3:$O$903,A122,Players!W$3:W$903)) -> 0 | D122: =IF('User Input'!C9=0,"",SUMIF(Players!$O$3:$O$903,A122,Players!X$3:X$903)) -> 0 | E122: =IF('User Input'!C9=0,"",SUMIF(Players!$O$3:$O$903,A122,Players!Y$3:Y$903)) -> 0 | F122: =IF('User Input'!C9=0,"",SUMIF(Players!$O$3:$O$903,A122,Players!Z$3:Z$903)) -> 0 | G122: =IF('User Input'!C9=0,"",(SUMIF(Players!$O$3:$O$903,A122,Players!AC$3:AC$1019))/B122) ->  | H122: =IF('User Input'!C9=0,"",SUMIF(Players!$AW$3:$AW$937,A122,Players!BD$3:BD$937)) -> 0 | I122: =IF('User Input'!C9=0,"",SUMIF(Players!$AW$3:$AW$937,A122,Players!BK$3:BK$1019)/H122) ->  | J122: =IF('User Input'!C9=0,"",SUMIF(Players!$AW$3:$AW$937,A122,Players!BL$3:BL$1019)/H122) ->  | K122: =IF('User Input'!C9=0,"",SUMIF(Players!$AW$3:$AW$937,A122,Players!BG$3:BG$937)) -> 0 | L122: =IF('User Input'!C9=0,"",SUMIF(Players!$AW$3:$AW$937,A122,Players!BH$3:BH$937)) -> 0 | M122: =IF('User Input'!C9=0,"",SUMIF(Players!$AW$3:$AW$937,A122,Players!BI$3:BI$937)) -> 0
A123: =IF('User Input'!C10 = 0,"",'User Input'!C10) -> j | B123: =IF('User Input'!C10=0,"",SUMIF(Players!$O$3:$O$903,A123,Players!V$3:V$903)) -> 0 | C123: =IF('User Input'!C10=0,"",SUMIF(Players!$O$3:$O$903,A123,Players!W$3:W$903)) -> 0 | D123: =IF('User Input'!C10=0,"",SUMIF(Players!$O$3:$O$903,A123,Players!X$3:X$903)) -> 0 | E123: =IF('User Input'!C10=0,"",SUMIF(Players!$O$3:$O$903,A123,Players!Y$3:Y$903)) -> 0 | F123: =IF('User Input'!C10=0,"",SUMIF(Players!$O$3:$O$903,A123,Players!Z$3:Z$903)) -> 0 | G123: =IF('User Input'!C10=0,"",(SUMIF(Players!$O$3:$O$903,A123,Players!AC$3:AC$1019))/B123) ->  | H123: =IF('User Input'!C10=0,"",SUMIF(Players!$AW$3:$AW$937,A123,Players!BD$3:BD$937)) -> 0 | I123: =IF('User Input'!C10=0,"",SUMIF(Players!$AW$3:$AW$937,A123,Players!BK$3:BK$1019)/H123) ->  | J123: =IF('User Input'!C10=0,"",SUMIF(Players!$AW$3:$AW$937,A123,Players!BL$3:BL$1019)/H123) ->  | K123: =IF('User Input'!C10=0,"",SUMIF(Players!$AW$3:$AW$937,A123,Players!BG$3:BG$937)) -> 0 | L123: =IF('User Input'!C10=0,"",SUMIF(Players!$AW$3:$AW$937,A123,Players!BH$3:BH$937)) -> 0 | M123: =IF('User Input'!C10=0,"",SUMIF(Players!$AW$3:$AW$937,A123,Players!BI$3:BI$937)) -> 0
A124: =IF('User Input'!C11 = 0,"",'User Input'!C11) -> k | B124: =IF('User Input'!C11=0,"",SUMIF(Players!$O$3:$O$903,A124,Players!V$3:V$903)) -> 0 | C124: =IF('User Input'!C11=0,"",SUMIF(Players!$O$3:$O$903,A124,Players!W$3:W$903)) -> 0 | D124: =IF('User Input'!C11=0,"",SUMIF(Players!$O$3:$O$903,A124,Players!X$3:X$903)) -> 0 | E124: =IF('User Input'!C11=0,"",SUMIF(Players!$O$3:$O$903,A124,Players!Y$3:Y$903)) -> 0 | F124: =IF('User Input'!C11=0,"",SUMIF(Players!$O$3:$O$903,A124,Players!Z$3:Z$903)) -> 0 | G124: =IF('User Input'!C11=0,"",(SUMIF(Players!$O$3:$O$903,A124,Players!AC$3:AC$1019))/B124) ->  | H124: =IF('User Input'!C11=0,"",SUMIF(Players!$AW$3:$AW$937,A124,Players!BD$3:BD$937)) -> 0 | I124: =IF('User Input'!C11=0,"",SUMIF(Players!$AW$3:$AW$937,A124,Players!BK$3:BK$1019)/H124) ->  | J124: =IF('User Input'!C11=0,"",SUMIF(Players!$AW$3:$AW$937,A124,Players!BL$3:BL$1019)/H124) ->  | K124: =IF('User Input'!C11=0,"",SUMIF(Players!$AW$3:$AW$937,A124,Players!BG$3:BG$937)) -> 0 | L124: =IF('User Input'!C11=0,"",SUMIF(Players!$AW$3:$AW$937,A124,Players!BH$3:BH$937)) -> 0 | M124: =IF('User Input'!C11=0,"",SUMIF(Players!$AW$3:$AW$937,A124,Players!BI$3:BI$937)) -> 0
A125: =IF('User Input'!C12 = 0,"",'User Input'!C12) -> l | B125: =IF('User Input'!C12=0,"",SUMIF(Players!$O$3:$O$903,A125,Players!V$3:V$903)) -> 0 | C125: =IF('User Input'!C12=0,"",SUMIF(Players!$O$3:$O$903,A125,Players!W$3:W$903)) -> 0 | D125: =IF('User Input'!C12=0,"",SUMIF(Players!$O$3:$O$903,A125,Players!X$3:X$903)) -> 0 | E125: =IF('User Input'!C12=0,"",SUMIF(Players!$O$3:$O$903,A125,Players!Y$3:Y$903)) -> 0 | F125: =IF('User Input'!C12=0,"",SUMIF(Players!$O$3:$O$903,A125,Players!Z$3:Z$903)) -> 0 | G125: =IF('User Input'!C12=0,"",(SUMIF(Players!$O$3:$O$903,A125,Players!AC$3:AC$1019))/B125) ->  | H125: =IF('User Input'!C12=0,"",SUMIF(Players!$AW$3:$AW$937,A125,Players!BD$3:BD$937)) -> 0 | I125: =IF('User Input'!C12=0,"",SUMIF(Players!$AW$3:$AW$937,A125,Players!BK$3:BK$1019)/H125) ->  | J125: =IF('User Input'!C12=0,"",SUMIF(Players!$AW$3:$AW$937,A125,Players!BL$3:BL$1019)/H125) ->  | K125: =IF('User Input'!C12=0,"",SUMIF(Players!$AW$3:$AW$937,A125,Players!BG$3:BG$937)) -> 0 | L125: =IF('User Input'!C12=0,"",SUMIF(Players!$AW$3:$AW$937,A125,Players!BH$3:BH$937)) -> 0 | M125: =IF('User Input'!C12=0,"",SUMIF(Players!$AW$3:$AW$937,A125,Players!BI$3:BI$937)) -> 0
A126: =IF('User Input'!C13 = 0,"",'User Input'!C13) ->  | B126: =IF('User Input'!C13=0,"",SUMIF(Players!$O$3:$O$903,A126,Players!V$3:V$903)) ->  | C126: =IF('User Input'!C13=0,"",SUMIF(Players!$O$3:$O$903,A126,Players!W$3:W$903)) ->  | D126: =IF('User Input'!C13=0,"",SUMIF(Players!$O$3:$O$903,A126,Players!X$3:X$903)) ->  | E126: =IF('User Input'!C13=0,"",SUMIF(Players!$O$3:$O$903,A126,Players!Y$3:Y$903)) ->  | F126: =IF('User Input'!C13=0,"",SUMIF(Players!$O$3:$O$903,A126,Players!Z$3:Z$903)) ->  | G126: =IF('User Input'!C13=0,"",(SUMIF(Players!$O$3:$O$903,A126,Players!AC$3:AC$1019))/B126) ->  | H126: =IF('User Input'!C13=0,"",SUMIF(Players!$AW$3:$AW$937,A126,Players!BD$3:BD$937)) ->  | I126: =IF('User Input'!C13=0,"",SUMIF(Players!$AW$3:$AW$937,A126,Players!BK$3:BK$1019)/H126) ->  | J126: =IF('User Input'!C13=0,"",SUMIF(Players!$AW$3:$AW$937,A126,Players!BL$3:BL$1019)/H126) ->  | K126: =IF('User Input'!C13=0,"",SUMIF(Players!$AW$3:$AW$937,A126,Players!BG$3:BG$937)) ->  | L126: =IF('User Input'!C13=0,"",SUMIF(Players!$AW$3:$AW$937,A126,Players!BH$3:BH$937)) ->  | M126: =IF('User Input'!C13=0,"",SUMIF(Players!$AW$3:$AW$937,A126,Players!BI$3:BI$937)) -> 
A127: =IF('User Input'!C14 = 0,"",'User Input'!C14) ->  | B127: =IF('User Input'!C14=0,"",SUMIF(Players!$O$3:$O$903,A127,Players!V$3:V$903)) ->  | C127: =IF('User Input'!C14=0,"",SUMIF(Players!$O$3:$O$903,A127,Players!W$3:W$903)) ->  | D127: =IF('User Input'!C14=0,"",SUMIF(Players!$O$3:$O$903,A127,Players!X$3:X$903)) ->  | E127: =IF('User Input'!C14=0,"",SUMIF(Players!$O$3:$O$903,A127,Players!Y$3:Y$903)) ->  | F127: =IF('User Input'!C14=0,"",SUMIF(Players!$O$3:$O$903,A127,Players!Z$3:Z$903)) ->  | G127: =IF('User Input'!C14=0,"",(SUMIF(Players!$O$3:$O$903,A127,Players!AC$3:AC$1019))/B127) ->  | H127: =IF('User Input'!C14=0,"",SUMIF(Players!$AW$3:$AW$937,A127,Players!BD$3:BD$937)) ->  | I127: =IF('User Input'!C14=0,"",SUMIF(Players!$AW$3:$AW$937,A127,Players!BK$3:BK$1019)/H127) ->  | J127: =IF('User Input'!C14=0,"",SUMIF(Players!$AW$3:$AW$937,A127,Players!BL$3:BL$1019)/H127) ->  | K127: =IF('User Input'!C14=0,"",SUMIF(Players!$AW$3:$AW$937,A127,Players!BG$3:BG$937)) ->  | L127: =IF('User Input'!C14=0,"",SUMIF(Players!$AW$3:$AW$937,A127,Players!BH$3:BH$937)) ->  | M127: =IF('User Input'!C14=0,"",SUMIF(Players!$AW$3:$AW$937,A127,Players!BI$3:BI$937)) -> 
A128: =IF('User Input'!C15 = 0,"",'User Input'!C15) ->  | B128: =IF('User Input'!C15=0,"",SUMIF(Players!$O$3:$O$903,A128,Players!V$3:V$903)) ->  | C128: =IF('User Input'!C15=0,"",SUMIF(Players!$O$3:$O$903,A128,Players!W$3:W$903)) ->  | D128: =IF('User Input'!C15=0,"",SUMIF(Players!$O$3:$O$903,A128,Players!X$3:X$903)) ->  | E128: =IF('User Input'!C15=0,"",SUMIF(Players!$O$3:$O$903,A128,Players!Y$3:Y$903)) ->  | F128: =IF('User Input'!C15=0,"",SUMIF(Players!$O$3:$O$903,A128,Players!Z$3:Z$903)) ->  | G128: =IF('User Input'!C15=0,"",(SUMIF(Players!$O$3:$O$903,A128,Players!AC$3:AC$1019))/B128) ->  | H128: =IF('User Input'!C15=0,"",SUMIF(Players!$AW$3:$AW$937,A128,Players!BD$3:BD$937)) ->  | I128: =IF('User Input'!C15=0,"",SUMIF(Players!$AW$3:$AW$937,A128,Players!BK$3:BK$1019)/H128) ->  | J128: =IF('User Input'!C15=0,"",SUMIF(Players!$AW$3:$AW$937,A128,Players!BL$3:BL$1019)/H128) ->  | K128: =IF('User Input'!C15=0,"",SUMIF(Players!$AW$3:$AW$937,A128,Players!BG$3:BG$937)) ->  | L128: =IF('User Input'!C15=0,"",SUMIF(Players!$AW$3:$AW$937,A128,Players!BH$3:BH$937)) ->  | M128: =IF('User Input'!C15=0,"",SUMIF(Players!$AW$3:$AW$937,A128,Players!BI$3:BI$937)) -> 
A129: =IF('User Input'!C16 = 0,"",'User Input'!C16) ->  | B129: =IF('User Input'!C16=0,"",SUMIF(Players!$O$3:$O$903,A129,Players!V$3:V$903)) ->  | C129: =IF('User Input'!C16=0,"",SUMIF(Players!$O$3:$O$903,A129,Players!W$3:W$903)) ->  | D129: =IF('User Input'!C16=0,"",SUMIF(Players!$O$3:$O$903,A129,Players!X$3:X$903)) ->  | E129: =IF('User Input'!C16=0,"",SUMIF(Players!$O$3:$O$903,A129,Players!Y$3:Y$903)) ->  | F129: =IF('User Input'!C16=0,"",SUMIF(Players!$O$3:$O$903,A129,Players!Z$3:Z$903)) ->  | G129: =IF('User Input'!C16=0,"",(SUMIF(Players!$O$3:$O$903,A129,Players!AC$3:AC$1019))/B129) ->  | H129: =IF('User Input'!C16=0,"",SUMIF(Players!$AW$3:$AW$937,A129,Players!BD$3:BD$937)) ->  | I129: =IF('User Input'!C16=0,"",SUMIF(Players!$AW$3:$AW$937,A129,Players!BK$3:BK$1019)/H129) ->  | J129: =IF('User Input'!C16=0,"",SUMIF(Players!$AW$3:$AW$937,A129,Players!BL$3:BL$1019)/H129) ->  | K129: =IF('User Input'!C16=0,"",SUMIF(Players!$AW$3:$AW$937,A129,Players!BG$3:BG$937)) ->  | L129: =IF('User Input'!C16=0,"",SUMIF(Players!$AW$3:$AW$937,A129,Players!BH$3:BH$937)) ->  | M129: =IF('User Input'!C16=0,"",SUMIF(Players!$AW$3:$AW$937,A129,Players!BI$3:BI$937)) -> 
A130: =IF('User Input'!C17 = 0,"",'User Input'!C17) ->  | B130: =IF('User Input'!C17=0,"",SUMIF(Players!$O$3:$O$903,A130,Players!V$3:V$903)) ->  | C130: =IF('User Input'!C17=0,"",SUMIF(Players!$O$3:$O$903,A130,Players!W$3:W$903)) ->  | D130: =IF('User Input'!C17=0,"",SUMIF(Players!$O$3:$O$903,A130,Players!X$3:X$903)) ->  | E130: =IF('User Input'!C17=0,"",SUMIF(Players!$O$3:$O$903,A130,Players!Y$3:Y$903)) ->  | F130: =IF('User Input'!C17=0,"",SUMIF(Players!$O$3:$O$903,A130,Players!Z$3:Z$903)) ->  | G130: =IF('User Input'!C17=0,"",(SUMIF(Players!$O$3:$O$903,A130,Players!AC$3:AC$1019))/B130) ->  | H130: =IF('User Input'!C17=0,"",SUMIF(Players!$AW$3:$AW$937,A130,Players!BD$3:BD$937)) ->  | I130: =IF('User Input'!C17=0,"",SUMIF(Players!$AW$3:$AW$937,A130,Players!BK$3:BK$1019)/H130) ->  | J130: =IF('User Input'!C17=0,"",SUMIF(Players!$AW$3:$AW$937,A130,Players!BL$3:BL$1019)/H130) ->  | K130: =IF('User Input'!C17=0,"",SUMIF(Players!$AW$3:$AW$937,A130,Players!BG$3:BG$937)) ->  | L130: =IF('User Input'!C17=0,"",SUMIF(Players!$AW$3:$AW$937,A130,Players!BH$3:BH$937)) ->  | M130: =IF('User Input'!C17=0,"",SUMIF(Players!$AW$3:$AW$937,A130,Players!BI$3:BI$937)) -> 
A131: =IF('User Input'!C18 = 0,"",'User Input'!C18) ->  | B131: =IF('User Input'!C18=0,"",SUMIF(Players!$O$3:$O$903,A131,Players!V$3:V$903)) ->  | C131: =IF('User Input'!C18=0,"",SUMIF(Players!$O$3:$O$903,A131,Players!W$3:W$903)) ->  | D131: =IF('User Input'!C18=0,"",SUMIF(Players!$O$3:$O$903,A131,Players!X$3:X$903)) ->  | E131: =IF('User Input'!C18=0,"",SUMIF(Players!$O$3:$O$903,A131,Players!Y$3:Y$903)) ->  | F131: =IF('User Input'!C18=0,"",SUMIF(Players!$O$3:$O$903,A131,Players!Z$3:Z$903)) ->  | G131: =IF('User Input'!C18=0,"",(SUMIF(Players!$O$3:$O$903,A131,Players!AC$3:AC$1019))/B131) ->  | H131: =IF('User Input'!C18=0,"",SUMIF(Players!$AW$3:$AW$937,A131,Players!BD$3:BD$937)) ->  | I131: =IF('User Input'!C18=0,"",SUMIF(Players!$AW$3:$AW$937,A131,Players!BK$3:BK$1019)/H131) ->  | J131: =IF('User Input'!C18=0,"",SUMIF(Players!$AW$3:$AW$937,A131,Players!BL$3:BL$1019)/H131) ->  | K131: =IF('User Input'!C18=0,"",SUMIF(Players!$AW$3:$AW$937,A131,Players!BG$3:BG$937)) ->  | L131: =IF('User Input'!C18=0,"",SUMIF(Players!$AW$3:$AW$937,A131,Players!BH$3:BH$937)) ->  | M131: =IF('User Input'!C18=0,"",SUMIF(Players!$AW$3:$AW$937,A131,Players!BI$3:BI$937)) -> 
A132: =IF('User Input'!C19 = 0,"",'User Input'!C19) ->  | B132: =IF('User Input'!C19=0,"",SUMIF(Players!$O$3:$O$903,A132,Players!V$3:V$903)) ->  | C132: =IF('User Input'!C19=0,"",SUMIF(Players!$O$3:$O$903,A132,Players!W$3:W$903)) ->  | D132: =IF('User Input'!C19=0,"",SUMIF(Players!$O$3:$O$903,A132,Players!X$3:X$903)) ->  | E132: =IF('User Input'!C19=0,"",SUMIF(Players!$O$3:$O$903,A132,Players!Y$3:Y$903)) ->  | F132: =IF('User Input'!C19=0,"",SUMIF(Players!$O$3:$O$903,A132,Players!Z$3:Z$903)) ->  | G132: =IF('User Input'!C19=0,"",(SUMIF(Players!$O$3:$O$903,A132,Players!AC$3:AC$1019))/B132) ->  | H132: =IF('User Input'!C19=0,"",SUMIF(Players!$AW$3:$AW$937,A132,Players!BD$3:BD$937)) ->  | I132: =IF('User Input'!C19=0,"",SUMIF(Players!$AW$3:$AW$937,A132,Players!BK$3:BK$1019)/H132) ->  | J132: =IF('User Input'!C19=0,"",SUMIF(Players!$AW$3:$AW$937,A132,Players!BL$3:BL$1019)/H132) ->  | K132: =IF('User Input'!C19=0,"",SUMIF(Players!$AW$3:$AW$937,A132,Players!BG$3:BG$937)) ->  | L132: =IF('User Input'!C19=0,"",SUMIF(Players!$AW$3:$AW$937,A132,Players!BH$3:BH$937)) ->  | M132: =IF('User Input'!C19=0,"",SUMIF(Players!$AW$3:$AW$937,A132,Players!BI$3:BI$937)) -> 
A133: =IF('User Input'!C20 = 0,"",'User Input'!C20) ->  | B133: =IF('User Input'!C20=0,"",SUMIF(Players!$O$3:$O$903,A133,Players!V$3:V$903)) ->  | C133: =IF('User Input'!C20=0,"",SUMIF(Players!$O$3:$O$903,A133,Players!W$3:W$903)) ->  | D133: =IF('User Input'!C20=0,"",SUMIF(Players!$O$3:$O$903,A133,Players!X$3:X$903)) ->  | E133: =IF('User Input'!C20=0,"",SUMIF(Players!$O$3:$O$903,A133,Players!Y$3:Y$903)) ->  | F133: =IF('User Input'!C20=0,"",SUMIF(Players!$O$3:$O$903,A133,Players!Z$3:Z$903)) ->  | G133: =IF('User Input'!C20=0,"",(SUMIF(Players!$O$3:$O$903,A133,Players!AC$3:AC$1019))/B133) ->  | H133: =IF('User Input'!C20=0,"",SUMIF(Players!$AW$3:$AW$937,A133,Players!BD$3:BD$937)) ->  | I133: =IF('User Input'!C20=0,"",SUMIF(Players!$AW$3:$AW$937,A133,Players!BK$3:BK$1019)/H133) ->  | J133: =IF('User Input'!C20=0,"",SUMIF(Players!$AW$3:$AW$937,A133,Players!BL$3:BL$1019)/H133) ->  | K133: =IF('User Input'!C20=0,"",SUMIF(Players!$AW$3:$AW$937,A133,Players!BG$3:BG$937)) ->  | L133: =IF('User Input'!C20=0,"",SUMIF(Players!$AW$3:$AW$937,A133,Players!BH$3:BH$937)) ->  | M133: =IF('User Input'!C20=0,"",SUMIF(Players!$AW$3:$AW$937,A133,Players!BI$3:BI$937)) -> 
A134: =IF('User Input'!C21 = 0,"",'User Input'!C21) ->  | B134: =IF('User Input'!C21=0,"",SUMIF(Players!$O$3:$O$903,A134,Players!V$3:V$903)) ->  | C134: =IF('User Input'!C21=0,"",SUMIF(Players!$O$3:$O$903,A134,Players!W$3:W$903)) ->  | D134: =IF('User Input'!C21=0,"",SUMIF(Players!$O$3:$O$903,A134,Players!X$3:X$903)) ->  | E134: =IF('User Input'!C21=0,"",SUMIF(Players!$O$3:$O$903,A134,Players!Y$3:Y$903)) ->  | F134: =IF('User Input'!C21=0,"",SUMIF(Players!$O$3:$O$903,A134,Players!Z$3:Z$903)) ->  | G134: =IF('User Input'!C21=0,"",(SUMIF(Players!$O$3:$O$903,A134,Players!AC$3:AC$1019))/B134) ->  | H134: =IF('User Input'!C21=0,"",SUMIF(Players!$AW$3:$AW$937,A134,Players!BD$3:BD$937)) ->  | I134: =IF('User Input'!C21=0,"",SUMIF(Players!$AW$3:$AW$937,A134,Players!BK$3:BK$1019)/H134) ->  | J134: =IF('User Input'!C21=0,"",SUMIF(Players!$AW$3:$AW$937,A134,Players!BL$3:BL$1019)/H134) ->  | K134: =IF('User Input'!C21=0,"",SUMIF(Players!$AW$3:$AW$937,A134,Players!BG$3:BG$937)) ->  | L134: =IF('User Input'!C21=0,"",SUMIF(Players!$AW$3:$AW$937,A134,Players!BH$3:BH$937)) ->  | M134: =IF('User Input'!C21=0,"",SUMIF(Players!$AW$3:$AW$937,A134,Players!BI$3:BI$937)) -> 
A135: =IF('User Input'!C22 = 0,"",'User Input'!C22) ->  | B135: =IF('User Input'!C22=0,"",SUMIF(Players!$O$3:$O$903,A135,Players!V$3:V$903)) ->  | C135: =IF('User Input'!C22=0,"",SUMIF(Players!$O$3:$O$903,A135,Players!W$3:W$903)) ->  | D135: =IF('User Input'!C22=0,"",SUMIF(Players!$O$3:$O$903,A135,Players!X$3:X$903)) ->  | E135: =IF('User Input'!C22=0,"",SUMIF(Players!$O$3:$O$903,A135,Players!Y$3:Y$903)) ->  | F135: =IF('User Input'!C22=0,"",SUMIF(Players!$O$3:$O$903,A135,Players!Z$3:Z$903)) ->  | G135: =IF('User Input'!C22=0,"",(SUMIF(Players!$O$3:$O$903,A135,Players!AC$3:AC$1019))/B135) ->  | H135: =IF('User Input'!C22=0,"",SUMIF(Players!$AW$3:$AW$937,A135,Players!BD$3:BD$937)) ->  | I135: =IF('User Input'!C22=0,"",SUMIF(Players!$AW$3:$AW$937,A135,Players!BK$3:BK$1019)/H135) ->  | J135: =IF('User Input'!C22=0,"",SUMIF(Players!$AW$3:$AW$937,A135,Players!BL$3:BL$1019)/H135) ->  | K135: =IF('User Input'!C22=0,"",SUMIF(Players!$AW$3:$AW$937,A135,Players!BG$3:BG$937)) ->  | L135: =IF('User Input'!C22=0,"",SUMIF(Players!$AW$3:$AW$937,A135,Players!BH$3:BH$937)) ->  | M135: =IF('User Input'!C22=0,"",SUMIF(Players!$AW$3:$AW$937,A135,Players!BI$3:BI$937)) -> 
A136: =IF('User Input'!C23 = 0,"",'User Input'!C23) ->  | B136: =IF('User Input'!C23=0,"",SUMIF(Players!$O$3:$O$903,A136,Players!V$3:V$903)) ->  | C136: =IF('User Input'!C23=0,"",SUMIF(Players!$O$3:$O$903,A136,Players!W$3:W$903)) ->  | D136: =IF('User Input'!C23=0,"",SUMIF(Players!$O$3:$O$903,A136,Players!X$3:X$903)) ->  | E136: =IF('User Input'!C23=0,"",SUMIF(Players!$O$3:$O$903,A136,Players!Y$3:Y$903)) ->  | F136: =IF('User Input'!C23=0,"",SUMIF(Players!$O$3:$O$903,A136,Players!Z$3:Z$903)) ->  | G136: =IF('User Input'!C23=0,"",(SUMIF(Players!$O$3:$O$903,A136,Players!AC$3:AC$1019))/B136) ->  | H136: =IF('User Input'!C23=0,"",SUMIF(Players!$AW$3:$AW$937,A136,Players!BD$3:BD$937)) ->  | I136: =IF('User Input'!C23=0,"",SUMIF(Players!$AW$3:$AW$937,A136,Players!BK$3:BK$1019)/H136) ->  | J136: =IF('User Input'!C23=0,"",SUMIF(Players!$AW$3:$AW$937,A136,Players!BL$3:BL$1019)/H136) ->  | K136: =IF('User Input'!C23=0,"",SUMIF(Players!$AW$3:$AW$937,A136,Players!BG$3:BG$937)) ->  | L136: =IF('User Input'!C23=0,"",SUMIF(Players!$AW$3:$AW$937,A136,Players!BH$3:BH$937)) ->  | M136: =IF('User Input'!C23=0,"",SUMIF(Players!$AW$3:$AW$937,A136,Players!BI$3:BI$937)) -> 
A137: =IF('User Input'!C24 = 0,"",'User Input'!C24) ->  | B137: =IF('User Input'!C24=0,"",SUMIF(Players!$O$3:$O$903,A137,Players!V$3:V$903)) ->  | C137: =IF('User Input'!C24=0,"",SUMIF(Players!$O$3:$O$903,A137,Players!W$3:W$903)) ->  | D137: =IF('User Input'!C24=0,"",SUMIF(Players!$O$3:$O$903,A137,Players!X$3:X$903)) ->  | E137: =IF('User Input'!C24=0,"",SUMIF(Players!$O$3:$O$903,A137,Players!Y$3:Y$903)) ->  | F137: =IF('User Input'!C24=0,"",SUMIF(Players!$O$3:$O$903,A137,Players!Z$3:Z$903)) ->  | G137: =IF('User Input'!C24=0,"",(SUMIF(Players!$O$3:$O$903,A137,Players!AC$3:AC$1019))/B137) ->  | H137: =IF('User Input'!C24=0,"",SUMIF(Players!$AW$3:$AW$937,A137,Players!BD$3:BD$937)) ->  | I137: =IF('User Input'!C24=0,"",SUMIF(Players!$AW$3:$AW$937,A137,Players!BK$3:BK$1019)/H137) ->  | J137: =IF('User Input'!C24=0,"",SUMIF(Players!$AW$3:$AW$937,A137,Players!BL$3:BL$1019)/H137) ->  | K137: =IF('User Input'!C24=0,"",SUMIF(Players!$AW$3:$AW$937,A137,Players!BG$3:BG$937)) ->  | L137: =IF('User Input'!C24=0,"",SUMIF(Players!$AW$3:$AW$937,A137,Players!BH$3:BH$937)) ->  | M137: =IF('User Input'!C24=0,"",SUMIF(Players!$AW$3:$AW$937,A137,Players!BI$3:BI$937)) -> 
A138: =IF('User Input'!C25 = 0,"",'User Input'!C25) ->  | B138: =IF('User Input'!C25=0,"",SUMIF(Players!$O$3:$O$903,A138,Players!V$3:V$903)) ->  | C138: =IF('User Input'!C25=0,"",SUMIF(Players!$O$3:$O$903,A138,Players!W$3:W$903)) ->  | D138: =IF('User Input'!C25=0,"",SUMIF(Players!$O$3:$O$903,A138,Players!X$3:X$903)) ->  | E138: =IF('User Input'!C25=0,"",SUMIF(Players!$O$3:$O$903,A138,Players!Y$3:Y$903)) ->  | F138: =IF('User Input'!C25=0,"",SUMIF(Players!$O$3:$O$903,A138,Players!Z$3:Z$903)) ->  | G138: =IF('User Input'!C25=0,"",(SUMIF(Players!$O$3:$O$903,A138,Players!AC$3:AC$1019))/B138) ->  | H138: =IF('User Input'!C25=0,"",SUMIF(Players!$AW$3:$AW$937,A138,Players!BD$3:BD$937)) ->  | I138: =IF('User Input'!C25=0,"",SUMIF(Players!$AW$3:$AW$937,A138,Players!BK$3:BK$1019)/H138) ->  | J138: =IF('User Input'!C25=0,"",SUMIF(Players!$AW$3:$AW$937,A138,Players!BL$3:BL$1019)/H138) ->  | K138: =IF('User Input'!C25=0,"",SUMIF(Players!$AW$3:$AW$937,A138,Players!BG$3:BG$937)) ->  | L138: =IF('User Input'!C25=0,"",SUMIF(Players!$AW$3:$AW$937,A138,Players!BH$3:BH$937)) ->  | M138: =IF('User Input'!C25=0,"",SUMIF(Players!$AW$3:$AW$937,A138,Players!BI$3:BI$937)) -> 
A139: =IF('User Input'!C26 = 0,"",'User Input'!C26) ->  | B139: =IF('User Input'!C26=0,"",SUMIF(Players!$O$3:$O$903,A139,Players!V$3:V$903)) ->  | C139: =IF('User Input'!C26=0,"",SUMIF(Players!$O$3:$O$903,A139,Players!W$3:W$903)) ->  | D139: =IF('User Input'!C26=0,"",SUMIF(Players!$O$3:$O$903,A139,Players!X$3:X$903)) ->  | E139: =IF('User Input'!C26=0,"",SUMIF(Players!$O$3:$O$903,A139,Players!Y$3:Y$903)) ->  | F139: =IF('User Input'!C26=0,"",SUMIF(Players!$O$3:$O$903,A139,Players!Z$3:Z$903)) ->  | G139: =IF('User Input'!C26=0,"",(SUMIF(Players!$O$3:$O$903,A139,Players!AC$3:AC$1019))/B139) ->  | H139: =IF('User Input'!C26=0,"",SUMIF(Players!$AW$3:$AW$937,A139,Players!BD$3:BD$937)) ->  | I139: =IF('User Input'!C26=0,"",SUMIF(Players!$AW$3:$AW$937,A139,Players!BK$3:BK$1019)/H139) ->  | J139: =IF('User Input'!C26=0,"",SUMIF(Players!$AW$3:$AW$937,A139,Players!BL$3:BL$1019)/H139) ->  | K139: =IF('User Input'!C26=0,"",SUMIF(Players!$AW$3:$AW$937,A139,Players!BG$3:BG$937)) ->  | L139: =IF('User Input'!C26=0,"",SUMIF(Players!$AW$3:$AW$937,A139,Players!BH$3:BH$937)) ->  | M139: =IF('User Input'!C26=0,"",SUMIF(Players!$AW$3:$AW$937,A139,Players!BI$3:BI$937)) -> 
A140: =IF('User Input'!C27 = 0,"",'User Input'!C27) ->  | B140: =IF('User Input'!C27=0,"",SUMIF(Players!$O$3:$O$903,A140,Players!V$3:V$903)) ->  | C140: =IF('User Input'!C27=0,"",SUMIF(Players!$O$3:$O$903,A140,Players!W$3:W$903)) ->  | D140: =IF('User Input'!C27=0,"",SUMIF(Players!$O$3:$O$903,A140,Players!X$3:X$903)) ->  | E140: =IF('User Input'!C27=0,"",SUMIF(Players!$O$3:$O$903,A140,Players!Y$3:Y$903)) ->  | F140: =IF('User Input'!C27=0,"",SUMIF(Players!$O$3:$O$903,A140,Players!Z$3:Z$903)) ->  | G140: =IF('User Input'!C27=0,"",(SUMIF(Players!$O$3:$O$903,A140,Players!AC$3:AC$1019))/B140) ->  | H140: =IF('User Input'!C27=0,"",SUMIF(Players!$AW$3:$AW$937,A140,Players!BD$3:BD$937)) ->  | I140: =IF('User Input'!C27=0,"",SUMIF(Players!$AW$3:$AW$937,A140,Players!BK$3:BK$1019)/H140) ->  | J140: =IF('User Input'!C27=0,"",SUMIF(Players!$AW$3:$AW$937,A140,Players!BL$3:BL$1019)/H140) ->  | K140: =IF('User Input'!C27=0,"",SUMIF(Players!$AW$3:$AW$937,A140,Players!BG$3:BG$937)) ->  | L140: =IF('User Input'!C27=0,"",SUMIF(Players!$AW$3:$AW$937,A140,Players!BH$3:BH$937)) ->  | M140: =IF('User Input'!C27=0,"",SUMIF(Players!$AW$3:$AW$937,A140,Players!BI$3:BI$937)) -> 
A141: =IF('User Input'!C28 = 0,"",'User Input'!C28) ->  | B141: =IF('User Input'!C28=0,"",SUMIF(Players!$O$3:$O$903,A141,Players!V$3:V$903)) ->  | C141: =IF('User Input'!C28=0,"",SUMIF(Players!$O$3:$O$903,A141,Players!W$3:W$903)) ->  | D141: =IF('User Input'!C28=0,"",SUMIF(Players!$O$3:$O$903,A141,Players!X$3:X$903)) ->  | E141: =IF('User Input'!C28=0,"",SUMIF(Players!$O$3:$O$903,A141,Players!Y$3:Y$903)) ->  | F141: =IF('User Input'!C28=0,"",SUMIF(Players!$O$3:$O$903,A141,Players!Z$3:Z$903)) ->  | G141: =IF('User Input'!C28=0,"",(SUMIF(Players!$O$3:$O$903,A141,Players!AC$3:AC$1019))/B141) ->  | H141: =IF('User Input'!C28=0,"",SUMIF(Players!$AW$3:$AW$937,A141,Players!BD$3:BD$937)) ->  | I141: =IF('User Input'!C28=0,"",SUMIF(Players!$AW$3:$AW$937,A141,Players!BK$3:BK$1019)/H141) ->  | J141: =IF('User Input'!C28=0,"",SUMIF(Players!$AW$3:$AW$937,A141,Players!BL$3:BL$1019)/H141) ->  | K141: =IF('User Input'!C28=0,"",SUMIF(Players!$AW$3:$AW$937,A141,Players!BG$3:BG$937)) ->  | L141: =IF('User Input'!C28=0,"",SUMIF(Players!$AW$3:$AW$937,A141,Players!BH$3:BH$937)) ->  | M141: =IF('User Input'!C28=0,"",SUMIF(Players!$AW$3:$AW$937,A141,Players!BI$3:BI$937)) -> 
A142: =IF('User Input'!C29 = 0,"",'User Input'!C29) ->  | B142: =IF('User Input'!C29=0,"",SUMIF(Players!$O$3:$O$903,A142,Players!V$3:V$903)) ->  | C142: =IF('User Input'!C29=0,"",SUMIF(Players!$O$3:$O$903,A142,Players!W$3:W$903)) ->  | D142: =IF('User Input'!C29=0,"",SUMIF(Players!$O$3:$O$903,A142,Players!X$3:X$903)) ->  | E142: =IF('User Input'!C29=0,"",SUMIF(Players!$O$3:$O$903,A142,Players!Y$3:Y$903)) ->  | F142: =IF('User Input'!C29=0,"",SUMIF(Players!$O$3:$O$903,A142,Players!Z$3:Z$903)) ->  | G142: =IF('User Input'!C29=0,"",(SUMIF(Players!$O$3:$O$903,A142,Players!AC$3:AC$1019))/B142) ->  | H142: =IF('User Input'!C29=0,"",SUMIF(Players!$AW$3:$AW$937,A142,Players!BD$3:BD$937)) ->  | I142: =IF('User Input'!C29=0,"",SUMIF(Players!$AW$3:$AW$937,A142,Players!BK$3:BK$1019)/H142) ->  | J142: =IF('User Input'!C29=0,"",SUMIF(Players!$AW$3:$AW$937,A142,Players!BL$3:BL$1019)/H142) ->  | K142: =IF('User Input'!C29=0,"",SUMIF(Players!$AW$3:$AW$937,A142,Players!BG$3:BG$937)) ->  | L142: =IF('User Input'!C29=0,"",SUMIF(Players!$AW$3:$AW$937,A142,Players!BH$3:BH$937)) ->  | M142: =IF('User Input'!C29=0,"",SUMIF(Players!$AW$3:$AW$937,A142,Players!BI$3:BI$937)) -> 
